Workbook

Sheet pHcyc26
AE4: 2.53325E-12x3 - 5.63616E-09x2 - 2.95642E-06x + 3.46442E-05
A8: Profile: 18340.026 Thu May 21 09:28:43 2020
A9: H | B9: Datalogger Serial Num | C9: SN:0850
A10: H | B10: Application Name | C10: APF_MAIN.C
A11: H | B11: App Build Date | C11: Apr 30 2019 | D11: 10:48:38
A12: H | B12: Power Up Time (GMT) | C12: 05/21/2020 09:28:15 | W12: <----- | AE12: -1.57252E-18x5 + 7.57486E-15x4 - 9.81276E-12x3 + 1.81040E-09x2 - 1.66482E-06x + 1.11359E-04
A13: H | B13: Current Time (GMT) | C13: 05/21/2020 09:28:48 | W13: <-----
A14: H | B14: Alarm Time (GMT) | C14: 05/21/2020 19:28:47 | W14: <----- | X14: DuraFET | AE14: Cal values here
A15: H | B15: Power Active Timeout | C15: 10 | W15: <----- | X15: Data | AJ15: Josh
A16: H | B16: Persistor CF2-1M Info | C16: S/N:15002 - BIOS:4.03 - PicoDOS:4.03 | W16: <----- | X16: to the | AA16: Control + Shift + T - import CTD data from .log file | AE16: k0 | AF16: -1.4255 | AH16: -1.427 | AJ16: -1.4255 | AK16: =k0
A17: H | B17: Compact FLASH Size | C17: 256614400 | W17: <----- | X17: Left | AA17: Control + Shift + F to import DuraFET data from .csv file | AE17: k2 | AF17: -0.001 | AH17: -0.0009 | AJ17: -0.001 | AK17: =k2*T
A18: H | B18: Compact FLASH Left | C18: 0.974 | W18: <----- | AE18: P | AF18: 5.6021e-06 | AH18: -1.66482e-06 | AJ18: 5.6021e-06 | AK18: =k3*P^1
A19: H | B19: Power Cycle Counter | C19: 51 | W19: <----- | AA19: Temperature/Salinity Selection | AE19: P^2 | AF19: -4.8057e-09 | AH19: 1.8104e-09 | AJ19: -4.8057e-09 | AK19: =k4*P^2
A20: H | B20: System Reset Counter | C20: 51 | W20: <----- | AA20: 1: T =DFET (Column C), Salinity input manual | AE20: P^3 | AH20: -9.81276e-12
A21: H | B21: System Error Counter | C21: 0 | W21: <----- | AA21: 2: CTD (load CTD data with Control Shift T) | AE21: P^4 | AH21: 7.57486e-15
A22: H | B22: Last System Error | C22: 0 | W22: <----- | AA22: 2 | AE22: P^5 | AH22: -1.57252e-18
A23: H | B23: Last System ErrorTime | C23: 01/01/1970 00:00:00 | W23: <----- | AE23: P^6
A24: H | B24: DURA Error Counter | C24: 0 | W24: <-----
A25: H | B25: Last DURA Error | C25: 0 | W25: <-----
A26: H | B26: Last DURA Error Time | C26: 01/01/1970 00:00:00 | W26: <-----
A27: H | B27: DURA Sample Counter | C27: 1124 | W27: <----- | AA27: Calibration data
A28: H | B28: Last Sample Rec. Time | C28: 05/16/2020 11:09:51 | W28: <-----
A29: H | B29: AtoD Reads per Sample | C29: 10 | W29: <-----
A30: H | B30: AtoD Reading Delay | C30: 1900-04-09
A31: H | B31: Samps per AtoD Recal | C31: 1900-09-06
A32: # No error records to log.
Z34: Don't erase this first row of formulas!!!! Subsequent rows can be erased or copied down as needed from colum W on.
A35: RECORD_16BIT_CRC | B35: RECORD_DATA_TYPE | C35: DURAFET_TIMESTAMP (GMT) | D35: CTD_TIMESTAMP (1970 EPOCH SECS) | E35: CTD_PRESSURE (D BAR) | F35: CTD_TEMPERATURE (DEG C) | G35: CTD_SALINITY (PSS) | H35: SAMPLE_COUNTER | I35: POWER_CYCLE_COUNTER | J35: ERROR_COUNTER | K35: HOUSING_TEMP (DEG C) | L35: HOUSING_REL_HUMIIDITY (%) | M35: DURAFET_SUPPLY_VOLTAGE (V) | N35: DURAFET_SUPPLY_CURRENT (A) | O35: DURAFET_COMPUTED_pH_VALUE (pH) | P35: DURAFET_BACKUP_BATT_VOLTAGE (V) | Q35: DURAFET_REFERENCE_ELECTRODE_VRS_VOLTAGE (V) | R35: DURAFET_REFERENCE_ELECTRODE_VRS_STDDEV | S35: DURAFET_COUNTER_ELECTRODE_VK_VOLTAGE (V) | T35: DURAFET_COUNTER_ELECTRODE_VK_STDDEV | U35: DURAFET_COUNTER_ELECTRODE_IK_CURRENT (A) | V35: DURAFET_SUBSTRATE_IB_CURRENT (A) | W35: T/C | X35: K | Y35: S(T) | Z35: Salinity | AA35: IonicStrength | AB35: SO4(tot) | AC35: mCl | AD35: Press(dbar) | AE35: KHSO4 | AF35: deltaV HSO4 | AG35: KHSO4 TPS | AH35: DebyeHuckelConst | AI35: log(γHγCl) | AJ35: deltaV HCl | AK35: ThermPress | AL35: f(P) | AM35: k0+k2T+f(P) | AN35: pHtot in situ | AO35: pHfree in situ | AP35: pH25Total | AQ35: pH20Total | AR35: Date + Time
A36: 0xA866 | B36: pH | C36: 2020-05-21T09:37:21 | D36: 1590053835 | E36: 1599.89 | F36: 2.5819 | G36: 34.5524 | H36: 1124 | I36: 51 | J36: 0 | K36: 2.64 | L36: 0.93 | M36: 14.304 | N36: 0.0448 | O36: 7.1234 | P36: 3.431 | Q36: -0.98976 | R36: 2.7e-05 | S36: -0.984831 | T36: 2.7e-05 | U36: 6.964e-09 | V36: -4.272e-10 | W36: =F36 -> 2.5819 | X36: =W36+273.15 -> 275.7319 | Y36: =8.31451*X36/96487*LN(10) -> 0.05471048424 | Z36: =G36 -> 34.5524 | AA36: =19.924 * Z36/ (1000 - 1.005 * Z36) -> 0.7131875716 | AB36: =(0.14 / 96.062) * (Z36 / 1.80655) -> 0.02787434327 | AC36: =0.99889/35.453*Z36/1.80655*(1 + 0.00106 * Z36) -> 0.558617856 | AD36: =E36 -> 1599.89 | AE36: =EXP(-4276.1 /X36 + 141.328 - 23.093 * LN(X36) + (-13856 / X36 + 324.57 - 47.986 * LN(X36)) * AA36^ 0.5 + (35474 / X36 - 771.54 + 114.723 * LN(X36)) * AA36- 2698 / X36 * AA36 ^ 1.5 + 1776 / X36*AA36 ^ 2 + LN(1 - 0.001005 * Z36)) -> 0.250255833 | AF36: =-18.03 + 0.0466 * W36 + 0.000316 *W36 ^ 2 -> -17.90757694 | AG36: =EXP((-AF36) * (AD36 / 10) / (8.31451 * 10 * X36))*AE36 -> 0.2835682993 | AH36: =(0.00000343*W36^2 + 0.00067524*W36 + 0.49172143) -> 0.4934876972 | AI36: =2*(-AH36*SQRT(AA36)/(1+1.394*SQRT(AA36))+(0.08885-0.000111*W36)*AA36) -> -0.256501945 | AJ36: =17.85 + 0.1044 * W36 - 0.001316 * W36 ^ 2 -> 18.11077763 | AK36: =-AJ36 * 0.0242 / (23061 * 1.01) *AD36 / 10 -> -0.003010530826 | AL36: =AF$18*AD36+AF$19*AD36^2+AF$20*AD36^3+AF$21*AD36^4+AF$22*AD36^5+AF$23*AD36^6 -> -0.003338156683 | AM36: =$AF$16+$AF$17*(W36)+AL36 -> -1.431420057 | AN36: =AO36-LOG(1+AB36/AG36) -> 7.600965136 | AO36: =-LOG10((10^(-((Q36-AM36-AK36)/Y36+(LOG(AC36)+AI36))))/(1+0.0016*Z36)) -> 7.641685533 | AP36: =((AN36 + 0.000035833 * AD36 - 0.01703 * (25 - W36) + 0.00004453 * (25 - W36) ^ 2) ) -> 7.298893247 | AQ36: =((AN36 + 0.000035833 * AD36 - 0.01703 * (20 - W36) + 0.00004453 * (20 - W36) ^ 2) ) -> 7.375173717 | AR36: =B36 -> pH
A37: 0x2D81 | B37: pH | C37: 2020-05-21T09:55:58 | D37: 1590054953 | E37: 1499.95 | F37: 2.7645 | G37: 34.5372 | H37: 1125 | I37: 51 | J37: 0 | K37: 2.77 | L37: 0.95 | M37: 14.496 | N37: 0.0442 | O37: 7.1234 | P37: 3.431 | Q37: -0.989057 | R37: 2.4e-05 | S37: -0.984221 | T37: 1.5e-05 | U37: 8.348e-09 | V37: 1.106e-11 | W37: =F37 -> 2.7645 | X37: =W37+273.15 -> 275.9145 | Y37: =8.31451*X37/96487*LN(10) -> 0.05474671557 | Z37: =G37 -> 34.5372 | AA37: 0.7128625507 | AB37: 0.02786208102 | AC37: =0.99889/35.453*Z37/1.80655*(1 + 0.00106 * Z37) -> 0.558363435 | AD37: =E37 -> 1499.95 | AE37: 0.2480106772 | AF37: =-18.03 + 0.0466 * W37 + 0.000316 *W37 ^ 2 -> -17.89875928 | AG37: =EXP((-AF37) * (AD37 / 10) / (8.31451 * 10 * X37))*AE37 -> 0.2788013329 | AH37: 0.4936143446 | AI37: -0.2566465744 | AJ37: =17.85 + 0.1044 * W37 - 0.001316 * W37 ^ 2 -> 18.12855632 | AK37: =-AJ37 * 0.0242 / (23061 * 1.01) *AD37 / 10 -> -0.002825243334 | AL37: -0.002409234262 | AM37: -1.430673734 | AN37: =AO37-LOG(1+AB37/AG37) -> 7.590411249 | AO37: =-LOG10((10^(-((Q37-AM37-AK37)/Y37+(LOG(AC37)+AI37))))/(1+0.0016*Z37)) -> 7.63177837 | AP37: =((AN37 + 0.000035833 * AD37 - 0.01703 * (25 - W37) + 0.00004453 * (25 - W37) ^ 2) ) -> 7.287504802 | AQ37: =((AN37 + 0.000035833 * AD37 - 0.01703 * (20 - W37) + 0.00004453 * (20 - W37) ^ 2) ) -> 7.363866584 | AR37: =B37 -> pH
A38: 0x142E | B38: pH | C38: 2020-05-21T10:14:35 | D38: 1590056069 | E38: 1399.64 | F38: 2.9769 | G38: 34.5247 | H38: 1126 | I38: 51 | J38: 0 | K38: 2.91 | L38: 0.96 | M38: 14.408 | N38: 0.0444 | O38: 7.1234 | P38: 3.431 | Q38: -0.98877 | R38: 3.5e-05 | S38: -0.984008 | T38: 2.1e-05 | U38: 8.365e-09 | V38: 3.859e-10 | W38: 2.9769 | X38: 276.1269 | Y38: 0.0547888598 | Z38: 34.5247 | AA38: 0.7125952715 | AB38: 0.02785199694 | AC38: 0.5581542128 | AD38: 1399.64 | AE38: 0.2454665827 | AF38: -17.88847609 | AG38: 0.27375006 | AH38: 0.4937619484 | AI38: -0.2568090112 | AJ38: 18.14912606 | AK38: -0.002639294903 | AL38: -0.001573405233 | AM38: -1.430050305 | AN38: 7.573585915 | AO38: 7.615665991 | AP38: 7.270283626 | AQ38: 7.34673999 | AR38: pH
A39: 0x8E7A | B39: pH | C39: 2020-05-21T10:33:25 | D39: 1590057199 | E39: 1299.63 | F39: 3.1707 | G39: 34.509 | H39: 1127 | I39: 51 | J39: 0 | K39: 3.06 | L39: 0.95 | M39: 14.264 | N39: 0.0448 | O39: 7.1234 | P39: 3.432 | Q39: -0.988496 | R39: 2.3e-05 | S39: -0.983675 | T39: 1.6e-05 | U39: 6.706e-09 | V39: 1.553e-09 | W39: 3.1707 | X39: 276.3207 | Y39: 0.05482731343 | Z39: 34.509 | AA39: 0.7122595786 | AB39: 0.02783933133 | AC39: 0.5578914371 | AD39: 1299.63 | AE39: 0.2431459507 | AF39: -17.87906853 | AG39: 0.2690238195 | AH39: 0.4938968964 | AI39: -0.2569622912 | AJ39: 18.16779089 | AK39: -0.002453226835 | AL39: -0.0008363533515 | AM39: -1.429507053 | AN39: 7.558545014 | AO39: 7.601310573 | AP39: 7.254581039 | AQ39: 7.331123701 | AR39: pH
A40: 0x1E0F | B40: pH | C40: 2020-05-21T10:52:45 | D40: 1590058359 | E40: 1200.33 | F40: 3.4024 | G40: 34.4907 | H40: 1128 | I40: 51 | J40: 0 | K40: 3.27 | L40: 0.98 | M40: 14.504 | N40: 0.0442 | O40: 7.1234 | P40: 3.432 | Q40: -0.988144 | R40: 3.5e-05 | S40: -0.983307 | T40: 1e-05 | U40: 8.299e-09 | V40: 1.538e-09 | W40: 3.4024 | X40: 276.5524 | Y40: 0.05487328714 | Z40: 34.4907 | AA40: 0.7118683072 | AB40: 0.02782456823 | AC40: 0.5575851547 | AD40: 1200.33 | AE40: 0.2404115948 | AF40: -17.86779004 | AG40: 0.2639146478 | AH40: 0.4940585734 | AI40: -0.2571451783 | AJ40: 18.18997612 | AK40: -0.002268551515 | AL40: -0.0001996459447 | AM40: -1.429102046 | AN40: 7.546237766 | AO40: 7.589769083 | AP40: 7.242213363 | AQ40: 7.318859202 | AR40: pH
A41: 0x8D4F | B41: pH | C41: 2020-05-21T11:11:15 | D41: 1590059469 | E41: 1099.91 | F41: 3.6397 | G41: 34.4672 | H41: 1129 | I41: 51 | J41: 0 | K41: 3.48 | L41: 0.99 | M41: 14.472 | N41: 0.0442 | O41: 7.1234 | P41: 3.432 | Q41: -0.987557 | R41: 1.7e-05 | S41: -0.982689 | T41: 1.8e-05 | U41: 9.046e-09 | V41: 7.032e-10 | W41: 3.6397 | X41: 276.7897 | Y41: 0.054920372 | Z41: 34.4672 | AA41: 0.7113658767 | AB41: 0.02780561015 | AC41: 0.5571918575 | AD41: 1099.91 | AE41: 0.2376217605 | AF41: -17.8562038 | AG41: 0.258791199 | AH41: 0.4942245397 | AI41: -0.2573380804 | AJ41: 18.21255108 | AK41: -0.002081343638 | AL41: 0.0003478603007 | AM41: -1.42879184 | AN41: 7.539638725 | AO41: 7.583960573 | AP41: 7.235603256 | AQ41: 7.312354765 | AR41: pH
A42: 0x9BA7 | B42: pH | C42: 2020-05-21T11:30:42 | D42: 1590060636 | E42: 1000.05 | F42: 3.9162 | G42: 34.4451 | H42: 1130 | I42: 51 | J42: 0 | K42: 3.7 | L42: 1.03 | M42: 14.548 | N42: 0.0442 | O42: 7.1234 | P42: 3.433 | Q42: -0.986886 | R42: 2.5e-05 | S42: -0.982025 | T42: 2.1e-05 | U42: 8.738e-09 | V42: 6.735e-10 | W42: 3.9162 | X42: 277.0662 | Y42: 0.05497523489 | Z42: 34.4451 | AA42: 0.7108934006 | AB42: 0.02778778149 | AC42: 0.5568220074 | AD42: 1000.05 | AE42: 0.2344568814 | AF42: -17.84265871 | AG42: 0.2533390647 | AH42: 0.4944184095 | AI42: -0.2575570736 | AJ42: 18.23866828 | AK42: -0.001895093732 | AL42: 0.000796199523 | AM42: -1.42862 | AN42: 7.535874865 | AO42: 7.581075022 | AP42: 7.232447313 | AQ42: 7.309321947 | AR42: pH
A43: 0xCE65 | B43: pH | C43: 2020-05-21T11:40:12 | D43: 1590061205 | E43: 949.16 | F43: 4.1374 | G43: 34.4287 | H43: 1131 | I43: 51 | J43: 0 | K43: 3.88 | L43: 1.03 | M43: 14.32 | N43: 0.0446 | O43: 7.1234 | P43: 3.433 | Q43: -0.987096 | R43: 2.5e-05 | S43: -0.98145 | T43: 2.6e-05 | U43: 7.834e-09 | V43: 4.231e-10 | W43: 4.1374 | X43: 277.2874 | Y43: 0.0550191252 | Z43: 34.4287 | AA43: 0.710542799 | AB43: 0.02777455118 | AC43: 0.556547559 | AD43: 949.16 | AE43: 0.2319719771 | AF43: -17.83178785 | AG43: 0.2496421904 | AH43: 0.494573883 | AI43: -0.2577310125 | AJ43: 18.25941717 | AK43: -0.001800703443 | AL43: 0.0009878114923 | AM43: -1.428649589 | AN43: 7.523429462 | AO43: 7.569244144 | AP43: 7.221532231 | AQ43: 7.298505365 | AR43: pH
A44: 0x599D | B44: pH | C44: 2020-05-21T11:51:11 | D44: 1590061864 | E44: 893.8 | F44: 4.3221 | G44: 34.4088 | H44: 1132 | I44: 51 | J44: 0 | K44: 4.1 | L44: 1.06 | M44: 14.352 | N44: 0.0444 | O44: 7.1234 | P44: 3.434 | Q44: -0.986648 | R44: 2.5e-05 | S44: -0.980907 | T44: 2.2e-05 | U44: 8.654e-09 | V44: 1.32e-09 | W44: 4.3221 | X44: 277.4721 | Y44: 0.05505577321 | Z44: 34.4088 | AA44: 0.7101173899 | AB44: 0.02775849731 | AC44: 0.5562145512 | AD44: 893.8 | AE44: 0.2298854844 | AF44: -17.82268709 | AG44: 0.2463197075 | AH44: 0.4947039591 | AI44: -0.2578833654 | AJ44: 18.27664364 | AK44: -0.001697276705 | AL44: 0.001167986861 | AM44: -1.428654113 | AN44: 7.523420261 | AO44: 7.569795602 | AP44: 7.222343099 | AQ44: 7.29939848 | AR44: pH
A45: 0x1AEF | B45: pH | C45: 2020-05-21T12:03:11 | D45: 1590062584 | E45: 831.48 | F45: 4.5016 | G45: 34.3873 | H45: 1133 | I45: 51 | J45: 0 | K45: 4.29 | L45: 1.11 | M45: 14.296 | N45: 0.0446 | O45: 7.1234 | P45: 3.434 | Q45: -0.986225 | R45: 1.6e-05 | S45: -0.980476 | T45: 3.2e-05 | U45: 9.012e-09 | V45: -5.737e-10 | W45: 4.5016 | X45: 277.6516 | Y45: 0.05509138945 | Z45: 34.3873 | AA45: 0.7096577968 | AB45: 0.02774115269 | AC45: 0.5558547836 | AD45: 831.48 | AE45: 0.2278681945 | AF45: -17.81382189 | AG45: 0.2429676987 | AH45: 0.4948305973 | AI45: -0.2580339328 | AJ45: 18.29329909 | AK45: -0.001580373354 | AL45: 0.001335570208 | AM45: -1.42866603 | AN45: 7.522958231 | AO45: 7.569912146 | AP45: 7.222375713 | AQ45: 7.299511025 | AR45: pH
A46: 0x4171 | B46: pH | C46: 2020-05-21T12:09:08 | D46: 1590062942 | E46: 798.12 | F46: 4.5845 | G46: 34.3764 | H46: 1134 | I46: 51 | J46: 0 | K46: 4.46 | L46: 1.12 | M46: 14.32 | N46: 0.0446 | O46: 7.1234 | P46: 3.434 | Q46: -0.985904 | R46: 1.6e-05 | S46: -0.980182 | T46: 2e-05 | U46: 8.546e-09 | V46: -5.171e-10 | W46: 4.5845 | X46: 277.7345 | Y46: 0.05510783839 | Z46: 34.3764 | AA46: 0.7094248017 | AB46: 0.02773235937 | AC46: 0.5556723956 | AD46: 798.12 | AE46: 0.2269385827 | AF46: -17.80972073 | AG46: 0.2413465287 | AH46: 0.4948891583 | AI46: -0.2581045795 | AJ46: 18.30096259 | AK46: -0.001517602326 | AL46: 0.001409938612 | AM46: -1.428674561 | AN46: 7.52488821 | AO46: 7.572126778 | AP46: 7.224371056 | AQ46: 7.301543283 | AR46: pH
A47: 0xCA60 | B47: pH | C47: 2020-05-21T12:20:07 | D47: 1590063601 | E47: 743.72 | F47: 4.7635 | G47: 34.3567 | H47: 1135 | I47: 51 | J47: 0 | K47: 4.62 | L47: 1.14 | M47: 14.364 | N47: 0.0444 | O47: 7.1234 | P47: 3.435 | Q47: -0.9856 | R47: 2.3e-05 | S47: -0.97995 | T47: 2.2e-05 | U47: 7.842e-09 | V47: 1.467e-09 | W47: 4.7635 | X47: 277.9135 | Y47: 0.05514335542 | Z47: 34.3567 | AA47: 0.7090037138 | AB47: 0.02771646685 | AC47: 0.5553427686 | AD47: 743.72 | AE47: 0.2249706735 | AF47: -17.80085057 | AG47: 0.2382363774 | AH47: 0.4950157656 | AI47: -0.2582528775 | AJ47: 18.31744813 | AK47: -0.001415436164 | AL47: 0.001508267727 | AM47: -1.428755232 | AN47: 7.523841618 | AO47: 7.571638181 | AP47: 7.224099487 | AQ47: 7.301351423 | AR47: pH
A48: 0x0AF6 | B48: pH | C48: 2020-05-21T12:32:06 | D48: 1590064320 | E48: 678.21 | F48: 5.0532 | G48: 34.3124 | H48: 1136 | I48: 51 | J48: 0 | K48: 4.8 | L48: 1.16 | M48: 14.348 | N48: 0.0444 | O48: 7.1234 | P48: 3.436 | Q48: -0.985202 | R48: 1.7e-05 | S48: -0.979691 | T48: 2e-05 | U48: 8.238e-09 | V48: 1.007e-09 | W48: 5.0532 | X48: 278.2032 | Y48: 0.05520083744 | Z48: 34.3124 | AA48: 0.7080568636 | AB48: 0.02768072886 | AC48: 0.554601573 | AD48: 678.21 | AE48: 0.2217616539 | AF48: -17.78645187 | AG48: 0.2336334009 | AH48: 0.4952211372 | AI48: -0.2585068416 | AJ48: 18.34395024 | AK48: -0.001292626066 | AL48: 0.001588928159 | AM48: -1.428964272 | AN48: 7.522523933 | AO48: 7.571151896 | AP48: 7.224849595 | AQ48: 7.302230534 | AR48: pH
A49: 0x7D4D | B49: pH | C49: 2020-05-21T12:38:05 | D49: 1590064678 | E49: 648.76 | F49: 5.2529 | G49: 34.3017 | H49: 1137 | I49: 51 | J49: 0 | K49: 4.98 | L49: 1.17 | M49: 14.332 | N49: 0.0444 | O49: 7.1234 | P49: 3.436 | Q49: -0.985107 | R49: 2.4e-05 | S49: -0.979846 | T49: 1.1e-05 | U49: 8.241e-09 | V49: 3.201e-09 | W49: 5.2529 | X49: 278.4029 | Y49: 0.05524046174 | Z49: 34.3017 | AA49: 0.7078281792 | AB49: 0.02767209689 | AC49: 0.5544225581 | AD49: 648.76 | AE49: 0.2196962736 | AF49: -17.77649549 | AG49: 0.2309191991 | AH49: 0.495363042 | AI49: -0.2586599884 | AJ49: 18.36209043 | AK49: -0.001237718959 | AL49: 0.001611749545 | AM49: -1.42914115 | AN49: 7.519842147 | AO49: 7.568996007 | AP49: 7.224160434 | AQ49: 7.3016303 | AR49: pH
A50: 0x19C8 | B50: pH | C50: 2020-05-21T12:50:05 | D50: 1590065398 | E50: 583.3 | F50: 5.5738 | G50: 34.2558 | H50: 1138 | I50: 51 | J50: 0 | K50: 5.2 | L50: 1.2 | M50: 14.316 | N50: 0.0444 | O50: 7.1234 | P50: 3.437 | Q50: -0.98473 | R50: 2e-05 | S50: -0.979749 | T50: 1.2e-05 | U50: 8.389e-09 | V50: 1.642e-09 | W50: 5.5738 | X50: 278.7238 | Y50: 0.05530413444 | Z50: 34.2558 | AA50: 0.7068472451 | AB50: 0.02763506813 | AC50: 0.5536546771 | AD50: 583.3 | AE50: 0.2162712537 | AF50: -17.76044367 | AG50: 0.2261585404 | AH50: 0.4955916434 | AI50: -0.2589380625 | AJ50: 18.39102022 | AK50: -0.001114586182 | AL50: 0.001632618896 | AM50: -1.429441181 | AN50: 7.518753243 | AO50: 7.568820931 | AP50: 7.225631054 | AQ50: 7.303243817 | AR50: pH
A51: 0x2DE5 | B51: pH | C51: 2020-05-21T12:56:03 | D51: 1590065757 | E51: 548.98 | F51: 5.6387 | G51: 34.2188 | H51: 1139 | I51: 51 | J51: 0 | K51: 5.4 | L51: 1.2 | M51: 14.336 | N51: 0.0444 | O51: 7.1234 | P51: 3.437 | Q51: -0.984711 | R51: 2.5e-05 | S51: -0.979847 | T51: 4e-05 | U51: 8.69e-09 | V51: 2.108e-10 | W51: 5.6387 | X51: 278.7887 | Y51: 0.05531701184 | Z51: 34.2188 | AA51: 0.7060565822 | AB51: 0.02760521924 | AC51: 0.5530357388 | AD51: 548.98 | AE51: 0.2154359376 | AF51: -17.75718938 | AG51: 0.2246893354 | AH51: 0.4956379624 | AI51: -0.2590247545 | AJ51: 18.39683814 | AK51: -0.001049338402 | AL51: 0.001627103604 | AM51: -1.429511596 | AN51: 7.516458939 | AO51: 7.566784356 | AP51: 7.223100113 | AQ51: 7.300741776 | AR51: pH
A52: 0xE5EA | B52: pH | C52: 2020-05-21T13:07:03 | D52: 1590066416 | E52: 496.48 | F52: 5.9875 | G52: 34.1955 | H52: 1140 | I52: 51 | J52: 0 | K52: 5.63 | L52: 1.23 | M52: 14.384 | N52: 0.0442 | O52: 7.1234 | P52: 3.438 | Q52: -0.984845 | R52: 1.9e-05 | S52: -0.980579 | T52: 2e-05 | U52: 6.547e-09 | V52: 1.717e-09 | W52: 5.9875 | X52: 279.1375 | Y52: 0.05538622044 | Z52: 34.1955 | AA52: 0.7055587095 | AB52: 0.02758642251 | AC52: 0.5526459982 | AD52: 496.48 | AE52: 0.2119527602 | AF52: -17.73965385 | AG52: 0.2201505646 | AH52: 0.4958873955 | AI52: -0.2592979474 | AJ52: 18.42791619 | AK52: -0.0009505913174 | AL52: 0.001596762127 | AM52: -1.429890738 | AN52: 7.507490389 | AO52: 7.558761436 | AP52: 7.21759437 | AQ52: 7.295391354 | AR52: pH
A53: 0x02D0 | B53: pH | C53: 2020-05-21T13:19:02 | D53: 1590067136 | E53: 425.31 | F53: 6.9398 | G53: 34.2333 | H53: 1141 | I53: 51 | J53: 0 | K53: 5.98 | L53: 1.26 | M53: 14.38 | N53: 0.0442 | O53: 7.1234 | P53: 3.439 | Q53: -0.984307 | R53: 2.2e-05 | S53: -0.981521 | T53: 1.6e-05 | U53: 8.876e-09 | V53: -1.213e-09 | W53: 6.9398 | X53: 280.0898 | Y53: 0.05557517498 | Z53: 34.2333 | AA53: 0.7063664294 | AB53: 0.02761691678 | AC53: 0.5532782903 | AD53: 425.31 | AE53: 0.2033101568 | AF53: -17.6913865 | AG53: 0.2099863277 | AH53: 0.4965726522 | AI53: -0.2599363599 | AJ53: 18.51113548 | AK53: -0.0008180022717 | AL53: 0.001513332825 | AM53: -1.430926467 | AN53: 7.503536273 | AO53: 7.557197621 | AP53: 7.225735587 | AQ53: 7.30395663 | AR53: pH
A54: 0x575E | B54: pH | C54: 2020-05-21T13:25:02 | D54: 1590067495 | E54: 393.19 | F54: 7.1599 | G54: 34.2257 | H54: 1142 | I54: 51 | J54: 0 | K54: 6.27 | L54: 1.27 | M54: 14.364 | N54: 0.0442 | O54: 7.1234 | P54: 3.44 | Q54: -0.983195 | R54: 1.4e-05 | S54: -0.980843 | T54: 2e-05 | U54: 8.942e-09 | V54: -4.122e-10 | W54: 7.1599 | X54: 280.3099 | Y54: 0.05561884703 | Z54: 34.2257 | AA54: 0.7062040256 | AB54: 0.02761078566 | AC54: 0.553151159 | AD54: 393.19 | AE54: 0.2012960378 | AF54: -17.68014918 | AG54: 0.2073905861 | AH54: 0.496731917 | AI54: -0.2601023974 | AJ54: 18.53002991 | AK54: -0.0007569974922 | AL54: 0.001459736283 | AM54: -1.431200164 | AN54: 7.520141045 | AO54: 7.574422403 | AP54: 7.244585845 | AQ54: 7.322904898 | AR54: pH
A55: 0xC8F8 | B55: pH | C55: 2020-05-21T13:31:01 | D55: 1590067855 | E55: 365.81 | F55: 7.4316 | G55: 34.2076 | H55: 1143 | I55: 51 | J55: 0 | K55: 6.56 | L55: 1.27 | M55: 14.36 | N55: 0.0442 | O55: 7.1234 | P55: 3.44 | Q55: -0.982939 | R55: 2.6e-05 | S55: -0.981238 | T55: 2.7e-05 | U55: 7.926e-09 | V55: -1.002e-09 | W55: 7.4316 | X55: 280.5816 | Y55: 0.0556727575 | Z55: 34.2076 | AA55: 0.7058172584 | AB55: 0.0275961839 | AC55: 0.5528483934 | AD55: 365.81 | AE55: 0.1988030252 | AF55: -17.66623518 | AG55: 0.2043871604 | AH55: 0.496928978 | AI55: -0.2603170927 | AJ55: 18.5531781 | AK55: -0.000705163368 | AL55: 0.001406220055 | AM55: -1.43152538 | AN55: 7.520650507 | AO55: 7.575653703 | AP55: 7.248312851 | AQ55: 7.326752892 | AR55: pH
A56: 0x7D9A | B56: pH | C56: 2020-05-21T13:32:38 | D56: 1590067951 | E56: 358.67 | F56: 7.5232 | G56: 34.2044 | H56: 1144 | I56: 51 | J56: 0 | K56: 6.71 | L56: 1.26 | M56: 14.204 | N56: 0.0446 | O56: 7.1234 | P56: 3.44 | Q56: -0.982834 | R56: 2.7e-05 | S56: -0.981338 | T56: 2.5e-05 | U56: 7.886e-09 | V56: 3.398e-10 | W56: 7.5232 | X56: 280.6732 | Y56: 0.0556909327 | Z56: 34.2044 | AA56: 0.7057488812 | AB56: 0.02759360238 | AC56: 0.552794867 | AD56: 358.67 | AE56: 0.1979854297 | AF56: -17.66153374 | AG56: 0.2034333009 | AH56: 0.4969955286 | AI56: -0.2603864044 | AJ56: 18.5609384 | AK56: -0.0006916889516 | AL56: 0.001391079925 | AM56: -1.43163212 | AN56: 7.521226046 | AO56: 7.576466557 | AP56: 7.250049542 | AQ56: 7.328530373 | AR56: pH
A57: 0xA8BF | B57: pH | C57: 2020-05-21T13:38:58 | D57: 1590068332 | E57: 321.32 | F57: 7.8383 | G57: 34.1908 | H57: 1145 | I57: 51 | J57: 0 | K57: 7.02 | L57: 1.29 | M57: 14.328 | N57: 0.0442 | O57: 7.1234 | P57: 3.441 | Q57: -0.982458 | R57: 2.4e-05 | S57: -0.981731 | T57: 3.6e-05 | U57: 8.456e-09 | V57: 2.338e-09 | W57: 7.8383 | X57: 280.9883 | Y57: 0.05575345457 | Z57: 34.1908 | AA57: 0.7054582832 | AB57: 0.0275826309 | AC57: 0.5525673832 | AD57: 321.32 | AE57: 0.195193653 | AF57: -17.64532051 | AG57: 0.1999886528 | AH57: 0.4972248993 | AI57: -0.2606279169 | AJ57: 18.58746487 | AK57: -0.0006205457068 | AL57: 0.001303894863 | AM57: -1.432034405 | AN57: 7.523557618 | AO57: 7.579669722 | AP57: 7.255922878 | AQ57: 7.334544023 | AR57: pH
A58: 0xE698 | B58: pH | C58: 2020-05-21T13:44:58 | D58: 1590068692 | E58: 286.56 | F58: 8.1137 | G58: 34.1775 | H58: 1146 | I58: 51 | J58: 0 | K58: 7.28 | L58: 1.34 | M58: 14.364 | N58: 0.044 | O58: 7.1234 | P58: 3.442 | Q58: -0.982163 | R58: 2.9e-05 | S58: -0.982109 | T58: 1.9e-05 | U58: 7.958e-09 | V58: 5.145e-10 | W58: 8.1137 | X58: 281.2637 | Y58: 0.05580809919 | Z58: 34.1775 | AA58: 0.7051741034 | AB58: 0.02757190143 | AC58: 0.5523449233 | AD58: 286.56 | AE58: 0.1927885924 | AF58: -17.63109863 | AG58: 0.1969990155 | AH58: 0.497425929 | AI58: -0.2608408738 | AJ58: 18.6104352 | AK58: -0.0005540997498 | AL58: 0.00121070987 | AM58: -1.43240299 | AN58: 7.52517709 | AO58: 7.582066546 | AP58: 7.260569307 | AQ58: 7.339313088 | AR58: pH
A59: 0x2DC4 | B59: pH | C59: 2020-05-21T13:50:58 | D59: 1590069052 | E59: 255.33 | F59: 8.2789 | G59: 34.155 | H59: 1147 | I59: 51 | J59: 0 | K59: 7.55 | L59: 1.34 | M59: 14.38 | N59: 0.044 | O59: 7.1234 | P59: 3.443 | Q59: -0.981709 | R59: 2.5e-05 | S59: -0.982199 | T59: 1.9e-05 | U59: 8.718e-09 | V59: 1.172e-09 | W59: 8.2789 | X59: 281.4289 | Y59: 0.05584087804 | Z59: 34.155 | AA59: 0.7046933659 | AB59: 0.02755375008 | AC59: 0.5519685948 | AD59: 255.33 | AE59: 0.1912985247 | AF59: -17.62254456 | AG59: 0.1950126712 | AH59: 0.4975467673 | AI59: -0.2609843007 | AJ59: 18.62411828 | AK59: -0.0004940756182 | AL59: 0.001117084228 | AM59: -1.432661816 | AN59: 7.531164301 | AO59: 7.588561113 | AP59: 7.268003582 | AQ59: 7.346820926 | AR59: pH
A60: 0x9835 | B60: pH | C60: 2020-05-21T13:56:58 | D60: 1590069412 | E60: 228.7 | F60: 8.503 | G60: 34.1297 | H60: 1148 | I60: 51 | J60: 0 | K60: 7.78 | L60: 1.35 | M60: 14.388 | N60: 0.044 | O60: 7.1234 | P60: 3.443 | Q60: -0.981223 | R60: 2.2e-05 | S60: -0.982432 | T60: 1.9e-05 | U60: 7.213e-09 | V60: 1.112e-09 | W60: 8.503 | X60: 281.653 | Y60: 0.05588534376 | Z60: 34.1297 | AA60: 0.7041528303 | AB60: 0.02753333989 | AC60: 0.5515454542 | AD60: 228.7 | AE60: 0.1893246123 | AF60: -17.61091308 | AG60: 0.1926089219 | AH60: 0.4977109882 | AI60: -0.2611733645 | AJ60: 18.64256507 | AK60: -0.0004429836413 | AL60: 0.001029844427 | AM60: -1.432973156 | AN60: 7.536915959 | AO60: 7.594942983 | AP60: 7.276285941 | AQ60: 7.355203077 | AR60: pH
A61: 0xE5A0 | B61: pH | C61: 2020-05-21T13:58:34 | D61: 1590069508 | E61: 222.39 | F61: 8.5522 | G61: 34.1192 | H61: 1149 | I61: 51 | J61: 0 | K61: 7.92 | L61: 1.36 | M61: 14.24 | N61: 0.0442 | O61: 7.1234 | P61: 3.443 | Q61: -0.981027 | R61: 3e-05 | S61: -0.982544 | T61: 1.7e-05 | U61: 7.721e-09 | V61: 1.476e-09 | W61: 8.5522 | X61: 281.7022 | Y61: 0.05589510598 | Z61: 34.1192 | AA61: 0.7039285057 | AB61: 0.02752486926 | AC61: 0.5513698488 | AD61: 222.39 | AE61: 0.188872913 | AF61: -17.6083552 | AG61: 0.192057201 | AH61: 0.4977470882 | AI61: -0.2612201465 | AJ61: 18.64659728 | AK61: -0.0004308545686 | AL61: 0.001008174014 | AM61: -1.433044026 | AN61: 7.539729004 | AO61: 7.597895285 | AP61: 7.279638578 | AQ61: 7.358577622 | AR61: pH
A62: 0xE469 | B62: pH | C62: 2020-05-21T14:04:54 | D62: 1590069888 | E62: 191.59 | F62: 8.8965 | G62: 34.0395 | H62: 1150 | I62: 51 | J62: 0 | K62: 8.16 | L62: 1.37 | M62: 14.356 | N62: 0.044 | O62: 7.1234 | P62: 3.444 | Q62: -0.980003 | R62: 3.2e-05 | S62: -0.983087 | T62: 2.2e-05 | U62: 8.118e-09 | V62: 1.541e-09 | W62: 8.8965 | X62: 282.0465 | Y62: 0.05596342169 | Z62: 34.0395 | AA62: 0.7022259348 | AB62: 0.02746057315 | AC62: 0.5500370385 | AD62: 191.59 | AE62: 0.1857253045 | AF62: -17.59041242 | AG62: 0.1884136616 | AH62: 0.4980001793 | AI62: -0.2615539178 | AJ62: 18.67463621 | AK62: -0.0003717413264 | AL62: 0.0008969048158 | AM62: -1.433499595 | AN62: 7.552870128 | AO62: 7.61195855 | AP62: 7.297040408 | AQ62: 7.37613277 | AR62: pH
A63: 0xD8E6 | B63: pH | C63: 2020-05-21T14:10:54 | D63: 1590070248 | E63: 165.15 | F63: 9.0622 | G63: 33.9419 | H63: 1151 | I63: 51 | J63: 0 | K63: 8.41 | L63: 1.43 | M63: 14.392 | N63: 0.044 | O63: 7.1234 | P63: 3.445 | Q63: -0.978825 | R63: 2e-05 | S63: -0.983875 | T63: 2.2e-05 | U63: 9.374e-09 | V63: 1.571e-09 | W63: 9.0622 | X63: 282.2122 | Y63: 0.05599629974 | Z63: 33.9419 | AA63: 0.7001413644 | AB63: 0.02738183662 | AC63: 0.5484051754 | AD63: 165.15 | AE63: 0.1839843858 | AF63: -17.58175046 | AG63: 0.1862752486 | AH63: 0.4981222734 | AI63: -0.2617763628 | AJ63: 18.6880192 | AK63: -0.0003206695379 | AL63: 0.0007941136422 | AM63: -1.433768086 | AN63: 7.570977282 | AO63: 7.63053943 | AP63: 7.316785588 | AQ63: 7.395951735 | AR63: pH
A64: 0x0A62 | B64: pH | C64: 2020-05-21T14:16:54 | D64: 1590070608 | E64: 139.24 | F64: 9.6876 | G64: 33.8901 | H64: 1152 | I64: 51 | J64: 0 | K64: 8.64 | L64: 1.45 | M64: 14.408 | N64: 0.0438 | O64: 7.1234 | P64: 3.446 | Q64: -0.976507 | R64: 2.1e-05 | S64: -0.982578 | T64: 2.2e-05 | U64: 8.141e-09 | V64: 1.062e-09 | W64: 9.6876 | X64: 282.8376 | Y64: 0.05612039107 | Z64: 33.8901 | AA64: 0.6990351763 | AB64: 0.02734004818 | AC64: 0.5475392121 | AD64: 139.24 | AE64: 0.1788928762 | AF64: -17.54890137 | AG64: 0.180761369 | AH64: 0.4985847891 | AI64: -0.2622844834 | AJ64: 18.73787937 | AK64: -0.0002710817683 | AL64: 0.0006868645612 | AM64: -1.434500735 | AN64: 7.60363955 | AO64: 7.664808966 | AP64: 7.358299696 | AQ64: 7.437744334 | AR64: pH
A65: 0xFF2B | B65: pH | C65: 2020-05-21T14:22:54 | D65: 1590070968 | E65: 114.54 | F65: 9.8934 | G65: 33.8276 | H65: 1153 | I65: 51 | J65: 0 | K65: 8.94 | L65: 1.47 | M65: 14.416 | N65: 0.0438 | O65: 7.1234 | P65: 3.447 | Q65: -0.975266 | R65: 2.8e-05 | S65: -0.982133 | T65: 8e-06 | U65: 8.293e-09 | V65: 1.273e-09 | W65: 9.8934 | X65: 283.0434 | Y65: 0.05616122572 | Z65: 33.8276 | AA65: 0.6977006486 | AB65: 0.02728962776 | AC65: 0.5464944902 | AD65: 114.54 | AE65: 0.1770766012 | AF65: -17.53803768 | AG65: 0.1785945758 | AH65: 0.4987375756 | AI65: -0.2624986868 | AJ65: 18.75406172 | AK65: -0.0002231867335 | AL65: 0.0005786165777 | AM65: -1.434814783 | AN65: 7.622868258 | AO65: 7.68462302 | AP65: 7.379869335 | AQ65: 7.459405616 | AR65: pH
A66: 0xA4EF | B66: pH | C66: 2020-05-21T14:28:54 | D66: 1590071328 | E66: 103.4 | F66: 10.2727 | G66: 33.7893 | H66: 1154 | I66: 51 | J66: 0 | K66: 9.2 | L66: 1.49 | M66: 14.42 | N66: 0.0438 | O66: 7.1234 | P66: 3.448 | Q66: -0.974257 | R66: 1.6e-05 | S66: -0.982246 | T66: 3.3e-05 | U66: 8.068e-09 | V66: 9.446e-10 | W66: 10.2727 | X66: 283.4227 | Y66: 0.0562364861 | Z66: 33.7893 | AA66: 0.6968829357 | AB66: 0.02725873013 | AC66: 0.5458543485 | AD66: 103.4 | AE66: 0.1740917241 | AF66: -17.51794522 | AG66: 0.1754350479 | AH66: 0.4990199302 | AI66: -0.2628144662 | AJ66: 18.78359455 | AK66: -0.0002017971835 | AL66: 0.0005278767101 | AM66: -1.435244823 | AN66: 7.635301598 | AO66: 7.698025656 | AP66: 7.397859072 | AQ66: 7.477564256 | AR66: pH
A67: 0x5BE1 | B67: pH | C67: 2020-05-21T14:35:20 | D67: 1590071714 | E67: 91.87 | F67: 10.7098 | G67: 33.7142 | H67: 1155 | I67: 51 | J67: 0 | K67: 9.52 | L67: 1.5 | M67: 14.42 | N67: 0.0438 | O67: 7.1234 | P67: 3.449 | Q67: -0.972952 | R67: 2.5e-05 | S67: -0.982547 | T67: 1.9e-05 | U67: 7.475e-09 | V67: 1.795e-09 | W67: 10.7098 | X67: 283.8598 | Y67: 0.0563232151 | Z67: 33.7142 | AA67: 0.6952797245 | AB67: 0.02719814496 | AC67: 0.5445992767 | AD67: 91.87 | AE67: 0.1706171836 | AF67: -17.49467818 | AG67: 0.1717830304 | AH67: 0.4993465357 | AI67: -0.2632101023 | AJ67: 18.81715816 | AK67: -0.0001796154158 | AL67: 0.0004741043533 | AM67: -1.435735696 | AN67: 7.651612243 | AO67: 7.715443975 | AP67: 7.420635578 | AQ67: 7.500535402 | AR67: pH
A68: 0x5365 | B68: pH | C68: 2020-05-21T14:41:45 | D68: 1590072099 | E68: 70 | F68: 11.5843 | G68: 33.7015 | H68: 1156 | I68: 51 | J68: 0 | K68: 9.86 | L68: 1.54 | M68: 14.424 | N68: 0.0438 | O68: 7.1234 | P68: 3.45 | Q68: -0.971097 | R68: 1.9e-05 | S68: -0.983277 | T68: 3e-05 | U68: 7.79e-09 | V68: 7.198e-10 | W68: 11.5843 | X68: 284.7343 | Y68: 0.05649673263 | Z68: 33.7015 | AA68: 0.6950086336 | AB68: 0.02718789953 | AC68: 0.5443870527 | AD68: 70 | AE68: 0.1644224694 | AF68: -17.44776568 | AG68: 0.1652729087 | AH68: 0.500003905 | AI68: -0.2638647654 | AJ68: 18.88279898 | AK68: -0.0001373346946 | AL68: 0.00036859907 | AM68: -1.436715701 | AN68: 7.672657423 | AO68: 7.738798058 | AP68: 7.454710916 | AQ68: 7.535000155 | AR68: pH
A69: 0xF146 | B69: pH | C69: 2020-05-21T14:47:45 | D69: 1590072459 | E69: 57.44 | F69: 11.9189 | G69: 33.6535 | H69: 1157 | I69: 51 | J69: 0 | K69: 10.25 | L69: 1.56 | M69: 14.444 | N69: 0.0436 | O69: 7.1234 | P69: 3.451 | Q69: -0.96899 | R69: 1.9e-05 | S69: -0.982411 | T69: 2.8e-05 | U69: 7.511e-09 | V69: 1.391e-09 | W69: 11.9189 | X69: 285.0689 | Y69: 0.05656312368 | Z69: 33.6535 | AA69: 0.693984103 | AB69: 0.02714917665 | AC69: 0.5435849941 | AD69: 57.44 | AE69: 0.1619799165 | AF69: -17.42968824 | AG69: 0.1626655567 | AH69: 0.5002568144 | AI69: -0.2641591623 | AJ69: 18.90738197 | AK69: -0.0001128396383 | AL69: 0.0003059289204 | AM69: -1.437112971 | AN69: 7.70496187 | AO69: 7.771996185 | AP69: 7.491868743 | AQ69: 7.572306979 | AR69: pH
A70: 0x90A1 | B70: pH | C70: 2020-05-21T14:54:11 | D70: 1590072845 | E70: 42.61 | F70: 13.3693 | G70: 33.5905 | H70: 1158 | I70: 51 | J70: 0 | K70: 10.71 | L70: 1.58 | M70: 14.444 | N70: 0.0434 | O70: 7.1234 | P70: 3.453 | Q70: -0.965221 | R70: 2.3e-05 | S70: -0.982854 | T70: 3.4e-05 | U70: 8.175e-09 | V70: -1.499e-10 | W70: 13.3693 | X70: 286.5193 | Y70: 0.05685091078 | Z70: 33.5905 | AA70: 0.6926395617 | AB70: 0.02709835286 | AC70: 0.5425324079 | AD70: 42.61 | AE70: 0.1523841198 | AF70: -17.35050935 | AG70: 0.1528577583 | AH70: 0.5013619881 | AI70: -0.2652961148 | AJ70: 19.01053547 | AK70: -8.416310327e-05 | AL70: 0.0002299801939 | AM70: -1.43863932 | AN70: 7.749831938 | AO70: 7.820711051 | AP70: 7.559311676 | AQ70: 7.640395775 | AR70: pH
A71: 0xD621 | B71: pH | C71: 2020-05-21T14:55:42 | D71: 1590072936 | E71: 41.35 | F71: 13.4282 | G71: 33.5928 | H71: 1159 | I71: 51 | J71: 0 | K71: 10.91 | L71: 1.59 | M71: 14.32 | N71: 0.0438 | O71: 7.1234 | P71: 3.453 | Q71: -0.963975 | R71: 2.8e-05 | S71: -0.981966 | T71: 3.3e-05 | U71: 7.784e-09 | V71: 1.509e-09 | W71: 13.4282 | X71: 286.5782 | Y71: 0.05686259767 | Z71: 33.5928 | AA71: 0.6926886451 | AB71: 0.02710020834 | AC71: 0.5425708334 | AD71: 41.35 | AE71: 0.1520254568 | AF71: -17.34726585 | AG71: 0.1524838065 | AH71: 0.5014071736 | AI71: -0.2653377503 | AJ71: 19.01460749 | AK71: -8.169185076e-05 | AL71: 0.000223429941 | AM71: -1.43870477 | AN71: 7.770965958 | AO71: 7.84200991 | AP71: 7.581342758 | AQ71: 7.662453085 | AR71: pH
A72: 0xC799 | B72: pH | C72: 2020-05-21T14:56:47 | D72: 1590073001 | E72: 39.17 | F72: 13.656 | G72: 33.5885 | H72: 1160 | I72: 51 | J72: 0 | K72: 11.09 | L72: 1.63 | M72: 14.28 | N72: 0.0438 | O72: 7.1234 | P72: 3.453 | Q72: -0.963231 | R72: 2.4e-05 | S72: -0.982395 | T72: 1.8e-05 | U72: 7.364e-09 | V72: 9.252e-10 | W72: 13.656 | X72: 286.806 | Y72: 0.05690779755 | Z72: 33.5885 | AA72: 0.6925968808 | AB72: 0.02709673941 | AC72: 0.5424989946 | AD72: 39.17 | AE72: 0.1506077218 | AF72: -17.33470072 | AG72: 0.1510371699 | AH72: 0.5015821556 | AI72: -0.2655117909 | AJ72: 19.03027038 | AK72: -7.744874536e-05 | AL72: 0.0002120609248 | AM72: -1.438943939 | AN72: 7.780682496 | AO72: 7.852345256 | AP72: 7.594628157 | AQ72: 7.675839924 | AR72: pH
A73: 0x2E74 | B73: pH | C73: 2020-05-21T14:57:52 | D73: 1590073066 | E73: 36.76 | F73: 14.1441 | G73: 33.5798 | H73: 1161 | I73: 51 | J73: 0 | K73: 11.31 | L73: 1.65 | M73: 14.26 | N73: 0.0438 | O73: 7.1234 | P73: 3.454 | Q73: -0.962519 | R73: 2.7e-05 | S73: -0.98218 | T73: 2.2e-05 | U73: 7.352e-09 | V73: 3.078e-10 | W73: 14.1441 | X73: 287.2941 | Y73: 0.05700464593 | Z73: 33.5798 | AA73: 0.6924112207 | AB73: 0.02708972089 | AC73: 0.5423536484 | AD73: 36.76 | AE73: 0.1476287452 | AF73: -17.30766738 | AG73: 0.1480224766 | AH73: 0.5019582827 | AI73: -0.2658850652 | AJ73: 19.06337092 | AK73: -7.281000438e-05 | AL73: 0.0001994392651 | AM73: -1.439444661 | AN73: 7.78584935 | AO73: 7.858838081 | AP73: 7.607538479 | AQ73: 7.688967597 | AR73: pH
A74: 0x5A99 | B74: pH | C74: 2020-05-21T14:58:57 | D74: 1590073131 | E74: 34.91 | F74: 14.2303 | G74: 33.5797 | H74: 1162 | I74: 51 | J74: 0 | K74: 11.52 | L74: 1.65 | M74: 14.244 | N74: 0.0438 | O74: 7.1234 | P74: 3.454 | Q74: -0.961631 | R74: 2.4e-05 | S74: -0.981369 | T74: 2.4e-05 | U74: 8.474e-09 | V74: 8.831e-11 | W74: 14.2303 | X74: 287.3803 | Y74: 0.05702174966 | Z74: 33.5797 | AA74: 0.6924090867 | AB74: 0.02708964022 | AC74: 0.5423519777 | AD74: 34.91 | AE74: 0.1471148886 | AF74: -17.30287757 | AG74: 0.1474872634 | AH74: 0.5020248777 | AI74: -0.2659497226 | AJ74: 19.06915143 | AK74: -6.916670272e-05 | AL74: 0.0001897125655 | AM74: -1.439540587 | AN74: 7.800221243 | AO74: 7.873453512 | AP74: 7.623229058 | AQ74: 7.70469656 | AR74: pH
A75: 0x388D | B75: pH | C75: 2020-05-21T15:00:02 | D75: 1590073196 | E75: 33.52 | F75: 14.2509 | G75: 33.5794 | H75: 1163 | I75: 51 | J75: 0 | K75: 11.73 | L75: 1.67 | M75: 14.24 | N75: 0.0438 | O75: 7.1234 | P75: 3.454 | Q75: -0.96105 | R75: 2.2e-05 | S75: -0.980848 | T75: 3.2e-05 | U75: 8.258e-09 | V75: 4.584e-10 | W75: 14.2509 | X75: 287.4009 | Y75: 0.05702583709 | Z75: 33.5794 | AA75: 0.6924026846 | AB75: 0.0270893982 | AC75: 0.5423469658 | AD75: 33.52 | AE75: 0.1469916091 | AF75: -17.3017322 | AG75: 0.1473487902 | AH75: 0.5020408001 | AI75: -0.2659654465 | AJ75: 19.07052995 | AK75: -6.641751588e-05 | AL75: 0.0001823827536 | AM75: -1.439568517 | AN75: 7.810167689 | AO75: 7.883462682 | AP75: 7.633456774 | AQ75: 7.71493345 | AR75: pH
A76: 0xAD24 | B76: pH | C76: 2020-05-21T15:01:33 | D76: 1590073287 | E76: 31.79 | F76: 14.2825 | G76: 33.5804 | H76: 1164 | I76: 51 | J76: 0 | K76: 11.99 | L76: 1.67 | M76: 14.236 | N76: 0.0438 | O76: 7.1234 | P76: 3.455 | Q76: -0.960396 | R76: 2.7e-05 | S76: -0.98024 | T76: 2.7e-05 | U76: 6.681e-09 | V76: 6.498e-10 | W76: 14.2825 | X76: 287.4325 | Y76: 0.05703210714 | Z76: 33.5804 | AA76: 0.6924240247 | AB76: 0.02709020492 | AC76: 0.5423636722 | AD76: 31.79 | AE76: 0.1468070966 | AF76: -17.29997472 | AG76: 0.1471453252 | AH76: 0.5020652303 | AI76: -0.2659881624 | AJ76: 19.07264241 | AK76: -6.299662032e-05 | AL76: 0.0001732340989 | AM76: -1.439609266 | AN76: 7.821262827 | AO76: 7.894653079 | AP76: 7.644997863 | AQ76: 7.72648861 | AR76: pH
A77: 0x7C58 | B77: pH | C77: 2020-05-21T15:02:38 | D77: 1590073352 | E77: 29.11 | F77: 14.3353 | G77: 33.5787 | H77: 1165 | I77: 51 | J77: 0 | K77: 12.17 | L77: 1.68 | M77: 14.236 | N77: 0.0436 | O77: 7.1234 | P77: 3.455 | Q77: -0.960065 | R77: 3.5e-05 | S77: -0.980315 | T77: 1.9e-05 | U77: 8.978e-09 | V77: 9.434e-10 | W77: 14.3353 | X77: 287.4853 | Y77: 0.05704258367 | Z77: 33.5787 | AA77: 0.6923877466 | AB77: 0.02708883349 | AC77: 0.5423352714 | AD77: 29.11 | AE77: 0.1464894849 | AF77: -17.29703676 | AG77: 0.1467983903 | AH77: 0.5021060658 | AI77: -0.2660293811 | AJ77: 19.07616623 | AK77: -5.769645901e-05 | AL77: 0.0001590048188 | AM77: -1.439676295 | AN77: 7.826383035 | AO77: 7.899929416 | AP77: 7.650870949 | AQ77: 7.732385208 | AR77: pH
A78: 0x652B | B78: pH | C78: 2020-05-21T15:03:43 | D78: 1590073417 | E78: 26.05 | F78: 14.8137 | G78: 33.5537 | H78: 1166 | I78: 51 | J78: 0 | K78: 12.37 | L78: 1.68 | M78: 14.24 | N78: 0.0436 | O78: 7.1234 | P78: 3.455 | Q78: -0.959636 | R78: 2.7e-05 | S78: -0.980818 | T78: 2.4e-05 | U78: 8.202e-09 | V78: 1.67e-09 | W78: 14.8137 | X78: 287.9637 | Y78: 0.05713750738 | Z78: 33.5537 | AA78: 0.6918542605 | AB78: 0.02706866532 | AC78: 0.5419176246 | AD78: 26.05 | AE78: 0.1436245148 | AF78: -17.27033674 | AG78: 0.1438946435 | AH78: 0.5024769316 | AI78: -0.266412627 | AJ78: 19.10775973 | AK78: -5.171700372e-05 | AL78: 0.000142673545 | AM78: -1.440171026 | AN78: 7.826428999 | AO78: 7.901287286 | AP78: 7.658510224 | AQ78: 7.740237515 | AR78: pH
A79: 0xEDEA | B79: pH | C79: 2020-05-21T15:04:48 | D79: 1590073482 | E79: 24.08 | F79: 15.074 | G79: 33.4719 | H79: 1167 | I79: 51 | J79: 0 | K79: 12.57 | L79: 1.71 | M79: 14.24 | N79: 0.0436 | O79: 7.1234 | P79: 3.456 | Q79: -0.958937 | R79: 3.1e-05 | S79: -0.980305 | T79: 4.8e-05 | U79: 7.226e-09 | V79: 4.866e-10 | W79: 15.074 | X79: 288.224 | Y79: 0.05718915588 | Z79: 33.4719 | AA79: 0.6901088876 | AB79: 0.02700267508 | AC79: 0.5405512286 | AD79: 24.08 | AE79: 0.1419041342 | AF79: -17.25574835 | AG79: 0.1421503949 | AH79: 0.5026793811 | AI79: -0.266686392 | AJ79: 19.12469687 | AK79: -4.784834263e-05 | AL79: 0.0001321120002 | AM79: -1.440441888 | AN79: 7.833626365 | AO79: 7.909158179 | AP79: 7.669836783 | AQ79: 7.751679986 | AR79: pH
A80: 0x2342 | B80: pH | C80: 2020-05-21T15:05:53 | D80: 1590073547 | E80: 22.96 | F80: 15.0905 | G80: 33.4685 | H80: 1168 | I80: 51 | J80: 0 | K80: 12.77 | L80: 1.72 | M80: 14.244 | N80: 0.0434 | O80: 7.1234 | P80: 3.456 | Q80: -0.958309 | R80: 4.7e-05 | S80: -0.979625 | T80: 3.5e-05 | U80: 6.913e-09 | V80: 7.98e-10 | W80: 15.0905 | X80: 288.2405 | Y80: 0.05719242979 | Z80: 33.4685 | AA80: 0.6900363479 | AB80: 0.02699993221 | AC80: 0.5404944394 | AD80: 22.96 | AE80: 0.1418010533 | AF80: -17.25482217 | AG80: 0.142035654 | AH80: 0.5026922298 | AI80: -0.2667020333 | AJ80: 19.12576448 | AK80: -4.562538515e-05 | AL80: 0.0001260908355 | AM80: -1.440464409 | AN80: 7.84436727 | AO80: 7.919948038 | AP80: 7.680803976 | AQ80: 7.762654525 | AR80: pH
A81: 0x7DB2 | B81: pH | C81: 2020-05-21T15:07:24 | D81: 1590073638 | E81: 21.7 | F81: 15.1328 | G81: 33.4516 | H81: 1169 | I81: 51 | J81: 0 | K81: 13.03 | L81: 1.79 | M81: 14.244 | N81: 0.0434 | O81: 7.1234 | P81: 3.456 | Q81: -0.957903 | R81: 1.2e-05 | S81: -0.979365 | T81: 4.1e-05 | U81: 7.841e-09 | V81: 1.258e-09 | W81: 15.1328 | X81: 288.2828 | Y81: 0.05720082292 | Z81: 33.4516 | AA81: 0.6896757909 | AB81: 0.02698629853 | AC81: 0.5402121695 | AD81: 21.7 | AE81: 0.1415143354 | AF81: -17.252447 | AG81: 0.1417355403 | AH81: 0.5027251775 | AI81: -0.2667498685 | AJ81: 19.12849817 | AK81: -4.312771649e-05 | AL81: 0.0001193026139 | AM81: -1.440513497 | AN81: 7.850644844 | AO81: 7.92633738 | AP81: 7.687719517 | AQ81: 7.769588903 | AR81: pH
A82: 0x8F20 | B82: pH | C82: 2020-05-21T15:08:29 | D82: 1590073703 | E82: 19.51 | F82: 15.2159 | G82: 33.4064 | H82: 1170 | I82: 51 | J82: 0 | K82: 13.19 | L82: 1.81 | M82: 14.244 | N82: 0.0432 | O82: 7.1234 | P82: 3.457 | Q82: -0.9576 | R82: 2.8e-05 | S82: -0.979214 | T82: 3.4e-05 | U82: 8.631e-09 | V82: 5.901e-10 | W82: 15.2159 | X82: 288.3659 | Y82: 0.05721731155 | Z82: 33.4064 | AA82: 0.6887115231 | AB82: 0.02694983448 | AC82: 0.5394572691 | AD82: 19.51 | AE82: 0.1409200806 | AF82: -17.2477776 | AG82: 0.1411179996 | AH82: 0.5027899403 | AI82: -0.2668550491 | AJ82: 19.13385489 | AK82: -3.878605435e-05 | AL82: 0.0001074677289 | AM82: -1.440608432 | AN82: 7.854140208 | AO82: 7.9300424 | AP82: 7.692478882 | AQ82: 7.774385273 | AR82: pH
A83: 0xACFF | B83: pH | C83: 2020-05-21T15:09:34 | D83: 1590073768 | E83: 17.4 | F83: 15.2467 | G83: 33.3718 | H83: 1171 | I83: 51 | J83: 0 | K83: 13.37 | L83: 1.83 | M83: 14.252 | N83: 0.0432 | O83: 7.1234 | P83: 3.457 | Q83: -0.957402 | R83: 4.4e-05 | S83: -0.978988 | T83: 3.7e-05 | U83: 7.931e-09 | V83: 1.427e-09 | W83: 15.2467 | X83: 288.3967 | Y83: 0.05722342286 | Z83: 33.3718 | AA83: 0.6879734501 | AB83: 0.02692192174 | AC83: 0.5388794485 | AD83: 17.4 | AE83: 0.1406513381 | AF83: -17.24604583 | AG83: 0.1408274657 | AH83: 0.5028139559 | AI83: -0.2669107163 | AJ83: 19.13583567 | AK83: -3.459493648e-05 | AL83: 9.602156627e-05 | AM83: -1.440650678 | AN83: 7.856748431 | AO83: 7.93272201 | AP83: 7.695509225 | AQ83: 7.777429331 | AR83: pH
A84: 0x040D | B84: pH | C84: 2020-05-21T15:10:39 | D84: 1590073833 | E84: 15.23 | F84: 15.2425 | G84: 33.3792 | H84: 1172 | I84: 51 | J84: 0 | K84: 13.56 | L84: 1.85 | M84: 14.256 | N84: 0.0432 | O84: 7.1234 | P84: 3.458 | Q84: -0.957218 | R84: 3.2e-05 | S84: -0.978799 | T84: 2.3e-05 | U84: 8.273e-09 | V84: -8.706e-10 | W84: 15.2425 | X84: 288.3925 | Y84: 0.0572225895 | Z84: 33.3792 | AA84: 0.6881312994 | AB84: 0.02692789151 | AC84: 0.5390030253 | AD84: 15.23 | AE84: 0.14069536 | AF84: -17.24628202 | AG84: 0.1408495628 | AH84: 0.5028106807 | AI84: -0.266900618 | AJ84: 19.13556571 | AK84: -3.028008331e-05 | AL84: 8.420528695e-05 | AM84: -1.440658295 | AN84: 7.860254679 | AO84: 7.936232776 | AP84: 7.698869839 | AQ84: 7.780788074 | AR84: pH
A85: 0x3AAE | B85: pH | C85: 2020-05-21T15:11:44 | D85: 1590073898 | E85: 13.19 | F85: 15.2508 | G85: 33.3639 | H85: 1173 | I85: 51 | J85: 0 | K85: 13.73 | L85: 1.86 | M85: 14.256 | N85: 0.0432 | O85: 7.1234 | P85: 3.458 | Q85: -0.956991 | R85: 2.7e-05 | S85: -0.978566 | T85: 3.7e-05 | U85: 8.596e-09 | V85: 6.848e-10 | W85: 15.2508 | X85: 288.4008 | Y85: 0.05722423638 | Z85: 33.3639 | AA85: 0.687804938 | AB85: 0.0269155486 | AC85: 0.5387475239 | AD85: 13.19 | AE85: 0.1406065189 | AF85: -17.24581526 | AG85: 0.1407399653 | AH85: 0.5028171533 | AI85: -0.2669212021 | AJ85: 19.13609916 | AK85: -2.622491352e-05 | AL85: 7.305562206e-05 | AM85: -1.440677744 | AN85: 7.863988498 | AO85: 7.939988899 | AP85: 7.702664698 | AQ85: 7.784586629 | AR85: pH
A86: 0x9D0E | B86: pH | C86: 2020-05-21T15:13:05 | D86: 1590073979 | E86: 10.27 | F86: 15.25 | G86: 33.3646 | H86: 1174 | I86: 51 | J86: 0 | K86: 13.95 | L86: 1.86 | M86: 14.26 | N86: 0.043 | O86: 7.1234 | P86: 3.458 | Q86: -0.956937 | R86: 3.1e-05 | S86: -0.978471 | T86: 2.3e-05 | U86: 8.643e-09 | V86: -1.704e-10 | W86: 15.25 | X86: 288.4 | Y86: 0.05722407765 | Z86: 33.3646 | AA86: 0.6878198694 | AB86: 0.0269161133 | AC86: 0.5387592133 | AD86: 10.27 | AE86: 0.1406129355 | AF86: -17.24586025 | AG86: 0.1407168339 | AH86: 0.5028165294 | AI86: -0.2669199446 | AJ86: 19.13604775 | AK86: -2.041919168e-05 | AL86: 5.702669588e-05 | AM86: -1.440692973 | AN86: 7.865118495 | AO86: 7.94113182 | AP86: 7.703677133 | AQ86: 7.785598708 | AR86: pH
A87: 0x0A09 | B87: pH | C87: 2020-05-21T15:14:20 | D87: 1590074054 | E87: 7.17 | F87: 15.249 | G87: 33.3644 | H87: 1175 | I87: 51 | J87: 0 | K87: 14.12 | L87: 1.88 | M87: 14.26 | N87: 0.0432 | O87: 7.1234 | P87: 3.459 | Q87: -0.956931 | R87: 2.6e-05 | S87: -0.978412 | T87: 3.9e-05 | U87: 7.031e-09 | V87: 1.97e-10 | W87: 15.249 | X87: 288.399 | Y87: 0.05722387923 | Z87: 33.3644 | AA87: 0.6878156033 | AB87: 0.02691595196 | AC87: 0.5387558735 | AD87: 7.17 | AE87: 0.1406179844 | AF87: -17.24591649 | AG87: 0.1406905161 | AH87: 0.5028157495 | AI87: -0.2669193792 | AJ87: 19.13598349 | AK87: -1.42556098e-05 | AL87: 3.992000125e-05 | AM87: -1.44070908 | AN87: 7.865411533 | AO87: 7.941437485 | AP87: 7.703842927 | AQ87: 7.785764057 | AR87: pH
A88: 0xAB96 | B88: pH | C88: 2020-05-21T15:15:25 | D88: 1590074119 | E88: 4.63 | F88: 15.2491 | G88: 33.3639 | H88: 1176 | I88: 51 | J88: 0 | K88: 14.27 | L88: 1.9 | M88: 14.264 | N88: 0.043 | O88: 7.1234 | P88: 3.459 | Q88: -0.956953 | R88: 2.4e-05 | S88: -0.978475 | T88: 3.4e-05 | U88: 8.821e-09 | V88: -4.497e-09 | W88: 15.2491 | X88: 288.3991 | Y88: 0.05722389907 | Z88: 33.3639 | AA88: 0.687804938 | AB88: 0.0269155486 | AC88: 0.5387475239 | AD88: 4.63 | AE88: 0.1406160418 | AF88: -17.24591086 | AG88: 0.1406628739 | AH88: 0.5028158275 | AI88: -0.2669199227 | AJ88: 19.13598991 | AK88: -9.205508446e-06 | AL88: 2.583470369e-05 | AM88: -1.440723265 | AN88: 7.865163522 | AO88: 7.941202134 | AP88: 7.703505517 | AQ88: 7.785426691 | AR88: pH
A89: 0x52A8 | B89: pH | C89: 2020-05-21T15:17:44 | D89: 0 | E89: -1 | F89: -1 | G89: -1 | H89: 1177 | I89: 51 | J89: 0 | K89: 14.48 | L89: 1.93 | M89: 14.38 | N89: 0.0428 | O89: 7.1234 | P89: 3.459 | Q89: -0.957717 | R89: 3.7e-05 | S89: -0.979546 | T89: 4e-05 | U89: 8.702e-09 | V89: -2.469e-08
A90: <EOP> : 18340.026 Thu May 21 15:27:33 2020
A91: H | B91: Datalogger Serial Num | C91: SN:0850
A92: H | B92: Application Name | C92: APF_MAIN.C
A93: H | B93: App Build Date | C93: Apr 30 2019 | D93: 10:48:38
A94: H | B94: Power Up Time (GMT) | C94: 05/21/2020 15:27:23
A95: H | B95: Current Time (GMT) | C95: 05/21/2020 15:27:37
A96: H | B96: Alarm Time (GMT) | C96: 05/22/2020 01:27:28
A97: H | B97: Power Active Timeout | C97: 10
A98: H | B98: Persistor CF2-1M Info | C98: S/N:15002 - BIOS:4.03 - PicoDOS:4.03
A99: H | B99: Compact FLASH Size | C99: 256614400
A100: H | B100: Compact FLASH Left | C100: 0.9735
A101: H | B101: Power Cycle Counter | C101: 52
A102: H | B102: System Reset Counter | C102: 52
A103: H | B103: System Error Counter | C103: 00:00:00
A104: H | B104: Last System Error | C104: 00:00:00
A105: H | B105: Last System ErrorTime | C105: 01/01/1970 00:00:00
A106: H | B106: DURA Error Counter | C106: 0
A107: H | B107: Last DURA Error | C107: 0
A108: H | B108: Last DURA Error Time | C108: 01/01/1970 00:00:00
A109: H | B109: DURA Sample Counter | C109: 1178
A110: H | B110: Last Sample Rec. Time | C110: 05/21/2020 15:17:44
A111: H | B111: AtoD Reads per Sample | C111: 10
A112: H | B112: AtoD Reading Delay | C112: 100
A113: H | B113: Samps per AtoD Recal | C113: 250
A114: # No error records to log.
A116: <EOT>
A118: <EOT>

Sheet pHcyc25
AE4: 2.53325E-12x3 - 5.63616E-09x2 - 2.95642E-06x + 3.46442E-05
A8: Profile: 18340.025 Sat May 16 05:20:30 2020
A9: H | B9: Datalogger Serial Num | C9: SN:0850
A10: H | B10: Application Name | C10: APF_MAIN.C
A11: H | B11: App Build Date | C11: Apr 30 2019 | D11: 10:48:38
A12: H | B12: Power Up Time (GMT) | C12: 05/16/2020 05:20:02 | W12: <----- | AE12: -1.57252E-18x5 + 7.57486E-15x4 - 9.81276E-12x3 + 1.81040E-09x2 - 1.66482E-06x + 1.11359E-04
A13: H | B13: Current Time (GMT) | C13: 05/16/2020 05:20:35 | W13: <-----
A14: H | B14: Alarm Time (GMT) | C14: 05/16/2020 15:20:34 | W14: <----- | X14: DuraFET | AE14: Cal values here
A15: H | B15: Power Active Timeout | C15: 10 | W15: <----- | X15: Data | AJ15: Josh
A16: H | B16: Persistor CF2-1M Info | C16: S/N:15002 - BIOS:4.03 - PicoDOS:4.03 | W16: <----- | X16: to the | AA16: Control + Shift + T - import CTD data from .log file | AE16: k0 | AF16: -1.4255 | AH16: -1.427 | AJ16: -1.4255 | AK16: =k0
A17: H | B17: Compact FLASH Size | C17: 256614400 | W17: <----- | X17: Left | AA17: Control + Shift + F to import DuraFET data from .csv file | AE17: k2 | AF17: -0.001 | AH17: -0.0009 | AJ17: -0.001 | AK17: =k2*T
A18: H | B18: Compact FLASH Left | C18: 0.9745 | W18: <----- | AE18: P | AF18: 5.6021e-06 | AH18: -1.66482e-06 | AJ18: 5.6021e-06 | AK18: =k3*P^1
A19: H | B19: Power Cycle Counter | C19: 49 | W19: <----- | AA19: Temperature/Salinity Selection | AE19: P^2 | AF19: -4.8057e-09 | AH19: 1.8104e-09 | AJ19: -4.8057e-09 | AK19: =k4*P^2
A20: H | B20: System Reset Counter | C20: 49 | W20: <----- | AA20: 1: T =DFET (Column C), Salinity input manual | AE20: P^3 | AH20: -9.81276e-12
A21: H | B21: System Error Counter | C21: 0 | W21: <----- | AA21: 2: CTD (load CTD data with Control Shift T) | AE21: P^4 | AH21: 7.57486e-15
A22: H | B22: Last System Error | C22: 0 | W22: <----- | AA22: 2 | AE22: P^5 | AH22: -1.57252e-18
A23: H | B23: Last System ErrorTime | C23: 01/01/1970 00:00:00 | W23: <----- | AE23: P^6
A24: H | B24: DURA Error Counter | C24: 0 | W24: <-----
A25: H | B25: Last DURA Error | C25: 0 | W25: <-----
A26: H | B26: Last DURA Error Time | C26: 01/01/1970 00:00:00 | W26: <-----
A27: H | B27: DURA Sample Counter | C27: 1068 | W27: <----- | AA27: Calibration data
A28: H | B28: Last Sample Rec. Time | C28: 05/11/2020 07:47:19 | W28: <-----
A29: H | B29: AtoD Reads per Sample | C29: 10 | W29: <-----
A30: H | B30: AtoD Reading Delay | C30: 1900-04-09
A31: H | B31: Samps per AtoD Recal | C31: 1900-09-06 | Z31: Don't erase this first row of formulas!!!! Subsequent rows can be erased or copied down as needed from colum W on.
A32: # No error records to log. | W32: T/C | X32: K | Y32: S(T) | Z32: Salinity | AA32: IonicStrength | AB32: SO4(tot) | AC32: mCl | AD32: Press(dbar) | AE32: KHSO4 | AF32: deltaV HSO4 | AG32: KHSO4 TPS | AH32: DebyeHuckelConst | AI32: log(γHγCl) | AJ32: deltaV HCl | AK32: ThermPress | AL32: f(P) | AM32: k0+k2T+f(P) | AN32: pHtot in situ | AO32: pHfree in situ | AP32: pH25Total | AQ32: pH20Total | AR32: Date + Time
A33: 0x9AB7 | B33: pH | C33: 2020-05-16T05:28:54 | D33: 1589606928 | E33: 1599.82 | F33: 2.6304 | G33: 34.5574 | H33: 1068 | I33: 49 | J33: 0 | K33: 2.7 | L33: 0.88 | M33: 14.308 | N33: 0.0448 | O33: 7.1234 | P33: 3.431 | Q33: -0.988996 | R33: 3.1e-05 | S33: -0.983507 | T33: 3e-05 | U33: 8.002e-09 | V33: 6.317e-10 | W33: =F33 -> 2.6304 | X33: =W33+273.15 -> 275.7804 | Y33: =8.31451*X33/96487*LN(10) -> 0.05472010757 | Z33: =G33 -> 34.5574 | AA33: =19.924 * Z33/ (1000 - 1.005 * Z33) -> 0.7132944886 | AB33: =(0.14 / 96.062) * (Z33 / 1.80655) -> 0.0278783769 | AC33: =0.99889/35.453*Z33/1.80655*(1 + 0.00106 * Z33) -> 0.5587015489 | AD33: =E33 -> 1599.82 | AE33: =EXP(-4276.1 /X33 + 141.328 - 23.093 * LN(X33) + (-13856 / X33 + 324.57 - 47.986 * LN(X33)) * AA33^ 0.5 + (35474 / X33 - 771.54 + 114.723 * LN(X33)) * AA33- 2698 / X33 * AA33 ^ 1.5 + 1776 / X33*AA33 ^ 2 + LN(1 - 0.001005 * Z33)) -> 0.2497194513 | AF33: =-18.03 + 0.0466 * W33 + 0.000316 *W33 ^ 2 -> -17.90523695 | AG33: =EXP((-AF33) * (AD33 / 10) / (8.31451 * 10 * X33))*AE33 -> 0.2829481329 | AH33: =(0.00000343*W33^2 + 0.00067524*W33 + 0.49172143) -> 0.4935213135 | AI33: =2*(-AH33*SQRT(AA33)/(1+1.394*SQRT(AA33))+(0.08885-0.000111*W33)*AA33) -> -0.2565299449 | AJ33: =17.85 + 0.1044 * W33 - 0.001316 * W33 ^ 2 -> 18.11550835 | AK33: =-AJ33 * 0.0242 / (23061 * 1.01) *AD33 / 10 -> -0.003011185453 | AL33: =AF$18*AD33+AF$19*AD33^2+AF$20*AD33^3+AF$21*AD33^4+AF$22*AD33^5+AF$23*AD33^6 -> -0.003337472451 | AM33: =$AF$16+$AF$17*(W33)+AL33 -> -1.431467872 | AN33: =AO33-LOG(1+AB33/AG33) -> 7.614333041 | AO33: =-LOG10((10^(-((Q33-AM33-AK33)/Y33+(LOG(AC33)+AI33))))/(1+0.0016*Z33)) -> 7.655144261 | AP33: =((AN33 + 0.000035833 * AD33 - 0.01703 * (25 - W33) + 0.00004453 * (25 - W33) ^ 2) ) -> 7.312987871 | AQ33: =((AN33 + 0.000035833 * AD33 - 0.01703 * (20 - W33) + 0.00004453 * (20 - W33) ^ 2) ) -> 7.389289938 | AR33: =B33 -> pH
A34: 0x78E2 | B34: pH | C34: 2020-05-16T05:47:39 | D34: 1589608053 | E34: 1499.75 | F34: 2.7871 | G34: 34.5428 | H34: 1069 | I34: 49 | J34: 0 | K34: 2.81 | L34: 0.9 | M34: 14.504 | N34: 0.0442 | O34: 7.1234 | P34: 3.431 | Q34: -0.988068 | R34: 3.3e-05 | S34: -0.982689 | T34: 5.2e-05 | U34: 8.609e-09 | V34: 1.302e-09 | W34: =F34 -> 2.7871 | X34: =W34+273.15 -> 275.9371 | Y34: =8.31451*X34/96487*LN(10) -> 0.05475119985 | Z34: =G34 -> 34.5428 | AA34: 0.712982294 | AB34: 0.02786659869 | AC34: =0.99889/35.453*Z34/1.80655*(1 + 0.00106 * Z34) -> 0.5584571682 | AD34: =E34 -> 1499.75 | AE34: 0.2477857114 | AF34: =-18.03 + 0.0466 * W34 + 0.000316 *W34 ^ 2 -> -17.89766648 | AG34: =EXP((-AF34) * (AD34 / 10) / (8.31451 * 10 * X34))*AE34 -> 0.2785394318 | AH34: 0.4936300354 | AI34: -0.2566558885 | AJ34: =17.85 + 0.1044 * W34 - 0.001316 * W34 ^ 2 -> 18.13075065 | AK34: =-AJ34 * 0.0242 / (23061 * 1.01) *AD34 / 10 -> -0.002825208552 | AL34: -0.00240747155 | AM34: -1.430694572 | AN34: =AO34-LOG(1+AB34/AG34) -> 7.608213598 | AO34: =-LOG10((10^(-((Q34-AM34-AK34)/Y34+(LOG(AC34)+AI34))))/(1+0.0016*Z34)) -> 7.649624221 | AP34: =((AN34 + 0.000035833 * AD34 - 0.01703 * (25 - W34) + 0.00004453 * (25 - W34) ^ 2) ) -> 7.30564013 | AQ34: =((AN34 + 0.000035833 * AD34 - 0.01703 * (20 - W34) + 0.00004453 * (20 - W34) ^ 2) ) -> 7.382011976 | AR34: =B34 -> pH
A35: 0xC7D9 | B35: pH | C35: 2020-05-16T06:05:47 | D35: 1589609141 | E35: 1399.3 | F35: 2.9829 | G35: 34.5247 | H35: 1070 | I35: 49 | J35: 0 | K35: 2.93 | L35: 0.92 | M35: 14.416 | N35: 0.0444 | O35: 7.1234 | P35: 3.431 | Q35: -0.987771 | R35: 2.2e-05 | S35: -0.982268 | T35: 1.1e-05 | U35: 7.59e-09 | V35: 1.251e-09 | W35: 2.9829 | X35: 276.1329 | Y35: 0.05479005031 | Z35: 34.5247 | AA35: 0.7125952715 | AB35: 0.02785199694 | AC35: 0.5581542128 | AD35: 1399.3 | AE35: 0.2453975784 | AF35: -17.88818519 | AG35: 0.2736647213 | AH35: 0.4937661225 | AI35: -0.2568131978 | AJ35: 18.1497054 | AK35: -0.002638737996 | AL35: -0.001570736653 | AM35: -1.430053637 | AN35: 7.591677045 | AO35: 7.633769627 | AP35: 7.288452986 | AQ35: 7.364912022 | AR35: pH
A36: 0x7D54 | B36: pH | C36: 2020-05-16T06:24:16 | D36: 1589610250 | E36: 1299.81 | F36: 3.1854 | G36: 34.509 | H36: 1071 | I36: 49 | J36: 0 | K36: 3.09 | L36: 0.93 | M36: 14.252 | N36: 0.0448 | O36: 7.1234 | P36: 3.431 | Q36: -0.987606 | R36: 2.7e-05 | S36: -0.982042 | T36: 2.8e-05 | U36: 7.628e-09 | V36: 6.943e-10 | W36: 3.1854 | X36: 276.3354 | Y36: 0.05483023019 | Z36: 34.509 | AA36: 0.7122595786 | AB36: 0.02783933133 | AC36: 0.5578914371 | AD36: 1299.81 | AE36: 0.2429789705 | AF36: -17.87835398 | AG36: 0.2688403002 | AH36: 0.4939071429 | AI36: -0.256972562 | AJ36: 18.16920261 | AK36: -0.002453757263 | AL36: -0.0008375935567 | AM36: -1.429522994 | AN36: 7.574608986 | AO36: 7.617402345 | AP36: 7.270873233 | AQ36: 7.347422441 | AR36: pH
A37: 0x00B5 | B37: pH | C37: 2020-05-16T06:43:08 | D37: 1589611382 | E37: 1200.16 | F37: 3.4026 | G37: 34.4893 | H37: 1072 | I37: 49 | J37: 0 | K37: 3.27 | L37: 0.95 | M37: 14.508 | N37: 0.0442 | O37: 7.1234 | P37: 3.431 | Q37: -0.987459 | R37: 2.5e-05 | S37: -0.9819 | T37: 1.9e-05 | U37: 8.445e-09 | V37: 9.506e-10 | W37: 3.4026 | X37: 276.5526 | Y37: 0.05487332682 | Z37: 34.4893 | AA37: 0.7118383745 | AB37: 0.02782343881 | AC37: 0.5575617238 | AD37: 1200.16 | AE37: 0.2404002411 | AF37: -17.86778029 | AG37: 0.2638986668 | AH37: 0.4940587131 | AI37: -0.2571469133 | AJ37: 18.1899952 | AK37: -0.002268232606 | AL37: -0.0001986371758 | AM37: -1.429101237 | AN37: 7.558672936 | AO37: 7.60220508 | AP37: 7.254645463 | AQ37: 7.331291391 | AR37: pH
A38: 0x52E4 | B38: pH | C38: 2020-05-16T07:02:04 | D38: 1589612518 | E38: 1100.2 | F38: 3.6334 | G38: 34.4692 | H38: 1073 | I38: 49 | J38: 0 | K38: 3.46 | L38: 0.94 | M38: 14.476 | N38: 0.0442 | O38: 7.1234 | P38: 3.432 | Q38: -0.98718 | R38: 1.9e-05 | S38: -0.981601 | T38: 2e-05 | U38: 8.664e-09 | V38: 6.346e-10 | W38: 3.6334 | X38: 276.7834 | Y38: 0.05491912196 | Z38: 34.4692 | AA38: 0.7114086358 | AB38: 0.02780722361 | AC38: 0.5572253289 | AD38: 1100.2 | AE38: 0.237704079 | AF38: -17.85651186 | AG38: 0.2588875607 | AH38: 0.4942201285 | AI38: -0.2573313944 | AJ38: 18.21195366 | AK38: -0.002081824109 | AL38: 0.0003464187198 | AM38: -1.428786981 | AN38: 7.546654709 | AO38: 7.590963318 | AP38: 7.24253433 | AQ38: 7.319283033 | AR38: pH
A39: 0xC102 | B39: pH | C39: 2020-05-16T07:22:34 | D39: 1589613748 | E39: 999.92 | F39: 3.9526 | G39: 34.4457 | H39: 1074 | I39: 49 | J39: 0 | K39: 3.71 | L39: 0.98 | M39: 14.556 | N39: 0.0442 | O39: 7.1234 | P39: 3.432 | Q39: -0.986832 | R39: 2.5e-05 | S39: -0.981304 | T39: 3.3e-05 | U39: 8.412e-09 | V39: 8.727e-10 | W39: 3.9526 | X39: 277.1026 | Y39: 0.05498245734 | Z39: 34.4457 | AA39: 0.7109062278 | AB39: 0.02778826553 | AC39: 0.5568320484 | AD39: 999.92 | AE39: 0.234066193 | AF39: -17.84087196 | AG39: 0.2529098311 | AH39: 0.4944439707 | AI39: -0.2575819543 | AJ39: 18.24209151 | AK39: -0.001895203027 | AL39: 0.0007967207132 | AM39: -1.428655879 | AN39: 7.536361262 | AO39: 7.581635018 | AP39: 7.233480654 | AQ39: 7.310371497 | AR39: pH
A40: 0xB31D | B40: pH | C40: 2020-05-16T07:31:51 | D40: 1589614304 | E40: 945.61 | F40: 4.1266 | G40: 34.4306 | H40: 1075 | I40: 49 | J40: 0 | K40: 3.91 | L40: 1.01 | M40: 14.324 | N40: 0.0446 | O40: 7.1234 | P40: 3.433 | Q40: -0.986236 | R40: 2.5e-05 | S40: -0.980399 | T40: 2.2e-05 | U40: 8.023e-09 | V40: 8.332e-10 | W40: 4.1266 | X40: 277.2766 | Y40: 0.05501698227 | Z40: 34.4306 | AA40: 0.7105834169 | AB40: 0.02777608396 | AC40: 0.5565793544 | AD40: 945.61 | AE40: 0.2320992743 | AF40: -17.83231933 | AG40: 0.2497118671 | AH40: 0.4945662843 | AI40: -0.2577212758 | AJ40: 18.2584071 | AK40: -0.001793869306 | AL40: 0.001000249259 | AM40: -1.428626351 | AN40: 7.538873806 | AO40: 7.584678755 | AP40: 7.236685516 | AQ40: 7.313653841 | AR40: pH
A41: 0xE930 | B41: pH | C41: 2020-05-16T07:42:51 | D41: 1589614964 | E41: 889.79 | F41: 4.2773 | G41: 34.4111 | H41: 1076 | I41: 49 | J41: 0 | K41: 4.1 | L41: 1.03 | M41: 14.356 | N41: 0.0444 | O41: 7.1234 | P41: 3.433 | Q41: -0.98594 | R41: 1.6e-05 | S41: -0.98 | T41: 3.7e-05 | U41: 8.689e-09 | V41: 7.025e-10 | W41: 4.2773 | X41: 277.4273 | Y41: 0.05504688404 | Z41: 34.4111 | AA41: 0.7101665569 | AB41: 0.02776035279 | AC41: 0.5562530388 | AD41: 889.79 | AE41: 0.2303739581 | AF41: -17.82489651 | AG41: 0.2467714873 | AH41: 0.4946723869 | AI41: -0.2578492471 | AJ41: 18.27247351 | AK41: -0.001689276412 | AL41: 0.001179893748 | AM41: -1.428597406 | AN41: 7.536551238 | AO41: 7.58284898 | AP41: 7.234650033 | AQ41: 7.311685465 | AR41: pH
A42: 0x71C4 | B42: pH | C42: 2020-05-16T07:49:51 | D42: 1589615384 | E42: 851.28 | F42: 4.4562 | G42: 34.3952 | H42: 1077 | I42: 49 | J42: 0 | K42: 4.27 | L42: 1.04 | M42: 14.276 | N42: 0.0446 | O42: 7.1234 | P42: 3.433 | Q42: -0.985762 | R42: 1.6e-05 | S42: -0.979868 | T42: 2.6e-05 | U42: 7.44e-09 | V42: 7.855e-10 | W42: 4.4562 | X42: 277.6062 | Y42: 0.05508238122 | Z42: 34.3952 | AA42: 0.7098266682 | AB42: 0.02774752583 | AC42: 0.5559869755 | AD42: 851.28 | AE42: 0.2283909857 | AF42: -17.81606604 | AG42: 0.2439021295 | AH42: 0.4947985465 | AI42: -0.2579930814 | AJ42: 18.28909452 | AK42: -0.001617634836 | AL42: 0.001286372361 | AM42: -1.428669828 | AN42: 7.533737009 | AO42: 7.580530575 | AP42: 7.233173796 | AQ42: 7.310288892 | AR42: pH
A43: 0x1708 | B43: pH | C43: 2020-05-16T08:00:50 | D43: 1589616043 | E43: 793.07 | F43: 4.6537 | G43: 34.368 | H43: 1078 | I43: 49 | J43: 0 | K43: 4.45 | L43: 1.1 | M43: 14.356 | N43: 0.0444 | O43: 7.1234 | P43: 3.434 | Q43: -0.985521 | R43: 2.2e-05 | S43: -0.979646 | T43: 2.6e-05 | U43: 8.122e-09 | V43: 1.425e-09 | W43: 4.6537 | X43: 277.8037 | Y43: 0.055121569 | Z43: 34.368 | AA43: 0.7092452494 | AB43: 0.02772558287 | AC43: 0.5555318424 | AD43: 793.07 | AE43: 0.2261705252 | AF43: -17.80629399 | AG43: 0.2404295538 | AH43: 0.4949380776 | AI43: -0.2581627781 | AJ43: 18.30734577 | AK43: -0.00150852587 | AL43: 0.001420264255 | AM43: -1.428733436 | AN43: 7.530398351 | AO43: 7.577796621 | AP43: 7.230753109 | AQ43: 7.307956152 | AR43: pH
A44: 0x8751 | B44: pH | C44: 2020-05-16T08:12:49 | D44: 1589616762 | E44: 733.53 | F44: 4.9498 | G44: 34.3334 | H44: 1079 | I44: 49 | J44: 0 | K44: 4.64 | L44: 1.09 | M44: 14.308 | N44: 0.0446 | O44: 7.1234 | P44: 3.435 | Q44: -0.985211 | R44: 1.7e-05 | S44: -0.979459 | T44: 3e-06 | U44: 8.995e-09 | V44: 5.84e-10 | W44: 4.9498 | X44: 278.0998 | Y44: 0.0551803209 | Z44: 34.3334 | AA44: 0.7085056982 | AB44: 0.02769767012 | AC44: 0.5549529217 | AD44: 733.53 | AE44: 0.2229299562 | AF44: -17.79159716 | AG44: 0.2358742269 | AH44: 0.4951477697 | AI44: -0.2584104173 | AJ44: 18.33451644 | AK44: -0.001397343557 | AL44: 0.001523523383 | AM44: -1.428926277 | AN44: 7.527362349 | AO44: 7.575580962 | AP44: 7.230093552 | AQ44: 7.307428448 | AR44: pH
A45: 0xBD19 | B45: pH | C45: 2020-05-16T08:23:48 | D45: 1589617421 | E45: 676.81 | F45: 5.138 | G45: 34.2912 | H45: 1080 | I45: 49 | J45: 0 | K45: 4.87 | L45: 1.11 | M45: 14.372 | N45: 0.0444 | O45: 7.1234 | P45: 3.435 | Q45: -0.985095 | R45: 3.2e-05 | S45: -0.979405 | T45: 3.8e-05 | U45: 7.538e-09 | V45: 1.631e-10 | W45: 5.138 | X45: 278.288 | Y45: 0.05521766338 | Z45: 34.2912 | AA45: 0.7076037743 | AB45: 0.02766362626 | AC45: 0.5542468929 | AD45: 676.81 | AE45: 0.2207870395 | AF45: -17.7822271 | AG45: 0.2325750102 | AH45: 0.4952813618 | AI45: -0.2585903132 | AJ45: 18.35166606 | AK45: -0.001290500334 | AL45: 0.001590201767 | AM45: -1.429047798 | AN45: 7.52292307 | AO45: 7.571731796 | AP45: 7.226492385 | AQ45: 7.303911087 | AR45: pH
A46: 0xF172 | B46: pH | C46: 2020-05-16T08:29:46 | D46: 1589617779 | E46: 646.83 | F46: 5.212 | G46: 34.2667 | H46: 1081 | I46: 49 | J46: 0 | K46: 5.03 | L46: 1.12 | M46: 14.344 | N46: 0.0442 | O46: 7.1234 | P46: 3.436 | Q46: -0.985002 | R46: 2.7e-05 | S46: -0.979354 | T46: 1.1e-05 | U46: 8.495e-09 | V46: 1.063e-09 | W46: 5.212 | X46: 278.362 | Y46: 0.0552323464 | Z46: 34.2667 | AA46: 0.7070801818 | AB46: 0.02764386145 | AC46: 0.5538370216 | AD46: 646.83 | AE46: 0.2199074629 | AF46: -17.77853668 | AG46: 0.2311099258 | AH46: 0.4953339566 | AI46: -0.258669759 | AJ46: 18.35838373 | AK46: -0.001233787751 | AL46: 0.001612954091 | AM46: -1.429099046 | AN46: 7.521688075 | AO46: 7.570756192 | AP46: 7.225312682 | AQ46: 7.302764335 | AR46: pH
A47: 0x4F43 | B47: pH | C47: 2020-05-16T08:41:46 | D47: 1589618499 | E47: 585.25 | F47: 5.4824 | G47: 34.2504 | H47: 1082 | I47: 49 | J47: 0 | K47: 5.19 | L47: 1.15 | M47: 14.32 | N47: 0.0444 | O47: 7.1234 | P47: 3.436 | Q47: -0.984875 | R47: 2e-05 | S47: -0.979636 | T47: 2.2e-05 | U47: 8.353e-09 | V47: 4.163e-10 | W47: 5.4824 | X47: 278.6324 | Y47: 0.05528599893 | Z47: 34.2504 | AA47: 0.7067318473 | AB47: 0.02763071181 | AC47: 0.5535643428 | AD47: 585.25 | AE47: 0.2171375156 | AF47: -17.76502224 | AG47: 0.2271043093 | AH47: 0.4955264603 | AI47: -0.2588792047 | AJ47: 18.38280793 | AK47: -0.001117812929 | AL47: 0.001632592375 | AM47: -1.429349808 | AN47: 7.517369352 | AO47: 7.567232633 | AP47: 7.222918999 | AQ47: 7.300491061 | AR47: pH
A48: 0x3FCE | B48: pH | C48: 2020-05-16T08:52:46 | D48: 1589619159 | E48: 525.25 | F48: 5.9879 | G48: 34.2506 | H48: 1083 | I48: 49 | J48: 0 | K48: 5.47 | L48: 1.16 | M48: 14.384 | N48: 0.0442 | O48: 7.1234 | P48: 3.437 | Q48: -0.984371 | R48: 2e-05 | S48: -0.979914 | T48: 7e-06 | U48: 6.563e-09 | V48: 1.272e-10 | W48: 5.9879 | X48: 279.1379 | Y48: 0.0553862998 | Z48: 34.2506 | AA48: 0.7067361213 | AB48: 0.02763087315 | AC48: 0.5535676885 | AD48: 525.25 | AE48: 0.2122420509 | AF48: -17.7396337 | AG48: 0.2209363323 | AH48: 0.4958876821 | AI48: -0.2592379306 | AJ48: 18.42795165 | AK48: -0.001005678074 | AL48: 0.001616670166 | AM48: -1.42987123 | AN48: 7.517593674 | AO48: 7.568770364 | AP48: 7.228734706 | AQ48: 7.306531868 | AR48: pH
A49: 0xC47F | B49: pH | C49: 2020-05-16T08:58:44 | D49: 1589619517 | E49: 493.15 | F49: 6.2809 | G49: 34.2519 | H49: 1084 | I49: 49 | J49: 0 | K49: 5.71 | L49: 1.17 | M49: 14.36 | N49: 0.0442 | O49: 7.1234 | P49: 3.438 | Q49: -0.983383 | R49: 2.3e-05 | S49: -0.979326 | T49: 2e-05 | U49: 7.523e-09 | V49: 9.004e-10 | W49: 6.2809 | X49: 279.4309 | Y49: 0.05544443661 | Z49: 34.2519 | AA49: 0.7067639021 | AB49: 0.0276319219 | AC49: 0.5535894355 | AD49: 493.15 | AE49: 0.2094748374 | AF49: -17.72484395 | AG49: 0.2175059833 | AH49: 0.4960978574 | AI49: -0.259445183 | AJ49: 18.45381015 | AK49: -0.0009455422562 | AL49: 0.001593944165 | AM49: -1.430186956 | AN49: 7.530618112 | AO49: 7.582557375 | AP49: 7.245106405 | AQ49: 7.32303404 | AR49: pH
A50: 0x55AF | B50: pH | C50: 2020-05-16T09:10:44 | D50: 1589620237 | E50: 430.52 | F50: 6.5284 | G50: 34.2065 | H50: 1085 | I50: 49 | J50: 0 | K50: 6.02 | L50: 1.18 | M50: 14.34 | N50: 0.0442 | O50: 7.1234 | P50: 3.439 | Q50: -0.982735 | R50: 1.7e-05 | S50: -0.979152 | T50: 1.5e-05 | U50: 7.577e-09 | V50: -5.473e-10 | W50: 6.5284 | X50: 279.6784 | Y50: 0.05549354534 | Z50: 34.2065 | AA50: 0.7057937537 | AB50: 0.0275952965 | AC50: 0.5528299937 | AD50: 430.52 | AE50: 0.2069346655 | AF50: -17.71230864 | AG50: 0.2138330342 | AH50: 0.4962758534 | AI50: -0.2596713091 | AJ50: 18.47547703 | AK50: -0.0008264276681 | AL50: 0.001521091753 | AM50: -1.430507308 | AN50: 7.537148572 | AO50: 7.589862005 | AP50: 7.253197684 | AQ50: 7.33123553 | AR50: pH
A51: 0x0290 | B51: pH | C51: 2020-05-16T09:16:43 | D51: 1589620596 | E51: 401.1 | F51: 6.4015 | G51: 34.1258 | H51: 1086 | I51: 49 | J51: 0 | K51: 6.21 | L51: 1.2 | M51: 14.352 | N51: 0.0442 | O51: 7.1234 | P51: 3.439 | Q51: -0.982448 | R51: 2e-05 | S51: -0.97933 | T51: 1.7e-05 | U51: 6.212e-09 | V51: 2.095e-09 | W51: 6.4015 | X51: 279.5515 | Y51: 0.05546836596 | Z51: 34.1258 | AA51: 0.7040695091 | AB51: 0.02753019366 | AC51: 0.5514802289 | AD51: 401.1 | AE51: 0.2076961393 | AF51: -17.71874067 | AG51: 0.2141448361 | AH51: 0.4961845375 | AI51: -0.2596683889 | AJ51: 18.46438797 | AK51: -0.0007694908062 | AL51: 0.001473855479 | AM51: -1.430427645 | AN51: 7.542606948 | AO51: 7.595131122 | AP51: 7.255650223 | AQ51: 7.333631561 | AR51: pH
A52: 0xD014 | B52: pH | C52: 2020-05-16T09:23:40 | D52: 1589621013 | E52: 362.62 | F52: 6.836 | G52: 34.1063 | H52: 1087 | I52: 49 | J52: 0 | K52: 6.38 | L52: 1.23 | M52: 14.336 | N52: 0.0442 | O52: 7.1234 | P52: 3.439 | Q52: -0.981842 | R52: 2.5e-05 | S52: -0.979764 | T52: 2.4e-05 | U52: 7.462e-09 | V52: 2.237e-10 | W52: 6.836 | X52: 279.986 | Y52: 0.05555457907 | Z52: 34.1063 | AA52: 0.7036529136 | AB52: 0.02751446249 | AC52: 0.5511541099 | AD52: 362.62 | AE52: 0.2036163377 | AF52: -17.69667544 | AG52: 0.2093072602 | AH52: 0.4964976576 | AI52: -0.2599995071 | AJ52: 18.50218054 | AK52: -0.0006970926833 | AL52: 0.001399516321 | AM52: -1.430936484 | AN52: 7.547102428 | AO52: 7.600739671 | AP52: 7.265455094 | AQ52: 7.343629914 | AR52: pH
A53: 0xD88D | B53: pH | C53: 2020-05-16T09:29:39 | D53: 1589621372 | E53: 327.51 | F53: 6.9777 | G53: 34.0739 | H53: 1088 | I53: 49 | J53: 0 | K53: 6.59 | L53: 1.25 | M53: 14.364 | N53: 0.0442 | O53: 7.1234 | P53: 3.44 | Q53: -0.98127 | R53: 2.6e-05 | S53: -0.979989 | T53: 1.3e-05 | U53: 8.683e-09 | V53: 1.719e-09 | W53: 6.9777 | X53: 280.1277 | Y53: 0.05558269506 | Z53: 34.0739 | AA53: 0.7029607614 | AB53: 0.02748832455 | AC53: 0.5506122784 | AD53: 327.51 | AE53: 0.2021799807 | AF53: -17.68945368 | AG53: 0.2072720809 | AH53: 0.496600053 | AI53: -0.2601356385 | AJ53: 18.51439808 | AK53: -0.0006300137366 | AL53: 0.001319270933 | AM53: -1.431158429 | AN53: 7.555052712 | AO53: 7.609136756 | AP53: 7.2743321 | AQ53: 7.35257002 | AR53: pH
A54: 0x8E76 | B54: pH | C54: 2020-05-16T09:35:38 | D54: 1589621731 | E54: 297.67 | F54: 7.3886 | G54: 34.0602 | H54: 1089 | I54: 49 | J54: 0 | K54: 6.8 | L54: 1.25 | M54: 14.372 | N54: 0.044 | O54: 7.1234 | P54: 3.441 | Q54: -0.980411 | R54: 2.1e-05 | S54: -0.980309 | T54: 2.1e-05 | U54: 7.457e-09 | V54: 2.194e-09 | W54: 7.3886 | X54: 280.5386 | Y54: 0.05566422548 | Z54: 34.0602 | AA54: 0.7026681061 | AB54: 0.02747727239 | AC54: 0.550383181 | AD54: 297.67 | AE54: 0.1984735761 | AF54: -17.66844035 | AG54: 0.2029995504 | AH54: 0.4968977568 | AI54: -0.2604445839 | AJ54: 18.54952754 | AK54: -0.0005736985821 | AL54: 0.001241756386 | AM54: -1.431646844 | AN54: 7.564828484 | AO54: 7.619960666 | AP54: 7.289384239 | AQ54: 7.367805132 | AR54: pH
A55: 0xC912 | B55: pH | C55: 2020-05-16T09:37:13 | D55: 1589621826 | E55: 290.67 | F55: 7.5029 | G55: 34.0638 | H55: 1090 | I55: 49 | J55: 0 | K55: 6.95 | L55: 1.27 | M55: 14.22 | N55: 0.0446 | O55: 7.1234 | P55: 3.441 | Q55: -0.98008 | R55: 1.6e-05 | S55: -0.980437 | T55: 1.4e-05 | U55: 8.741e-09 | V55: 9.501e-10 | W55: 7.5029 | X55: 280.6529 | Y55: 0.05568690479 | Z55: 34.0638 | AA55: 0.7027450074 | AB55: 0.02748017661 | AC55: 0.5504433812 | AD55: 290.67 | AE55: 0.197493233 | AF55: -17.66257611 | AG55: 0.2018864895 | AH55: 0.4969807749 | AI55: -0.2605227535 | AJ55: 18.5592205 | AK55: -0.0005605002346 | AL55: 0.001222333385 | AM55: -1.431780567 | AN55: 7.569311954 | AO55: 7.624735 | AP55: 7.295384712 | AQ55: 7.373856503 | AR55: pH
A56: 0xCE6F | B56: pH | C56: 2020-05-16T09:43:32 | D56: 1589622205 | E56: 257.34 | F56: 8.4551 | G56: 34.1431 | H56: 1091 | I56: 49 | J56: 0 | K56: 7.2 | L56: 1.32 | M56: 14.344 | N56: 0.0442 | O56: 7.1234 | P56: 3.442 | Q56: -0.979223 | R56: 2.1e-05 | S56: -0.980205 | T56: 1.6e-05 | U56: 7.731e-09 | V56: 8.434e-10 | W56: 8.4551 | X56: 281.6051 | Y56: 0.05587583949 | Z56: 34.1431 | AA56: 0.7044391183 | AB56: 0.02754415003 | AC56: 0.5517695656 | AD56: 257.34 | AE56: 0.1897799661 | AF56: -17.61340191 | AG56: 0.1934896266 | AH56: 0.497675858 | AI56: -0.261124426 | AJ56: 18.63863329 | AK56: -0.0004983531605 | AL56: 0.001123392335 | AM56: -1.432831708 | AN56: 7.573005667 | AO56: 7.630806624 | AP56: 7.312656646 | AQ56: 7.391552452 | AR56: pH
A57: 0xA327 | B57: pH | C57: 2020-05-16T09:49:31 | D57: 1589622564 | E57: 223.63 | F57: 8.7403 | G57: 34.1114 | H57: 1092 | I57: 49 | J57: 0 | K57: 7.5 | L57: 1.35 | M57: 14.38 | N57: 0.044 | O57: 7.1234 | P57: 3.443 | Q57: -0.978807 | R57: 2e-05 | S57: -0.980656 | T57: 1.6e-05 | U57: 8.661e-09 | V57: 1.755e-09 | W57: 8.7403 | X57: 281.8903 | Y57: 0.05593242862 | Z57: 34.1114 | AA57: 0.7037618677 | AB57: 0.0275185768 | AC57: 0.5512394013 | AD57: 223.63 | AE57: 0.1873005911 | AF57: -17.59856188 | AG57: 0.1904722096 | AH57: 0.4978852576 | AI57: -0.2613646828 | AJ57: 18.66195434 | AK57: -0.0004336137473 | AL57: 0.001012462755 | AM57: -1.433227837 | AN57: 7.576661355 | AO57: 7.635267873 | AP57: 7.319544743 | AQ57: 7.398567549 | AR57: pH
A58: 0x64AA | B58: pH | C58: 2020-05-16T09:55:30 | D58: 1589622923 | E58: 185.87 | F58: 9.0853 | G58: 34.0629 | H58: 1093 | I58: 49 | J58: 0 | K58: 7.85 | L58: 1.37 | M58: 14.396 | N58: 0.044 | O58: 7.1234 | P58: 3.443 | Q58: -0.977908 | R58: 1.8e-05 | S58: -0.980797 | T58: 1.2e-05 | U58: 7.937e-09 | V58: 5.309e-10 | W58: 9.0853 | X58: 282.2353 | Y58: 0.05600088322 | Z58: 34.0629 | AA58: 0.702725782 | AB58: 0.02747945055 | AC58: 0.5504283311 | AD58: 185.87 | AE58: 0.1843145709 | AF58: -17.58054153 | AG58: 0.1868990945 | AH58: 0.4981393094 | AI58: -0.2616662671 | AJ58: 18.68987916 | AK58: -0.0003609372032 | AL58: 0.0008752366522 | AM58: -1.433710063 | AN58: 7.588146633 | AO58: 7.647720755 | AP58: 7.335058027 | AQ58: 7.414234461 | AR58: pH
A59: 0xE883 | B59: pH | C59: 2020-05-16T10:01:29 | D59: 1589623282 | E59: 153.29 | F59: 9.1324 | G59: 33.974 | H59: 1094 | I59: 49 | J59: 0 | K59: 8.17 | L59: 1.37 | M59: 14.404 | N59: 0.0438 | O59: 7.1234 | P59: 3.444 | Q59: -0.976627 | R59: 2.1e-05 | S59: -0.981043 | T59: 3e-05 | U59: 7.708e-09 | V59: 1.095e-09 | W59: 9.1324 | X59: 282.2824 | Y59: 0.05601022876 | Z59: 33.974 | AA59: 0.7008269192 | AB59: 0.02740773255 | AC59: 0.5489418497 | AD59: 153.29 | AE59: 0.1835634389 | AF59: -17.57807553 | AG59: 0.1856830015 | AH59: 0.4981740563 | AI59: -0.2617937622 | AJ59: 18.6936672 | AK59: -0.00029773109 | AL59: 0.0007458224157 | AM59: -1.433886578 | AN59: 7.610102497 | AO59: 7.669894915 | AP59: 7.356581906 | AQ59: 7.435779314 | AR59: pH
A60: 0x0B3A | B60: pH | C60: 2020-05-16T10:07:28 | D60: 1589623641 | E60: 132.2 | F60: 9.6167 | G60: 33.9257 | H60: 1095 | I60: 49 | J60: 0 | K60: 8.48 | L60: 1.39 | M60: 14.412 | N60: 0.044 | O60: 7.1234 | P60: 3.445 | Q60: -0.975148 | R60: 1.7e-05 | S60: -0.980426 | T60: 1.8e-05 | U60: 7.317e-09 | V60: 6.985e-10 | W60: 9.6167 | X60: 282.7667 | Y60: 0.05610632315 | Z60: 33.9257 | AA60: 0.6997954009 | AB60: 0.02736876765 | AC60: 0.5481343433 | AD60: 132.2 | AE60: 0.1795818452 | AF60: -17.55263781 | AG60: 0.1813630601 | AH60: 0.4985322201 | AI60: -0.2621960293 | AJ60: 18.73227859 | AK60: -0.0002572988941 | AL60: 0.00065660917 | AM60: -1.434460091 | AN60: 7.629652074 | AO60: 7.690691915 | AP60: 7.38294944 | AQ60: 7.462362507 | AR60: pH
A61: 0x5DB9 | B61: pH | C61: 2020-05-16T10:13:27 | D61: 1589624000 | E61: 115.92 | F61: 9.9755 | G61: 33.8195 | H61: 1096 | I61: 49 | J61: 0 | K61: 8.78 | L61: 1.41 | M61: 14.42 | N61: 0.0438 | O61: 7.1234 | P61: 3.446 | Q61: -0.974238 | R61: 1.8e-05 | S61: -0.980845 | T61: 3.4e-05 | U61: 9.26e-09 | V61: 9.12e-10 | W61: 9.9755 | X61: 283.1255 | Y61: 0.05617751593 | Z61: 33.8195 | AA61: 0.6975277065 | AB61: 0.02728309328 | AC61: 0.5463591038 | AD61: 115.92 | AE61: 0.1764256198 | AF61: -17.53369635 | AG61: 0.1779554882 | AH61: 0.498798608 | AI61: -0.2625668111 | AJ61: 18.76048625 | AK61: -0.000225953108 | AL61: 0.0005848190958 | AM61: -1.434890681 | AN61: 7.639819802 | AO61: 7.70176742 | AP61: 7.398158335 | AQ61: 7.477731175 | AR61: pH
A62: 0xD81D | B62: pH | C62: 2020-05-16T10:19:26 | D62: 1589624359 | E62: 102.54 | F62: 9.9441 | G62: 33.7432 | H62: 1097 | I62: 49 | J62: 0 | K62: 9.09 | L62: 1.41 | M62: 14.424 | N62: 0.0436 | O62: 7.1234 | P62: 3.447 | Q62: -0.973053 | R62: 2.7e-05 | S62: -0.98023 | T62: 2.6e-05 | U62: 7.521e-09 | V62: 1.141e-09 | W62: 9.9441 | X62: 283.0941 | Y62: 0.05617128557 | Z62: 33.7432 | AA62: 0.6958987777 | AB62: 0.02722154003 | AC62: 0.5450839029 | AD62: 102.54 | AE62: 0.1763603638 | AF62: -17.53535724 | AG62: 0.1777127517 | AH62: 0.4987752601 | AI62: -0.262621852 | AJ62: 18.75803122 | AK62: -0.0001998464434 | AL62: 0.0005239100339 | AM62: -1.43492019 | AN62: 7.660817929 | AO62: 7.722713973 | AP62: 7.418184334 | AQ62: 7.497743192 | AR62: pH
A63: 0x4A60 | B63: pH | C63: 2020-05-16T10:25:52 | D63: 1589624745 | E63: 84.42 | F63: 10.6797 | G63: 33.7664 | H63: 1098 | I63: 49 | J63: 0 | K63: 9.39 | L63: 1.44 | M63: 14.416 | N63: 0.0438 | O63: 7.1234 | P63: 3.448 | Q63: -0.972735 | R63: 2.9e-05 | S63: -0.980774 | T63: 2.7e-05 | U63: 7.377e-09 | V63: 9.772e-11 | W63: 10.6797 | X63: 283.8297 | Y63: 0.05631724269 | Z63: 33.7664 | AA63: 0.6963940472 | AB63: 0.02724025609 | AC63: 0.5454716238 | AD63: 84.42 | AE63: 0.1710302214 | AF63: -17.49628429 | AG63: 0.1721040361 | AH63: 0.4993240027 | AI63: -0.2631352969 | AJ63: 18.81486299 | AK63: -0.0001650297586 | AL63: 0.0004386803249 | AM63: -1.43574102 | AN63: 7.656995966 | AO63: 7.720808716 | AP63: 7.42527809 | AQ63: 7.505164511 | AR63: pH
A64: 0x5D80 | B64: pH | C64: 2020-05-16T10:31:52 | D64: 1589625105 | E64: 75.47 | F64: 10.7671 | G64: 33.6588 | H64: 1099 | I64: 49 | J64: 0 | K64: 9.71 | L64: 1.44 | M64: 14.436 | N64: 0.0438 | O64: 7.1234 | P64: 3.449 | Q64: -0.971038 | R64: 2.5e-05 | S64: -0.981205 | T64: 2.7e-05 | U64: 8.556e-09 | V64: 1.453e-09 | W64: 10.7671 | X64: 283.9171 | Y64: 0.05633458452 | Z64: 33.6588 | AA64: 0.6940972232 | AB64: 0.0271534523 | AC64: 0.543673551 | AD64: 75.47 | AE64: 0.1699989932 | AF64: -17.49161912 | AG64: 0.1709523103 | AH64: 0.499389448 | AI64: -0.26330775 | AJ64: 18.82152078 | AK64: -0.0001475859169 | AL64: 0.0003954185611 | AM64: -1.435871681 | AN64: 7.684710817 | AO64: 7.748732952 | AP64: 7.454049531 | AQ64: 7.533974871 | AR64: pH
A65: 0xB453 | B65: pH | C65: 2020-05-16T10:38:18 | D65: 1589625491 | E65: 58.74 | F65: 11.1965 | G65: 33.6452 | H65: 1100 | I65: 49 | J65: 0 | K65: 10.02 | L65: 1.48 | M65: 14.432 | N65: 0.0436 | O65: 7.1234 | P65: 3.45 | Q65: -0.96942 | R65: 2.2e-05 | S65: -0.980855 | T65: 2.2e-05 | U65: 8.122e-09 | V65: 4.575e-10 | W65: 11.1965 | X65: 284.3465 | Y65: 0.05641978569 | Z65: 33.6452 | AA65: 0.6938069549 | AB65: 0.02714248081 | AC65: 0.5434463126 | AD65: 58.74 | AE65: 0.1669089821 | AF65: -17.46862883 | AG65: 0.1676349723 | AH65: 0.499711745 | AI65: -0.2636359636 | AJ65: 18.85393872 | AK65: -0.0001150672913 | AL65: 0.0003124858263 | AM65: -1.436384014 | AN65: 7.707757907 | AO65: 7.772931963 | AP65: 7.483273728 | AQ65: 7.563390279 | AR65: pH
A66: 0x51BC | B66: pH | C66: 2020-05-16T10:44:18 | D66: 1589625851 | E66: 49.17 | F66: 11.7556 | G66: 33.5893 | H66: 1101 | I66: 49 | J66: 0 | K66: 10.34 | L66: 1.49 | M66: 14.448 | N66: 0.0436 | O66: 7.1234 | P66: 3.451 | Q66: -0.967557 | R66: 2.5e-05 | S66: -0.981388 | T66: 1.3e-05 | U66: 8.093e-09 | V66: 1.576e-09 | W66: 11.7556 | X66: 284.9056 | Y66: 0.05653072183 | Z66: 33.5893 | AA66: 0.6926139531 | AB66: 0.02709738479 | AC66: 0.5425123599 | AD66: 49.17 | AE66: 0.1628607153 | AF66: -17.43851969 | AG66: 0.1634512899 | AH66: 0.5001332872 | AI66: -0.264102398 | AJ66: 18.89542116 | AK66: -9.653229716e-05 | AL66: 0.0002638365695 | AM66: -1.436991763 | AN66: 7.732196475 | AO66: 7.798814055 | AP66: 7.516217443 | AQ66: 7.596582961 | AR66: pH
A67: 0x6720 | B67: pH | C67: 2020-05-16T10:45:49 | D67: 1589625942 | E67: 47.9 | F67: 11.904 | G67: 33.5843 | H67: 1102 | I67: 49 | J67: 0 | K67: 10.49 | L67: 1.5 | M67: 14.32 | N67: 0.0438 | O67: 7.1234 | P67: 3.451 | Q67: -0.967006 | R67: 2.6e-05 | S67: -0.981751 | T67: 1.7e-05 | U67: 7.786e-09 | V67: 6.07e-10 | W67: 11.904 | X67: 285.054 | Y67: 0.05656016723 | Z67: 33.5843 | AA67: 0.6925072513 | AB67: 0.02709335116 | AC67: 0.5424288272 | AD67: 47.9 | AE67: 0.1618417003 | AF67: -17.43049475 | AG67: 0.1624128331 | AH67: 0.5002455359 | AI67: -0.2642166407 | AJ67: 18.90629354 | AK67: -9.409309765e-05 | AL67: 0.0002573143439 | AM67: -1.437146686 | AN67: 7.739740366 | AO67: 7.806743411 | AP67: 7.526069014 | AQ67: 7.606500615 | AR67: pH
A68: 0x5658 | B68: pH | C68: 2020-05-16T10:46:53 | D68: 1589626007 | E68: 45.54 | F68: 12.2882 | G68: 33.6035 | H68: 1103 | I68: 49 | J68: 0 | K68: 10.66 | L68: 1.51 | M68: 14.276 | N68: 0.0438 | O68: 7.1234 | P68: 3.451 | Q68: -0.966607 | R68: 2.7e-05 | S68: -0.981493 | T68: 2.6e-05 | U68: 7.515e-09 | V68: 4.082e-10 | W68: 12.2882 | X68: 285.4382 | Y68: 0.05663639986 | Z68: 33.6035 | AA68: 0.6929169923 | AB68: 0.02710884031 | AC68: 0.5427495975 | AD68: 45.54 | AE68: 0.1593495528 | AF68: -17.40965392 | AG68: 0.1598827782 | AH68: 0.5005368437 | AI68: -0.2644812742 | AJ68: 18.93417227 | AK68: -8.958910681e-05 | AL68: 0.0002451531331 | AM68: -1.437543047 | AN68: 7.741500999 | AO68: 7.809521453 | AP68: 7.533846476 | AQ68: 7.614449161 | AR68: pH
A69: 0xBB9C | B69: pH | C69: 2020-05-16T10:47:58 | D69: 1589626072 | E69: 43.27 | F69: 12.4123 | G69: 33.5857 | H69: 1104 | I69: 49 | J69: 0 | K69: 10.8 | L69: 1.51 | M69: 14.252 | N69: 0.0438 | O69: 7.1234 | P69: 3.452 | Q69: -0.966189 | R69: 3.2e-05 | S69: -0.981968 | T69: 2.2e-05 | U69: 8.114e-09 | V69: 7.877e-10 | W69: 12.4123 | X69: 285.5623 | Y69: 0.05666102368 | Z69: 33.5857 | AA69: 0.6925371277 | AB69: 0.02709448058 | AC69: 0.5424522162 | AD69: 43.27 | AE69: 0.1584750069 | AF69: -17.40290222 | AG69: 0.1589784156 | AH69: 0.5006311551 | AI69: -0.2645905346 | AJ69: 18.94309433 | AK69: -8.516353372e-05 | AL69: 0.000233405189 | AM69: -1.437678895 | AN69: 7.746899871 | AO69: 7.815244824 | AP69: 7.541137621 | AQ69: 7.621795568 | AR69: pH
A70: 0x3C0A | B70: pH | C70: 2020-05-16T10:49:04 | D70: 1589626137 | E70: 41.02 | F70: 12.8999 | G70: 33.6452 | H70: 1105 | I70: 49 | J70: 0 | K70: 10.99 | L70: 1.53 | M70: 14.24 | N70: 0.0438 | O70: 7.1234 | P70: 3.452 | Q70: -0.965727 | R70: 3.8e-05 | S70: -0.982061 | T70: 1.2e-05 | U70: 8.49e-09 | V70: 6.53e-11 | W70: 12.8999 | X70: 286.0499 | Y70: 0.05675777284 | Z70: 33.6452 | AA70: 0.6938069549 | AB70: 0.02714248081 | AC70: 0.5434463126 | AD70: 41.02 | AE70: 0.1555180065 | AF70: -17.37627992 | AG70: 0.1559847794 | AH70: 0.5010027359 | AI70: -0.2648934855 | AJ70: 18.9777574 | AK70: -8.088284203e-05 | AL70: 0.000221711877 | AM70: -1.438178188 | AN70: 7.748779914 | AO70: 7.818450689 | AP70: 7.550704826 | AQ70: 7.631579901 | AR70: pH
A71: 0xD8F9 | B71: pH | C71: 2020-05-16T10:50:08 | D71: 1589626202 | E71: 39.43 | F71: 13.1011 | G71: 33.666 | H71: 1106 | I71: 49 | J71: 0 | K71: 11.18 | L71: 1.54 | M71: 14.236 | N71: 0.0438 | O71: 7.1234 | P71: 3.452 | Q71: -0.965416 | R71: 1.7e-05 | S71: -0.982183 | T71: 2.4e-05 | U71: 7.047e-09 | V71: 5.69e-10 | W71: 13.1011 | X71: 286.2511 | Y71: 0.05679769477 | Z71: 33.666 | AA71: 0.694250898 | AB71: 0.02715926073 | AC71: 0.5437938562 | AD71: 39.43 | AE71: 0.1543061832 | AF71: -17.36525087 | AG71: 0.1547507451 | AH71: 0.5011565379 | AI71: -0.2650226064 | AJ71: 18.99187815 | AK71: -7.780554493e-05 | AL71: 0.0002134192615 | AM71: -1.438387681 | AN71: 7.751647125 | AO71: 7.821870964 | AP71: 7.556726481 | AQ71: 7.637691151 | AR71: pH
A72: 0xDF9F | B72: pH | C72: 2020-05-16T10:51:39 | D72: 1589626293 | E72: 37.68 | F72: 13.2558 | G72: 33.6674 | H72: 1107 | I72: 49 | J72: 0 | K72: 11.39 | L72: 1.57 | M72: 14.228 | N72: 0.0438 | O72: 7.1234 | P72: 3.453 | Q72: -0.964826 | R72: 3.4e-05 | S72: -0.981853 | T72: 1.8e-05 | U72: 7.644e-09 | V72: 9.061e-10 | W72: 13.2558 | X72: 286.4058 | Y72: 0.05682839021 | Z72: 33.6674 | AA72: 0.6942807795 | AB72: 0.02716039015 | AC72: 0.5438172491 | AD72: 37.68 | AE72: 0.1533361747 | AF72: -17.35675339 | AG72: 0.1537578732 | AH72: 0.5012749831 | AI72: -0.2651363915 | AJ72: 19.00266296 | AK72: -7.439456625e-05 | AL72: 0.0002042640797 | AM72: -1.438551536 | AN72: 7.75983851 | AO72: 7.830483557 | AP72: 7.567326827 | AQ72: 7.648360384 | AR72: pH
A73: 0x7E35 | B73: pH | C73: 2020-05-16T10:52:44 | D73: 1589626358 | E73: 35.02 | F73: 13.3856 | G73: 33.6646 | H73: 1108 | I73: 49 | J73: 0 | K73: 11.55 | L73: 1.59 | M73: 14.228 | N73: 0.0438 | O73: 7.1234 | P73: 3.453 | Q73: -0.964409 | R73: 3.2e-05 | S73: -0.981786 | T73: 1.5e-05 | U73: 7.388e-09 | V73: 1.651e-09 | W73: 13.3856 | X73: 286.5356 | Y73: 0.05685414502 | Z73: 33.6646 | AA73: 0.6942210166 | AB73: 0.02715813131 | AC73: 0.5437704634 | AD73: 35.02 | AE73: 0.1525158211 | AF73: -17.34961197 | AG73: 0.1529052781 | AH73: 0.5013744903 | AI73: -0.2652358598 | AJ73: 19.01166328 | AK73: -6.917546894e-05 | AL73: 0.0001902918296 | AM73: -1.438695308 | AN73: 7.765336621 | AO73: 7.836339613 | AP73: 7.574805103 | AQ73: 7.655896461 | AR73: pH
A74: 0x375A | B74: pH | C74: 2020-05-16T10:53:50 | D74: 1589626423 | E74: 31.97 | F74: 13.393 | G74: 33.6678 | H74: 1109 | I74: 49 | J74: 0 | K74: 11.71 | L74: 1.61 | M74: 14.224 | N74: 0.0436 | O74: 7.1234 | P74: 3.453 | Q74: -0.963978 | R74: 2.2e-05 | S74: -0.981511 | T74: 3.2e-05 | U74: 8.532e-09 | V74: 1.151e-09 | W74: 13.393 | X74: 286.543 | Y74: 0.05685561332 | Z74: 33.6678 | AA74: 0.694289317 | AB74: 0.02716071284 | AC74: 0.5438239328 | AD74: 31.97 | AE74: 0.152479812 | AF74: -17.34920451 | AG74: 0.152835209 | AH74: 0.5013801668 | AI74: -0.2652382393 | AJ74: 19.01217506 | AK74: -6.315246359e-05 | AL74: 0.0001741873228 | AM74: -1.438718813 | AN74: 7.773015405 | AO74: 7.844054655 | AP74: 7.582492967 | AQ74: 7.66358762 | AR74: pH
A75: 0x08C5 | B75: pH | C75: 2020-05-16T10:54:55 | D75: 1589626488 | E75: 28.73 | F75: 13.4553 | G75: 33.6687 | H75: 1110 | I75: 49 | J75: 0 | K75: 11.89 | L75: 1.65 | M75: 14.228 | N75: 0.0438 | O75: 7.1234 | P75: 3.454 | Q75: -0.963613 | R75: 2.8e-05 | S75: -0.981333 | T75: 2.7e-05 | U75: 7.422e-09 | V75: 5.405e-10 | W75: 13.4553 | X75: 286.6053 | Y75: 0.05686797483 | Z75: 33.6687 | AA75: 0.6943085266 | AB75: 0.02716143889 | AC75: 0.5438389711 | AD75: 28.73 | AE75: 0.1520952478 | AF75: -17.34577277 | AG75: 0.1524136516 | AH75: 0.5014279715 | AI75: -0.2652838156 | AJ75: 19.01647797 | AK75: -5.676512089e-05 | AL75: 0.0001569816462 | AM75: -1.438798318 | AN75: 7.778688302 | AO75: 7.849910528 | AP75: 7.589046506 | AQ75: 7.670168901 | AR75: pH
A76: 0xD5EB | B76: pH | C76: 2020-05-16T10:56:00 | D76: 1589626553 | E76: 25.49 | F76: 13.4762 | G76: 33.6653 | H76: 1111 | I76: 49 | J76: 0 | K76: 12.06 | L76: 1.66 | M76: 14.232 | N76: 0.0436 | O76: 7.1234 | P76: 3.454 | Q76: -0.96318 | R76: 2.7e-05 | S76: -0.981744 | T76: 1.9e-05 | U76: 7.21e-09 | V76: 7.575e-10 | W76: 13.4762 | X76: 286.6262 | Y76: 0.05687212179 | Z76: 33.6653 | AA76: 0.6942359573 | AB76: 0.02715869602 | AC76: 0.5437821598 | AD76: 25.49 | AE76: 0.1519549083 | AF76: -17.34462096 | AG76: 0.1522370711 | AH76: 0.5014440146 | AI76: -0.265302737 | AJ76: 19.0179192 | AK76: -5.036730222e-05 | AL76: 0.000139675073 | AM76: -1.438836525 | AN76: 7.786115733 | AO76: 7.857407504 | AP76: 7.596692295 | AQ76: 7.677823997 | AR76: pH
A77: 0xFB7A | B77: pH | C77: 2020-05-16T10:57:05 | D77: 1589626619 | E77: 22.4 | F77: 13.7208 | G77: 33.6537 | H77: 1112 | I77: 49 | J77: 0 | K77: 12.21 | L77: 1.66 | M77: 14.232 | N77: 0.0436 | O77: 7.1234 | P77: 3.454 | Q77: -0.96269 | R77: 2e-05 | S77: -0.981607 | T77: 4.3e-05 | U77: 8.019e-09 | V77: 1.207e-09 | W77: 13.7208 | X77: 286.8708 | Y77: 0.05692065511 | Z77: 33.6537 | AA77: 0.6939883716 | AB77: 0.02714933799 | AC77: 0.5435883359 | AD77: 22.4 | AE77: 0.1504121513 | AF77: -17.33112045 | AG77: 0.1506571637 | AH77: 0.501631996 | AI77: -0.2654966919 | AJ77: 19.0347009 | AK77: -4.430063298e-05 | AL77: 0.000123075732 | AM77: -1.439097724 | AN77: 7.79105197 | AO77: 7.86300982 | AP77: 7.605434976 | AQ77: 7.686675598 | AR77: pH
A78: 0x5B71 | B78: pH | C78: 2020-05-16T10:58:11 | D78: 1589626684 | E78: 19.89 | F78: 13.9273 | G78: 33.6387 | H78: 1113 | I78: 49 | J78: 0 | K78: 12.4 | L78: 1.68 | M78: 14.236 | N78: 0.0436 | O78: 7.1234 | P78: 3.455 | Q78: -0.96203 | R78: 2.8e-05 | S78: -0.982488 | T78: 1.5e-05 | U78: 7.171e-09 | V78: 1.282e-09 | W78: 13.9273 | X78: 287.0773 | Y78: 0.05696162866 | Z78: 33.6387 | AA78: 0.6936682267 | AB78: 0.02713723709 | AC78: 0.5433377081 | AD78: 19.89 | AE78: 0.1491096981 | AF78: -17.3196934 | AG78: 0.149325055 | AH78: 0.5017910161 | AI78: -0.2656657011 | AJ78: 19.04874601 | AK78: -3.936561409e-05 | AL78: 0.0001095245759 | AM78: -1.439317775 | AN78: 7.799453636 | AO78: 7.871972869 | AP78: 7.61705786 | AQ78: 7.698390437 | AR78: pH
A79: 0x0C19 | B79: pH | C79: 2020-05-16T10:59:15 | D79: 1589626749 | E79: 17.79 | F79: 14.9114 | G79: 33.5942 | H79: 1114 | I79: 49 | J79: 0 | K79: 12.57 | L79: 1.73 | M79: 14.236 | N79: 0.0436 | O79: 7.1234 | P79: 3.455 | Q79: -0.961041 | R79: 2.7e-05 | S79: -0.982069 | T79: 1.1e-05 | U79: 8.016e-09 | V79: 9.52e-10 | W79: =F79 -> 14.9114 | X79: =W79+273.15 -> 288.0614 | Y79: =8.31451*X79/96487*LN(10) -> 0.05715689293 | Z79: =G79 -> 33.5942 | AA79: =19.924 * Z79/ (1000 - 1.005 * Z79) -> 0.692718522 | AB79: =(0.14 / 96.062) * (Z79 / 1.80655) -> 0.02710133775 | AC79: =0.99889/35.453*Z79/1.80655*(1 + 0.00106 * Z79) -> 0.5425942228 | AD79: =E79 -> 17.79 | AE79: =EXP(-4276.1 /X79 + 141.328 - 23.093 * LN(X79) + (-13856 / X79 + 324.57 - 47.986 * LN(X79)) * AA79^ 0.5 + (35474 / X79 - 771.54 + 114.723 * LN(X79)) * AA79- 2698 / X79 * AA79 ^ 1.5 + 1776 / X79*AA79 ^ 2 + LN(1 - 0.001005 * Z79)) -> 0.1431787896 | AF79: =-18.03 + 0.0466 * W79 + 0.000316 *W79 ^ 2 -> -17.26486621 | AG79: =EXP((-AF79) * (AD79 / 10) / (8.31451 * 10 * X79))*AE79 -> 0.1433625173 | AH79: =(0.00000343*W79^2 + 0.00067524*W79 + 0.49172143) -> 0.5025528637 | AI79: =2*(-AH79*SQRT(AA79)/(1+1.394*SQRT(AA79))+(0.08885-0.000111*W79)*AA79) -> -0.2664473092 | AJ79: =17.85 + 0.1044 * W79 - 0.001316 * W79 ^ 2 -> 19.11413776 | AK79: =-AJ79 * 0.0242 / (23061 * 1.01) *AD79 / 10 -> -3.533023419e-05 | AL79: =AF$18*AD79+AF$19*AD79^2+AF$20*AD79^3+AF$21*AD79^4+AF$22*AD79^5+AF$23*AD79^6 -> 9.814043136e-05 | AM79: =$AF$16+$AF$17*(W79)+AL79 -> -1.44031326 | AN79: =AO79-LOG(1+AB79/AG79) -> 7.801392096 | AO79: =-LOG10((10^(-((Q79-AM79-AK79)/Y79+(LOG(AC79)+AI79))))/(1+0.0016*Z79)) -> 7.876588784 | AP79: =((AN79 + 0.000035833 * AD79 - 0.01703 * (25 - W79) + 0.00004453 * (25 - W79) ^ 2) ) -> 7.634752964 | AQ79: =((AN79 + 0.000035833 * AD79 - 0.01703 * (20 - W79) + 0.00004453 * (20 - W79) ^ 2) ) -> 7.716523761 | AR79: =B79 -> pH
A80: 0x2DEB | B80: pH | C80: 2020-05-16T11:00:20 | D80: 1589626814 | E80: 17.31 | F80: 14.9873 | G80: 33.5936 | H80: 1115 | I80: 49 | J80: 0 | K80: 12.75 | L80: 1.78 | M80: 14.24 | N80: 0.0434 | O80: 7.1234 | P80: 3.455 | Q80: -0.960087 | R80: 2.6e-05 | S80: -0.981211 | T80: 2.6e-05 | U80: 7.067e-09 | V80: 6.346e-10 | W80: 14.9873 | X80: 288.1373 | Y80: 0.05717195294 | Z80: 33.5936 | AA80: 0.6927057176 | AB80: 0.02710085372 | AC80: 0.5425841988 | AD80: 17.31 | AE80: 0.1427423125 | AF80: -17.26061217 | AG80: 0.142920444 | AH80: 0.5026118982 | AI80: -0.266505047 | AJ80: 19.1190753 | AK80: -3.438585346e-05 | AL80: 9.553238979e-05 | AM80: -1.440391768 | AN80: 7.816947873 | AO80: 7.892356843 | AP80: 7.651516179 | AQ80: 7.733320774 | AR80: pH
A81: 0x3786 | B81: pH | C81: 2020-05-16T11:01:26 | D81: 1589626879 | E81: 17.23 | F81: 14.9546 | G81: 33.5979 | H81: 1116 | I81: 49 | J81: 0 | K81: 12.91 | L81: 1.84 | M81: 14.244 | N81: 0.0434 | O81: 7.1234 | P81: 3.455 | Q81: -0.959588 | R81: 1.6e-05 | S81: -0.980786 | T81: 2.7e-05 | U81: 7.759e-09 | V81: 1.209e-09 | W81: 14.9546 | X81: 288.1046 | Y81: 0.05716546463 | Z81: 33.5979 | AA81: 0.6927974829 | AB81: 0.02710432264 | AC81: 0.5426560382 | AD81: 17.23 | AE81: 0.1429416875 | AF81: -17.26244538 | AG81: 0.1431192819 | AH81: 0.5025864595 | AI81: -0.2664762882 | AJ81: 19.11694992 | AK81: -3.422313073e-05 | AL81: 9.50975009e-05 | AM81: -1.440359502 | AN81: 7.826239677 | AO81: 7.901561311 | AP81: 7.660277443 | AQ81: 7.742067476 | AR81: pH
A82: 0x0BCB | B82: pH | C82: 2020-05-16T11:02:47 | D82: 1589626960 | E82: 17.17 | F82: 15.0655 | G82: 33.6208 | H82: 1117 | I82: 49 | J82: 0 | K82: 13.12 | L82: 1.85 | M82: 14.244 | N82: 0.0432 | O82: 7.1234 | P82: 3.456 | Q82: -0.959177 | R82: 2.1e-05 | S82: -0.980449 | T82: 3.7e-05 | U82: 7.009e-09 | V82: 1.738e-09 | W82: 15.0655 | X82: 288.2155 | Y82: 0.05718746932 | Z82: 33.6208 | AA82: 0.6932862001 | AB82: 0.02712279668 | AC82: 0.5430386354 | AD82: 17.17 | AE82: 0.1423733781 | AF82: -17.2562254 | AG82: 0.1425495187 | AH82: 0.5026727629 | AI82: -0.2665378588 | AJ82: 19.12414661 | AK82: -3.411679423e-05 | AL82: 9.477129387e-05 | AM82: -1.440470729 | AN82: 7.832069359 | AO82: 7.90771459 | AP82: 7.667894934 | AQ82: 7.749734351 | AR82: pH
A83: 0x0EA3 | B83: pH | C83: 2020-05-16T11:04:01 | D83: 1589627035 | E83: 16.05 | F83: 15.1648 | G83: 33.5938 | H83: 1118 | I83: 49 | J83: 0 | K83: 13.3 | L83: 1.88 | M83: 14.244 | N83: 0.0432 | O83: 7.1234 | P83: 3.456 | Q83: -0.958961 | R83: 2.2e-05 | S83: -0.980309 | T83: 6.1e-05 | U83: 7.764e-09 | V83: 2.257e-09 | W83: 15.1648 | X83: 288.3148 | Y83: 0.05720717234 | Z83: 33.5938 | AA83: 0.6927099857 | AB83: 0.02710101506 | AC83: 0.5425875401 | AD83: 16.05 | AE83: 0.1417328089 | AF83: -17.25064943 | AG83: 0.1418966029 | AH83: 0.5027501106 | AI83: -0.2666386529 | AJ83: 19.13056307 | AK83: -3.190205402e-05 | AL83: 8.867574467e-05 | AM83: -1.440576124 | AN83: 7.834007051 | AO83: 7.909915636 | AP83: 7.671396153 | AQ83: 7.753279789 | AR83: pH
A84: 0x256A | B84: pH | C84: 2020-05-16T11:05:06 | D84: 1589627100 | E84: 14.44 | F84: 15.2055 | G84: 33.5918 | H84: 1119 | I84: 49 | J84: 0 | K84: 13.45 | L84: 1.89 | M84: 14.252 | N84: 0.0432 | O84: 7.1234 | P84: 3.457 | Q84: -0.958804 | R84: 2.6e-05 | S84: -0.980153 | T84: 2.3e-05 | U84: 5.892e-09 | V84: 5.988e-10 | W84: 15.2055 | X84: 288.3555 | Y84: 0.05721524799 | Z84: 33.5918 | AA84: 0.6926673045 | AB84: 0.02709940161 | AC84: 0.5425541266 | AD84: 14.44 | AE84: 0.1414968857 | AF84: -17.24836222 | AG84: 0.1416439552 | AH84: 0.5027818326 | AI84: -0.2666712707 | AJ84: 19.13318548 | AK84: -2.870584473e-05 | AL84: 7.989227019e-05 | AM84: -1.440625608 | AN84: 7.836190991 | AO84: 7.912219629 | AP84: 7.674179946 | AQ84: 7.756081705 | AR84: pH
A85: 0x6DAB | B85: pH | C85: 2020-05-16T11:06:12 | D85: 1589627165 | E85: 12.54 | F85: 15.2137 | G85: 33.5918 | H85: 1120 | I85: 49 | J85: 0 | K85: 13.62 | L85: 1.88 | M85: 14.252 | N85: 0.0432 | O85: 7.1234 | P85: 3.457 | Q85: -0.95872 | R85: 2e-05 | S85: -0.980059 | T85: 2.1e-05 | U85: 7.866e-09 | V85: 1.218e-09 | W85: 15.2137 | X85: 288.3637 | Y85: 0.05721687503 | Z85: 33.5918 | AA85: 0.6926673045 | AB85: 0.02709940161 | AC85: 0.5425541266 | AD85: 12.54 | AE85: 0.1414505482 | AF85: -17.24790127 | AG85: 0.1415782088 | AH85: 0.5027882252 | AI85: -0.2666774574 | AJ85: 19.13371331 | AK85: -2.49294476e-05 | AL85: 6.949462999e-05 | AM85: -1.440644205 | AN85: 7.837640069 | AO85: 7.913701095 | AP85: 7.675693438 | AQ85: 7.757598848 | AR85: pH
A86: 0xF404 | B86: pH | C86: 2020-05-16T11:07:16 | D86: 1589627230 | E86: 10.43 | F86: 15.2223 | G86: 33.5945 | H86: 1121 | I86: 49 | J86: 0 | K86: 13.78 | L86: 1.89 | M86: 14.256 | N86: 0.043 | O86: 7.1234 | P86: 3.457 | Q86: -0.958649 | R86: 2.2e-05 | S86: -0.979949 | T86: 4.1e-05 | U86: 7.405e-09 | V86: 1.264e-10 | W86: 15.2223 | X86: 288.3723 | Y86: 0.05721858144 | Z86: 33.5945 | AA86: 0.6927249242 | AB86: 0.02710157977 | AC86: 0.5425992349 | AD86: 10.43 | AE86: 0.1414095582 | AF86: -17.2474178 | AG86: 0.1415156935 | AH86: 0.50279493 | AI86: -0.2666813613 | AJ86: 19.13426668 | AK86: -2.073537946e-05 | AL86: 5.790711541e-05 | AM86: -1.440664393 | AN86: 7.838906789 | AO86: 7.915004247 | AP86: 7.677023516 | AQ86: 7.758932756 | AR86: pH
A87: 0x1FF7 | B87: pH | C87: 2020-05-16T11:08:37 | D87: 1589627311 | E87: 7.65 | F87: 15.233 | G87: 33.5918 | H87: 1122 | I87: 49 | J87: 0 | K87: 14 | L87: 1.89 | M87: 14.26 | N87: 0.043 | O87: 7.1234 | P87: 3.458 | Q87: -0.958614 | R87: 2.2e-05 | S87: -0.979893 | T87: 2.2e-05 | U87: 7.261e-09 | V87: 1.417e-09 | W87: 15.233 | X87: 288.383 | Y87: 0.05722070452 | Z87: 33.5918 | AA87: 0.6926673045 | AB87: 0.02709940161 | AC87: 0.5425541266 | AD87: 7.65 | AE87: 0.141341563 | AF87: -17.2468162 | AG87: 0.1414193583 | AH87: 0.5028032728 | AI87: -0.2666920202 | AJ87: 19.13495492 | AK87: -1.520914271e-05 | AL87: 4.257482342e-05 | AM87: -1.440690425 | AN87: 7.839473767 | AO87: 7.915613159 | AP87: 7.677663787 | AQ87: 7.759577792 | AR87: pH
A88: 0x04BC | B88: pH | C88: 2020-05-16T11:09:51 | D88: 1589627385 | E88: 4.03 | F88: 15.2316 | G88: 33.5919 | H88: 1123 | I88: 49 | J88: 0 | K88: 14.14 | L88: 1.9 | M88: 14.276 | N88: 0.043 | O88: 7.1234 | P88: 3.458 | Q88: -0.957802 | R88: 3.3e-05 | S88: -0.979246 | T88: 6.5e-05 | U88: 9.09e-09 | V88: 9.569e-10 | W88: 15.2316 | X88: 288.3816 | Y88: 0.05722042673 | Z88: 33.5919 | AA88: 0.6926694385 | AB88: 0.02709948228 | AC88: 0.5425557973 | AD88: 4.03 | AE88: 0.1413497458 | AF88: -17.24689492 | AG88: 0.1413907256 | AH88: 0.5028021812 | AI88: -0.2666908681 | AJ88: 19.13486488 | AK88: -8.012098917e-06 | AL88: 2.249841411e-05 | AM88: -1.440709102 | AN88: 7.853894226 | AO88: 7.930047969 | AP88: 7.691931907 | AQ88: 7.773845288 | AR88: pH
A89: <EOP> : 18340.025 Sat May 16 11:21:45 2020
A90: H | B90: Datalogger Serial Num | C90: SN:0850
A91: H | B91: Application Name | C91: APF_MAIN.C
A92: H | B92: App Build Date | C92: Apr 30 2019 | D92: 10:48:38
A93: H | B93: Power Up Time (GMT) | C93: 05/16/2020 11:21:35
A94: H | B94: Current Time (GMT) | C94: 05/16/2020 11:21:49
A95: H | B95: Alarm Time (GMT) | C95: 05/16/2020 21:21:40
A96: H | B96: Power Active Timeout | C96: 1900-01-10
A97: H | B97: Persistor CF2-1M Info | C97: S/N:15002 - BIOS:4.03 - PicoDOS:4.03
A98: H | B98: Compact FLASH Size | C98: 256614400
A99: H | B99: Compact FLASH Left | C99: 0.974
A100: H | B100: Power Cycle Counter | C100: 1900-02-19
A101: H | B101: System Reset Counter | C101: 1900-02-19
A102: H | B102: System Error Counter | C102: 0
A103: H | B103: Last System Error | C103: 0
A104: H | B104: Last System ErrorTime | C104: 01/01/1970 00:00:00
A105: H | B105: DURA Error Counter | C105: 0
A106: H | B106: Last DURA Error | C106: 0
A107: H | B107: Last DURA Error Time | C107: 01/01/1970 00:00:00
A108: H | B108: DURA Sample Counter | C108: 1124
A109: H | B109: Last Sample Rec. Time | C109: 05/16/2020 11:09:51
A110: H | B110: AtoD Reads per Sample | C110: 10
A111: H | B111: AtoD Reading Delay | C111: 100
A112: H | B112: Samps per AtoD Recal | C112: 250
A113: # No error records to log.
A115: <EOT>

Sheet pHcyc24
AE4: 2.53325E-12x3 - 5.63616E-09x2 - 2.95642E-06x + 3.46442E-05
A8: Profile: 18340.024 Mon May 11 02:16:13 2020
A9: H | B9: Datalogger Serial Num | C9: SN:0850
A10: H | B10: Application Name | C10: APF_MAIN.C
A11: H | B11: App Build Date | C11: Apr 30 2019 | D11: 10:48:38
A12: H | B12: Power Up Time (GMT) | C12: 05/11/2020 02:15:45 | W12: <----- | AE12: -1.57252E-18x5 + 7.57486E-15x4 - 9.81276E-12x3 + 1.81040E-09x2 - 1.66482E-06x + 1.11359E-04
A13: H | B13: Current Time (GMT) | C13: 05/11/2020 02:16:18 | W13: <-----
A14: H | B14: Alarm Time (GMT) | C14: 05/11/2020 12:16:17 | W14: <----- | X14: DuraFET | AE14: Cal values here
A15: H | B15: Power Active Timeout | C15: 10 | W15: <----- | X15: Data | AJ15: Josh
A16: H | B16: Persistor CF2-1M Info | C16: S/N:15002 - BIOS:4.03 - PicoDOS:4.03 | W16: <----- | X16: to the | AA16: Control + Shift + T - import CTD data from .log file | AE16: k0 | AF16: -1.4255 | AH16: -1.427 | AJ16: -1.4255 | AK16: =k0
A17: H | B17: Compact FLASH Size | C17: 256614400 | W17: <----- | X17: Left | AA17: Control + Shift + F to import DuraFET data from .csv file | AE17: k2 | AF17: -0.001 | AH17: -0.0009 | AJ17: -0.001 | AK17: =k2*T
A18: H | B18: Compact FLASH Left | C18: 0.975 | W18: <----- | AE18: P | AF18: 5.6021e-06 | AH18: -1.66482e-06 | AJ18: 5.6021e-06 | AK18: =k3*P^1
A19: H | B19: Power Cycle Counter | C19: 47 | W19: <----- | AA19: Temperature/Salinity Selection | AE19: P^2 | AF19: -4.8057e-09 | AH19: 1.8104e-09 | AJ19: -4.8057e-09 | AK19: =k4*P^2
A20: H | B20: System Reset Counter | C20: 47 | W20: <----- | AA20: 1: T =DFET (Column C), Salinity input manual | AE20: P^3 | AH20: -9.81276e-12
A21: H | B21: System Error Counter | C21: 0 | W21: <----- | AA21: 2: CTD (load CTD data with Control Shift T) | AE21: P^4 | AH21: 7.57486e-15
A22: H | B22: Last System Error | C22: 0 | W22: <----- | AA22: 2 | AE22: P^5 | AH22: -1.57252e-18
A23: H | B23: Last System ErrorTime | C23: 01/01/1970 00:00:00 | W23: <----- | AE23: P^6
A24: H | B24: DURA Error Counter | C24: 0 | W24: <-----
A25: H | B25: Last DURA Error | C25: 0 | W25: <-----
A26: H | B26: Last DURA Error Time | C26: 01/01/1970 00:00:00 | W26: <-----
A27: H | B27: DURA Sample Counter | C27: 1022 | W27: <----- | AA27: Calibration data
A28: H | B28: Last Sample Rec. Time | C28: 05/06/2020 05:02:11 | W28: <-----
A29: H | B29: AtoD Reads per Sample | C29: 10 | W29: <-----
A30: H | B30: AtoD Reading Delay | C30: 1900-04-09
A31: H | B31: Samps per AtoD Recal | C31: 1900-09-06 | Z31: Don't erase this first row of formulas!!!! Subsequent rows can be erased or copied down as needed from colum W on.
A32: # No error records to log. | W32: T/C | X32: K | Y32: S(T) | Z32: Salinity | AA32: IonicStrength | AB32: SO4(tot) | AC32: mCl | AD32: Press(dbar) | AE32: KHSO4 | AF32: deltaV HSO4 | AG32: KHSO4 TPS | AH32: DebyeHuckelConst | AI32: log(γHγCl) | AJ32: deltaV HCl | AK32: ThermPress | AL32: f(P) | AM32: k0+k2T+f(P) | AN32: pHtot in situ | AO32: pHfree in situ | AP32: pH25Total | AQ32: pH20Total | AR32: Date + Time
A33: 0xE631 | B33: pH | C33: 2020-05-11T02:23:47 | D33: 1589163821 | E33: 1599.49 | F33: 2.6229 | G33: 34.5576 | H33: 1022 | I33: 47 | J33: 0 | K33: 2.72 | L33: 0.9 | M33: 14.288 | N33: 0.0448 | O33: 7.1234 | P33: 3.43 | Q33: -0.989237 | R33: 3.7e-05 | S33: -0.982947 | T33: 3e-05 | U33: 8.404e-09 | V33: 5.165e-10 | W33: =F33 -> 2.6229 | X33: =W33+273.15 -> 275.7729 | Y33: =8.31451*X33/96487*LN(10) -> 0.05471861943 | Z33: =G33 -> 34.5576 | AA33: =19.924 * Z33/ (1000 - 1.005 * Z33) -> 0.7132987653 | AB33: =(0.14 / 96.062) * (Z33 / 1.80655) -> 0.02787853825 | AC33: =0.99889/35.453*Z33/1.80655*(1 + 0.00106 * Z33) -> 0.5587048966 | AD33: =E33 -> 1599.49 | AE33: =EXP(-4276.1 /X33 + 141.328 - 23.093 * LN(X33) + (-13856 / X33 + 324.57 - 47.986 * LN(X33)) * AA33^ 0.5 + (35474 / X33 - 771.54 + 114.723 * LN(X33)) * AA33- 2698 / X33 * AA33 ^ 1.5 + 1776 / X33*AA33 ^ 2 + LN(1 - 0.001005 * Z33)) -> 0.2498090407 | AF33: =-18.03 + 0.0466 * W33 + 0.000316 *W33 ^ 2 -> -17.90559891 | AG33: =EXP((-AF33) * (AD33 / 10) / (8.31451 * 10 * X33))*AE33 -> 0.2830440258 | AH33: =(0.00000343*W33^2 + 0.00067524*W33 + 0.49172143) -> 0.493516114 | AI33: =2*(-AH33*SQRT(AA33)/(1+1.394*SQRT(AA33))+(0.08885-0.000111*W33)*AA33) -> -0.2565244932 | AJ33: =17.85 + 0.1044 * W33 - 0.001316 * W33 ^ 2 -> 18.1147772 | AK33: =-AJ33 * 0.0242 / (23061 * 1.01) *AD33 / 10 -> -0.003010442819 | AL33: =AF$18*AD33+AF$19*AD33^2+AF$20*AD33^3+AF$21*AD33^4+AF$22*AD33^5+AF$23*AD33^6 -> -0.003334247419 | AM33: =$AF$16+$AF$17*(W33)+AL33 -> -1.431457147 | AN33: =AO33-LOG(1+AB33/AG33) -> 7.609961681 | AO33: =-LOG10((10^(-((Q33-AM33-AK33)/Y33+(LOG(AC33)+AI33))))/(1+0.0016*Z33)) -> 7.650759929 | AP33: =((AN33 + 0.000035833 * AD33 - 0.01703 * (25 - W33) + 0.00004453 * (25 - W33) ^ 2) ) -> 7.308491905 | AQ33: =((AN33 + 0.000035833 * AD33 - 0.01703 * (20 - W33) + 0.00004453 * (20 - W33) ^ 2) ) -> 7.384790632 | AR33: =B33 -> pH
A34: 0x704E | B34: pH | C34: 2020-05-11T02:39:42 | D34: 1589164777 | E34: 1499.88 | F34: 2.7585 | G34: 34.5452 | H34: 1023 | I34: 47 | J34: 0 | K34: 2.81 | L34: 0.88 | M34: 14.48 | N34: 0.0442 | O34: 7.1234 | P34: 3.43 | Q34: -0.988184 | R34: 2.2e-05 | S34: -0.982006 | T34: 4e-05 | U34: 6.918e-09 | V34: 8.112e-10 | W34: =F34 -> 2.7585 | X34: =W34+273.15 -> 275.9085 | Y34: =8.31451*X34/96487*LN(10) -> 0.05474552506 | Z34: =G34 -> 34.5452 | AA34: 0.713033613 | AB34: 0.02786853483 | AC34: =0.99889/35.453*Z34/1.80655*(1 + 0.00106 * Z34) -> 0.5584973398 | AD34: =E34 -> 1499.88 | AE34: 0.2481353844 | AF34: =-18.03 + 0.0466 * W34 + 0.000316 *W34 ^ 2 -> -17.89904935 | AG34: =EXP((-AF34) * (AD34 / 10) / (8.31451 * 10 * X34))*AE34 -> 0.2789412379 | AH34: 0.4936101795 | AI34: -0.2566332008 | AJ34: =17.85 + 0.1044 * W34 - 0.001316 * W34 ^ 2 -> 18.12797353 | AK34: =-AJ34 * 0.0242 / (23061 * 1.01) *AD34 / 10 -> -0.002825020664 | AL34: -0.002408617269 | AM34: -1.430667117 | AN34: =AO34-LOG(1+AB34/AG34) -> 7.606542798 | AO34: =-LOG10((10^(-((Q34-AM34-AK34)/Y34+(LOG(AC34)+AI34))))/(1+0.0016*Z34)) -> 7.647899263 | AP34: =((AN34 + 0.000035833 * AD34 - 0.01703 * (25 - W34) + 0.00004453 * (25 - W34) ^ 2) ) -> 7.303543546 | AQ34: =((AN34 + 0.000035833 * AD34 - 0.01703 * (20 - W34) + 0.00004453 * (20 - W34) ^ 2) ) -> 7.379902656 | AR34: =B34 -> pH
A35: 0x9ADE | B35: pH | C35: 2020-05-11T02:59:30 | D35: 1589165963 | E35: 1400.05 | F35: 2.91 | G35: 34.5355 | H35: 1024 | I35: 47 | J35: 0 | K35: 2.91 | L35: 0.89 | M35: 14.396 | N35: 0.0446 | O35: 7.1234 | P35: 3.43 | Q35: -0.987949 | R35: 2.7e-05 | S35: -0.981833 | T35: 5.6e-05 | U35: 8.699e-09 | V35: 1.038e-09 | W35: 2.91 | X35: 276.06 | Y35: 0.05477558556 | Z35: 34.5355 | AA35: 0.7128262003 | AB35: 0.02786070959 | AC35: 0.5583349804 | AD35: 1400.05 | AE35: 0.2463107095 | AF35: -17.89171808 | AG35: 0.2747129196 | AH35: 0.493715424 | AI35: -0.2567499561 | AJ35: 18.14265998 | AK35: -0.002639127449 | AL35: -0.001576624705 | AM35: -1.429986625 | AN35: 7.589707117 | AO35: 7.631659107 | AP35: 7.285411628 | AQ35: 7.361838201 | AR35: pH
A36: 0x0654 | B36: pH | C36: 2020-05-11T03:17:46 | D36: 1589167060 | E36: 1299.8 | F36: 3.1292 | G36: 34.5148 | H36: 1025 | I36: 47 | J36: 0 | K36: 3.04 | L36: 0.9 | M36: 14.428 | N36: 0.0444 | O36: 7.1234 | P36: 3.431 | Q36: -0.987661 | R36: 2e-05 | S36: -0.98141 | T36: 2e-05 | U36: 8.721e-09 | V36: 1.066e-09 | W36: 3.1292 | X36: 276.2792 | Y36: 0.05481907903 | Z36: 34.5148 | AA36: 0.7123835913 | AB36: 0.02784401034 | AC36: 0.5579885126 | AD36: 1299.8 | AE36: 0.2436567104 | AF36: -17.88108504 | AG36: 0.269599678 | AH36: 0.4938679772 | AI36: -0.256926669 | AJ36: 18.16380235 | AK36: -0.002453009084 | AL36: -0.0008375246482 | AM36: -1.429466725 | AN36: 7.574447429 | AO36: 7.617132817 | AP36: 7.269863557 | AQ36: 7.34638774 | AR36: pH
A37: 0x8206 | B37: pH | C37: 2020-05-11T03:36:31 | D37: 1589168185 | E37: 1199.84 | F37: 3.38 | G37: 34.4913 | H37: 1026 | I37: 47 | J37: 0 | K37: 3.23 | L37: 0.92 | M37: 14.532 | N37: 0.044 | O37: 7.1234 | P37: 3.431 | Q37: -0.987477 | R37: 3.1e-05 | S37: -0.981123 | T37: 1.8e-05 | U37: 7.749e-09 | V37: 1.613e-09 | W37: 3.38 | X37: 276.53 | Y37: 0.05486884255 | Z37: 34.4913 | AA37: 0.7118811355 | AB37: 0.02782505227 | AC37: 0.5575951966 | AD37: 1199.84 | AE37: 0.2406665801 | AF37: -17.86888189 | AG37: 0.2641880021 | AH37: 0.4940429269 | AI37: -0.2571288218 | AJ37: 18.18783749 | AK37: -0.002267358836 | AL37: -0.0001967390702 | AM37: -1.429076739 | AN37: 7.55863207 | AO37: 7.602121246 | AP37: 7.254251745 | AQ37: 7.330887609 | AR37: pH
A38: 0xB69C | B38: pH | C38: 2020-05-11T03:56:53 | D38: 1589169407 | E38: 1099.98 | F38: 3.6663 | G38: 34.4673 | H38: 1027 | I38: 47 | J38: 0 | K38: 3.45 | L38: 0.94 | M38: 14.48 | N38: 0.0442 | O38: 7.1234 | P38: 3.431 | Q38: -0.9873 | R38: 1.9e-05 | S38: -0.98094 | T38: 1.1e-05 | U38: 8.487e-09 | V38: 1.666e-09 | W38: 3.6663 | X38: 276.8163 | Y38: 0.05492564995 | Z38: 34.4673 | AA38: 0.7113680146 | AB38: 0.02780569083 | AC38: 0.5571935311 | AD38: 1099.98 | AE38: 0.2373290947 | AF38: -17.85490283 | AG38: 0.258470137 | AH38: 0.4942431676 | AI38: -0.2573566099 | AJ38: 18.21507237 | AK38: -0.002081764251 | AL38: 0.0003475124069 | AM38: -1.428818788 | AN38: 7.543970785 | AO38: 7.588345091 | AP38: 7.240340252 | AQ38: 7.317103605 | AR38: pH
A39: 0xBE6D | B39: pH | C39: 2020-05-11T04:16:55 | D39: 1589170609 | E39: 1000.05 | F39: 3.9937 | G39: 34.443 | H39: 1028 | I39: 47 | J39: 0 | K39: 3.71 | L39: 0.95 | M39: 14.56 | N39: 0.0442 | O39: 7.1234 | P39: 3.432 | Q39: -0.987005 | R39: 1.6e-05 | S39: -0.980732 | T39: 1.8e-05 | U39: 7.664e-09 | V39: 1.213e-09 | W39: 3.9937 | X39: 277.1437 | Y39: 0.05499061237 | Z39: 34.443 | AA39: 0.7108485059 | AB39: 0.02778608737 | AC39: 0.5567868642 | AD39: 1000.05 | AE39: 0.2336050409 | AF39: -17.83885349 | AG39: 0.2524089848 | AH39: 0.4944728433 | AI39: -0.2576138746 | AJ39: 18.24595255 | AK39: -0.001895850606 | AL39: 0.000796199523 | AM39: -1.4286975 | AN39: 7.53263626 | AO39: 7.577991943 | AP39: 7.230383277 | AQ39: 7.307292421 | AR39: pH
A40: 0x2295 | B40: pH | C40: 2020-05-11T04:26:18 | D40: 1589171171 | E40: 948.75 | F40: 4.112 | G40: 34.4307 | H40: 1029 | I40: 47 | J40: 0 | K40: 3.91 | L40: 0.98 | M40: 14.324 | N40: 0.0446 | O40: 7.1234 | P40: 3.432 | Q40: -0.986113 | R40: 3.2e-05 | S40: -0.979696 | T40: 2.2e-05 | U40: 8.766e-09 | V40: 1.227e-09 | W40: 4.112 | X40: 277.262 | Y40: 0.05501408535 | Z40: 34.4307 | AA40: 0.7105855546 | AB40: 0.02777616463 | AC40: 0.5565810278 | AD40: 948.75 | AE40: 0.2322563005 | AF40: -17.8330377 | AG40: 0.2499432118 | AH40: 0.4945560132 | AI40: -0.2577108987 | AJ40: 18.25704116 | AK40: -0.001799691394 | AL40: 0.0009892541536 | AM40: -1.428622746 | AN40: 7.541626898 | AO40: 7.587391734 | AP40: 7.239329637 | AQ40: 7.31629146 | AR40: pH
A41: 0x153C | B41: pH | C41: 2020-05-11T04:37:20 | D41: 1589171833 | E41: 894.72 | F41: 4.2677 | G41: 34.4142 | H41: 1030 | I41: 47 | J41: 0 | K41: 4.1 | L41: 1.01 | M41: 14.36 | N41: 0.0444 | O41: 7.1234 | P41: 3.433 | Q41: -0.985734 | R41: 3.3e-05 | S41: -0.979289 | T41: 2.7e-05 | U41: 8.155e-09 | V41: 2.567e-10 | W41: 4.2677 | X41: 277.4177 | Y41: 0.05504497921 | Z41: 34.4142 | AA41: 0.7102328258 | AB41: 0.02776285364 | AC41: 0.5563049138 | AD41: 894.72 | AE41: 0.2304946676 | AF41: -17.82536979 | AG41: 0.2469959122 | AH41: 0.4946656232 | AI41: -0.2578390029 | AJ41: 18.27157923 | AK41: -0.001698552939 | AL41: 0.00116523331 | AM41: -1.428602467 | AN41: 7.540922163 | AO41: 7.587183954 | AP41: 7.239051848 | AQ41: 7.316083005 | AR41: pH
A42: 0x891A | B42: pH | C42: 2020-05-11T04:49:23 | D42: 1589172556 | E42: 822.08 | F42: 4.5753 | G42: 34.3778 | H42: 1031 | I42: 47 | J42: 0 | K42: 4.29 | L42: 1.03 | M42: 14.34 | N42: 0.0446 | O42: 7.1234 | P42: 3.433 | Q42: -0.985428 | R42: 1.5e-05 | S42: -0.979014 | T42: 2.8e-05 | U42: 6.803e-09 | V42: 1.053e-09 | W42: 4.5753 | X42: 277.7253 | Y42: 0.05510601294 | Z42: 34.3778 | AA42: 0.7094547274 | AB42: 0.02773348879 | AC42: 0.5556958214 | AD42: 822.08 | AE42: 0.2270426331 | AF42: -17.81017608 | AG42: 0.2419046854 | AH42: 0.494882657 | AI42: -0.2580965256 | AJ42: 18.300113 | AK42: -0.001563089013 | AL42: 0.001357607693 | AM42: -1.428717692 | AN42: 7.535530059 | AO42: 7.582667157 | AP42: 7.235731518 | AQ42: 7.31289965 | AR42: pH
A43: 0x4851 | B43: pH | C43: 2020-05-11T04:55:21 | D43: 1589172914 | E43: 784.43 | F43: 4.6934 | G43: 34.3644 | H43: 1032 | I43: 47 | J43: 0 | K43: 4.48 | L43: 1.04 | M43: 14.328 | N43: 0.0444 | O43: 7.1234 | P43: 3.433 | Q43: -0.98524 | R43: 2.4e-05 | S43: -0.978816 | T43: 2.6e-05 | U43: 8.121e-09 | V43: 4.876e-10 | W43: 4.6934 | X43: 277.8434 | Y43: 0.05512944624 | Z43: 34.3644 | AA43: 0.7091682994 | AB43: 0.02772267865 | AC43: 0.555471606 | AD43: 784.43 | AE43: 0.2257385971 | AF43: -17.80432671 | AG43: 0.2398069394 | AH43: 0.4949661575 | AI43: -0.2581948085 | AJ43: 18.31100211 | AK43: -0.001492389427 | AL43: 0.00143736188 | AM43: -1.428756038 | AN43: 7.534266578 | AO43: 7.581776701 | AP43: 7.234915962 | AQ43: 7.312136683 | AR43: pH
A44: 0x60DE | B44: pH | C44: 2020-05-11T05:01:19 | D44: 1589173272 | E44: 750.75 | F44: 4.758 | G44: 34.3458 | H44: 1033 | I44: 47 | J44: 0 | K44: 4.64 | L44: 1.06 | M44: 14.328 | N44: 0.0446 | O44: 7.1234 | P44: 3.434 | Q44: -0.985093 | R44: 2.6e-05 | S44: -0.978714 | T44: 3.5e-05 | U44: 6.84e-09 | V44: 1.06e-09 | W44: 4.758 | X44: 277.908 | Y44: 0.05514226411 | Z44: 34.3458 | AA44: 0.7087707335 | AB44: 0.02770767353 | AC44: 0.5551603916 | AD44: 750.75 | AE44: 0.2249634877 | AF44: -17.80112341 | AG44: 0.2383583032 | AH44: 0.4950118722 | AI44: -0.2582611597 | AJ44: 18.31694285 | AK44: -0.001428776135 | AL44: 0.001497161209 | AM44: -1.428760839 | AN44: 7.533418561 | AO44: 7.581177619 | AP44: 7.233844584 | AQ44: 7.311094072 | AR44: pH
A45: 0x7C0B | B45: pH | C45: 2020-05-11T05:13:18 | D45: 1589173991 | E45: 692.28 | F45: 4.996 | G45: 34.3162 | H45: 1034 | I45: 47 | J45: 0 | K45: 4.8 | L45: 1.09 | M45: 14.308 | N45: 0.0444 | O45: 7.1234 | P45: 3.434 | Q45: -0.984801 | R45: 1.6e-05 | S45: -0.978604 | T45: 3.7e-05 | U45: 8.252e-09 | V45: 1.503e-09 | W45: 4.996 | X45: 278.146 | Y45: 0.05518948787 | Z45: 34.3162 | AA45: 0.7081380798 | AB45: 0.02768379442 | AC45: 0.5546651493 | AD45: 692.28 | AE45: 0.2223620571 | AF45: -17.78929903 | AG45: 0.2345241001 | AH45: 0.4951805419 | AI45: -0.2584621896 | AJ45: 18.33873502 | AK45: -0.00131906749 | AL45: 0.001575082382 | AM45: -1.428920918 | AN45: 7.531408 | AO45: 7.579866285 | AP45: 7.233365475 | AQ45: 7.310720944 | AR45: pH
A46: 0x3D04 | B46: pH | C46: 2020-05-11T05:24:17 | D46: 1589174650 | E46: 636.75 | F46: 5.2064 | G46: 34.2761 | H46: 1035 | I46: 47 | J46: 0 | K46: 4.99 | L46: 1.12 | M46: 14.376 | N46: 0.0442 | O46: 7.1234 | P46: 3.435 | Q46: -0.984659 | R46: 2.5e-05 | S46: -0.978547 | T46: 1.4e-05 | U46: 8.112e-09 | V46: 1.29e-09 | W46: 5.2064 | X46: 278.3564 | Y46: 0.05523123525 | Z46: 34.2761 | AA46: 0.7072810672 | AB46: 0.02765144468 | AC46: 0.553994276 | AD46: 636.75 | AE46: 0.220016403 | AF46: -17.77881607 | AG46: 0.2310458524 | AH46: 0.4953299752 | AI46: -0.2586554078 | AJ46: 18.35787587 | AK46: -0.001214527182 | AL46: 0.001618663407 | AM46: -1.429087737 | AN46: 7.52762529 | AO46: 7.576719004 | AP46: 7.230803202 | AQ46: 7.308252362 | AR46: pH
A47: 0xB5E9 | B47: pH | C47: 2020-05-11T05:36:16 | D47: 1589175369 | E47: 572.59 | F47: 5.4737 | G47: 34.2414 | H47: 1036 | I47: 47 | J47: 0 | K47: 5.19 | L47: 1.15 | M47: 14.32 | N47: 0.0444 | O47: 7.1234 | P47: 3.436 | Q47: -0.98451 | R47: 2.6e-05 | S47: -0.978787 | T47: 2.3e-05 | U47: 7.917e-09 | V47: -4.312e-10 | W47: 5.4737 | X47: 278.6237 | Y47: 0.05528427269 | Z47: 34.2414 | AA47: 0.7065395204 | AB47: 0.02762345127 | AC47: 0.5534137876 | AD47: 572.59 | AE47: 0.217173328 | AF47: -17.76545778 | AG47: 0.2269219179 | AH47: 0.4955202588 | AI47: -0.258882946 | AJ47: 18.38202509 | AK47: -0.001093586071 | AL47: 0.001632112962 | AM47: -1.429341587 | AN47: 7.52348306 | AO47: 7.573371815 | AP47: 7.228446026 | AQ47: 7.306014214 | AR47: pH
A48: 0x6EB5 | B48: pH | C48: 2020-05-11T05:42:15 | D48: 1589175728 | E48: 539.33 | F48: 5.6323 | G48: 34.2222 | H48: 1037 | I48: 47 | J48: 0 | K48: 5.37 | L48: 1.14 | M48: 14.344 | N48: 0.0442 | O48: 7.1234 | P48: 3.436 | Q48: -0.984377 | R48: 3.6e-05 | S48: -0.978863 | T48: 3.9e-05 | U48: 7.713e-09 | V48: 1.056e-09 | W48: 5.6323 | X48: 278.7823 | Y48: 0.05531574196 | Z48: 34.2222 | AA48: 0.7061292352 | AB48: 0.02760796211 | AC48: 0.5530926123 | AD48: 539.33 | AE48: 0.215516746 | AF48: -17.75751041 | AG48: 0.2246078936 | AH48: 0.4956333935 | AI48: -0.2590164845 | AJ48: 18.39626491 | AK48: -0.001030860953 | AL48: 0.00162351372 | AM48: -1.429508786 | AN48: 7.522330414 | AO48: 7.572677784 | AP48: 7.228527845 | AQ48: 7.306166658 | AR48: pH
A49: 0xE75B | B49: pH | C49: 2020-05-11T05:53:14 | D49: 1589176387 | E49: 486.51 | F49: 5.8697 | G49: 34.1929 | H49: 1038 | I49: 47 | J49: 0 | K49: 5.56 | L49: 1.15 | M49: 14.392 | N49: 0.0442 | O49: 7.1234 | P49: 3.437 | Q49: -0.984123 | R49: 2.6e-05 | S49: -0.9791 | T49: 2.8e-05 | U49: 8.905e-09 | V49: 2.654e-09 | W49: 5.8697 | X49: 279.0197 | Y49: 0.05536284666 | Z49: 34.1929 | AA49: 0.7055031544 | AB49: 0.02758432502 | AC49: 0.5526025089 | AD49: 486.51 | AE49: 0.2130648791 | AF49: -17.74558471 | AG49: 0.2211433373 | AH49: 0.4958030613 | AI49: -0.2592170762 | AJ49: 18.41745603 | AK49: -0.0009309733941 | AL49: 0.001588007022 | AM49: -1.429781693 | AN49: 7.521873129 | AO49: 7.572923357 | AP49: 7.229813804 | AQ49: 7.307558332 | AR49: pH
A50: 0xA231 | B50: pH | C50: 2020-05-11T06:00:13 | D50: 1589176806 | E50: 447.89 | F50: 6.1564 | G50: 34.1732 | H50: 1039 | I50: 47 | J50: 0 | K50: 5.77 | L50: 1.16 | M50: 14.32 | N50: 0.0444 | O50: 7.1234 | P50: 3.437 | Q50: -0.983754 | R50: 2.1e-05 | S50: -0.979357 | T50: 3.1e-05 | U50: 8.334e-09 | V50: -8.832e-10 | W50: 6.1564 | X50: 279.3064 | Y50: 0.05541973343 | Z50: 34.1732 | AA50: 0.7050822274 | AB50: 0.02756843251 | AC50: 0.5522730015 | AD50: 447.89 | AE50: 0.210234486 | AF50: -17.73113496 | AG50: 0.217548256 | AH50: 0.4960084789 | AI50: -0.2594424001 | AJ50: 18.4428501 | AK50: -0.0008582528592 | AL50: 0.001545074948 | AM50: -1.430111325 | AN50: 7.523622631 | AO50: 7.575439906 | AP50: 7.234577134 | AQ50: 7.312449329 | AR50: pH
A51: 0x9065 | B51: pH | C51: 2020-05-11T06:11:13 | D51: 1589177466 | E51: 394.71 | F51: 6.4717 | G51: 34.1181 | H51: 1040 | I51: 47 | J51: 0 | K51: 6.03 | L51: 1.18 | M51: 14.4 | N51: 0.0442 | O51: 7.1234 | P51: 3.438 | Q51: -0.982086 | R51: 2.1e-05 | S51: -0.97865 | T51: 3.1e-05 | U51: 7.51e-09 | V51: 2.933e-09 | W51: 6.4717 | X51: 279.6217 | Y51: 0.05548229498 | Z51: 34.1181 | AA51: 0.7039050053 | AB51: 0.02752398187 | AC51: 0.5513514522 | AD51: 394.71 | AE51: 0.207006668 | AF51: -17.71518378 | AG51: 0.2133271154 | AH51: 0.4962350391 | AI51: -0.2597267498 | AJ51: 18.47052758 | AK51: -0.0007574836905 | AL51: 0.00146249613 | AM51: -1.430509204 | AN51: 7.548010824 | AO51: 7.600713392 | AP51: 7.261904574 | AQ51: 7.339917172 | AR51: pH
A52: 0x5EB2 | B52: pH | C52: 2020-05-11T06:18:10 | D52: 1589177883 | E52: 352.84 | F52: 6.7096 | G52: 34.0794 | H52: 1041 | I52: 47 | J52: 0 | K52: 6.24 | L52: 1.21 | M52: 14.336 | N52: 0.044 | O52: 7.1234 | P52: 3.439 | Q52: -0.981296 | R52: 3e-05 | S52: -0.97879 | T52: 2.1e-05 | U52: 8.128e-09 | V52: 1.167e-10 | W52: 6.7096 | X52: 279.8596 | Y52: 0.05552949889 | Z52: 34.0794 | AA52: 0.703078253 | AB52: 0.02749276154 | AC52: 0.5507042535 | AD52: 352.84 | AE52: 0.2046290582 | AF52: -17.70310672 | AG52: 0.2101965542 | AH52: 0.4964064346 | AI52: -0.2599381819 | AJ52: 18.49123759 | AK52: -0.0006778906574 | AL52: 0.001378354222 | AM52: -1.430831246 | AN52: 7.558293002 | AO52: 7.61167707 | AP52: 7.274347815 | AQ52: 7.35246635 | AR52: pH
A53: 0x216B | B53: pH | C53: 2020-05-11T06:24:09 | D53: 1589178242 | E53: 317.15 | F53: 6.9819 | G53: 34.0847 | H53: 1042 | I53: 47 | J53: 0 | K53: 6.46 | L53: 1.21 | M53: 14.36 | N53: 0.0442 | O53: 7.1234 | P53: 3.439 | Q53: -0.980482 | R53: 1.4e-05 | S53: -0.978685 | T53: 2.7e-05 | U53: 8.073e-09 | V53: -6.936e-10 | W53: 6.9819 | X53: 280.1319 | Y53: 0.05558352842 | Z53: 34.0847 | AA53: 0.7031914736 | AB53: 0.02749703719 | AC53: 0.550792885 | AD53: 317.15 | AE53: 0.2021954532 | AF53: -17.68923943 | AG53: 0.2071247715 | AH53: 0.4966030901 | AI53: -0.2601270501 | AJ53: 18.5147594 | AK53: -0.0006100966565 | AL53: 0.001293328898 | AM53: -1.431188571 | AN53: 7.569397849 | AO53: 7.623534185 | AP53: 7.288370792 | AQ53: 7.366610583 | AR53: pH
A54: 0xAAF2 | B54: pH | C54: 2020-05-11T06:30:08 | D54: 1589178601 | E54: 285.16 | F54: 7.4636 | G54: 34.0694 | H54: 1043 | I54: 47 | J54: 0 | K54: 6.67 | L54: 1.24 | M54: 14.368 | N54: 0.044 | O54: 7.1234 | P54: 3.44 | Q54: -0.979718 | R54: 1.8e-05 | S54: -0.979066 | T54: 1.5e-05 | U54: 7.146e-09 | V54: 1.178e-09 | W54: 7.4636 | X54: 280.6136 | Y54: 0.05567910692 | Z54: 34.0694 | AA54: 0.7028646328 | AB54: 0.02748469428 | AC54: 0.5505370267 | AD54: 285.16 | AE54: 0.1978621215 | AF54: -17.66459336 | AG54: 0.2021803549 | AH54: 0.4969522205 | AI54: -0.260488565 | AJ54: 18.55589163 | AK54: -0.0005497766492 | AL54: 0.001206713451 | AM54: -1.431756887 | AN54: 7.576511871 | AO54: 7.631867825 | AP54: 7.30177922 | AQ54: 7.380233511 | AR54: pH
A55: 0x0F20 | B55: pH | C55: 2020-05-11T06:36:07 | D55: 1589178960 | E55: 254.06 | F55: 7.6801 | G55: 34.0644 | H55: 1044 | I55: 47 | J55: 0 | K55: 6.92 | L55: 1.27 | M55: 14.38 | N55: 0.0438 | O55: 7.1234 | P55: 3.441 | Q55: -0.978894 | R55: 2.6e-05 | S55: -0.978823 | T55: 1e-05 | U55: 7.692e-09 | V55: 1.572e-09 | W55: 7.6801 | X55: 280.8301 | Y55: 0.05572206466 | Z55: 34.0644 | AA55: 0.7027578243 | AB55: 0.02748066064 | AC55: 0.5504534146 | AD55: 254.06 | AE55: 0.1959621495 | AF55: -17.65346842 | AG55: 0.1997626071 | AH55: 0.4971096556 | AI55: -0.2606494001 | AJ55: 18.57417958 | AK55: -0.0004902998837 | AL55: 0.00111307849 | AM55: -1.432067022 | AN55: 7.588680438 | AO55: 7.644657267 | AP55: 7.316184335 | AQ55: 7.394735034 | AR55: pH
A56: 0x0511 | B56: pH | C56: 2020-05-11T06:42:06 | D56: 1589179319 | E56: 224.5 | F56: 7.9365 | G56: 34.049 | H56: 1045 | I56: 47 | J56: 0 | K56: 7.18 | L56: 1.27 | M56: 14.384 | N56: 0.044 | O56: 7.1234 | P56: 3.441 | Q56: -0.978145 | R56: 1.6e-05 | S56: -0.979021 | T56: 2.3e-05 | U56: 8.512e-09 | V56: 8.835e-10 | W56: 7.9365 | X56: 281.0865 | Y56: 0.05577293932 | Z56: 34.049 | AA56: 0.7024288613 | AB56: 0.02746823705 | AC56: 0.5501958944 | AD56: 224.5 | AE56: 0.193698578 | AF56: -17.64025488 | AG56: 0.1970087896 | AH56: 0.4972965212 | AI56: -0.2608502449 | AJ56: 18.59567835 | AK56: -0.0004337547336 | AL56: 0.001015462969 | AM56: -1.432421037 | AN56: 7.598893294 | AO56: 7.655579592 | AP56: 7.329311887 | AQ56: 7.407976761 | AR56: pH
A57: 0xD241 | B57: pH | C57: 2020-05-11T06:43:41 | D57: 1589179414 | E57: 217.53 | F57: 8.0013 | G57: 34.0433 | H57: 1046 | I57: 47 | J57: 0 | K57: 7.32 | L57: 1.28 | M57: 14.236 | N57: 0.0442 | O57: 7.1234 | P57: 3.441 | Q57: -0.977826 | R57: 2.4e-05 | S57: -0.979059 | T57: 1.5e-05 | U57: 6.983e-09 | V57: 9.207e-10 | W57: 8.0013 | X57: 281.1513 | Y57: 0.05578579688 | Z57: 34.0433 | AA57: 0.7023071049 | AB57: 0.02746363871 | AC57: 0.5501005805 | AD57: 217.53 | AE57: 0.1931235941 | AF57: -17.63690885 | AG57: 0.1963193156 | AH57: 0.4973438192 | AI57: -0.2609029645 | AJ57: 18.60108434 | AK57: -0.0004204102329 | AL57: 0.0009912224487 | AM57: -1.432510078 | AN57: 7.603780028 | AO57: 7.660643999 | AP57: 7.334954121 | AQ57: 7.41364785 | AR57: pH
A58: 0x2E9B | B58: pH | C58: 2020-05-11T06:50:00 | D58: 1589179793 | E58: 186.64 | F58: 8.4832 | G58: 34.0515 | H58: 1047 | I58: 47 | J58: 0 | K58: 7.6 | L58: 1.31 | M58: 14.352 | N58: 0.044 | O58: 7.1234 | P58: 3.442 | Q58: -0.976881 | R58: 2.2e-05 | S58: -0.979122 | T58: 1.1e-05 | U58: 8.029e-09 | V58: 4.372e-10 | W58: 8.4832 | X58: 281.6332 | Y58: 0.05588141506 | Z58: 34.0515 | AA58: 0.7024822637 | AB58: 0.02747025387 | AC58: 0.5502376991 | AD58: 186.64 | AE58: 0.1891404756 | AF58: -17.61194204 | AG58: 0.1918142682 | AH58: 0.4976964648 | AI58: -0.2612420282 | AJ58: 18.64094056 | AK58: -0.0003614834377 | AL58: 0.0008781718373 | AM58: -1.433105028 | AN58: 7.614835284 | AO58: 7.672962354 | AP58: 7.352390044 | AQ58: 7.431298363 | AR58: pH
A59: 0xCBD0 | B59: pH | C59: 2020-05-11T06:55:59 | D59: 1589180152 | E59: 161.49 | F59: 8.9138 | G59: 34.0521 | H59: 1048 | I59: 47 | J59: 0 | K59: 7.88 | L59: 1.34 | M59: 14.384 | N59: 0.044 | O59: 7.1234 | P59: 3.443 | Q59: -0.976531 | R59: 2e-05 | S59: -0.978922 | T59: 1.5e-05 | U59: 8.423e-09 | V59: 1.207e-09 | W59: 8.9138 | X59: 282.0638 | Y59: 0.05596685434 | Z59: 34.0521 | AA59: 0.7024950803 | AB59: 0.0274707379 | AC59: 0.5502477323 | AD59: 161.49 | AE59: 0.1856404902 | AF59: -17.58950888 | AG59: 0.187902637 | AH59: 0.4980129178 | AI59: -0.261553186 | AJ59: 18.67603685 | AK59: -0.0003133619153 | AL59: 0.0007793551821 | AM59: -1.433634445 | AN59: 7.615780418 | AO59: 7.675039557 | AP59: 7.359141946 | AQ59: 7.438242011 | AR59: pH
A60: 0x5AC2 | B60: pH | C60: 2020-05-11T07:01:58 | D60: 1589180511 | E60: 133.91 | F60: 9.1255 | G60: 34.0149 | H60: 1049 | I60: 47 | J60: 0 | K60: 8.17 | L60: 1.35 | M60: 14.404 | N60: 0.0438 | O60: 7.1234 | P60: 3.444 | Q60: -0.97599 | R60: 2.2e-05 | S60: -0.979321 | T60: 1.7e-05 | U60: 8.504e-09 | V60: 1.123e-09 | W60: 9.1255 | X60: 282.2755 | Y60: 0.05600885967 | Z60: 34.0149 | AA60: 0.7017004806 | AB60: 0.02744072767 | AC60: 0.549625699 | AD60: 133.91 | AE60: 0.1837911059 | AF60: -17.57843688 | AG60: 0.1856437314 | AH60: 0.498168965 | AI60: -0.2617459217 | AJ60: 18.69311263 | AK60: -0.0002600821155 | AL60: 0.0006640019364 | AM60: -1.433961498 | AN60: 7.622877259 | AO60: 7.682748746 | AP60: 7.36855447 | AQ60: 7.447748805 | AR60: pH
A61: 0xE1AF | B61: pH | C61: 2020-05-11T07:07:57 | D61: 1589180870 | E61: 108.44 | F61: 9.6021 | G61: 33.9595 | H61: 1050 | I61: 47 | J61: 0 | K61: 8.48 | L61: 1.36 | M61: 14.412 | N61: 0.0438 | O61: 7.1234 | P61: 3.445 | Q61: -0.97505 | R61: 2.6e-05 | S61: -0.979983 | T61: 1.9e-05 | U61: 7.846e-09 | V61: 8.845e-10 | W61: 9.6021 | X61: 282.7521 | Y61: 0.05610342623 | Z61: 33.9595 | AA61: 0.7005172393 | AB61: 0.02739603501 | AC61: 0.5486994225 | AD61: 108.44 | AE61: 0.1798323439 | AF61: -17.55340684 | AG61: 0.1812943042 | AH61: 0.4985213991 | AI61: -0.2621503008 | AJ61: 18.73112361 | AK61: -0.0002110421464 | AL61: 0.0005509803751 | AM61: -1.43455112 | AN61: 7.633056973 | AO61: 7.694175158 | AP61: 7.385274321 | AQ61: 7.464680886 | AR61: pH
A62: 0xEE3F | B62: pH | C62: 2020-05-11T07:13:56 | D62: 1589181229 | E62: 89.82 | F62: 9.6368 | G62: 33.9464 | H62: 1051 | I62: 47 | J62: 0 | K62: 8.77 | L62: 1.39 | M62: 14.416 | N62: 0.0436 | O62: 7.1234 | P62: 3.445 | Q62: -0.97395 | R62: 1.9e-05 | S62: -0.979097 | T62: 2.1e-05 | U62: 8.726e-09 | V62: 7.999e-10 | W62: 9.6368 | X62: 282.7868 | Y62: 0.05611031137 | Z62: 33.9464 | AA62: 0.7002374675 | AB62: 0.02738546689 | AC62: 0.548480408 | AD62: 89.82 | AE62: 0.1795115409 | AF62: -17.55157886 | AG62: 0.1807191951 | AH62: 0.4985471198 | AI62: -0.2621891807 | AJ62: 18.73386774 | AK62: -0.0001748301608 | AL62: 0.000464410001 | AM62: -1.43467239 | AN62: 7.652791423 | AO62: 7.714068949 | AP62: 7.40488497 | AQ62: 7.484306987 | AR62: pH
A63: 0xF6DA | B63: pH | C63: 2020-05-11T07:19:55 | D63: 1589181588 | E63: 73.88 | F63: 9.8698 | G63: 33.8913 | H63: 1052 | I63: 47 | J63: 0 | K63: 9.03 | L63: 1.39 | M63: 14.424 | N63: 0.0438 | O63: 7.1234 | P63: 3.446 | Q63: -0.973004 | R63: 2.1e-05 | S63: -0.979394 | T63: 1.3e-05 | U63: 7.987e-09 | V63: 6.247e-10 | W63: 9.8698 | X63: 283.0198 | Y63: 0.05615654303 | Z63: 33.8913 | AA63: 0.6990608009 | AB63: 0.02734101625 | AC63: 0.547559272 | AD63: 73.88 | AE63: 0.1775093246 | AF63: -17.53928483 | AG63: 0.1784894976 | AH63: 0.4987200402 | AI63: -0.2624159592 | AJ63: 18.75221168 | AK63: -0.0001439445545 | AL63: 0.0003876524148 | AM63: -1.434982148 | AN63: 7.666228127 | AO63: 7.728125219 | AP63: 7.421402102 | AQ63: 7.500927874 | AR63: pH
A64: 0x6B30 | B64: pH | C64: 2020-05-11T07:25:54 | D64: 1589181947 | E64: 60.16 | F64: 9.9995 | G64: 33.8687 | H64: 1053 | I64: 47 | J64: 0 | K64: 9.3 | L64: 1.4 | M64: 14.432 | N64: 0.0438 | O64: 7.1234 | P64: 3.447 | Q64: -0.971921 | R64: 3.2e-05 | S64: -0.979071 | T64: 7e-06 | U64: 8.109e-09 | V64: 1.123e-09 | W64: 9.9995 | X64: 283.1495 | Y64: 0.05618227799 | Z64: 33.8687 | AA64: 0.6985782145 | AB64: 0.02732278423 | AC64: 0.5471814848 | AD64: 60.16 | AE64: 0.1764398096 | AF64: -17.53242646 | AG64: 0.1772320686 | AH64: 0.4988164581 | AI64: -0.2625338079 | AJ64: 18.76236096 | AK64: -0.0001172765471 | AL64: 0.0003196294235 | AM64: -1.435179871 | AN64: 7.683976961 | AO64: 7.746244442 | AP64: 7.440694077 | AQ64: 7.520277605 | AR64: pH
A65: 0x4357 | B65: pH | C65: 2020-05-11T07:32:20 | D65: 1589182333 | E65: 39.74 | F65: 10.4211 | G65: 33.8076 | H65: 1054 | I65: 47 | J65: 0 | K65: 9.53 | L65: 1.43 | M65: 14.428 | N65: 0.0436 | O65: 7.1234 | P65: 3.448 | Q65: -0.97066 | R65: 1.7e-05 | S65: -0.979907 | T65: 1.1e-05 | U65: 7.623e-09 | V65: 6.604e-10 | W65: 10.4211 | X65: 283.5711 | Y65: 0.0562659315 | Z65: 33.8076 | AA65: 0.6972736363 | AB65: 0.02727349323 | AC65: 0.5461602065 | AD65: 39.74 | AE65: 0.1730694543 | AF65: -17.51005935 | AG65: 0.1735809927 | AH65: 0.4991306692 | AI65: -0.2629042348 | AJ65: 18.79504613 | AK65: -7.760453752e-05 | AL65: 0.0002150379677 | AM65: -1.435706062 | AN65: 7.700438918 | AO65: 7.763818286 | AP65: 7.463048853 | AQ65: 7.542820119 | AR65: pH
A66: 0xAFA6 | B66: pH | C66: 2020-05-11T07:33:26 | D66: 1589182399 | E66: 36.48 | F66: 10.4234 | G66: 33.8025 | H66: 1055 | I66: 47 | J66: 0 | K66: 9.66 | L66: 1.45 | M66: 14.332 | N66: 0.044 | O66: 7.1234 | P66: 3.448 | Q66: -0.970265 | R66: 3e-05 | S66: -0.979609 | T66: 3.2e-05 | U66: 7.104e-09 | V66: 5.968e-10 | W66: 10.4234 | X66: 283.5734 | Y66: 0.05626638786 | Z66: 33.8025 | AA66: 0.6971647511 | AB66: 0.02726937892 | AC66: 0.5460749663 | AD66: 36.48 | AE66: 0.1730330144 | AF66: -17.50993702 | AG66: 0.173502427 | AH66: 0.4991323867 | AI66: -0.262911114 | AJ66: 18.79522316 | AK66: -7.123905872e-05 | AL66: 0.0001979692286 | AM66: -1.435725431 | AN66: 7.707527318 | AO66: 7.770924489 | AP66: 7.47005662 | AQ66: 7.549828911 | AR66: pH
A67: 0x73C9 | B67: pH | C67: 2020-05-11T07:34:31 | D67: 1589182464 | E67: 33.45 | F67: 10.4479 | G67: 33.8002 | H67: 1056 | I67: 47 | J67: 0 | K67: 9.79 | L67: 1.45 | M67: 14.276 | N67: 0.044 | O67: 7.1234 | P67: 3.448 | Q67: -0.96986 | R67: 1.5e-05 | S67: -0.979225 | T67: 1.6e-05 | U67: 8.088e-09 | V67: 8.392e-10 | W67: 10.4479 | X67: 283.5979 | Y67: 0.05627124913 | Z67: 33.8002 | AA67: 0.6971156463 | AB67: 0.02726752345 | AC67: 0.5460365249 | AD67: 33.45 | AE67: 0.1728446355 | AF67: -17.50863374 | AG67: 0.1732744727 | AH67: 0.499150684 | AI67: -0.2629313688 | AJ67: 18.79710802 | AK67: -6.532854952e-05 | AL67: 0.0001820131353 | AM67: -1.435765887 | AN67: 7.714497825 | AO67: 7.777968573 | AP67: 7.47730401 | AQ67: 7.557087209 | AR67: pH
A68: 0xF1CE | B68: pH | C68: 2020-05-11T07:35:36 | D68: 1589182529 | E68: 30.65 | F68: 10.4524 | G68: 33.7939 | H68: 1057 | I68: 47 | J68: 0 | K68: 9.95 | L68: 1.44 | M68: 14.244 | N68: 0.044 | O68: 7.1234 | P68: 3.449 | Q68: -0.969581 | R68: 1.8e-05 | S68: -0.97923 | T68: 1.9e-05 | U68: 6.925e-09 | V68: 9.336e-10 | W68: 10.4524 | X68: 283.6024 | Y68: 0.05627214202 | Z68: 33.7939 | AA68: 0.6969811432 | AB68: 0.02726244107 | AC68: 0.5459312298 | AD68: 30.65 | AE68: 0.1727875687 | AF68: -17.50839432 | AG68: 0.173181243 | AH68: 0.4991540452 | AI68: -0.2629410737 | AJ68: 18.79745405 | AK68: -5.986119291e-05 | AL68: 0.0001671897823 | AM68: -1.43578521 | AN68: 7.719452322 | AO68: 7.782943846 | AP68: 7.482228978 | AQ68: 7.562014181 | AR68: pH
A69: 0x3E82 | B69: pH | C69: 2020-05-11T07:36:41 | D69: 1589182594 | E69: 28.11 | F69: 10.5833 | G69: 33.7786 | H69: 1058 | I69: 47 | J69: 0 | K69: 10.1 | L69: 1.44 | M69: 14.228 | N69: 0.044 | O69: 7.1234 | P69: 3.449 | Q69: -0.969323 | R69: 1.9e-05 | S69: -0.979322 | T69: 2.5e-05 | U69: 7.781e-09 | V69: 7.429e-10 | W69: 10.5833 | X69: 283.7333 | Y69: 0.05629811508 | Z69: 33.7786 | AA69: 0.6966545002 | AB69: 0.02725009815 | AC69: 0.5456755187 | AD69: 28.11 | AE69: 0.1717746762 | AF69: -17.50142425 | AG69: 0.1721332671 | AH69: 0.4992518789 | AI69: -0.2630523681 | AJ69: 18.80749631 | AK69: -5.49297582e-05 | AL69: 0.0001536777009 | AM69: -1.435929622 | AN69: 7.72203249 | AO69: 7.7858566 | AP69: 7.486778525 | AQ69: 7.566622019 | AR69: pH
A70: 0xCD6B | B70: pH | C70: 2020-05-11T07:37:46 | D70: 1589182659 | E70: 26.16 | F70: 10.6161 | G70: 33.778 | H70: 1059 | I70: 47 | J70: 0 | K70: 10.27 | L70: 1.44 | M70: 14.216 | N70: 0.0442 | O70: 7.1234 | P70: 3.449 | Q70: -0.968964 | R70: 1.7e-05 | S70: -0.979709 | T70: 1.9e-05 | U70: 8.45e-09 | V70: 9.575e-10 | W70: 10.6161 | X70: 283.7661 | Y70: 0.05630462323 | Z70: 33.778 | AA70: 0.6966416908 | AB70: 0.02724961412 | AC70: 0.5456654909 | AD70: 26.16 | AE70: 0.1715343273 | AF70: -17.49967604 | AG70: 0.1718674797 | AH70: 0.4992764118 | AI70: -0.2630769789 | AJ70: 18.81000556 | AK70: -5.112608292e-05 | AL70: 0.0001432621764 | AM70: -1.435972838 | AN70: 7.728026659 | AO70: 7.791941495 | AP70: 7.493219338 | AQ70: 7.573077437 | AR70: pH
A71: 0xCDD8 | B71: pH | C71: 2020-05-11T07:39:18 | D71: 1589182751 | E71: 24.05 | F71: 10.8511 | G71: 33.7718 | H71: 1060 | I71: 47 | J71: 0 | K71: 10.41 | L71: 1.47 | M71: 14.212 | N71: 0.044 | O71: 7.1234 | P71: 3.449 | Q71: -0.968531 | R71: 1.5e-05 | S71: -0.980488 | T71: 2.3e-05 | U71: 7.981e-09 | V71: 1.113e-09 | W71: 10.8511 | X71: 284.0011 | Y71: 0.05635125173 | Z71: 33.7718 | AA71: 0.6965093288 | AB71: 0.02724461241 | AC71: 0.5455618717 | AD71: 24.05 | AE71: 0.1698178446 | AF71: -17.48713089 | AG71: 0.1701205688 | AH71: 0.4994523968 | AI71: -0.2632553868 | AJ71: 18.82790062 | AK71: -4.704709738e-05 | AL71: 0.0001319508761 | AM71: -1.436219149 | AN71: 7.732281385 | AO71: 7.796795096 | AP71: 7.501101923 | AQ71: 7.581064668 | AR71: pH
A72: 0x6B26 | B72: pH | C72: 2020-05-11T07:40:23 | D72: 1589182816 | E72: 21.63 | F72: 10.9212 | G72: 33.7713 | H72: 1061 | I72: 47 | J72: 0 | K72: 10.55 | L72: 1.49 | M72: 14.208 | N72: 0.044 | O72: 7.1234 | P72: 3.45 | Q72: -0.967965 | R72: 2.5e-05 | S72: -0.98086 | T72: 3.1e-05 | U72: 8.163e-09 | V72: 1.143e-09 | W72: 10.9212 | X72: 284.0712 | Y72: 0.05636516091 | Z72: 33.7713 | AA72: 0.6964986545 | AB72: 0.02724420905 | AC72: 0.5455535154 | AD72: 21.63 | AE72: 0.16931512 | AF72: -17.48338194 | AG72: 0.1695864274 | AH72: 0.4995049661 | AI72: -0.2633072912 | AJ72: 18.83321053 | AK72: -4.232497761e-05 | AL72: 0.0001189250431 | AM72: -1.436302275 | AN72: 7.741418994 | AO72: 7.8061206 | AP72: 7.511258505 | AQ72: 7.591252466 | AR72: pH
A73: 0x2222 | B73: pH | C73: 2020-05-11T07:41:28 | D73: 1589182881 | E73: 19.08 | F73: 11.1173 | G73: 33.7672 | H73: 1062 | I73: 47 | J73: 0 | K73: 10.66 | L73: 1.49 | M73: 14.208 | N73: 0.044 | O73: 7.1234 | P73: 3.45 | Q73: -0.967403 | R73: 2.4e-05 | S73: -0.981821 | T73: 1.8e-05 | U73: 7.837e-09 | V73: 1.398e-09 | W73: 11.1173 | X73: 284.2673 | Y73: 0.0564040709 | Z73: 33.7672 | AA73: 0.6964111258 | AB73: 0.02724090147 | AC73: 0.5454849938 | AD73: 19.08 | AE73: 0.1679090264 | AF73: -17.472878 | AG73: 0.1681460326 | AH73: 0.4996522043 | AI73: -0.2634553528 | AJ73: 18.84799594 | AK73: -3.736451991e-05 | AL73: 0.0001051385702 | AM73: -1.436512161 | AN73: 7.74857097 | AO73: 7.813779863 | AP73: 7.521414521 | AQ73: 7.601495804 | AR73: pH
A74: 0x2C35 | B74: pH | C74: 2020-05-11T07:42:33 | D74: 1589182946 | E74: 16.77 | F74: 11.3791 | G74: 33.763 | H74: 1063 | I74: 47 | J74: 0 | K74: 10.78 | L74: 1.53 | M74: 14.208 | N74: 0.0438 | O74: 7.1234 | P74: 3.45 | Q74: -0.966677 | R74: 2e-05 | S74: -0.98275 | T74: 1.5e-05 | U74: 7.669e-09 | V74: 6.464e-10 | W74: 11.3791 | X74: 284.5291 | Y74: 0.05645601703 | Z74: 33.763 | AA74: 0.6963214631 | AB74: 0.02723751322 | AC74: 0.5454148015 | AD74: 16.77 | AE74: 0.1660598205 | AF74: -17.45881702 | AG74: 0.1662654653 | AH74: 0.4998491833 | AI74: -0.2636520301 | AJ74: 18.86757721 | AK74: -3.28749465e-05 | AL74: 9.259569605e-05 | AM74: -1.436786504 | AN74: 7.757625217 | AO74: 7.823510819 | AP74: 7.534523812 | AQ74: 7.614721675 | AR74: pH
A75: 0x0B57 | B75: pH | C75: 2020-05-11T07:43:38 | D75: 1589183011 | E75: 14.8 | F75: 11.5822 | G75: 33.7639 | H75: 1064 | I75: 47 | J75: 0 | K75: 10.92 | L75: 1.54 | M75: 14.208 | N75: 0.0438 | O75: 7.1234 | P75: 3.45 | Q75: -0.965644 | R75: 2e-05 | S75: -0.982318 | T75: 3.2e-05 | U75: 8.322e-09 | V75: 7.676e-10 | W75: 11.5822 | X75: 284.7322 | Y75: 0.05649631595 | Z75: 33.7639 | AA75: 0.6963406765 | AB75: 0.02723823927 | AC75: 0.5454298427 | AD75: 14.8 | AE75: 0.1646580624 | AF75: -17.44787892 | AG75: 0.1648377636 | AH75: 0.5000023202 | AI75: -0.2638006651 | AJ75: 18.88264376 | AK75: -2.903623961e-05 | AL75: 8.185843947e-05 | AM75: -1.437000342 | AN75: 7.773019684 | AO75: 7.83943608 | AP75: 7.553061942 | AQ75: 7.633350246 | AR75: pH
A76: 0xE311 | B76: pH | C76: 2020-05-11T07:44:59 | D76: 1589183092 | E76: 12.57 | F76: 11.6218 | G76: 33.7629 | H76: 1065 | I76: 47 | J76: 0 | K76: 11.09 | L76: 1.58 | M76: 14.208 | N76: 0.0438 | O76: 7.1234 | P76: 3.451 | Q76: -0.964059 | R76: 2.5e-05 | S76: -0.981115 | T76: 2.8e-05 | U76: 7.416e-09 | V76: 7.936e-10 | W76: 11.6218 | X76: 284.7718 | Y76: 0.05650417335 | Z76: 33.7629 | AA76: 0.6963193282 | AB76: 0.02723743255 | AC76: 0.5454131303 | AD76: 12.57 | AE76: 0.16438236 | AF76: -17.44574319 | AG76: 0.1645346767 | AH76: 0.5000322114 | AI76: -0.2638308526 | AJ76: 18.88556875 | AK76: -2.46650047e-05 | AL76: 6.965907285e-05 | AM76: -1.437052141 | AN76: 7.800594065 | AO76: 7.867122068 | AP76: 7.581183552 | AQ76: 7.66148949 | AR76: pH
A77: 0xEDA2 | B77: pH | C77: 2020-05-11T07:46:14 | D77: 1589183168 | E77: 9.41 | F77: 11.7353 | G77: 33.7603 | H77: 1066 | I77: 47 | J77: 0 | K77: 11.2 | L77: 1.57 | M77: 14.208 | N77: 0.0438 | O77: 7.1234 | P77: 3.451 | Q77: -0.962664 | R77: 2.8e-05 | S77: -0.980909 | T77: 2.4e-05 | U77: 8.013e-09 | V77: 8.499e-10 | W77: 11.7353 | X77: 284.8853 | Y77: 0.05652669392 | Z77: 33.7603 | AA77: 0.6962638231 | AB77: 0.02723533506 | AC77: 0.5453696782 | AD77: 9.41 | AE77: 0.1635963882 | AF77: -17.43961636 | AG77: 0.1637097701 | AH77: 0.5001179442 | AI77: -0.2639171494 | AJ77: 18.8939294 | AK77: -1.847258902e-05 | AL77: 5.22902254e-05 | AM77: -1.43718301 | AN77: 7.823714545 | AO77: 7.890548476 | AP77: 7.605989047 | AQ77: 7.686345526 | AR77: pH
A78: 0x6208 | B78: pH | C78: 2020-05-11T07:47:19 | D78: 1589183233 | E78: 6.3 | F78: 11.9051 | G78: 33.7507 | H78: 1067 | I78: 47 | J78: 0 | K78: 11.31 | L78: 1.62 | M78: 14.208 | N78: 0.0438 | O78: 7.1234 | P78: 3.451 | Q78: -0.961703 | R78: 2.1e-05 | S78: -0.981437 | T78: 2.9e-05 | U78: 8.314e-09 | V78: 4.18e-10 | W78: 11.9051 | X78: 285.0551 | Y78: 0.05656038549 | Z78: 33.7507 | AA78: 0.6960588837 | AB78: 0.02722759048 | AC78: 0.5452092417 | AD78: 6.3 | AE78: 0.162409736 | AF78: -17.43043522 | AG78: 0.1624850015 | AH78: 0.5002463684 | AI78: -0.2640520875 | AJ78: 18.90637391 | AK78: -1.237555397e-05 | AL78: 3.510249177e-05 | AM78: -1.437369998 | AN78: 7.838184786 | AO78: 7.905467665 | AP78: 7.623040231 | AQ78: 7.703472322 | AR78: pH
A79: <EOP> : 18340.024 Mon May 11 07:52:48 2020
A80: H | B80: Datalogger Serial Num | C80: SN:0850
A81: H | B81: Application Name | C81: APF_MAIN.C
A82: H | B82: App Build Date | C82: Apr 30 2019 | D82: 10:48:38
A83: H | B83: Power Up Time (GMT) | C83: 05/11/2020 07:52:38
A84: H | B84: Current Time (GMT) | C84: 05/11/2020 07:52:52
A85: H | B85: Alarm Time (GMT) | C85: 05/11/2020 17:52:43
A86: H | B86: Power Active Timeout | C86: 1900-01-10
A87: H | B87: Persistor CF2-1M Info | C87: S/N:15002 - BIOS:4.03 - PicoDOS:4.03
A88: H | B88: Compact FLASH Size | C88: 256614400
A89: H | B89: Compact FLASH Left | C89: 0.9745
A90: H | B90: Power Cycle Counter | C90: 48
A91: H | B91: System Reset Counter | C91: 1900-02-17
A92: H | B92: System Error Counter | C92: 0
A93: H | B93: Last System Error | C93: 0
A94: H | B94: Last System ErrorTime | C94: 01/01/1970 00:00:00
A95: H | B95: DURA Error Counter | C95: 0
A96: H | B96: Last DURA Error | C96: 00:00:00
A97: H | B97: Last DURA Error Time | C97: 01/01/1970 00:00:00
A98: H | B98: DURA Sample Counter | C98: 1068
A99: H | B99: Last Sample Rec. Time | C99: 05/11/2020 07:47:19
A100: H | B100: AtoD Reads per Sample | C100: 1900-01-10
A101: H | B101: AtoD Reading Delay | C101: 1900-04-09
A102: H | B102: Samps per AtoD Recal | C102: 250
A103: # No error records to log.

Sheet pHcyc23
AE4: 2.53325E-12x3 - 5.63616E-09x2 - 2.95642E-06x + 3.46442E-05
A8: Profile: 18340.023 Tue May 5 23:08:44 2020
A9: H | B9: Datalogger Serial Num | C9: SN:0850
A10: H | B10: Application Name | C10: APF_MAIN.C
A11: H | B11: App Build Date | C11: Apr 30 2019 | D11: 10:48:38
A12: H | B12: Power Up Time (GMT) | C12: 05/05/2020 23:08:16 | W12: <----- | AE12: -1.57252E-18x5 + 7.57486E-15x4 - 9.81276E-12x3 + 1.81040E-09x2 - 1.66482E-06x + 1.11359E-04
A13: H | B13: Current Time (GMT) | C13: 05/05/2020 23:08:49 | W13: <-----
A14: H | B14: Alarm Time (GMT) | C14: 05/06/2020 09:08:48 | W14: <----- | X14: DuraFET | AE14: Cal values here
A15: H | B15: Power Active Timeout | C15: 10 | W15: <----- | X15: Data | AJ15: Josh
A16: H | B16: Persistor CF2-1M Info | C16: S/N:15002 - BIOS:4.03 - PicoDOS:4.03 | W16: <----- | X16: to the | AA16: Control + Shift + T - import CTD data from .log file | AE16: k0 | AF16: -1.4255 | AH16: -1.427 | AJ16: -1.4255 | AK16: =k0
A17: H | B17: Compact FLASH Size | C17: 256614400 | W17: <----- | X17: Left | AA17: Control + Shift + F to import DuraFET data from .csv file | AE17: k2 | AF17: -0.001 | AH17: -0.0009 | AJ17: -0.001 | AK17: =k2*T
A18: H | B18: Compact FLASH Left | C18: 0.9755 | W18: <----- | AE18: P | AF18: 5.6021e-06 | AH18: -1.66482e-06 | AJ18: 5.6021e-06 | AK18: =k3*P^1
A19: H | B19: Power Cycle Counter | C19: 45 | W19: <----- | AA19: Temperature/Salinity Selection | AE19: P^2 | AF19: -4.8057e-09 | AH19: 1.8104e-09 | AJ19: -4.8057e-09 | AK19: =k4*P^2
A20: H | B20: System Reset Counter | C20: 45 | W20: <----- | AA20: 1: T =DFET (Column C), Salinity input manual | AE20: P^3 | AH20: -9.81276e-12
A21: H | B21: System Error Counter | C21: 0 | W21: <----- | AA21: 2: CTD (load CTD data with Control Shift T) | AE21: P^4 | AH21: 7.57486e-15
A22: H | B22: Last System Error | C22: 0 | W22: <----- | AA22: 2 | AE22: P^5 | AH22: -1.57252e-18
A23: H | B23: Last System ErrorTime | C23: 01/01/1970 00:00:00 | W23: <----- | AE23: P^6
A24: H | B24: DURA Error Counter | C24: 0 | W24: <-----
A25: H | B25: Last DURA Error | C25: 0 | W25: <-----
A26: H | B26: Last DURA Error Time | C26: 01/01/1970 00:00:00 | W26: <-----
A27: H | B27: DURA Sample Counter | C27: 968 | W27: <----- | AA27: Calibration data
A28: H | B28: Last Sample Rec. Time | C28: 05/01/2020 01:25:28 | W28: <-----
A29: H | B29: AtoD Reads per Sample | C29: 10 | W29: <-----
A30: H | B30: AtoD Reading Delay | C30: 1900-04-09
A31: H | B31: Samps per AtoD Recal | C31: 1900-09-06 | Z31: Don't erase this first row of formulas!!!! Subsequent rows can be erased or copied down as needed from colum W on.
A32: # No error records to log. | W32: T/C | X32: K | Y32: S(T) | Z32: Salinity | AA32: IonicStrength | AB32: SO4(tot) | AC32: mCl | AD32: Press(dbar) | AE32: KHSO4 | AF32: deltaV HSO4 | AG32: KHSO4 TPS | AH32: DebyeHuckelConst | AI32: log(γHγCl) | AJ32: deltaV HCl | AK32: ThermPress | AL32: f(P) | AM32: k0+k2T+f(P) | AN32: pHtot in situ | AO32: pHfree in situ | AP32: pH25Total | AQ32: pH20Total | AR32: Date + Time
A33: 0xB8E6 | B33: pH | C33: 2020-05-05T23:17:15 | D33: 1588720629 | E33: 1599.45 | F33: 2.5977 | G33: 34.5566 | H33: 968 | I33: 45 | J33: 0 | K33: 2.7 | L33: 0.85 | M33: 14.316 | N33: 0.0448 | O33: 7.1234 | P33: 3.43 | Q33: -0.988606 | R33: 3.3e-05 | S33: -0.982146 | T33: 9e-06 | U33: 7.189e-09 | V33: 8.092e-10 | W33: =F33 -> 2.5977 | X33: =W33+273.15 -> 275.7477 | Y33: =8.31451*X33/96487*LN(10) -> 0.05471361926 | Z33: =G33 -> 34.5566 | AA33: =19.924 * Z33/ (1000 - 1.005 * Z33) -> 0.7132773818 | AB33: =(0.14 / 96.062) * (Z33 / 1.80655) -> 0.02787773152 | AC33: =0.99889/35.453*Z33/1.80655*(1 + 0.00106 * Z33) -> 0.558688158 | AD33: =E33 -> 1599.45 | AE33: =EXP(-4276.1 /X33 + 141.328 - 23.093 * LN(X33) + (-13856 / X33 + 324.57 - 47.986 * LN(X33)) * AA33^ 0.5 + (35474 / X33 - 771.54 + 114.723 * LN(X33)) * AA33- 2698 / X33 * AA33 ^ 1.5 + 1776 / X33*AA33 ^ 2 + LN(1 - 0.001005 * Z33)) -> 0.2500987662 | AF33: =-18.03 + 0.0466 * W33 + 0.000316 *W33 ^ 2 -> -17.9068148 | AG33: =EXP((-AF33) * (AD33 / 10) / (8.31451 * 10 * X33))*AE33 -> 0.2833770498 | AH33: =(0.00000343*W33^2 + 0.00067524*W33 + 0.49172143) -> 0.4934986467 | AI33: =2*(-AH33*SQRT(AA33)/(1+1.394*SQRT(AA33))+(0.08885-0.000111*W33)*AA33) -> -0.2565081038 | AJ33: =17.85 + 0.1044 * W33 - 0.001316 * W33 ^ 2 -> 18.11231945 | AK33: =-AJ33 * 0.0242 / (23061 * 1.01) *AD33 / 10 -> -0.003009959098 | AL33: =AF$18*AD33+AF$19*AD33^2+AF$20*AD33^3+AF$21*AD33^4+AF$22*AD33^5+AF$23*AD33^6 -> -0.003333856577 | AM33: =$AF$16+$AF$17*(W33)+AL33 -> -1.431431557 | AN33: =AO33-LOG(1+AB33/AG33) -> 7.621811103 | AO33: =-LOG10((10^(-((Q33-AM33-AK33)/Y33+(LOG(AC33)+AI33))))/(1+0.0016*Z33)) -> 7.66256246 | AP33: =((AN33 + 0.000035833 * AD33 - 0.01703 * (25 - W33) + 0.00004453 * (25 - W33) ^ 2) ) -> 7.319960987 | AQ33: =((AN33 + 0.000035833 * AD33 - 0.01703 * (20 - W33) + 0.00004453 * (20 - W33) ^ 2) ) -> 7.396248493 | AR33: =B33 -> pH
A34: 0x1E6B | B34: pH | C34: 2020-05-05T23:34:43 | D34: 1588721677 | E34: 1499.22 | F34: 2.7877 | G34: 34.5412 | H34: 969 | I34: 45 | J34: 0 | K34: 2.78 | L34: 0.85 | M34: 14.408 | N34: 0.0444 | O34: 7.1234 | P34: 3.43 | Q34: -0.988052 | R34: 3.8e-05 | S34: -0.981728 | T34: 4e-05 | U34: 5.394e-09 | V34: 1.646e-09 | W34: =F34 -> 2.7877 | X34: =W34+273.15 -> 275.9377 | Y34: =8.31451*X34/96487*LN(10) -> 0.0547513189 | Z34: =G34 -> 34.5412 | AA34: 0.7129480815 | AB34: 0.02786530793 | AC34: =0.99889/35.453*Z34/1.80655*(1 + 0.00106 * Z34) -> 0.5584303871 | AD34: =E34 -> 1499.22 | AE34: 0.2477677959 | AF34: =-18.03 + 0.0466 * W34 + 0.000316 *W34 ^ 2 -> -17.89763746 | AG34: =EXP((-AF34) * (AD34 / 10) / (8.31451 * 10 * X34))*AE34 -> 0.2785076538 | AH34: 0.493630452 | AI34: -0.256658145 | AJ34: =17.85 + 0.1044 * W34 - 0.001316 * W34 ^ 2 -> 18.13080889 | AK34: =-AJ34 * 0.0242 / (23061 * 1.01) *AD34 / 10 -> -0.002824219216 | AL34: -0.002402802224 | AM34: -1.430690502 | AN34: =AO34-LOG(1+AB34/AG34) -> 7.60836893 | AO34: =-LOG10((10^(-((Q34-AM34-AK34)/Y34+(LOG(AC34)+AI34))))/(1+0.0016*Z34)) -> 7.64978223 | AP34: =((AN34 + 0.000035833 * AD34 - 0.01703 * (25 - W34) + 0.00004453 * (25 - W34) ^ 2) ) -> 7.305785502 | AQ34: =((AN34 + 0.000035833 * AD34 - 0.01703 * (20 - W34) + 0.00004453 * (20 - W34) ^ 2) ) -> 7.382157615 | AR34: =B34 -> pH
A35: 0x3993 | B35: pH | C35: 2020-05-05T23:52:03 | D35: 1588722717 | E35: 1399.56 | F35: 2.9405 | G35: 34.5291 | H35: 970 | I35: 45 | J35: 0 | K35: 2.92 | L35: 0.87 | M35: 14.512 | N35: 0.0442 | O35: 7.1234 | P35: 3.43 | Q35: -0.987922 | R35: 4.2e-05 | S35: -0.981621 | T35: 2.8e-05 | U35: 7.08e-09 | V35: 1.694e-09 | W35: 2.9405 | X35: 276.0905 | Y35: 0.05478163734 | Z35: 34.5291 | AA35: 0.7126893529 | AB35: 0.02785554653 | AC35: 0.5582278584 | AD35: 1399.56 | AE35: 0.2459154298 | AF35: -17.89024039 | AG35: 0.2742558081 | AH35: 0.4937366309 | AI35: -0.2567785721 | AJ35: 18.14560935 | AK35: -0.002638632668 | AL35: -0.001572777232 | AM35: -1.430013277 | AN35: 7.589605266 | AO35: 7.631616481 | AP35: 7.285751672 | AQ35: 7.362191827 | AR35: pH
A36: 0x20D3 | B36: pH | C36: 2020-05-06T00:11:42 | D36: 1588723896 | E36: 1299.5 | F36: 3.1729 | G36: 34.512 | H36: 971 | I36: 45 | J36: 0 | K36: 3.07 | L36: 0.88 | M36: 14.264 | N36: 0.0448 | O36: 7.1234 | P36: 3.43 | Q36: -0.987739 | R36: 2.2e-05 | S36: -0.981452 | T36: 3e-05 | U36: 6.455e-09 | V36: -2.046e-10 | W36: 3.1729 | X36: 276.3229 | Y36: 0.05482774995 | Z36: 34.512 | AA36: 0.7123237229 | AB36: 0.02784175151 | AC36: 0.5579416484 | AD36: 1299.5 | AE36: 0.243140836 | AF36: -17.87896159 | AG36: 0.2690150596 | AH36: 0.4938984298 | AI36: -0.2569603991 | AJ36: 18.1680022 | AK36: -0.002453009974 | AL36: -0.0008354578414 | AM36: -1.429508358 | AN36: 7.572345418 | AO36: 7.615115843 | AP36: 7.268409973 | AQ36: 7.344953615 | AR36: pH
A37: 0xDFF8 | B37: pH | C37: 2020-05-06T00:28:41 | D37: 1588724915 | E37: 1199.85 | F37: 3.3228 | G37: 34.4883 | H37: 972 | I37: 45 | J37: 0 | K37: 3.24 | L37: 0.9 | M37: 14.5 | N37: 0.0442 | O37: 7.1234 | P37: 3.43 | Q37: -0.987431 | R37: 2.5e-05 | S37: -0.980939 | T37: 2.7e-05 | U37: 8.95e-09 | V37: 8.321e-10 | W37: 3.3228 | X37: 276.4728 | Y37: 0.05485749298 | Z37: 34.4883 | AA37: 0.711816994 | AB37: 0.02782263209 | AC37: 0.5575449874 | AD37: 1199.85 | AE37: 0.2412895922 | AF37: -17.87166856 | AG37: 0.2648810727 | AH37: 0.4940029881 | AI37: -0.2570922324 | AJ37: 18.18237036 | AK37: -0.002266696177 | AL37: -0.0001967983711 | AM37: -1.429019598 | AN37: 7.560197968 | AO37: 7.603575261 | AP37: 7.254954169 | AQ37: 7.331564562 | AR37: pH
A38: 0x2B40 | B38: pH | C38: 2020-05-06T00:47:24 | D38: 1588726038 | E38: 1100.03 | F38: 3.6398 | G38: 34.4701 | H38: 973 | I38: 45 | J38: 0 | K38: 3.43 | L38: 0.89 | M38: 14.46 | N38: 0.0442 | O38: 7.1234 | P38: 3.431 | Q38: -0.987267 | R38: 3.4e-05 | S38: -0.980925 | T38: 4.2e-05 | U38: 8.492e-09 | V38: 1.14e-09 | W38: 3.6398 | X38: 276.7898 | Y38: 0.05492039184 | Z38: 34.4701 | AA38: 0.7114278774 | AB38: 0.02780794966 | AC38: 0.5572403911 | AD38: 1100.03 | AE38: 0.2376391869 | AF38: -17.85619891 | AG38: 0.2588125737 | AH38: 0.4942246097 | AI38: -0.2573348574 | AJ38: 18.21256056 | AK38: -0.002081571796 | AL38: 0.0003472638825 | AM38: -1.428792536 | AN38: 7.544975908 | AO38: 7.589297822 | AP38: 7.240946253 | AQ38: 7.317697806 | AR38: pH
A39: 0xCE99 | B39: pH | C39: 2020-05-06T01:07:38 | D39: 1588727252 | E39: 999.65 | F39: 3.9581 | G39: 34.4444 | H39: 974 | I39: 45 | J39: 0 | K39: 3.7 | L39: 0.93 | M39: 14.312 | N39: 0.0446 | O39: 7.1234 | P39: 3.431 | Q39: -0.98703 | R39: 3.8e-05 | S39: -0.980776 | T39: 1.8e-05 | U39: 8.922e-09 | V39: 1.022e-09 | W39: 3.9581 | X39: 277.1081 | Y39: 0.05498354865 | Z39: 34.4444 | AA39: 0.7108784357 | AB39: 0.02778721678 | AC39: 0.556810293 | AD39: 999.65 | AE39: 0.2339985614 | AF39: -17.84060191 | AG39: 0.2528307839 | AH39: 0.4944478337 | AI39: -0.2575872869 | AJ39: 18.24260845 | AK39: -0.001894744973 | AL39: 0.0007978026663 | AM39: -1.428660297 | AN39: 7.532637055 | AO39: 7.57792263 | AP39: 7.229830128 | AQ39: 7.30672342 | AR39: pH
A40: 0xEDEA | B40: pH | C40: 2020-05-06T01:16:28 | D40: 1588727781 | E40: 947.54 | F40: 4.1101 | G40: 34.4303 | H40: 975 | I40: 45 | J40: 0 | K40: 3.88 | L40: 0.95 | M40: 14.348 | N40: 0.0444 | O40: 7.1234 | P40: 3.432 | Q40: -0.985995 | R40: 3.5e-05 | S40: -0.979585 | T40: 6e-06 | U40: 7.96e-09 | V40: 1.074e-09 | W40: 4.1101 | X40: 277.2601 | Y40: 0.05501370836 | Z40: 34.4303 | AA40: 0.7105770035 | AB40: 0.02777584194 | AC40: 0.5565743341 | AD40: 947.54 | AE40: 0.2322742008 | AF40: -17.83313118 | AG40: 0.249939301 | AH40: 0.4945546766 | AI40: -0.2577100143 | AJ40: 18.25686335 | AK40: -0.001797378631 | AL40: 0.0009935023436 | AM40: -1.428616598 | AN40: 7.543668589 | AO40: 7.589433599 | AP40: 7.241299147 | AQ40: 7.318260124 | AR40: pH
A41: 0xAF9A | B41: pH | C41: 2020-05-06T01:27:28 | D41: 1588728441 | E41: 893.01 | F41: 4.2957 | G41: 34.412 | H41: 976 | I41: 45 | J41: 0 | K41: 4.09 | L41: 0.96 | M41: 14.364 | N41: 0.0444 | O41: 7.1234 | P41: 3.432 | Q41: -0.985727 | R41: 2.7e-05 | S41: -0.9793 | T41: 1.6e-05 | U41: 8.032e-09 | V41: 5.492e-10 | W41: 4.2957 | X41: 277.4457 | Y41: 0.05505053495 | Z41: 34.412 | AA41: 0.7101857962 | AB41: 0.02776107884 | AC41: 0.5562680993 | AD41: 893.01 | AE41: 0.2301843739 | AF41: -17.82398922 | AG41: 0.2466277743 | AH41: 0.4946853524 | AI41: -0.2578611837 | AJ41: 18.27418688 | AK41: -0.001695548592 | AL41: 0.001170344831 | AM41: -1.428625355 | AN41: 7.540480377 | AO41: 7.586804858 | AP41: 7.238973964 | AQ41: 7.316017589 | AR41: pH
A42: 0x9FFE | B42: pH | C42: 2020-05-06T01:39:30 | D42: 1588729163 | E42: 828.94 | F42: 4.4885 | G42: 34.384 | H42: 977 | I42: 45 | J42: 0 | K42: 4.28 | L42: 0.99 | M42: 14.34 | N42: 0.0444 | O42: 7.1234 | P42: 3.433 | Q42: -0.985436 | R42: 3e-05 | S42: -0.978982 | T42: 2.7e-05 | U42: 8.82e-09 | V42: 7.486e-10 | W42: 4.4885 | X42: 277.6385 | Y42: 0.05508879016 | Z42: 34.384 | AA42: 0.7095872565 | AB42: 0.02773849049 | AC42: 0.5557995648 | AD42: 828.94 | AE42: 0.2279855224 | AF42: -17.81446956 | AG42: 0.2430464589 | AH42: 0.4948213477 | AI42: -0.2580284018 | AJ42: 18.29208643 | AK42: -0.001575441197 | AL42: 0.001341608754 | AM42: -1.428646891 | AN42: 7.537202811 | AO42: 7.584138035 | AP42: 7.236330108 | AQ42: 7.313459587 | AR42: pH
A43: 0x9162 | B43: pH | C43: 2020-05-06T01:45:28 | D43: 1588729521 | E43: 798.89 | F43: 4.647 | G43: 34.3724 | H43: 978 | I43: 45 | J43: 0 | K43: 4.46 | L43: 1.02 | M43: 14.328 | N43: 0.0444 | O43: 7.1234 | P43: 3.433 | Q43: -0.985258 | R43: 3e-05 | S43: -0.978898 | T43: 2.5e-05 | U43: 8.011e-09 | V43: 1.326e-09 | W43: 4.647 | X43: 277.797 | Y43: 0.05512023959 | Z43: 34.3724 | AA43: 0.7093393002 | AB43: 0.02772913246 | AC43: 0.5556054652 | AD43: 798.89 | AE43: 0.2262659204 | AF43: -17.8066259 | AG43: 0.2406395389 | AH43: 0.4949333398 | AI43: -0.2581531308 | AJ43: 18.30672829 | AK43: -0.00151954504 | AL43: 0.001408342671 | AM43: -1.428738657 | AN43: 7.535762505 | AO43: 7.583127335 | AP43: 7.236223853 | AQ43: 7.313423912 | AR43: pH
A44: 0xDAA3 | B44: pH | C44: 2020-05-06T01:57:27 | D44: 1588730240 | E44: 734.26 | F44: 4.8227 | G44: 34.3506 | H44: 979 | I44: 45 | J44: 0 | K44: 4.63 | L44: 1.03 | M44: 14.3 | N44: 0.0446 | O44: 7.1234 | P44: 3.434 | Q44: -0.984877 | R44: 2e-05 | S44: -0.978621 | T44: 2.9e-05 | U44: 8.012e-09 | V44: 5.458e-10 | W44: 4.8227 | X44: 277.9727 | Y44: 0.05515510183 | Z44: 34.3506 | AA44: 0.7088733297 | AB44: 0.02771154582 | AC44: 0.5552407039 | AD44: 734.26 | AE44: 0.2243271529 | AF44: -17.79791251 | AG44: 0.2373767776 | AH44: 0.4950576864 | AI44: -0.2583014772 | AJ44: 18.32288178 | AK44: -0.001397846572 | AL44: 0.001522463672 | AM44: -1.428800236 | AN44: 7.535441914 | AO44: 7.583394282 | AP44: 7.23626244 | AQ44: 7.313540738 | AR44: pH
A45: 0xCE51 | B45: pH | C45: 2020-05-06T02:03:25 | D45: 1588730598 | E45: 699.49 | F45: 4.9407 | G45: 34.336 | H45: 980 | I45: 45 | J45: 0 | K45: 4.81 | L45: 1.06 | M45: 14.328 | N45: 0.0444 | O45: 7.1234 | P45: 3.434 | Q45: -0.984699 | R45: 1.7e-05 | S45: -0.978479 | T45: 3.3e-05 | U45: 9.437e-09 | V45: 1.174e-09 | W45: 4.9407 | X45: 278.0907 | Y45: 0.05517851529 | Z45: 34.336 | AA45: 0.7085612696 | AB45: 0.02769976761 | AC45: 0.5549964231 | AD45: 699.49 | AE45: 0.2230375069 | AF45: -17.79204966 | AG45: 0.2353714702 | AH45: 0.4951413163 | AI45: -0.2584010935 | AJ45: 18.33368484 | AK45: -0.001332438362 | AL45: 0.001567249949 | AM45: -1.42887345 | AN45: 7.534715775 | AO45: 7.583035323 | AP45: 7.236088503 | AQ45: 7.313419347 | AR45: pH
A46: 0x0CEA | B46: pH | C46: 2020-05-06T02:14:24 | D46: 1588731257 | E46: 641.4 | F46: 5.1085 | G46: 34.2927 | H46: 981 | I46: 45 | J46: 0 | K46: 4.96 | L46: 1.1 | M46: 14.38 | N46: 0.0442 | O46: 7.1234 | P46: 3.435 | Q46: -0.984478 | R46: 3.3e-05 | S46: -0.97833 | T46: 2.7e-05 | U46: 8.828e-09 | V46: 7.668e-10 | W46: 5.1085 | X46: 278.2585 | Y46: 0.05521181002 | Z46: 34.2927 | AA46: 0.7076358318 | AB46: 0.02766483635 | AC46: 0.5542719877 | AD46: 641.4 | AE46: 0.2210920212 | AF46: -17.78369732 | AG46: 0.2322655099 | AH46: 0.4952604055 | AI46: -0.2585677896 | AJ46: 18.34898405 | AK46: -0.001222803956 | AL46: 0.001616150986 | AM46: -1.428992349 | AN46: 7.53270229 | AO46: 7.581574551 | AP46: 7.234552595 | AQ46: 7.311958161 | AR46: pH
A47: 0xAADB | B47: pH | C47: 2020-05-06T02:26:23 | D47: 1588731976 | E47: 586.23 | F47: 5.3308 | G47: 34.2462 | H47: 982 | I47: 45 | J47: 0 | K47: 5.13 | L47: 1.12 | M47: 14.32 | N47: 0.0444 | O47: 7.1234 | P47: 3.435 | Q47: -0.984384 | R47: 2.7e-05 | S47: -0.978501 | T47: 2.5e-05 | U47: 7.884e-09 | V47: 1.28e-09 | W47: 5.3308 | X47: 278.4808 | Y47: 0.05525591859 | Z47: 34.2462 | AA47: 0.7066420943 | AB47: 0.02762732355 | AC47: 0.5534940834 | AD47: 586.23 | AE47: 0.21861046 | AF47: -17.77260481 | AG47: 0.228672032 | AH47: 0.4954184712 | AI47: -0.2587764504 | AJ47: 18.36913818 | AK47: -0.001118852089 | AL47: 0.001632565247 | AM47: -1.429198235 | AN47: 7.528292255 | AO47: 7.577826718 | AP47: 7.231559811 | AQ47: 7.309064366 | AR47: pH
A48: 0x29E9 | B48: pH | C48: 2020-05-06T02:37:23 | D48: 1588732636 | E48: 531.53 | F48: 5.6762 | G48: 34.2207 | H48: 983 | I48: 45 | J48: 0 | K48: 5.34 | L48: 1.11 | M48: 14.388 | N48: 0.0442 | O48: 7.1234 | P48: 3.436 | Q48: -0.983396 | R48: 2.3e-05 | S48: -0.978052 | T48: 2.5e-05 | U48: 8.253e-09 | V48: 9.869e-10 | W48: 5.6762 | X48: 278.8262 | Y48: 0.05532445256 | Z48: 34.2207 | AA48: 0.7060971823 | AB48: 0.02760675202 | AC48: 0.553067521 | AD48: 531.53 | AE48: 0.215081868 | AF48: -17.7553078 | AG48: 0.2240181998 | AH48: 0.4956647393 | AI48: -0.2590492729 | AJ48: 18.40019475 | AK48: -0.001016169271 | AL48: 0.001619957949 | AM48: -1.429556242 | AN48: 7.539207965 | AO48: 7.589678366 | AP48: 7.245797879 | AQ48: 7.323456241 | AR48: pH
A49: 0x66F5 | B49: pH | C49: 2020-05-06T02:43:22 | D49: 1588732995 | E49: 501.07 | F49: 5.7681 | G49: 34.19 | H49: 984 | I49: 45 | J49: 0 | K49: 5.52 | L49: 1.14 | M49: 14.36 | N49: 0.044 | O49: 7.1234 | P49: 3.436 | Q49: -0.983289 | R49: 2.7e-05 | S49: -0.978124 | T49: 1.8e-05 | U49: 7.993e-09 | V49: 3.538e-10 | W49: 5.7681 | X49: 278.9181 | Y49: 0.05534268728 | Z49: 34.19 | AA49: 0.7054411894 | AB49: 0.02758198551 | AC49: 0.552554002 | AD49: 501.07 | AE49: 0.2140264412 | AF49: -17.75069291 | AG49: 0.2223944604 | AH49: 0.4957304013 | AI49: -0.2591481085 | AJ49: 18.40840503 | AK49: -0.0009583638406 | AL49: 0.001600471646 | AM49: -1.429667628 | AN49: 7.538619148 | AO49: 7.589394272 | AP49: 7.245524864 | AQ49: 7.323224149 | AR49: pH
A50: 0x2A5B | B50: pH | C50: 2020-05-06T02:54:22 | D50: 1588733655 | E50: 450.44 | F50: 5.9538 | G50: 34.1446 | H50: 985 | I50: 45 | J50: 0 | K50: 5.71 | L50: 1.15 | M50: 14.404 | N50: 0.044 | O50: 7.1234 | P50: 3.437 | Q50: -0.982947 | R50: 2.2e-05 | S50: -0.978395 | T50: 3e-05 | U50: 8.446e-09 | V50: 2.329e-09 | W50: 5.9538 | X50: 279.1038 | Y50: 0.05537953371 | Z50: 34.1446 | AA50: 0.704471166 | AB50: 0.02754536012 | AC50: 0.551794653 | AD50: 450.44 | AE50: 0.2120036592 | AF50: -17.74135144 | AG50: 0.2194315222 | AH50: 0.4958632596 | AI50: -0.2593294778 | AJ50: 18.4249275 | AK50: -0.0008623004125 | AL50: 0.001548351686 | AM50: -1.429905448 | AN50: 7.540585757 | AO50: 7.591943045 | AP50: 7.248523189 | AQ50: 7.326305166 | AR50: pH
A51: 0xE93E | B51: pH | C51: 2020-05-06T03:06:22 | D51: 1588734375 | E51: 389.31 | F51: 6.379 | G51: 34.097 | H51: 986 | I51: 45 | J51: 0 | K51: 5.96 | L51: 1.15 | M51: 14.388 | N51: 0.044 | O51: 7.1234 | P51: 3.438 | Q51: -0.981893 | R51: 2.2e-05 | S51: -0.978549 | T51: 3e-05 | U51: 7.903e-09 | V51: 1.324e-09 | W51: 6.379 | X51: 279.529 | Y51: 0.05546390153 | Z51: 34.097 | AA51: 0.7034542355 | AB51: 0.02750695993 | AC51: 0.5509985806 | AD51: 389.31 | AE51: 0.2077570746 | AF51: -17.71988004 | AG51: 0.2140161464 | AH51: 0.4961683583 | AI51: -0.2596835008 | AJ51: 18.4624174 | AK51: -0.0007467925574 | AL51: 0.001452590721 | AM51: -1.430426409 | AN51: 7.552431614 | AO51: 7.60494376 | AP51: 7.264706534 | AQ51: 7.342677853 | AR51: pH
A52: 0x577B | B52: pH | C52: 2020-05-06T03:12:21 | D52: 1588734734 | E52: 358.87 | F52: 6.6425 | G52: 34.0873 | H52: 987 | I52: 45 | J52: 0 | K52: 6.17 | L52: 1.17 | M52: 14.372 | N52: 0.0442 | O52: 7.1234 | P52: 3.438 | Q52: -0.981211 | R52: 2.2e-05 | S52: -0.978562 | T52: 1.9e-05 | U52: 8.48e-09 | V52: -5.352e-10 | W52: 6.6425 | X52: 279.7925 | Y52: 0.05551618497 | Z52: 34.0873 | AA52: 0.7032470162 | AB52: 0.02749913468 | AC52: 0.550836365 | AD52: 358.87 | AE52: 0.2052807965 | AF52: -17.70651669 | AG52: 0.2109652761 | AH52: 0.4963580529 | AI52: -0.259881794 | AJ52: 18.48541139 | AK52: -0.000689258501 | AL52: 0.001391510688 | AM52: -1.430750989 | AN52: 7.560864831 | AO52: 7.614077425 | AP52: 7.276102507 | AQ52: 7.354191162 | AR52: pH
A53: 0x52A5 | B53: pH | C53: 2020-05-06T03:18:20 | D53: 1588735093 | E53: 333.16 | F53: 6.8384 | G53: 34.0735 | H53: 988 | I53: 45 | J53: 0 | K53: 6.38 | L53: 1.17 | M53: 14.372 | N53: 0.0442 | O53: 7.1234 | P53: 3.439 | Q53: -0.980568 | R53: 1.6e-05 | S53: -0.978544 | T53: 2e-05 | U53: 8.199e-09 | V53: 1.219e-10 | W53: 6.8384 | X53: 279.9884 | Y53: 0.05555505528 | Z53: 34.0735 | AA53: 0.7029522166 | AB53: 0.02748800186 | AC53: 0.5506055893 | AD53: 333.16 | AE53: 0.2034315922 | AF53: -17.69655323 | AG53: 0.2086494746 | AH53: 0.4964993908 | AI53: -0.260036499 | AJ53: 18.50238791 | AK53: -0.0006404666078 | AL53: 0.00133298415 | AM53: -1.431005416 | AN53: 7.569585327 | AO53: 7.62333295 | AP53: 7.286919342 | AQ53: 7.365095232 | AR53: pH
A54: 0xC828 | B54: pH | C54: 2020-05-06T03:19:55 | D54: 1588735188 | E54: 327.35 | F54: 6.9022 | G54: 34.0736 | H54: 989 | I54: 45 | J54: 0 | K54: 6.51 | L54: 1.2 | M54: 14.208 | N54: 0.0444 | O54: 7.1234 | P54: 3.439 | Q54: -0.980311 | R54: 1.8e-05 | S54: -0.978403 | T54: 3.1e-05 | U54: 7.021e-09 | V54: 3.021e-10 | W54: 6.9022 | X54: 280.0522 | Y54: 0.05556771442 | Z54: 34.0736 | AA54: 0.7029543528 | AB54: 0.02748808253 | AC54: 0.5506072616 | AD54: 327.35 | AE54: 0.2028567176 | AF54: -17.69330312 | AG54: 0.2079658543 | AH54: 0.496545478 | AI54: -0.2600819817 | AJ54: 18.50789496 | AK54: -0.0006294847709 | AL54: 0.001318878126 | AM54: -1.431083322 | AN54: 7.573354554 | AO54: 7.627268476 | AP54: 7.29146388 | AQ54: 7.369668179 | AR54: pH
A55: 0x1F07 | B55: pH | C55: 2020-05-06T03:26:15 | D55: 1588735568 | E55: 297.64 | F55: 7.271 | G55: 34.0712 | H55: 990 | I55: 45 | J55: 0 | K55: 6.73 | L55: 1.21 | M55: 14.332 | N55: 0.044 | O55: 7.1234 | P55: 3.44 | Q55: -0.979592 | R55: 3.1e-05 | S55: -0.978643 | T55: 2.4e-05 | U55: 8.386e-09 | V55: 2.608e-10 | W55: 7.271 | X55: 280.421 | Y55: 0.05564089139 | Z55: 34.0712 | AA55: 0.7029030841 | AB55: 0.02748614638 | AC55: 0.5505671273 | AD55: 297.64 | AE55: 0.1995594805 | AF55: -17.67446529 | AG55: 0.2041132536 | AH55: 0.4968124354 | AI55: -0.2603485102 | AJ55: 18.53951885 | AK55: -0.000573331246 | AL55: 0.001241674149 | AM55: -1.431529326 | AN55: 7.581347494 | AO55: 7.636213719 | AP55: 7.304084514 | AQ55: 7.38245304 | AR55: pH
A56: 0xA284 | B56: pH | C56: 2020-05-06T03:27:50 | D56: 1588735663 | E56: 290.18 | F56: 7.332 | G56: 34.0686 | H56: 991 | I56: 45 | J56: 0 | K56: 6.88 | L56: 1.23 | M56: 14.192 | N56: 0.0446 | O56: 7.1234 | P56: 3.44 | Q56: -0.979336 | R56: 1.3e-05 | S56: -0.97855 | T56: 1.3e-05 | U56: 8.344e-09 | V56: 1.108e-09 | W56: 7.332 | X56: 280.482 | Y56: 0.05565299496 | Z56: 34.0686 | AA56: 0.7028475434 | AB56: 0.02748404889 | AC56: 0.5505236487 | AD56: 290.18 | AE56: 0.1990101497 | AF56: -17.6713412 | AG56: 0.2034345463 | AH56: 0.4968566804 | AI56: -0.2603950185 | AJ56: 18.54471498 | AK56: -0.0005591180279 | AL56: 0.001220956137 | AM56: -1.431611044 | AN56: 7.585141166 | AO56: 7.640175369 | AP56: 7.308553552 | AQ56: 7.386949242 | AR56: pH
A57: 0x8A0A | B57: pH | C57: 2020-05-06T03:34:09 | D57: 1588736042 | E57: 251.86 | F57: 7.9196 | G57: 34.0776 | H57: 992 | I57: 45 | J57: 0 | K57: 7.1 | L57: 1.25 | M57: 14.336 | N57: 0.044 | O57: 7.1234 | P57: 3.441 | Q57: -0.978754 | R57: 2.3e-05 | S57: -0.978964 | T57: 1.9e-05 | U57: 8.372e-09 | V57: 2.163e-09 | W57: 7.9196 | X57: 281.0696 | Y57: 0.05576958604 | Z57: 34.0776 | AA57: 0.7030398011 | AB57: 0.02749130943 | AC57: 0.5506741524 | AD57: 251.86 | AE57: 0.1939738446 | AF57: -17.6411271 | AG57: 0.1976970172 | AH57: 0.4972841905 | AI57: -0.2608076524 | AJ57: 18.59426664 | AK57: -0.0004865798383 | AL57: 0.001106102729 | AM57: -1.432313497 | AN57: 7.588061818 | AO57: 7.644607575 | AP57: 7.319198691 | AQ57: 7.397856038 | AR57: pH
A58: 0x874D | B58: pH | C58: 2020-05-06T03:40:07 | D58: 1588736401 | E58: 216.67 | F58: 8.1868 | G58: 34.0524 | H58: 993 | I58: 45 | J58: 0 | K58: 7.35 | L58: 1.28 | M58: 14.376 | N58: 0.044 | O58: 7.1234 | P58: 3.441 | Q58: -0.977775 | R58: 2.1e-05 | S58: -0.979155 | T58: 3.1e-05 | U58: 8.118e-09 | V58: -7.566e-11 | W58: 8.1868 | X58: 281.3368 | Y58: 0.05582260363 | Z58: 34.0524 | AA58: 0.7025014886 | AB58: 0.02747097992 | AC58: 0.5502527488 | AD58: 216.67 | AE58: 0.1916047074 | AF58: -17.62731563 | AG58: 0.1947588277 | AH58: 0.4974793761 | AI58: -0.2610270269 | AJ58: 18.61649874 | AK58: -0.0004190951597 | AL58: 0.0009881991487 | AM58: -1.432698601 | AN58: 7.602229088 | AO58: 7.659534246 | AP58: 7.336252133 | AQ58: 7.415028465 | AR58: pH
A59: 0x9D88 | B59: pH | C59: 2020-05-06T03:46:07 | D59: 1588736760 | E59: 184.8 | F59: 8.5792 | G59: 34.0133 | H59: 994 | I59: 45 | J59: 0 | K59: 7.62 | L59: 1.31 | M59: 14.392 | N59: 0.044 | O59: 7.1234 | P59: 3.442 | Q59: -0.976417 | R59: 3.4e-05 | S59: -0.979477 | T59: 8e-06 | U59: 7.33e-09 | V59: 1.861e-09 | W59: 8.5792 | X59: 281.7292 | Y59: 0.0559004633 | Z59: 34.0133 | AA59: 0.7016663057 | AB59: 0.02743943691 | AC59: 0.5495989459 | AD59: 184.8 | AE59: 0.1881843066 | AF59: -17.60695084 | AG59: 0.1908165181 | AH59: 0.4977669062 | AI59: -0.26135177 | AJ59: 18.64880736 | AK59: -0.0003580707832 | AL59: 0.0008711484271 | AM59: -1.433208052 | AN59: 7.621271091 | AO59: 7.679621226 | AP59: 7.360253994 | AQ59: 7.439205062 | AR59: pH
A60: 0x5A5C | B60: pH | C60: 2020-05-06T03:52:05 | D60: 1588737119 | E60: 155.6 | F60: 9.1017 | G60: 33.9643 | H60: 995 | I60: 45 | J60: 0 | K60: 7.89 | L60: 1.31 | M60: 14.4 | N60: 0.0438 | O60: 7.1234 | P60: 3.443 | Q60: -0.974702 | R60: 1.1e-05 | S60: -0.978954 | T60: 3.1e-05 | U60: 8.016e-09 | V60: 1.073e-09 | W60: 9.1017 | X60: 282.2517 | Y60: 0.0560041373 | Z60: 33.9643 | AA60: 0.700619753 | AB60: 0.0273999073 | AC60: 0.5487796735 | AD60: 155.6 | AE60: 0.1837657252 | AF60: -17.57968304 | AG60: 0.1859202199 | AH60: 0.4981514063 | AI60: -0.2617816245 | AJ60: 18.6911988 | AK60: -0.0003021778353 | AL60: 0.0007553342272 | AM60: -1.433846366 | AN60: 7.644689518 | AO60: 7.704394728 | AP60: 7.390772306 | AQ60: 7.469956043 | AR60: pH
A61: 0x5C44 | B61: pH | C61: 2020-05-06T03:58:05 | D61: 1588737479 | E61: 129.13 | F61: 9.3013 | G61: 33.8978 | H61: 996 | I61: 45 | J61: 0 | K61: 8.23 | L61: 1.36 | M61: 14.408 | N61: 0.0438 | O61: 7.1234 | P61: 3.444 | Q61: -0.973394 | R61: 2.3e-05 | S61: -0.978708 | T61: 2.7e-05 | U61: 7.657e-09 | V61: 6.759e-10 | W61: 9.3013 | X61: 282.4513 | Y61: 0.05604374176 | Z61: 33.8978 | AA61: 0.6991996021 | AB61: 0.02734625998 | AC61: 0.5476679307 | AD61: 129.13 | AE61: 0.1819147579 | AF61: -17.56922094 | AG61: 0.1836806607 | AH61: 0.4982987835 | AI61: -0.2619957019 | AJ61: 18.70720306 | AK61: -0.00025098737 | AL61: 0.0006432662549 | AM61: -1.434158034 | AN61: 7.665170972 | AO61: 7.7254454 | AP61: 7.413423608 | AQ61: 7.492696227 | AR61: pH
A62: 0x7F57 | B62: pH | C62: 2020-05-06T04:04:06 | D62: 1588737839 | E62: 113 | F62: 9.5743 | G62: 33.7948 | H62: 997 | I62: 45 | J62: 0 | K62: 8.53 | L62: 1.37 | M62: 14.412 | N62: 0.0438 | O62: 7.1234 | P62: 3.444 | Q62: -0.972116 | R62: 1.7e-05 | S62: -0.978383 | T62: 1.8e-05 | U62: 7.066e-09 | V62: 6.041e-10 | W62: 9.5743 | X62: 282.7243 | Y62: 0.05609791018 | Z62: 33.7948 | AA62: 0.6970003578 | AB62: 0.02726316713 | AC62: 0.5459462719 | AD62: 113 | AE62: 0.1793757477 | AF62: -17.55487078 | AG62: 0.1808958532 | AH62: 0.4985007989 | AI62: -0.2623001981 | AJ62: 18.72892286 | AK62: -0.000219890821 | AL62: 0.0005716733167 | AM62: -1.434502627 | AN62: 7.683165902 | AO62: 7.744132526 | AP62: 7.435111373 | AQ62: 7.514505558 | AR62: pH
A63: 0xCEF7 | B63: pH | C63: 2020-05-06T04:10:05 | D63: 1588738199 | E63: 101.96 | F63: 9.8236 | G63: 33.7252 | H63: 998 | I63: 45 | J63: 0 | K63: 8.84 | L63: 1.34 | M63: 14.424 | N63: 0.0438 | O63: 7.1234 | P63: 3.445 | Q63: -0.971251 | R63: 1.7e-05 | S63: -0.978251 | T63: 1.7e-05 | U63: 7.158e-09 | V63: 1.115e-09 | W63: 9.8236 | X63: 282.9736 | Y63: 0.05614737607 | Z63: 33.7252 | AA63: 0.6955145334 | AB63: 0.02720701895 | AC63: 0.5447830972 | AD63: 101.96 | AE63: 0.1771971737 | AF63: -17.54172526 | AG63: 0.1785493338 | AH63: 0.4986857234 | AI63: -0.2625524955 | AJ63: 18.74858574 | AK63: -0.0001986159841 | AL63: 0.00052123082 | AM63: -1.434802369 | AN63: 7.694413417 | AO63: 7.756008436 | AP63: 7.449869146 | AQ63: 7.529374345 | AR63: pH
A64: 0x2D2A | B64: pH | C64: 2020-05-06T04:16:31 | D64: 1588738585 | E64: 82.5 | F64: 10.2242 | G64: 33.6151 | H64: 999 | I64: 45 | J64: 0 | K64: 9.13 | L64: 1.39 | M64: 14.416 | N64: 0.0436 | O64: 7.1234 | P64: 3.446 | Q64: -0.970309 | R64: 1.8e-05 | S64: -0.978695 | T64: 2.3e-05 | U64: 7.842e-09 | V64: 1.683e-09 | W64: 10.2242 | X64: 283.3742 | Y64: 0.05622686277 | Z64: 33.6151 | AA64: 0.6931645521 | AB64: 0.02711819834 | AC64: 0.5429434022 | AD64: 82.5 | AE64: 0.1737780635 | AF64: -17.52051945 | AG64: 0.1748474428 | AH64: 0.4989837713 | AI64: -0.2629553095 | AJ64: 18.77983939 | AK64: -0.0001609762027 | AL64: 0.0004294644544 | AM64: -1.435294736 | AN64: 7.704610373 | AO64: 7.76722858 | AP64: 7.465656701 | AQ64: 7.545340287 | AR64: pH
A65: 0x297E | B65: pH | C65: 2020-05-06T04:22:32 | D65: 1588738945 | E65: 75.32 | F65: 10.6433 | G65: 33.5652 | H65: 1000 | I65: 45 | J65: 0 | K65: 9.42 | L65: 1.39 | M65: 14.432 | N65: 0.0436 | O65: 7.1234 | P65: 3.447 | Q65: -0.968971 | R65: 2.2e-05 | S65: -0.978396 | T65: 1.6e-05 | U65: 7.348e-09 | V65: 1.743e-09 | W65: 10.6433 | X65: 283.7933 | Y65: 0.05631002023 | Z65: 33.5652 | AA65: 0.6920996606 | AB65: 0.02707794268 | AC65: 0.5421097396 | AD65: 75.32 | AE65: 0.1705392144 | AF65: -17.49822579 | AG65: 0.1714944341 | AH65: 0.4992967617 | AI65: -0.2633108193 | AJ65: 18.81208426 | AK65: -0.0001472187354 | AL65: 0.0003946869438 | AM65: -1.435748613 | AN65: 7.721864422 | AO65: 7.785533227 | AP65: 7.489247056 | AQ65: 7.569117268 | AR65: pH
A66: 0x3971 | B66: pH | C66: 2020-05-06T04:28:57 | D66: 1588739330 | E66: 66.68 | F66: 11.3368 | G66: 33.5355 | H66: 1001 | I66: 45 | J66: 0 | K66: 9.77 | L66: 1.43 | M66: 14.428 | N66: 0.0436 | O66: 7.1234 | P66: 3.448 | Q66: -0.967224 | R66: 1.8e-05 | S66: -0.978825 | T66: 1.6e-05 | U66: 7.868e-09 | V66: 1.174e-10 | W66: 11.3368 | X66: 284.4868 | Y66: 0.0564476239 | Z66: 33.5355 | AA66: 0.6914659 | AB66: 0.0270539829 | AC66: 0.5416135907 | AD66: 66.68 | AE66: 0.1655396437 | AF66: -17.46109184 | AG66: 0.1663564885 | AH66: 0.4998173248 | AI66: -0.2638477711 | AJ66: 18.86442561 | AK66: -0.0001306938145 | AL66: 0.000352180817 | AM66: -1.436484619 | AN66: 7.742620142 | AO66: 7.808060381 | AP66: 7.520638186 | AQ66: 7.600817213 | AR66: pH
A67: 0x6A28 | B67: pH | C67: 2020-05-06T04:35:22 | D67: 1588739716 | E67: 56.32 | F67: 12.5546 | G67: 33.5423 | H67: 1002 | I67: 45 | J67: 0 | K67: 10.17 | L67: 1.47 | M67: 14.436 | N67: 0.0436 | O67: 7.1234 | P67: 3.45 | Q67: -0.965241 | R67: 3.8e-05 | S67: -0.980814 | T67: 2.5e-05 | U67: 8.615e-09 | V67: 9.672e-10 | W67: 12.5546 | X67: 285.7046 | Y67: 0.05668925872 | Z67: 33.5423 | AA67: 0.691611 | AB67: 0.02705946864 | AC67: 0.5417271845 | AD67: 56.32 | AE67: 0.1574042455 | AF67: -17.39514836 | AG67: 0.1580547483 | AH67: 0.5007394278 | AI67: -0.264738314 | AJ67: 18.95327498 | AK67: -0.0001109079725 | AL67: 0.0003002668684 | AM67: -1.437754333 | AN67: 7.760217668 | AO67: 7.828849895 | AP67: 7.557187782 | AQ67: 7.637909096 | AR67: pH
A68: 0x1DD6 | B68: pH | C68: 2020-05-06T04:41:47 | D68: 1588740101 | E68: 41.2 | F68: 13.6894 | G68: 33.5293 | H68: 1003 | I68: 45 | J68: 0 | K68: 10.74 | L68: 1.53 | M68: 14.448 | N68: 0.0434 | O68: 7.1234 | P68: 3.451 | Q68: -0.959895 | R68: 2.2e-05 | S68: -0.978732 | T68: 1.3e-05 | U68: 7.884e-09 | V68: 1.857e-10 | W68: 13.6894 | X68: 286.8394 | Y68: 0.05691442475 | Z68: 33.5293 | AA68: 0.6913336047 | AB68: 0.02704898119 | AC68: 0.5415100212 | AD68: 41.2 | AE68: 0.1502212689 | AF68: -17.33285566 | AG68: 0.150671747 | AH68: 0.5016078413 | AI68: -0.2655940288 | AJ68: 19.03255539 | AK68: -8.147233715e-05 | AL68: 0.0002226491326 | AM68: -1.438966751 | AN68: 7.837837562 | AO68: 7.909543822 | AP68: 7.652391072 | AQ68: 7.733617712 | AR68: pH
A69: 0xA2AD | B69: pH | C69: 2020-05-06T04:42:53 | D69: 1588740167 | E69: 39.61 | F69: 13.7845 | G69: 33.5285 | H69: 1004 | I69: 45 | J69: 0 | K69: 10.92 | L69: 1.54 | M69: 14.356 | N69: 0.0436 | O69: 7.1234 | P69: 3.451 | Q69: -0.959012 | R69: 2.6e-05 | S69: -0.978233 | T69: 1.4e-05 | U69: 7.127e-09 | V69: 7.161e-10 | W69: 13.7845 | X69: 286.9345 | Y69: 0.05693329441 | Z69: 33.5285 | AA69: 0.6913165345 | AB69: 0.02704833581 | AC69: 0.5414966575 | AD69: 39.61 | AE69: 0.1496396128 | AF69: -17.32759837 | AG69: 0.1500707299 | AH69: 0.5016810185 | AI69: -0.2656657577 | AJ69: 19.03904543 | AK69: -7.835484736e-05 | AL69: 0.0002143592679 | AM69: -1.439070141 | AN69: 7.851971841 | AO69: 7.923941159 | AP69: 7.667992536 | AQ69: 7.749261523 | AR69: pH
A70: 0xCC0E | B70: pH | C70: 2020-05-06T04:43:58 | D70: 1588740232 | E70: 38.97 | F70: 13.8057 | G70: 33.5257 | H70: 1005 | I70: 45 | J70: 0 | K70: 11.14 | L70: 1.54 | M70: 14.3 | N70: 0.0436 | O70: 7.1234 | P70: 3.452 | Q70: -0.958519 | R70: 1.7e-05 | S70: -0.977893 | T70: 3.8e-05 | U70: 7.493e-09 | V70: 1.76e-09 | W70: 13.8057 | X70: 286.9557 | Y70: 0.05693750089 | Z70: 33.5257 | AA70: 0.6912567889 | AB70: 0.02704607697 | AC70: 0.5414498847 | AD70: 38.97 | AE70: 0.1495023602 | AF70: -17.32642562 | AG70: 0.1499260525 | AH70: 0.5016973398 | AI70: -0.2656842818 | AJ70: 19.04048896 | AK70: -7.709467095e-05 | AL70: 0.0002110156083 | AM70: -1.439094684 | AN70: 7.860300005 | AO70: 7.932327776 | AP70: 7.676637647 | AQ70: 7.757916075 | AR70: pH
A71: 0x6205 | B71: pH | C71: 2020-05-06T04:45:03 | D71: 1588740297 | E71: 38.81 | F71: 13.8501 | G71: 33.5275 | H71: 1006 | I71: 45 | J71: 0 | K71: 11.37 | L71: 1.58 | M71: 14.268 | N71: 0.0436 | O71: 7.1234 | P71: 3.452 | Q71: -0.958053 | R71: 2.5e-05 | S71: -0.977427 | T71: 2.8e-05 | U71: 8.561e-09 | V71: 4.126e-10 | W71: 13.8501 | X71: 287.0001 | Y71: 0.0569463107 | Z71: 33.5275 | AA71: 0.6912951967 | AB71: 0.02704752908 | AC71: 0.5414799529 | AD71: 38.81 | AE71: 0.1492387221 | AF71: -17.32396855 | AG71: 0.1496598033 | AH71: 0.5017315322 | AI71: -0.2657156953 | AJ71: 19.04350838 | AK71: -7.679031704e-05 | AL71: 0.0002101790783 | AM71: -1.439139921 | AN71: 7.867838467 | AO71: 7.939987867 | AP71: 7.68488233 | AQ71: 7.766180529 | AR71: pH
A72: 0x6D07 | B72: pH | C72: 2020-05-06T04:46:08 | D72: 1588740362 | E72: 38.59 | F72: 13.8727 | G72: 33.5273 | H72: 1007 | I72: 45 | J72: 0 | K72: 11.59 | L72: 1.54 | M72: 14.252 | N72: 0.0436 | O72: 7.1234 | P72: 3.452 | Q72: -0.957664 | R72: 2.6e-05 | S72: -0.977096 | T72: 1.3e-05 | U72: 9.284e-09 | V72: 1.198e-09 | W72: 13.8727 | X72: 287.0227 | Y72: 0.05695079498 | Z72: 33.5273 | AA72: 0.6912909292 | AB72: 0.02704736774 | AC72: 0.541476612 | AD72: 38.59 | AE72: 0.149101371 | AF72: -17.32271741 | AG72: 0.1495196133 | AH72: 0.5017489416 | AI72: -0.2657327651 | AJ72: 19.0450433 | AK72: -7.636117448e-05 | AL72: 0.0002090284477 | AM72: -1.439163672 | AN72: 7.874331317 | AO72: 7.946542643 | AP72: 7.691729756 | AQ72: 7.773038019 | AR72: pH
A73: 0x0F89 | B73: pH | C73: 2020-05-06T04:47:13 | D73: 1588740427 | E73: 37.84 | F73: 13.8878 | G73: 33.5283 | H73: 1008 | I73: 45 | J73: 0 | K73: 11.8 | L73: 1.57 | M73: 14.244 | N73: 0.0436 | O73: 7.1234 | P73: 3.453 | Q73: -0.957421 | R73: 2.1e-05 | S73: -0.977146 | T73: 3.6e-05 | U73: 6.368e-09 | V73: 1.008e-09 | W73: 13.8878 | X73: 287.0378 | Y73: 0.0569537911 | Z73: 33.5283 | AA73: 0.6913122669 | AB73: 0.02704817446 | AC73: 0.5414933166 | AD73: 37.84 | AE73: 0.149013128 | AF73: -17.32188129 | AG73: 0.1494229464 | AH73: 0.5017605756 | AI73: -0.2657430794 | AJ73: 19.0460681 | AK73: -7.488111748e-05 | AL73: 0.0002051023475 | AM73: -1.439182698 | AN73: 7.878419891 | AO73: 7.950676239 | AP73: 7.696033654 | AQ73: 7.777348641 | AR73: pH
A74: 0xE4D4 | B74: pH | C74: 2020-05-06T04:48:44 | D74: 1588740518 | E74: 35.79 | F74: 14.0186 | G74: 33.5246 | H74: 1009 | I74: 45 | J74: 0 | K74: 12.05 | L74: 1.56 | M74: 14.236 | N74: 0.0436 | O74: 7.1234 | P74: 3.453 | Q74: -0.95701 | R74: 2.3e-05 | S74: -0.976929 | T74: 1.2e-05 | U74: 7.34e-09 | V74: 8.649e-10 | W74: 14.0186 | X74: 287.1686 | Y74: 0.05697974433 | Z74: 33.5246 | AA74: 0.6912333175 | AB74: 0.02704518958 | AC74: 0.5414315097 | AD74: 35.79 | AE74: 0.1482143563 | AF74: -17.31463256 | AG74: 0.1485995289 | AH74: 0.501861417 | AI74: -0.265844382 | AJ74: 19.05492001 | AK74: -7.08573139e-05 | AL74: 0.0001943434221 | AM74: -1.439324257 | AN74: 7.88367867 | AO74: 7.956296332 | AP74: 7.703317815 | AQ74: 7.784691047 | AR74: pH
A75: 0x18AC | B75: pH | C75: 2020-05-06T04:49:49 | D75: 1588740583 | E75: 32.18 | F75: 14.1612 | G75: 33.5314 | H75: 1010 | I75: 45 | J75: 0 | K75: 12.24 | L75: 1.57 | M75: 14.24 | N75: 0.0434 | O75: 7.1234 | P75: 3.453 | Q75: -0.957014 | R75: 1.6e-05 | S75: -0.977129 | T75: 1.5e-05 | U75: 7.593e-09 | V75: 1.685e-09 | W75: 14.1612 | X75: 287.3112 | Y75: 0.05700803889 | Z75: 33.5314 | AA75: 0.6913784142 | AB75: 0.02705067532 | AC75: 0.5415451011 | AD75: 32.18 | AE75: 0.1473821411 | AF75: -17.30671757 | AG75: 0.1477261445 | AH75: 0.5019714895 | AI75: -0.2659445053 | AJ75: 19.06451919 | AK75: -6.374230336e-05 | AL75: 0.0001752990238 | AM75: -1.439485901 | AN75: 7.881703975 | AO75: 7.954730444 | AP75: 7.703503683 | AQ75: 7.784940415 | AR75: pH
A76: 0xBC07 | B76: pH | C76: 2020-05-06T04:50:54 | D76: 1588740648 | E76: 28.15 | F76: 14.381 | G76: 33.533 | H76: 1011 | I76: 45 | J76: 0 | K76: 12.45 | L76: 1.59 | M76: 14.24 | N76: 0.0434 | O76: 7.1234 | P76: 3.454 | Q76: -0.956975 | R76: 2.4e-05 | S76: -0.977553 | T76: 3.8e-05 | U76: 7.774e-09 | V76: 1.54e-10 | W76: 14.381 | X76: 287.531 | Y76: 0.05705165142 | Z76: 33.533 | AA76: 0.6914125549 | AB76: 0.02705196608 | AC76: 0.5415718287 | AD76: 28.15 | AE76: 0.1460849601 | AF76: -17.29449244 | AG76: 0.1463827518 | AH76: 0.5021414256 | AI76: -0.2661075948 | AJ76: 19.07921028 | AK76: -5.580262772e-05 | AL76: 0.0001538909702 | AM76: -1.439727109 | AN76: 7.879245549 | AO76: 7.95289168 | AP76: 7.704434022 | AQ76: 7.785968631 | AR76: pH
A77: 0x2B52 | B77: pH | C77: 2020-05-06T04:51:59 | D77: 1588740713 | E77: 24.51 | F77: 14.4075 | G77: 33.5325 | H77: 1012 | I77: 45 | J77: 0 | K77: 12.63 | L77: 1.61 | M77: 14.24 | N77: 0.0434 | O77: 7.1234 | P77: 3.454 | Q77: -0.95673 | R77: 1.8e-05 | S77: -0.977374 | T77: 2.2e-05 | U77: 7.636e-09 | V77: 6.678e-10 | W77: 14.4075 | X77: 287.5575 | Y77: 0.05705690953 | Z77: 33.5325 | AA77: 0.6914018859 | AB77: 0.02705156272 | AC77: 0.5415634763 | AD77: 24.51 | AE77: 0.1459275289 | AF77: -17.29301647 | AG77: 0.1461864545 | AH77: 0.5021619362 | AI77: -0.2661279398 | AJ77: 19.08097291 | AK77: -4.859143028e-05 | AL77: 0.0001344204943 | AM77: -1.43977308 | AN77: 7.883321625 | AO77: 7.957057696 | AP77: 7.708805929 | AQ77: 7.790352339 | AR77: pH
A78: 0x9802 | B78: pH | C78: 2020-05-06T04:53:04 | D78: 1588740778 | E78: 21.54 | F78: 14.4067 | G78: 33.5334 | H78: 1013 | I78: 45 | J78: 0 | K78: 12.81 | L78: 1.63 | M78: 14.24 | N78: 0.0436 | O78: 7.1234 | P78: 3.454 | Q78: -0.95648 | R78: 1.6e-05 | S78: -0.977123 | T78: 1.5e-05 | U78: 8.091e-09 | V78: 1.038e-09 | W78: 14.4067 | X78: 287.5567 | Y78: 0.05705675079 | Z78: 33.5334 | AA78: 0.6914210901 | AB78: 0.02705228877 | AC78: 0.5415785106 | AD78: 21.54 | AE78: 0.1459348785 | AF78: -17.29306103 | AG78: 0.146162417 | AH78: 0.5021613169 | AI78: -0.2661264767 | AJ78: 19.08091973 | AK78: -4.27032432e-05 | AL78: 0.0001184395257 | AM78: -1.43978826 | AN78: 7.887890791 | AO78: 7.961639835 | AP78: 7.713255803 | AQ78: 7.794801856 | AR78: pH
A79: 0x70E9 | B79: pH | C79: 2020-05-06T04:54:11 | D79: 1588740844 | E79: 18.27 | F79: 14.4051 | G79: 33.532 | H79: 1014 | I79: 45 | J79: 0 | K79: 12.98 | L79: 1.65 | M79: 14.244 | N79: 0.0434 | O79: 7.1234 | P79: 3.454 | Q79: -0.956277 | R79: 2e-05 | S79: -0.97685 | T79: 1.5e-05 | U79: 7.848e-09 | V79: 1.169e-09 | W79: 14.4051 | X79: 287.5551 | Y79: 0.05705643332 | Z79: 33.532 | AA79: 0.6913912169 | AB79: 0.02705115935 | AC79: 0.5415551239 | AD79: 18.27 | AE79: 0.1459401754 | AF79: -17.29315016 | AG79: 0.1461331574 | AH79: 0.5021600784 | AI79: -0.2661266202 | AJ79: 19.08081335 | AK79: -3.622023695e-05 | AL79: 0.0001007462585 | AM79: -1.439804354 | AN79: 7.891633673 | AO79: 7.965393466 | AP79: 7.716855773 | AQ79: 7.798401114 | AR79: pH
A80: 0x9D83 | B80: pH | C80: 2020-05-06T04:55:15 | D80: 1588740909 | E80: 16.1 | F80: 14.4064 | G80: 33.5332 | H80: 1015 | I80: 45 | J80: 0 | K80: 13.16 | L80: 1.67 | M80: 14.244 | N80: 0.0432 | O80: 7.1234 | P80: 3.455 | Q80: -0.956114 | R80: 2.8e-05 | S80: -0.976664 | T80: 2.4e-05 | U80: 8.304e-09 | V80: 7.73e-10 | W80: 14.4064 | X80: 287.5564 | Y80: 0.05705669127 | Z80: 33.5332 | AA80: 0.6914168225 | AB80: 0.02705212742 | AC80: 0.5415751696 | AD80: 16.1 | AE80: 0.1459360553 | AF80: -17.29307774 | AG80: 0.1461060964 | AH80: 0.5021610847 | AI80: -0.2661264437 | AJ80: 19.08089978 | AK80: -3.191836104e-05 | AL80: 8.89481245e-05 | AM80: -1.439817452 | AN80: 7.894608384 | AO80: 7.968383169 | AP80: 7.719773638 | AQ80: 7.801319558 | AR80: pH
A81: 0x24FF | B81: pH | C81: 2020-05-06T04:56:20 | D81: 1588740974 | E81: 14.73 | F81: 14.4055 | G81: 33.5327 | H81: 1016 | I81: 45 | J81: 0 | K81: 13.34 | L81: 1.67 | M81: 14.248 | N81: 0.0432 | O81: 7.1234 | P81: 3.455 | Q81: -0.95598 | R81: 4.1e-05 | S81: -0.976474 | T81: 2.7e-05 | U81: 8.882e-09 | V81: 7.438e-10 | W81: 14.4055 | X81: 287.5555 | Y81: 0.05705651269 | Z81: 33.5327 | AA81: 0.6914061535 | AB81: 0.02705172406 | AC81: 0.5415668172 | AD81: 14.73 | AE81: 0.1459398796 | AF81: -17.29312788 | AG81: 0.1460954487 | AH81: 0.502160388 | AI81: -0.2661262486 | AJ81: 19.08083995 | AK81: -2.920223502e-05 | AL81: 8.147622633e-05 | AM81: -1.439824024 | AN81: 7.89704028 | AO81: 7.970818998 | AP81: 7.722141965 | AQ81: 7.803687484 | AR81: pH
A82: 0x1FBA | B82: pH | C82: 2020-05-06T04:57:25 | D82: 1588741039 | E82: 13.23 | F82: 14.4043 | G82: 33.5332 | H82: 1017 | I82: 45 | J82: 0 | K82: 13.49 | L82: 1.67 | M82: 14.252 | N82: 0.0432 | O82: 7.1234 | P82: 3.455 | Q82: -0.955994 | R82: 2.7e-05 | S82: -0.976472 | T82: 2.6e-05 | U82: 8.545e-09 | V82: -1.183e-10 | W82: 14.4043 | X82: 287.5543 | Y82: 0.05705627459 | Z82: 33.5332 | AA82: 0.6914168225 | AB82: 0.02705212742 | AC82: 0.5415751696 | AD82: 13.23 | AE82: 0.1459484075 | AF82: -17.29319472 | AG82: 0.1460881362 | AH82: 0.5021594592 | AI82: -0.2661248693 | AJ82: 19.08076016 | AK82: -2.622837433e-05 | AL82: 7.327462739e-05 | AM82: -1.439831025 | AN82: 7.89690489 | AO82: 7.970688016 | AP82: 7.721933522 | AQ82: 7.803478507 | AR82: pH
A83: 0x6FD3 | B83: pH | C83: 2020-05-06T04:58:30 | D83: 1588741104 | E83: 11.27 | F83: 14.4044 | G83: 33.5319 | H83: 1018 | I83: 45 | J83: 0 | K83: 13.65 | L83: 1.7 | M83: 14.252 | N83: 0.0432 | O83: 7.1234 | P83: 3.456 | Q83: -0.95585 | R83: 2e-05 | S83: -0.976275 | T83: 3.2e-05 | U83: 7.679e-09 | V83: -5.629e-10 | W83: 14.4044 | X83: 287.5544 | Y83: 0.05705629443 | Z83: 33.5319 | AA83: 0.6913890831 | AB83: 0.02705107868 | AC83: 0.5415534534 | AD83: 11.27 | AE83: 0.145943999 | AF83: -17.29318915 | AG83: 0.146063015 | AH83: 0.5021595366 | AI83: -0.2661261913 | AJ83: 19.08076681 | AK83: -2.234269703e-05 | AL83: 6.252528111e-05 | AM83: -1.439841875 | AN83: 7.89951918 | AO83: 7.973311345 | AP83: 7.724479188 | AQ83: 7.806024217 | AR83: pH
A84: 0x5940 | B84: pH | C84: 2020-05-06T04:59:51 | D84: 1588741185 | E84: 8.69 | F84: 14.4033 | G84: 33.5338 | H84: 1019 | I84: 45 | J84: 0 | K84: 13.81 | L84: 1.72 | M84: 14.252 | N84: 0.0432 | O84: 7.1234 | P84: 3.456 | Q84: -0.955778 | R84: 2.1e-05 | S84: -0.97616 | T84: 3.6e-05 | U84: 8.156e-09 | V84: 1.352e-09 | W84: 14.4033 | X84: 287.5533 | Y84: 0.05705607617 | Z84: 33.5338 | AA84: 0.6914296253 | AB84: 0.02705261146 | AC84: 0.5415851925 | AD84: 8.69 | AE84: 0.1459560533 | AF84: -17.29325042 | AG84: 0.1460478232 | AH84: 0.5021586851 | AI84: -0.266123544 | AJ84: 19.08069367 | AK84: -1.722779884e-05 | AL84: 4.831934128e-05 | AM84: -1.439854981 | AN84: 7.900972051 | AO84: 7.974775121 | AP84: 7.725821915 | AQ84: 7.807366454 | AR84: pH
A85: 0x89D7 | B85: pH | C85: 2020-05-06T05:01:06 | D85: 1588741260 | E85: 6.85 | F85: 14.401 | G85: 33.5331 | H85: 1020 | I85: 45 | J85: 0 | K85: 13.96 | L85: 1.73 | M85: 14.252 | N85: 0.043 | O85: 7.1234 | P85: 3.456 | Q85: -0.955582 | R85: 3.6e-05 | S85: -0.975903 | T85: 1.6e-05 | U85: 7.81e-09 | V85: 6.123e-10 | W85: 14.401 | X85: 287.551 | Y85: 0.0570556198 | Z85: 33.5331 | AA85: 0.6914146887 | AB85: 0.02705204675 | AC85: 0.5415734992 | AD85: 6.85 | AE85: 0.1459675268 | AF85: -17.29337854 | AG85: 0.1460398675 | AH85: 0.5021569048 | AI85: -0.2661224913 | AJ85: 19.08054074 | AK85: -1.357991671e-05 | AL85: 3.814888954e-05 | AM85: -1.439862851 | AN85: 7.904538101 | AO85: 7.978343452 | AP85: 7.729285034 | AQ85: 7.81082855 | AR85: pH
A86: 0xAF5E | B86: pH | C86: 2020-05-06T05:02:11 | D86: 1588741325 | E86: 4.97 | F86: 14.4039 | G86: 33.5331 | H86: 1021 | I86: 45 | J86: 0 | K86: 14.07 | L86: 1.76 | M86: 14.26 | N86: 0.0432 | O86: 7.1234 | P86: 3.457 | Q86: -0.955528 | R86: 2.5e-05 | S86: -0.975818 | T86: 4.2e-05 | U86: 7.352e-09 | V86: 8.418e-10 | W86: 14.4039 | X86: 287.5539 | Y86: 0.05705619522 | Z86: 33.5331 | AA86: 0.6914146887 | AB86: 0.02705204675 | AC86: 0.5415734992 | AD86: 4.97 | AE86: 0.1459504665 | AF86: -17.293217 | AG86: 0.1460029424 | AH86: 0.5021591495 | AI86: -0.2661246653 | AJ86: 19.08073357 | AK86: -9.852973448e-06 | AL86: 2.772373188e-05 | AM86: -1.439876176 | AN86: 7.905547818 | AO86: 7.979370334 | AP86: 7.730274034 | AQ86: 7.811818841 | AR86: pH
A87: <EOP> : 18340.023 Wed May 6 05:07:53 2020
A88: H | B88: Datalogger Serial Num | C88: SN:0850
A89: H | B89: Application Name | C89: APF_MAIN.C
A90: H | B90: App Build Date | C90: Apr 30 2019 | D90: 10:48:38
A91: H | B91: Power Up Time (GMT) | C91: 05/06/2020 05:07:43
A92: H | B92: Current Time (GMT) | C92: 05/06/2020 05:07:57
A93: H | B93: Alarm Time (GMT) | C93: 05/06/2020 15:07:48
A94: H | B94: Power Active Timeout | C94: 10
A95: H | B95: Persistor CF2-1M Info | C95: S/N:15002 - BIOS:4.03 - PicoDOS:4.03
A96: H | B96: Compact FLASH Size | C96: 256614400
A97: H | B97: Compact FLASH Left | C97: 0.975
A98: H | B98: Power Cycle Counter | C98: 46
A99: H | B99: System Reset Counter | C99: 1900-02-15
A100: H | B100: System Error Counter | C100: 00:00:00
A101: H | B101: Last System Error | C101: 00:00:00
A102: H | B102: Last System ErrorTime | C102: 01/01/1970 00:00:00
A103: H | B103: DURA Error Counter | C103: 0
A104: H | B104: Last DURA Error | C104: 0
A105: H | B105: Last DURA Error Time | C105: 01/01/1970 00:00:00
A106: H | B106: DURA Sample Counter | C106: 1022
A107: H | B107: Last Sample Rec. Time | C107: 05/06/2020 05:02:11
A108: H | B108: AtoD Reads per Sample | C108: 10
A109: H | B109: AtoD Reading Delay | C109: 100
A110: H | B110: Samps per AtoD Recal | C110: 250
A111: # No error records to log.
A113: <EOT>

Sheet pHcyc22
AE4: 2.53325E-12x3 - 5.63616E-09x2 - 2.95642E-06x + 3.46442E-05
A8: Profile: 18340.022 Thu Apr 30 19:40:11 2020
A9: H | B9: Datalogger Serial Num | C9: SN:0850
A10: H | B10: Application Name | C10: APF_MAIN.C
A11: H | B11: App Build Date | C11: Apr 30 2019 | D11: 10:48:38
A12: H | B12: Power Up Time (GMT) | C12: 04/30/2020 19:39:44 | W12: <----- | AE12: -1.57252E-18x5 + 7.57486E-15x4 - 9.81276E-12x3 + 1.81040E-09x2 - 1.66482E-06x + 1.11359E-04
A13: H | B13: Current Time (GMT) | C13: 04/30/2020 19:40:16 | W13: <-----
A14: H | B14: Alarm Time (GMT) | C14: 05/01/2020 05:40:15 | W14: <----- | X14: DuraFET | AE14: Cal values here
A15: H | B15: Power Active Timeout | C15: 10 | W15: <----- | X15: Data | AJ15: Josh
A16: H | B16: Persistor CF2-1M Info | C16: S/N:15002 - BIOS:4.03 - PicoDOS:4.03 | W16: <----- | X16: to the | AA16: Control + Shift + T - import CTD data from .log file | AE16: k0 | AF16: -1.4255 | AH16: -1.427 | AJ16: -1.4255 | AK16: =k0
A17: H | B17: Compact FLASH Size | C17: 256614400 | W17: <----- | X17: Left | AA17: Control + Shift + F to import DuraFET data from .csv file | AE17: k2 | AF17: -0.001 | AH17: -0.0009 | AJ17: -0.001 | AK17: =k2*T
A18: H | B18: Compact FLASH Left | C18: 0.976 | W18: <----- | AE18: P | AF18: 5.6021e-06 | AH18: -1.66482e-06 | AJ18: 5.6021e-06 | AK18: =k3*P^1
A19: H | B19: Power Cycle Counter | C19: 43 | W19: <----- | AA19: Temperature/Salinity Selection | AE19: P^2 | AF19: -4.8057e-09 | AH19: 1.8104e-09 | AJ19: -4.8057e-09 | AK19: =k4*P^2
A20: H | B20: System Reset Counter | C20: 43 | W20: <----- | AA20: 1: T =DFET (Column C), Salinity input manual | AE20: P^3 | AH20: -9.81276e-12
A21: H | B21: System Error Counter | C21: 0 | W21: <----- | AA21: 2: CTD (load CTD data with Control Shift T) | AE21: P^4 | AH21: 7.57486e-15
A22: H | B22: Last System Error | C22: 0 | W22: <----- | AA22: 2 | AE22: P^5 | AH22: -1.57252e-18
A23: H | B23: Last System ErrorTime | C23: 01/01/1970 00:00:00 | W23: <----- | AE23: P^6
A24: H | B24: DURA Error Counter | C24: 0 | W24: <-----
A25: H | B25: Last DURA Error | C25: 0 | W25: <-----
A26: H | B26: Last DURA Error Time | C26: 01/01/1970 00:00:00 | W26: <-----
A27: H | B27: DURA Sample Counter | C27: 913 | W27: <----- | AA27: Calibration data
A28: H | B28: Last Sample Rec. Time | C28: 04/25/2020 22:25:33 | W28: <-----
A29: H | B29: AtoD Reads per Sample | C29: 10 | W29: <-----
A30: H | B30: AtoD Reading Delay | C30: 1900-04-09
A31: H | B31: Samps per AtoD Recal | C31: 1900-09-06 | Z31: Don't erase this first row of formulas!!!! Subsequent rows can be erased or copied down as needed from colum W on.
A32: # No error records to log. | W32: T/C | X32: K | Y32: S(T) | Z32: Salinity | AA32: IonicStrength | AB32: SO4(tot) | AC32: mCl | AD32: Press(dbar) | AE32: KHSO4 | AF32: deltaV HSO4 | AG32: KHSO4 TPS | AH32: DebyeHuckelConst | AI32: log(γHγCl) | AJ32: deltaV HCl | AK32: ThermPress | AL32: f(P) | AM32: k0+k2T+f(P) | AN32: pHtot in situ | AO32: pHfree in situ | AP32: pH25Total | AQ32: pH20Total | AR32: Date + Time
A33: 0x1F3F | B33: pH | C33: 2020-04-30T19:47:59 | D33: 1588276073 | E33: 1599.55 | F33: 2.5955 | G33: 34.5559 | H33: 913 | I33: 43 | J33: 0 | K33: 2.68 | L33: 0.82 | M33: 14.3 | N33: 0.0448 | O33: 7.1234 | P33: 3.43 | Q33: -0.989344 | R33: 3.2e-05 | S33: -0.983241 | T33: 9e-06 | U33: 8.414e-09 | V33: 1.131e-09 | W33: =F33 -> 2.5955 | X33: =W33+273.15 -> 275.7455 | Y33: =8.31451*X33/96487*LN(10) -> 0.05471318274 | Z33: =G33 -> 34.5559 | AA33: =19.924 * Z33/ (1000 - 1.005 * Z33) -> 0.7132624134 | AB33: =(0.14 / 96.062) * (Z33 / 1.80655) -> 0.02787716681 | AC33: =0.99889/35.453*Z33/1.80655*(1 + 0.00106 * Z33) -> 0.5586764409 | AD33: =E33 -> 1599.55 | AE33: =EXP(-4276.1 /X33 + 141.328 - 23.093 * LN(X33) + (-13856 / X33 + 324.57 - 47.986 * LN(X33)) * AA33^ 0.5 + (35474 / X33 - 771.54 + 114.723 * LN(X33)) * AA33- 2698 / X33 * AA33 ^ 1.5 + 1776 / X33*AA33 ^ 2 + LN(1 - 0.001005 * Z33)) -> 0.2501198305 | AF33: =-18.03 + 0.0466 * W33 + 0.000316 *W33 ^ 2 -> -17.90692093 | AG33: =EXP((-AF33) * (AD33 / 10) / (8.31451 * 10 * X33))*AE33 -> 0.2834036228 | AH33: =(0.00000343*W33^2 + 0.00067524*W33 + 0.49172143) -> 0.493497122 | AI33: =2*(-AH33*SQRT(AA33)/(1+1.394*SQRT(AA33))+(0.08885-0.000111*W33)*AA33) -> -0.2565073788 | AJ33: =17.85 + 0.1044 * W33 - 0.001316 * W33 ^ 2 -> 18.11210481 | AK33: =-AJ33 * 0.0242 / (23061 * 1.01) *AD33 / 10 -> -0.003010111612 | AL33: =AF$18*AD33+AF$19*AD33^2+AF$20*AD33^3+AF$21*AD33^4+AF$22*AD33^5+AF$23*AD33^6 -> -0.00333483371 | AM33: =$AF$16+$AF$17*(W33)+AL33 -> -1.431430334 | AN33: =AO33-LOG(1+AB33/AG33) -> 7.60836362 | AO33: =-LOG10((10^(-((Q33-AM33-AK33)/Y33+(LOG(AC33)+AI33))))/(1+0.0016*Z33)) -> 7.649110542 | AP33: =((AN33 + 0.000035833 * AD33 - 0.01703 * (25 - W33) + 0.00004453 * (25 - W33) ^ 2) ) -> 7.306484011 | AQ33: =((AN33 + 0.000035833 * AD33 - 0.01703 * (20 - W33) + 0.00004453 * (20 - W33) ^ 2) ) -> 7.382770537 | AR33: =B33 -> pH
A34: 0xF35B | B34: pH | C34: 2020-04-30T20:05:40 | D34: 1588277134 | E34: 1500.07 | F34: 2.7617 | G34: 34.5432 | H34: 914 | I34: 43 | J34: 0 | K34: 2.78 | L34: 0.82 | M34: 14.5 | N34: 0.0442 | O34: 7.1234 | P34: 3.429 | Q34: -0.988262 | R34: 2.5e-05 | S34: -0.982267 | T34: 3.2e-05 | U34: 8.225e-09 | V34: 6.613e-10 | W34: =F34 -> 2.7617 | X34: =W34+273.15 -> 275.9117 | Y34: =8.31451*X34/96487*LN(10) -> 0.05474616 | Z34: =G34 -> 34.5432 | AA34: 0.7129908472 | AB34: 0.02786692138 | AC34: =0.99889/35.453*Z34/1.80655*(1 + 0.00106 * Z34) -> 0.5584638634 | AD34: =E34 -> 1500.07 | AE34: 0.2480843756 | AF34: =-18.03 + 0.0466 * W34 + 0.000316 *W34 ^ 2 -> -17.89889465 | AG34: =EXP((-AF34) * (AD34 / 10) / (8.31451 * 10 * X34))*AE34 -> 0.2788873702 | AH34: 0.4936124009 | AI34: -0.2566377292 | AJ34: =17.85 + 0.1044 * W34 - 0.001316 * W34 ^ 2 -> 18.12828437 | AK34: =-AJ34 * 0.0242 / (23061 * 1.01) *AD34 / 10 -> -0.002825426975 | AL34: -0.002410292074 | AM34: -1.430671992 | AN34: =AO34-LOG(1+AB34/AG34) -> 7.605082954 | AO34: =-LOG10((10^(-((Q34-AM34-AK34)/Y34+(LOG(AC34)+AI34))))/(1+0.0016*Z34)) -> 7.646444754 | AP34: =((AN34 + 0.000035833 * AD34 - 0.01703 * (25 - W34) + 0.00004453 * (25 - W34) ^ 2) ) -> 7.302138668 | AQ34: =((AN34 + 0.000035833 * AD34 - 0.01703 * (20 - W34) + 0.00004453 * (20 - W34) ^ 2) ) -> 7.378499203 | AR34: =B34 -> pH
A35: 0xA24A | B35: pH | C35: 2020-04-30T20:24:03 | D35: 1588278237 | E35: 1400 | F35: 2.9544 | G35: 34.527 | H35: 915 | I35: 43 | J35: 0 | K35: 2.89 | L35: 0.82 | M35: 14.448 | N35: 0.0442 | O35: 7.1234 | P35: 3.429 | Q35: -0.988046 | R35: 4.2e-05 | S35: -0.982016 | T35: 3.2e-05 | U35: 8.61e-09 | V35: 1.421e-09 | W35: 2.9544 | X35: 276.1044 | Y35: 0.05478439537 | Z35: 34.527 | AA35: 0.7126444503 | AB35: 0.02785385241 | AC35: 0.5581927093 | AD35: 1400 | AE35: 0.2457410729 | AF35: -17.88956676 | AG35: 0.2740681243 | AH35: 0.4937462977 | AI35: -0.2567906767 | AJ35: 18.14695268 | AK35: -0.002639657614 | AL35: -0.001576232 | AM35: -1.430030632 | AN35: 7.587202824 | AO35: 7.629239022 | AP35: 7.283574413 | AQ35: 7.360020758 | AR35: pH
A36: 0xB8A7 | B36: pH | C36: 2020-04-30T20:43:22 | D36: 1588279396 | E36: 1299.62 | F36: 3.1817 | G36: 34.5034 | H36: 916 | I36: 43 | J36: 0 | K36: 3.06 | L36: 0.84 | M36: 14.444 | N36: 0.0442 | O36: 7.1234 | P36: 3.43 | Q36: -0.987889 | R36: 3.1e-05 | S36: -0.981694 | T36: 1.9e-05 | U36: 7.862e-09 | V36: 1.886e-10 | W36: 3.1817 | X36: 276.3317 | Y36: 0.05482949604 | Z36: 34.5034 | AA36: 0.7121398437 | AB36: 0.02783481366 | AC36: 0.5577977102 | AD36: 1299.62 | AE36: 0.242983902 | AF36: -17.87853384 | AG36: 0.2688424194 | AH36: 0.4939045637 | AI36: -0.2569763754 | AJ36: 18.16884733 | AK36: -0.002453350611 | AL36: -0.0008362844603 | AM36: -1.429517984 | AN36: 7.569383738 | AO36: 7.612170163 | AP36: 7.265585354 | AQ36: 7.342132915 | AR36: pH
A37: 0x151F | B37: pH | C37: 2020-04-30T21:01:10 | D37: 1588280464 | E37: 1200.1 | F37: 3.3882 | G37: 34.4869 | H37: 917 | I37: 43 | J37: 0 | K37: 3.25 | L37: 0.88 | M37: 14.532 | N37: 0.044 | O37: 7.1234 | P37: 3.43 | Q37: -0.987829 | R37: 2.8e-05 | S37: -0.981623 | T37: 2.5e-05 | U37: 9.121e-09 | V37: 7.493e-10 | W37: 3.3882 | X37: 276.5382 | Y37: 0.05487046959 | Z37: 34.4869 | AA37: 0.7117870615 | AB37: 0.02782150267 | AC37: 0.5575215565 | AD37: 1200.1 | AE37: 0.2405459581 | AF37: -17.86848223 | AG37: 0.2640596458 | AH37: 0.4940486542 | AI37: -0.2571395722 | AJ37: 18.18862053 | AK37: -0.002267947801 | AL37: -0.0001982812061 | AM37: -1.429086481 | AN37: 7.552079526 | AO37: 7.595583536 | AP37: 7.247832378 | AQ37: 7.324471893 | AR37: pH
A38: 0x5533 | B38: pH | C38: 2020-04-30T21:21:10 | D38: 1588281664 | E38: 1100.12 | F38: 3.6134 | G38: 34.4703 | H38: 918 | I38: 43 | J38: 0 | K38: 3.48 | L38: 0.89 | M38: 14.436 | N38: 0.0442 | O38: 7.1234 | P38: 3.43 | Q38: -0.987673 | R38: 3.2e-05 | S38: -0.981575 | T38: 1.5e-05 | U38: 8.305e-09 | V38: 4.004e-10 | W38: 3.6134 | X38: 276.7634 | Y38: 0.05491515358 | Z38: 34.4703 | AA38: 0.7114321534 | AB38: 0.02780811101 | AC38: 0.5572437382 | AD38: 1100.12 | AE38: 0.2379320527 | AF38: -17.85748966 | AG38: 0.259137052 | AH38: 0.4942061266 | AI38: -0.2573161304 | AJ38: 18.2100564 | AK38: -0.002081455869 | AL38: 0.000346816478 | AM38: -1.428766584 | AN38: 7.537952443 | AO38: 7.582221838 | AP38: 7.233526673 | AQ38: 7.31026647 | AR38: pH
A39: 0xB2DA | B39: pH | C39: 2020-04-30T21:39:04 | D39: 1588282738 | E39: 999.68 | F39: 3.9852 | G39: 34.444 | H39: 919 | I39: 43 | J39: 0 | K39: 3.67 | L39: 0.93 | M39: 14.46 | N39: 0.0442 | O39: 7.1234 | P39: 3.431 | Q39: -0.987188 | R39: 3.4e-05 | S39: -0.981233 | T39: 2.3e-05 | U39: 7.848e-09 | V39: 1.002e-09 | W39: 3.9852 | X39: 277.1352 | Y39: 0.05498892581 | Z39: 34.444 | AA39: 0.7108698843 | AB39: 0.02778689409 | AC39: 0.556803599 | AD39: 999.68 | AE39: 0.2337030647 | AF39: -17.83927103 | AG39: 0.2525087229 | AH39: 0.4944668711 | AI39: -0.2576067733 | AJ39: 18.24515441 | AK39: -0.001895066276 | AL39: 0.0007976824839 | AM39: -1.428687518 | AN39: 7.529396494 | AO39: 7.574736415 | AP39: 7.227001403 | AQ39: 7.303906762 | AR39: pH
A40: 0xBC2D | B40: pH | C40: 2020-04-30T21:47:54 | D40: 1588283267 | E40: 947.45 | F40: 4.1054 | G40: 34.4335 | H40: 920 | I40: 43 | J40: 0 | K40: 3.88 | L40: 0.93 | M40: 14.38 | N40: 0.0442 | O40: 7.1234 | P40: 3.431 | Q40: -0.986255 | R40: 1.8e-05 | S40: -0.980196 | T40: 2e-05 | U40: 9.802e-09 | V40: 1.109e-09 | W40: 4.1054 | X40: 277.2554 | Y40: 0.05501277579 | Z40: 34.4335 | AA40: 0.7106454129 | AB40: 0.02777842346 | AC40: 0.5566278844 | AD40: 947.45 | AE40: 0.232344309 | AF40: -17.8333624 | AG40: 0.2500135487 | AH40: 0.4945513706 | AI40: -0.2577030993 | AJ40: 18.25642349 | AK40: -0.00179716461 | AL40: 0.0009938177624 | AM40: -1.428611582 | AN40: 7.539043968 | AO40: 7.584800114 | AP40: 7.236600005 | AQ40: 7.31355889 | AR40: pH
A41: 0xCBED | B41: pH | C41: 2020-04-30T21:58:53 | D41: 1588283926 | E41: 895.26 | F41: 4.2481 | G41: 34.4153 | H41: 921 | I41: 43 | J41: 0 | K41: 4.07 | L41: 0.94 | M41: 14.376 | N41: 0.0442 | O41: 7.1234 | P41: 3.432 | Q41: -0.985819 | R41: 1.5e-05 | S41: -0.979672 | T41: 3.2e-05 | U41: 8.968e-09 | V41: 1.034e-09 | W41: 4.2481 | X41: 277.3981 | Y41: 0.0550410902 | Z41: 34.4153 | AA41: 0.7102563407 | AB41: 0.02776374104 | AC41: 0.5563233211 | AD41: 895.26 | AE41: 0.2307095136 | AF41: -17.82633589 | AG41: 0.2472385922 | AH41: 0.494651816 | AI41: -0.2578239734 | AJ41: 18.26975264 | AK41: -0.00169940818 | AL41: 0.001163613306 | AM41: -1.428584487 | AN41: 7.539709187 | AO41: 7.585929304 | AP41: 7.237560641 | AQ41: 7.31458307 | AR41: pH
A42: 0x6E41 | B42: pH | C42: 2020-04-30T22:10:54 | D42: 1588284647 | E42: 824.24 | F42: 4.4573 | G42: 34.3929 | H42: 922 | I42: 43 | J42: 0 | K42: 4.25 | L42: 0.98 | M42: 14.344 | N42: 0.0444 | O42: 7.1234 | P42: 3.432 | Q42: -0.985485 | R42: 2.9e-05 | S42: -0.979377 | T42: 1.6e-05 | U42: 8.311e-09 | V42: 1.555e-09 | W42: 4.4573 | X42: 277.6073 | Y42: 0.05508259948 | Z42: 34.3929 | AA42: 0.7097775028 | AB42: 0.02774567036 | AC42: 0.555948489 | AD42: 824.24 | AE42: 0.2283656593 | AF42: -17.81601168 | AG42: 0.2433665025 | AH42: 0.4947993229 | AI42: -0.2579964374 | AJ42: 18.28919646 | AK42: -0.001566261123 | AL42: 0.001352618914 | AM42: -1.428604681 | AN42: 7.536488884 | AO42: 7.583377101 | AP42: 7.234973467 | AQ42: 7.312089053 | AR42: pH
A43: 0x8B1F | B43: pH | C43: 2020-04-30T22:16:52 | D43: 1588285005 | E43: 788.35 | F43: 4.6054 | G43: 34.3733 | H43: 923 | I43: 43 | J43: 0 | K43: 4.42 | L43: 0.98 | M43: 14.332 | N43: 0.0444 | O43: 7.1234 | P43: 3.432 | Q43: -0.985291 | R43: 2e-05 | S43: -0.979207 | T43: 2e-05 | U43: 7.662e-09 | V43: 8.529e-10 | W43: 4.6054 | X43: 277.7554 | Y43: 0.05511198535 | Z43: 34.3733 | AA43: 0.709358538 | AB43: 0.02772985852 | AC43: 0.5556205245 | AD43: 788.35 | AE43: 0.2267029174 | AF43: -17.80868609 | AG43: 0.2409123501 | AH43: 0.4949039296 | AI43: -0.2581227859 | AJ43: 18.30289178 | AK43: -0.00149918297 | AL43: 0.001429693541 | AM43: -1.428675706 | AN43: 7.534953524 | AO43: 7.582268709 | AP43: 7.234404227 | AQ43: 7.311585761 | AR43: pH
A44: 0xCAAE | B44: pH | C44: 2020-04-30T22:27:51 | D44: 1588285664 | E44: 733.88 | F44: 4.7859 | G44: 34.358 | H44: 924 | I44: 43 | J44: 0 | K44: 4.59 | L44: 1.02 | M44: 14.376 | N44: 0.0444 | O44: 7.1234 | P44: 3.433 | Q44: -0.985101 | R44: 2e-05 | S44: -0.979169 | T44: 3.2e-05 | U44: 7.996e-09 | V44: 1.249e-09 | W44: 4.7859 | X44: 277.9359 | Y44: 0.05514780001 | Z44: 34.358 | AA44: 0.7090315008 | AB44: 0.0277175156 | AC44: 0.5553645202 | AD44: 733.88 | AE44: 0.2247479733 | AF44: -17.79973913 | AG44: 0.237818278 | AH44: 0.4950316247 | AI44: -0.2582672383 | AJ44: 18.31950519 | AK44: -0.001396865682 | AL44: 0.001523015942 | AM44: -1.428762884 | AN44: 7.531964511 | AO44: 7.579842352 | AP44: 7.232210906 | AQ44: 7.309472817 | AR44: pH
A45: 0x0C19 | B45: pH | C45: 2020-04-30T22:34:49 | D45: 1588286082 | E45: 697.22 | F45: 4.9732 | G45: 34.3419 | H45: 925 | I45: 43 | J45: 0 | K45: 4.75 | L45: 1.04 | M45: 14.288 | N45: 0.0446 | O45: 7.1234 | P45: 3.433 | Q45: -0.984862 | R45: 2e-05 | S45: -0.979065 | T45: 1.8e-05 | U45: 8.215e-09 | V45: 1.222e-09 | W45: 4.9732 | X45: 278.1232 | Y45: 0.05518496391 | Z45: 34.3419 | AA45: 0.7086873749 | AB45: 0.0277045273 | AC45: 0.5550951385 | AD45: 697.22 | AE45: 0.2227411278 | AF45: -17.79043334 | AG45: 0.2350150276 | AH45: 0.4951643668 | AI45: -0.2584174934 | AJ45: 18.33665382 | AK45: -0.001328329381 | AL45: 0.001569769806 | AM45: -1.42890343 | AN45: 7.531274913 | AO45: 7.579671679 | AP45: 7.233061761 | AQ45: 7.310407077 | AR45: pH
A46: 0x4918 | B46: pH | C46: 2020-04-30T22:45:48 | D46: 1588286741 | E46: 641 | F46: 5.1809 | G46: 34.3063 | H46: 926 | I46: 43 | J46: 0 | K46: 4.94 | L46: 1.07 | M46: 14.376 | N46: 0.0442 | O46: 7.1234 | P46: 3.434 | Q46: -0.98464 | R46: 2.4e-05 | S46: -0.978964 | T46: 2.3e-05 | U46: 8.274e-09 | V46: 1.029e-09 | W46: 5.1809 | X46: 278.3309 | Y46: 0.05522617556 | Z46: 34.3063 | AA46: 0.7079264915 | AB46: 0.02767580783 | AC46: 0.5544995173 | AD46: 641 | AE46: 0.2204422653 | AF46: -17.78008807 | AG46: 0.2315705136 | AH46: 0.495311848 | AI46: -0.2586039309 | AJ46: 18.35556225 | AK46: -0.00122247948 | AL46: 0.001616375278 | AM46: -1.429064525 | AN46: 7.528963888 | AO46: 7.577993232 | AP46: 7.231904806 | AQ46: 7.309342611 | AR46: pH
A47: 0xDD83 | B47: pH | C47: 2020-04-30T22:56:47 | D47: 1588287400 | E47: 585.86 | F47: 5.3708 | G47: 34.2755 | H47: 927 | I47: 43 | J47: 0 | K47: 5.14 | L47: 1.06 | M47: 14.396 | N47: 0.044 | O47: 7.1234 | P47: 3.435 | Q47: -0.984382 | R47: 1.9e-05 | S47: -0.978896 | T47: 1.5e-05 | U47: 8.29e-09 | V47: 2.041e-09 | W47: 5.3708 | X47: 278.5208 | Y47: 0.05526385536 | Z47: 34.2755 | AA47: 0.7072682446 | AB47: 0.02765096065 | AC47: 0.5539842384 | AD47: 585.86 | AE47: 0.2183776062 | AF47: -17.77060554 | AG47: 0.2284193432 | AH47: 0.495446949 | AI47: -0.2587724538 | AJ47: 18.37275085 | AK47: -0.00111836583 | AL47: 0.001632576574 | AM47: -1.429238223 | AN47: 7.528200065 | AO47: 7.577826403 | AP47: 7.232065563 | AQ47: 7.309587931 | AR47: pH
A48: 0x9895 | B48: pH | C48: 2020-04-30T23:08:46 | D48: 1588288119 | E48: 535.51 | F48: 5.4167 | G48: 34.2072 | H48: 928 | I48: 43 | J48: 0 | K48: 5.33 | L48: 1.12 | M48: 14.328 | N48: 0.0442 | O48: 7.1234 | P48: 3.435 | Q48: -0.984352 | R48: 1.7e-05 | S48: -0.978909 | T48: 1.8e-05 | U48: 8.282e-09 | V48: 8.817e-10 | W48: 5.4167 | X48: 278.5667 | Y48: 0.0552729628 | Z48: 34.2072 | AA48: 0.7058087112 | AB48: 0.02759586121 | AC48: 0.5528417026 | AD48: 535.51 | AE48: 0.2175451155 | AF48: -17.76831014 | AG48: 0.2266683428 | AH48: 0.4954796409 | AI48: -0.2588801636 | AJ48: 18.3768912 | AK48: -0.001022481563 | AL48: 0.001621845368 | AM48: -1.429294855 | AN48: 7.525385629 | AO48: 7.575279983 | AP48: 7.228148466 | AQ48: 7.305691272 | AR48: pH
A49: 0x0DEC | B49: pH | C49: 2020-04-30T23:15:44 | D49: 1588288537 | E49: 496.3 | F49: 5.708 | G49: 34.1852 | H49: 929 | I49: 43 | J49: 0 | K49: 5.47 | L49: 1.11 | M49: 14.308 | N49: 0.0444 | O49: 7.1234 | P49: 3.436 | Q49: -0.984403 | R49: 2.8e-05 | S49: -0.979491 | T49: 2.3e-05 | U49: 7.608e-09 | V49: 1.168e-09 | W49: 5.708 | X49: 278.858 | Y49: 0.05533076229 | Z49: 34.1852 | AA49: 0.7053386276 | AB49: 0.02757811323 | AC49: 0.5524737152 | AD49: 496.3 | AE49: 0.2145811227 | AF49: -17.75371152 | AG49: 0.2228927005 | AH49: 0.4956874537 | AI49: -0.2591107129 | AJ49: 18.40303826 | AK49: -0.0009489638323 | AL49: 0.00159661253 | AM49: -1.429611387 | AN49: 7.519126386 | AO49: 7.569787666 | AP49: 7.224940775 | AQ49: 7.302613298 | AR49: pH
A50: 0x1610 | B50: pH | C50: 2020-04-30T23:26:44 | D50: 1588289197 | E50: 424.75 | F50: 6.0281 | G50: 34.1208 | H50: 930 | I50: 43 | J50: 0 | K50: 5.68 | L50: 1.12 | M50: 14.396 | N50: 0.044 | O50: 7.1234 | P50: 3.436 | Q50: -0.983636 | R50: 2.6e-05 | S50: -0.979761 | T50: 1.9e-05 | U50: 8.49e-09 | V50: 8.36e-10 | W50: 6.0281 | X50: 279.1781 | Y50: 0.05539427625 | Z50: 34.1208 | AA50: 0.7039626881 | AB50: 0.02752616003 | AC50: 0.5513966075 | AD50: 424.75 | AE50: 0.2111718613 | AF50: -17.73760774 | AG50: 0.2181383433 | AH50: 0.4959164835 | AI50: -0.2594081221 | AJ50: 18.43151285 | AK50: -0.0008134113484 | AL50: 0.001512483323 | AM50: -1.430015617 | AN50: 7.526440954 | AO50: 7.578051352 | AP50: 7.23459738 | AQ50: 7.312412443 | AR50: pH
A51: 0x32A6 | B51: pH | C51: 2020-04-30T23:32:43 | D51: 1588289556 | E51: 391.13 | F51: 6.5503 | G51: 34.1616 | H51: 931 | I51: 43 | J51: 0 | K51: 5.92 | L51: 1.12 | M51: 14.372 | N51: 0.044 | O51: 7.1234 | P51: 3.437 | Q51: -0.982497 | R51: 2e-05 | S51: -0.979228 | T51: 2.5e-05 | U51: 7.796e-09 | V51: 1.718e-09 | W51: 6.5503 | X51: 279.7003 | Y51: 0.05549789072 | Z51: 34.1616 | AA51: 0.7048343799 | AB51: 0.02755907448 | AC51: 0.5520789827 | AD51: 391.13 | AE51: 0.2065033204 | AF51: -17.71119759 | AG51: 0.2127471482 | AH51: 0.4962916236 | AI51: -0.2597357143 | AJ51: 18.47738646 | AK51: -0.0007508920852 | AL51: 0.001455960523 | AM51: -1.430594339 | AN51: 7.540139007 | AO51: 7.593040277 | AP51: 7.255113608 | AQ51: 7.333161206 | AR51: pH
A52: 0xF540 | B52: pH | C52: 2020-04-30T23:38:42 | D52: 1588289915 | E52: 364.67 | F52: 6.7564 | G52: 34.1373 | H52: 932 | I52: 43 | J52: 0 | K52: 6.16 | L52: 1.16 | M52: 14.368 | N52: 0.044 | O52: 7.1234 | P52: 3.438 | Q52: -0.981782 | R52: 1.7e-05 | S52: -0.97914 | T52: 2e-05 | U52: 8.749e-09 | V52: 4.738e-10 | W52: 6.7564 | X52: 279.9064 | Y52: 0.05553878491 | Z52: 34.1373 | AA52: 0.7043152016 | AB52: 0.02753947102 | AC52: 0.5516725614 | AD52: 364.67 | AE52: 0.2044933953 | AF52: -17.70072669 | AG52: 0.210244584 | AH52: 0.4964401974 | AI52: -0.2599091866 | AJ52: 18.49529415 | AK52: -0.000700772638 | AL52: 0.001403835594 | AM52: -1.430852564 | AN52: 7.54973888 | AO52: 7.603196792 | AP52: 7.266938464 | AQ52: 7.345077839 | AR52: pH
A53: 0x9E3E | B53: pH | C53: 2020-04-30T23:40:17 | D53: 1588290010 | E53: 358.39 | F53: 6.9725 | G53: 34.1646 | H53: 933 | I53: 43 | J53: 0 | K53: 6.28 | L53: 1.17 | M53: 14.2 | N53: 0.0446 | O53: 7.1234 | P53: 3.438 | Q53: -0.981572 | R53: 2.5e-05 | S53: -0.979065 | T53: 2.8e-05 | U53: 8.254e-09 | V53: 1.201e-09 | W53: 6.9725 | X53: 280.1225 | Y53: 0.05558166328 | Z53: 34.1646 | AA53: 0.7048984778 | AB53: 0.02756149466 | AC53: 0.5521291596 | AD53: 358.39 | AE53: 0.2026741387 | AF53: -17.68971892 | AG53: 0.2082667509 | AH53: 0.4965962929 | AI53: -0.260034245 | AJ53: 18.51395066 | AK53: -0.0006893993058 | AL53: 0.00139047621 | AM53: -1.431082024 | AN53: 7.550927631 | AO53: 7.604903509 | AP53: 7.271233333 | AQ53: 7.349468937 | AR53: pH
A54: 0x3691 | B54: pH | C54: 2020-04-30T23:46:37 | D54: 1588290390 | E54: 324.13 | F54: 6.9479 | G54: 34.078 | H54: 934 | I54: 43 | J54: 0 | K54: 6.52 | L54: 1.17 | M54: 14.324 | N54: 0.044 | O54: 7.1234 | P54: 3.438 | Q54: -0.980864 | R54: 2.3e-05 | S54: -0.979241 | T54: 3.7e-05 | U54: 8.533e-09 | V54: 2.589e-09 | W54: 6.9479 | X54: 280.0979 | Y54: 0.05557678217 | Z54: 34.078 | AA54: 0.7030483459 | AB54: 0.02749163213 | AC54: 0.5506808416 | AD54: 324.13 | AE54: 0.2024675375 | AF54: -17.69097349 | AG54: 0.2075145855 | AH54: 0.4965785075 | AI54: -0.2601099286 | AJ54: 18.51183308 | AK54: -0.0006234254267 | AL54: 0.001310920596 | AM54: -1.431136979 | AN54: 7.562851577 | AO54: 7.616882303 | AP54: 7.281550226 | AQ54: 7.359774876 | AR54: pH
A55: 0x09B8 | B55: pH | C55: 2020-04-30T23:52:36 | D55: 1588290749 | E55: 289.25 | F55: 7.2921 | G55: 34.0679 | H55: 935 | I55: 43 | J55: 0 | K55: 6.71 | L55: 1.18 | M55: 14.36 | N55: 0.044 | O55: 7.1234 | P55: 3.439 | Q55: -0.979889 | R55: 3e-05 | S55: -0.97931 | T55: 1.2e-05 | U55: 6.91e-09 | V55: 1.338e-09 | W55: 7.2921 | X55: 280.4421 | Y55: 0.05564507804 | Z55: 34.0679 | AA55: 0.7028325901 | AB55: 0.02748348419 | AC55: 0.550511943 | AD55: 289.25 | AE55: 0.1993576953 | AF55: -17.67338493 | AG55: 0.2037766098 | AH55: 0.4968277369 | AI55: -0.2603671638 | AJ55: 18.54131731 | AK55: -0.0005572239958 | AL55: 0.001218335831 | AM55: -1.431573764 | AN55: 7.575762842 | AO55: 7.630709207 | AP55: 7.29852526 | AQ55: 7.376903182 | AR55: pH
A56: 0x50A4 | B56: pH | C56: 2020-04-30T23:58:35 | D56: 1588291108 | E56: 254.55 | F56: 7.6412 | G56: 34.0767 | H56: 936 | I56: 43 | J56: 0 | K56: 6.95 | L56: 1.21 | M56: 14.38 | N56: 0.044 | O56: 7.1234 | P56: 3.44 | Q56: -0.979063 | R56: 2.8e-05 | S56: -0.97923 | T56: 1.1e-05 | U56: 7.487e-09 | V56: 1.131e-09 | W56: 7.6412 | X56: 280.7912 | Y56: 0.05571434615 | Z56: 34.0767 | AA56: 0.7030205751 | AB56: 0.02749058338 | AC56: 0.5506591019 | AD56: 254.55 | AE56: 0.1963553696 | AF56: -17.65546949 | AG56: 0.2001718392 | AH56: 0.4970813445 | AI56: -0.2606083206 | AJ56: 18.57090275 | AK56: -0.0004911588498 | AL56: 0.001114625847 | AM56: -1.432026574 | AN56: 7.586364345 | AO56: 7.642252719 | AP56: 7.313283404 | AQ56: 7.391816781 | AR56: pH
A57: 0x21AB | B57: pH | C57: 2020-05-01T00:04:34 | D57: 1588291467 | E57: 228.47 | F57: 7.8255 | G57: 34.0408 | H57: 937 | I57: 43 | J57: 0 | K57: 7.17 | L57: 1.25 | M57: 14.388 | N57: 0.044 | O57: 7.1234 | P57: 3.44 | Q57: -0.978348 | R57: 1.7e-05 | S57: -0.97939 | T57: 1.4e-05 | U57: 6.453e-09 | V57: 3.153e-10 | W57: 7.8255 | X57: 280.9755 | Y57: 0.0557509148 | Z57: 34.0408 | AA57: 0.7022537035 | AB57: 0.02746162189 | AC57: 0.5500587765 | AD57: 228.47 | AE57: 0.1946054642 | AF57: -17.64598035 | AG57: 0.1979929511 | AH57: 0.4972155685 | AI57: -0.2607790721 | AJ57: 18.5863924 | AK57: -0.0004412047099 | AL57: 0.001029061259 | AM57: -1.432296439 | AN57: 7.59660613 | AO57: 7.65301545 | AP57: 7.325445883 | AQ57: 7.404061328 | AR57: pH
A58: 0xAC6F | B58: pH | C58: 2020-05-01T00:06:08 | D58: 1588291562 | E58: 222.88 | F58: 7.8772 | G58: 34.0361 | H58: 938 | I58: 43 | J58: 0 | K58: 7.32 | L58: 1.26 | M58: 14.236 | N58: 0.0442 | O58: 7.1234 | P58: 3.44 | Q58: -0.978046 | R58: 1.5e-05 | S58: -0.979338 | T58: 1.5e-05 | U58: 8.768e-09 | V58: 6.432e-10 | W58: 7.8772 | X58: 281.0272 | Y58: 0.05576117307 | Z58: 34.0361 | AA58: 0.7021533095 | AB58: 0.02745783028 | AC58: 0.5499801855 | AD58: 222.88 | AE58: 0.1941430958 | AF58: -17.64331459 | AG58: 0.1974380378 | AH58: 0.497253263 | AI58: -0.2608212616 | AJ58: 18.59072151 | AK58: -0.0004305099573 | AL58: 0.001009870525 | AM58: -1.432367329 | AN58: 7.601353541 | AO58: 7.657904191 | AP58: 7.330794479 | AQ58: 7.409432946 | AR58: pH
A59: 0xB2F0 | B59: pH | C59: 2020-05-01T00:12:28 | D59: 1588291941 | E59: 191.64 | F59: 8.489 | G59: 34.0347 | H59: 939 | I59: 43 | J59: 0 | K59: 7.57 | L59: 1.28 | M59: 14.352 | N59: 0.044 | O59: 7.1234 | P59: 3.441 | Q59: -0.976997 | R59: 2.8e-05 | S59: -0.97965 | T59: 2.6e-05 | U59: 8.262e-09 | V59: 6.458e-10 | W59: 8.489 | X59: 281.639 | Y59: 0.05588256589 | Z59: 34.0347 | AA59: 0.7021234051 | AB59: 0.02745670086 | AC59: 0.5499567755 | AD59: 191.64 | AE59: 0.1890183447 | AF59: -17.61164065 | AG59: 0.1917624072 | AH59: 0.4977007189 | AI59: -0.2612639804 | AJ59: 18.64141653 | AK59: -0.0003711768905 | AL59: 0.0008970928363 | AM59: -1.433091907 | AN59: 7.612287232 | AO59: 7.670402165 | AP59: 7.3501114 | AQ59: 7.429022302 | AR59: pH
A60: 0x75E3 | B60: pH | C60: 2020-05-01T00:18:26 | D60: 1588292300 | E60: 164.03 | F60: 8.9508 | G60: 33.9754 | H60: 940 | I60: 43 | J60: 0 | K60: 7.84 | L60: 1.32 | M60: 14.392 | N60: 0.044 | O60: 7.1234 | P60: 3.442 | Q60: -0.975537 | R60: 1.5e-05 | S60: -0.979873 | T60: 2.7e-05 | U60: 7.702e-09 | V60: 9.195e-10 | W60: 8.9508 | X60: 282.1008 | Y60: 0.05597419585 | Z60: 33.9754 | AA60: 0.7008568199 | AB60: 0.02740886197 | AC60: 0.5489652568 | AD60: 164.03 | AE60: 0.1850147351 | AF60: -17.5875758 | AG60: 0.1873043801 | AH60: 0.4980401689 | AI60: -0.2616605954 | AJ60: 18.67902978 | AK60: -0.0003183416448 | AL60: 0.0007896110634 | AM60: -1.433661189 | AN60: 7.631810284 | AO60: 7.691121181 | AP60: 7.375839991 | AQ60: 7.454956532 | AR60: pH
A61: 0x05BD | B61: pH | C61: 2020-05-01T00:24:26 | D61: 1588292659 | E61: 133.52 | F61: 9.248 | G61: 33.9248 | H61: 941 | I61: 43 | J61: 0 | K61: 8.15 | L61: 1.31 | M61: 14.404 | N61: 0.0438 | O61: 7.1234 | P61: 3.443 | Q61: -0.974302 | R61: 1.9e-05 | S61: -0.979472 | T61: 1.5e-05 | U61: 7.104e-09 | V61: 1.47e-09 | W61: 9.248 | X61: 282.398 | Y61: 0.05603316602 | Z61: 33.9248 | AA61: 0.699776181 | AB61: 0.0273680416 | AC61: 0.5481192974 | AD61: 133.52 | AE61: 0.1824450912 | AF61: -17.57201714 | AG61: 0.1842772938 | AH61: 0.498259402 | AI61: -0.2619289673 | AJ61: 18.70293964 | AK61: -0.0002594609789 | AL61: 0.0006623183408 | AM61: -1.434085682 | AN61: 7.649958715 | AO61: 7.71009559 | AP61: 7.397535606 | AQ61: 7.47678449 | AR61: pH
A62: 0x8277 | B62: pH | C62: 2020-05-01T00:30:26 | D62: 1588293019 | E62: 110.27 | F62: 9.4939 | G62: 33.8415 | H62: 942 | I62: 43 | J62: 0 | K62: 8.46 | L62: 1.34 | M62: 14.416 | N62: 0.0438 | O62: 7.1234 | P62: 3.444 | Q62: -0.973159 | R62: 3.6e-05 | S62: -0.979289 | T62: 2.1e-05 | U62: 7.712e-09 | V62: 9.808e-10 | W62: 9.4939 | X62: 282.6439 | Y62: 0.05608195728 | Z62: 33.8415 | AA62: 0.6979974325 | AB62: 0.02730084126 | AC62: 0.5467268252 | AD62: 110.27 | AE62: 0.1801851918 | AF62: -17.55910187 | AG62: 0.1816759007 | AH62: 0.4984412511 | AI62: -0.2621937758 | AJ62: 18.72254664 | AK62: -0.0002145053616 | AL62: 0.0005593087881 | AM62: -1.434434591 | AN62: 7.666528375 | AO62: 7.727329007 | AP62: 7.417117551 | AQ62: 7.496475935 | AR62: pH
A63: 0xC92F | B63: pH | C63: 2020-05-01T00:36:26 | D63: 1588293379 | E63: 99.32 | F63: 9.6243 | G63: 33.7626 | H63: 943 | I63: 43 | J63: 0 | K63: 8.77 | L63: 1.34 | M63: 14.42 | N63: 0.0436 | O63: 7.1234 | P63: 3.444 | Q63: -0.972211 | R63: 1.8e-05 | S63: -0.979101 | T63: 1.6e-05 | U63: 8.085e-09 | V63: 5.664e-10 | W63: 9.6243 | X63: 282.7743 | Y63: 0.05610783114 | Z63: 33.7626 | AA63: 0.6963129238 | AB63: 0.02723719053 | AC63: 0.5454081166 | AD63: 99.32 | AE63: 0.1788623054 | AF63: -17.55223744 | AG63: 0.1801934416 | AH63: 0.4985378535 | AI63: -0.2623694965 | AJ63: 18.73287959 | AK63: -0.000193311241 | AL63: 0.000508994925 | AM63: -1.434615305 | AN63: 7.680863011 | AO63: 7.741996922 | AP63: 7.433101207 | AQ63: 7.512517657 | AR63: pH
A64: 0xC910 | B64: pH | C64: 2020-05-01T00:42:51 | D64: 1588293764 | E64: 79.62 | F64: 10.1262 | G64: 33.6637 | H64: 944 | I64: 43 | J64: 0 | K64: 9.05 | L64: 1.36 | M64: 14.416 | N64: 0.0438 | O64: 7.1234 | P64: 3.445 | Q64: -0.971081 | R64: 2.1e-05 | S64: -0.979176 | T64: 1.7e-05 | U64: 7.664e-09 | V64: 9.712e-10 | W64: 10.1262 | X64: 283.2762 | Y64: 0.0562074177 | Z64: 33.6637 | AA64: 0.6942018072 | AB64: 0.02715740526 | AC64: 0.5437554252 | AD64: 79.62 | AE64: 0.1746900534 | AF64: -17.52571646 | AG64: 0.1757280753 | AH64: 0.4989107572 | AI64: -0.2628350174 | AJ64: 18.77223274 | AK64: -0.0001552937437 | AL64: 0.0004155742146 | AM64: -1.435210626 | AN64: 7.693149739 | AO64: 7.755559554 | AP64: 7.452553317 | AQ64: 7.532193264 | AR64: pH
A65: 0xE0B5 | B65: pH | C65: 2020-05-01T00:48:51 | D65: 1588294124 | E65: 68.4 | F65: 10.4406 | G65: 33.5962 | H65: 945 | I65: 43 | J65: 0 | K65: 9.33 | L65: 1.37 | M65: 14.432 | N65: 0.0436 | O65: 7.1234 | P65: 3.446 | Q65: -0.970314 | R65: 2.5e-05 | S65: -0.979416 | T65: 1.7e-05 | U65: 7.175e-09 | V65: 5.156e-10 | W65: 10.4406 | X65: 283.5906 | Y65: 0.05626980067 | Z65: 33.5962 | AA65: 0.6927612035 | AB65: 0.02710295121 | AC65: 0.5426276365 | AD65: 68.4 | AE65: 0.1721216545 | AF65: -17.5090221 | AG65: 0.1729981071 | AH65: 0.4991452318 | AI65: -0.2631319672 | AJ65: 18.79654658 | AK65: -0.0001335826403 | AL65: 0.0003606998842 | AM65: -1.4355799 | AN65: 7.701758252 | AO65: 7.764966287 | AP65: 7.465701945 | AQ65: 7.545481894 | AR65: pH
A66: 0xEBE7 | B66: pH | C66: 2020-05-01T00:55:16 | D66: 1588294510 | E66: 59.7 | F66: 11.1073 | G66: 33.522 | H66: 946 | I66: 43 | J66: 0 | K66: 9.63 | L66: 1.4 | M66: 14.428 | N66: 0.0434 | O66: 7.1234 | P66: 3.447 | Q66: -0.968766 | R66: 1.6e-05 | S66: -0.980142 | T66: 1.7e-05 | U66: 8.132e-09 | V66: 1.266e-09 | W66: 11.1073 | X66: 284.2573 | Y66: 0.05640208671 | Z66: 33.522 | AA66: 0.6911778399 | AB66: 0.02704309209 | AC66: 0.5413880781 | AD66: 59.7 | AE66: 0.1670887376 | AF66: -17.47341423 | AG66: 0.1678278487 | AH66: 0.4996446896 | AI66: -0.2636929139 | AJ66: 18.84724442 | AK66: -0.0001169063362 | AL66: 0.0003173174227 | AM66: -1.436289983 | AN66: 7.718821353 | AO66: 7.783704407 | AP66: 7.492962509 | AQ66: 7.573039339 | AR66: pH
A67: 0x53AF | B67: pH | C67: 2020-05-01T01:01:42 | D67: 1588294896 | E67: 49.56 | F67: 12.6027 | G67: 33.592 | H67: 947 | I67: 43 | J67: 0 | K67: 10.03 | L67: 1.47 | M67: 14.436 | N67: 0.0434 | O67: 7.1234 | P67: 3.449 | Q67: -0.965555 | R67: 2.3e-05 | S67: -0.982262 | T67: 2.2e-05 | U67: 7.8e-09 | V67: 4.649e-10 | W67: 12.6027 | X67: 285.7527 | Y67: 0.05669880268 | Z67: 33.592 | AA67: 0.6926715726 | AB67: 0.02709956295 | AC67: 0.542557468 | AD67: 49.56 | AE67: 0.1572561456 | AF67: -17.39252452 | AG67: 0.1578277066 | AH67: 0.5007760574 | AI67: -0.2647252801 | AJ67: 18.95670417 | AK67: -9.761352289e-05 | AL67: 0.0002658363464 | AM67: -1.437836864 | AN67: 7.75502283 | AO67: 7.823840542 | AP67: 7.552516646 | AQ67: 7.633259378 | AR67: pH
A68: 0xB5E3 | B68: pH | C68: 2020-05-01T01:03:13 | D68: 1588294987 | E68: 46.34 | F68: 12.8126 | G68: 33.5722 | H68: 948 | I68: 43 | J68: 0 | K68: 10.23 | L68: 1.47 | M68: 14.312 | N68: 0.0438 | O68: 7.1234 | P68: 3.449 | Q68: -0.964197 | R68: 3.1e-05 | S68: -0.981567 | T68: 1.6e-05 | U68: 7.425e-09 | V68: 8.677e-10 | W68: 12.8126 | X68: 285.9626 | Y68: 0.05674045085 | Z68: 33.5722 | AA68: 0.6922490376 | AB68: 0.02708358977 | AC68: 0.5422266813 | AD68: 46.34 | AE68: 0.1558394196 | AF68: -17.38105742 | AG68: 0.1563682294 | AH68: 0.5009360881 | AI68: -0.2649002344 | AJ68: 18.9715973 | AK68: -9.134310775e-05 | AL68: 0.000249281575 | AM68: -1.438063318 | AN68: 7.775712925 | AO68: 7.845086429 | AP68: 7.576436166 | AQ68: 7.657272367 | AR68: pH
A69: 0xF11B | B69: pH | C69: 2020-05-01T01:04:18 | D69: 1588295052 | E69: 42.6 | F69: 12.9083 | G69: 33.5856 | H69: 949 | I69: 43 | J69: 0 | K69: 10.42 | L69: 1.5 | M69: 14.268 | N69: 0.0438 | O69: 7.1234 | P69: 3.449 | Q69: -0.963284 | R69: 2e-05 | S69: -0.980989 | T69: 1.5e-05 | U69: 7.459e-09 | V69: 1.161e-09 | W69: 12.9083 | X69: 286.0583 | Y69: 0.05675943956 | Z69: 33.5856 | AA69: 0.6925349937 | AB69: 0.0270943999 | AC69: 0.5424505456 | AD69: 42.6 | AE69: 0.155271448 | AF69: -17.37581997 | AG69: 0.1557554323 | AH69: 0.5010091515 | AI69: -0.2649581426 | AJ69: 18.97834906 | AK69: -8.400088965e-05 | AL69: 0.0002299282679 | AM69: -1.438178372 | AN69: 7.790753867 | AO69: 7.86040523 | AP69: 7.592869398 | AQ69: 7.673748214 | AR69: pH
A70: 0x55B0 | B70: pH | C70: 2020-05-01T01:05:23 | D70: 1588295117 | E70: 38.92 | F70: 12.9921 | G70: 33.5753 | H70: 950 | I70: 43 | J70: 0 | K70: 10.63 | L70: 1.49 | M70: 14.248 | N70: 0.0438 | O70: 7.1234 | P70: 3.45 | Q70: -0.962422 | R70: 3.7e-05 | S70: -0.980493 | T70: 2.8e-05 | U70: 7.675e-09 | V70: 5.135e-10 | W70: 12.9921 | X70: 286.1421 | Y70: 0.05677606709 | Z70: 33.5753 | AA70: 0.6923151909 | AB70: 0.02708609062 | AC70: 0.5422784702 | AD70: 38.92 | AE70: 0.1547054324 | AF70: -17.37122903 | AG70: 0.1551456909 | AH70: 0.5010731813 | AI70: -0.265030418 | AJ70: 18.98424146 | AK70: -7.676830242e-05 | AL70: 0.0002107542191 | AM70: -1.438281346 | AN70: 7.80472198 | AO70: 7.874606384 | AP70: 7.60804283 | AQ70: 7.688958962 | AR70: pH
A71: 0x98F6 | B71: pH | C71: 2020-05-01T01:06:28 | D71: 1588295182 | E71: 35.75 | F71: 13.1076 | G71: 33.5412 | H71: 951 | I71: 43 | J71: 0 | K71: 10.84 | L71: 1.53 | M71: 14.232 | N71: 0.0438 | O71: 7.1234 | P71: 3.45 | Q71: -0.961689 | R71: 2e-05 | S71: -0.980408 | T71: 3e-05 | U71: 8.106e-09 | V71: 1.306e-09 | W71: 13.1076 | X71: 286.2576 | Y71: 0.0567989845 | Z71: 33.5412 | AA71: 0.6915875278 | AB71: 0.02705858124 | AC71: 0.5417088089 | AD71: 35.75 | AE71: 0.1538663867 | AF71: -17.36489414 | AG71: 0.1542682374 | AH71: 0.5011615113 | AI71: -0.2651494121 | AJ71: 18.99233256 | AK71: -7.054564505e-05 | AL71: 0.00019413309 | AM71: -1.438413467 | AN71: 7.815562365 | AO71: 7.88574789 | AP71: 7.620613664 | AQ71: 7.701581228 | AR71: pH
A72: 0x9B5D | B72: pH | C72: 2020-05-01T01:07:33 | D72: 1588295247 | E72: 33.69 | F72: 13.8464 | G72: 33.5236 | H72: 952 | I72: 43 | J72: 0 | K72: 11.06 | L72: 1.51 | M72: 14.228 | N72: 0.0438 | O72: 7.1234 | P72: 3.45 | Q72: -0.960802 | R72: 2.9e-05 | S72: -0.98059 | T72: 6e-06 | U72: 6.403e-09 | V72: 1.511e-09 | W72: 13.8464 | X72: 286.9964 | Y72: 0.05694557655 | Z72: 33.5236 | AA72: 0.6912119799 | AB72: 0.02704438285 | AC72: 0.5414148052 | AD72: 33.69 | AE72: 0.1492492764 | AF72: -17.32417336 | AG72: 0.1496147735 | AH72: 0.5017286823 | AI72: -0.2657166908 | AJ72: 19.04325696 | AK72: -6.665889269e-05 | AL72: 0.0001832802021 | AM72: -1.43916312 | AN72: 7.819834614 | AO72: 7.891996286 | AP72: 7.636635676 | AQ72: 7.717932228 | AR72: pH
A73: 0x4046 | B73: pH | C73: 2020-05-01T01:08:39 | D73: 1588295313 | E73: 32.97 | F73: 14.0341 | G73: 33.5278 | H73: 953 | I73: 43 | J73: 0 | K73: 11.27 | L73: 1.51 | M73: 14.228 | N73: 0.0436 | O73: 7.1234 | P73: 3.451 | Q73: -0.959811 | R73: 3e-05 | S73: -0.97976 | T73: 3.7e-05 | U73: 8.228e-09 | V73: 9.168e-10 | W73: 14.0341 | X73: 287.1841 | Y73: 0.05698281982 | Z73: 33.5278 | AA73: 0.691301598 | AB73: 0.0270477711 | AC73: 0.5414849643 | AD73: 32.97 | AE73: 0.1481309985 | AF73: -17.31377286 | AG73: 0.1484855496 | AH73: 0.5018733746 | AI73: -0.2658528916 | AJ73: 19.05596599 | AK73: -6.527783958e-05 | AL73: 0.0001794773407 | AM73: -1.439354623 | AN73: 7.834480323 | AO73: 7.907155701 | AP73: 7.654267235 | AQ73: 7.73564737 | AR73: pH
A74: 0x3193 | B74: pH | C74: 2020-05-01T01:09:44 | D74: 1588295378 | E74: 32.94 | F74: 14.1482 | G74: 33.5195 | H74: 954 | I74: 43 | J74: 0 | K74: 11.48 | L74: 1.54 | M74: 14.224 | N74: 0.0438 | O74: 7.1234 | P74: 3.451 | Q74: -0.959102 | R74: 2.3e-05 | S74: -0.979229 | T74: 3.2e-05 | U74: 8.206e-09 | V74: 1.21e-09 | W74: 14.1482 | X74: 287.2982 | Y74: 0.05700545945 | Z74: 33.5195 | AA74: 0.6911244963 | AB74: 0.02704107527 | AC74: 0.5413463172 | AD74: 32.94 | AE74: 0.1474241125 | AF74: -17.30743967 | AG74: 0.1477763809 | AH74: 0.501961449 | AI74: -0.2659462119 | AJ74: 19.0636463 | AK74: -6.524472771e-05 | AL74: 0.00017931878 | AM74: -1.439468881 | AN74: 7.8450644 | AO74: 7.918044171 | AP74: 7.666682508 | AQ74: 7.748113451 | AR74: pH
A75: 0xFCFC | B75: pH | C75: 2020-05-01T01:10:49 | D75: 1588295443 | E75: 33.05 | F75: 14.1597 | G75: 33.5262 | H75: 955 | I75: 43 | J75: 0 | K75: 11.67 | L75: 1.56 | M75: 14.224 | N75: 0.0436 | O75: 7.1234 | P75: 3.452 | Q75: -0.958602 | R75: 2.4e-05 | S75: -0.978721 | T75: 3e-05 | U75: 8.699e-09 | V75: 8.868e-10 | W75: 14.1597 | X75: 287.3097 | Y75: 0.05700774127 | Z75: 33.5262 | AA75: 0.6912674577 | AB75: 0.02704648034 | AC75: 0.541458237 | AD75: 33.05 | AE75: 0.147375573 | AF75: -17.3068009 | AG75: 0.1477288757 | AH75: 0.5019703309 | AI75: -0.2659483807 | AJ75: 19.06441849 | AK75: -6.546525789e-05 | AL75: 0.0001799001269 | AM75: -1.4394798 | AN75: 7.853750196 | AO75: 7.926764999 | AP75: 7.675556981 | AQ75: 7.756993046 | AR75: pH
A76: 0x0309 | B76: pH | C76: 2020-05-01T01:11:55 | D76: 1588295508 | E76: 33.03 | F76: 14.0607 | G76: 33.5403 | H76: 956 | I76: 43 | J76: 0 | K76: 11.88 | L76: 1.59 | M76: 14.224 | N76: 0.0436 | O76: 7.1234 | P76: 3.452 | Q76: -0.958262 | R76: 2.5e-05 | S76: -0.978221 | T76: 2.5e-05 | U76: 7.999e-09 | V76: 3.986e-11 | W76: 14.0607 | X76: 287.2107 | Y76: 0.05698809777 | Z76: 33.5403 | AA76: 0.6915683233 | AB76: 0.02705785518 | AC76: 0.5416937744 | AD76: 33.03 | AE76: 0.1480091161 | AF76: -17.31229714 | AG76: 0.1483639577 | AH76: 0.5018938993 | AI76: -0.2658607507 | AJ76: 19.05775956 | AK76: -6.540278974e-05 | AL76: 0.0001797944361 | AM76: -1.439380906 | AN76: 7.861433335 | AO76: 7.93418852 | AP76: 7.681649449 | AQ76: 7.763041428 | AR76: pH
A77: 0x83D6 | B77: pH | C77: 2020-05-01T01:12:59 | D77: 1588295573 | E77: 32.81 | F77: 14.1484 | G77: 33.5206 | H77: 957 | I77: 43 | J77: 0 | K77: 12.08 | L77: 1.61 | M77: 14.224 | N77: 0.0434 | O77: 7.1234 | P77: 3.452 | Q77: -0.957942 | R77: 2.2e-05 | S77: -0.978146 | T77: 2.4e-05 | U77: 7.607e-09 | V77: 1.088e-09 | W77: 14.1484 | X77: 287.2984 | Y77: 0.05700549913 | Z77: 33.5206 | AA77: 0.6911479674 | AB77: 0.02704196267 | AC77: 0.541364692 | AD77: 32.81 | AE77: 0.1474262008 | AF77: -17.30742856 | AG77: 0.1477770818 | AH77: 0.5019616035 | AI77: -0.265945305 | AJ77: 19.06365974 | AK77: -6.498728064e-05 | AL77: 0.0001786315837 | AM77: -1.439469768 | AN77: 7.865432982 | AO77: 7.938414638 | AP77: 7.687049644 | AQ77: 7.768480676 | AR77: pH
A78: 0xCC9D | B78: pH | C78: 2020-05-01T01:14:30 | D78: 1588295664 | E78: 31.34 | F78: 14.246 | G78: 33.5249 | H78: 958 | I78: 43 | J78: 0 | K78: 12.31 | L78: 1.63 | M78: 14.224 | N78: 0.0436 | O78: 7.1234 | P78: 3.453 | Q78: -0.957576 | R78: 2.2e-05 | S78: -0.977895 | T78: 2.4e-05 | U78: 7.721e-09 | V78: 5.185e-10 | W78: 14.246 | X78: 287.396 | Y78: 0.05702486484 | Z78: 33.5249 | AA78: 0.6912397188 | AB78: 0.02704543159 | AC78: 0.5414365211 | AD78: 31.34 | AE78: 0.1468588152 | AF78: -17.30200467 | AG78: 0.1471924496 | AH78: 0.5020370124 | AI78: -0.2660142301 | AJ78: 19.07020215 | AK78: -6.209693224e-05 | AL78: 0.0001708496766 | AM78: -1.43957515 | AN78: 7.870495674 | AO78: 7.943752723 | AP78: 7.693627889 | AQ78: 7.775102383 | AR78: pH
A79: 0x7B68 | B79: pH | C79: 2020-05-01T01:15:35 | D79: 1588295729 | E79: 27.91 | F79: 14.2653 | G79: 33.5346 | H79: 959 | I79: 43 | J79: 0 | K79: 12.49 | L79: 1.65 | M79: 14.224 | N79: 0.0432 | O79: 7.1234 | P79: 3.453 | Q79: -0.957291 | R79: 2.4e-05 | S79: -0.977643 | T79: 3e-05 | U79: 7.358e-09 | V79: 1.438e-09 | W79: 14.2653 | X79: 287.4153 | Y79: 0.05702869433 | Z79: 33.5346 | AA79: 0.6914466957 | AB79: 0.02705325684 | AC79: 0.5415985564 | AD79: 27.91 | AE79: 0.1467731703 | AF79: -17.3009314 | AG79: 0.1470700416 | AH79: 0.502051932 | AI79: -0.2660193679 | AJ79: 19.07149292 | AK79: -5.5304489e-05 | AL79: 0.000152611124 | AM79: -1.439612689 | AN79: 7.875520225 | AO79: 7.948852895 | AP79: 7.698839744 | AQ79: 7.780322832 | AR79: pH
A80: 0x2558 | B80: pH | C80: 2020-05-01T01:16:40 | D80: 1588295794 | E80: 24.07 | F80: 14.3177 | G80: 33.5291 | H80: 960 | I80: 43 | J80: 0 | K80: 12.67 | L80: 1.67 | M80: 14.228 | N80: 0.0436 | O80: 7.1234 | P80: 3.453 | Q80: -0.956975 | R80: 2.4e-05 | S80: -0.977484 | T80: 1.1e-05 | U80: 8.048e-09 | V80: 9.63e-10 | W80: 14.3177 | X80: 287.4677 | Y80: 0.05703909149 | Z80: 33.5291 | AA80: 0.6913293371 | AB80: 0.02704881985 | AC80: 0.5415066803 | AD80: 24.07 | AE80: 0.1464468578 | AF80: -17.29801628 | AG80: 0.1467021897 | AH80: 0.5020924519 | AI80: -0.2660639013 | AJ80: 19.07499244 | AK80: -4.77041675e-05 | AL80: 0.0001320582931 | AM80: -1.439685642 | AN80: 7.880384299 | AO80: 7.953875039 | AP80: 7.704408616 | AQ80: 7.785915038 | AR80: pH
A81: 0xC048 | B81: pH | C81: 2020-05-01T01:17:45 | D81: 1588295859 | E81: 20.84 | F81: 14.4123 | G81: 33.5485 | H81: 961 | I81: 43 | J81: 0 | K81: 12.82 | L81: 1.68 | M81: 14.228 | N81: 0.0434 | O81: 7.1234 | P81: 3.453 | Q81: -0.956621 | R81: 2e-05 | S81: -0.977309 | T81: 2e-05 | U81: 7.298e-09 | V81: 8.179e-10 | W81: 14.4123 | X81: 287.5623 | Y81: 0.05705786194 | Z81: 33.5485 | AA81: 0.6917432988 | AB81: 0.02706447034 | AC81: 0.5418307567 | AD81: 20.84 | AE81: 0.1459463228 | AF81: -17.29274907 | AG81: 0.1461664702 | AH81: 0.5021656518 | AI81: -0.2661161796 | AJ81: 19.08129198 | AK81: -4.131629296e-05 | AL81: 0.0001146606216 | AM81: -1.439797639 | AN81: 7.885588536 | AO81: 7.95936624 | AP81: 7.711018551 | AQ81: 7.792567098 | AR81: pH
A82: 0x1150 | B82: pH | C82: 2020-05-01T01:18:50 | D82: 1588295924 | E82: 17.89 | F82: 14.4136 | G82: 33.5558 | H82: 962 | I82: 43 | J82: 0 | K82: 13.02 | L82: 1.67 | M82: 14.236 | N82: 0.0434 | O82: 7.1234 | P82: 3.453 | Q82: -0.956419 | R82: 2.1e-05 | S82: -0.977117 | T82: 2.4e-05 | U82: 6.222e-09 | V82: 5.825e-10 | W82: =F82 -> 14.4136 | X82: =W82+273.15 -> 287.5636 | Y82: =8.31451*X82/96487*LN(10) -> 0.05705811988 | Z82: =G82 -> 33.5558 | AA82: =19.924 * Z82/ (1000 - 1.005 * Z82) -> 0.6918990722 | AB82: =(0.14 / 96.062) * (Z82 / 1.80655) -> 0.02707035945 | AC82: =0.99889/35.453*Z82/1.80655*(1 + 0.00106 * Z82) -> 0.5419527061 | AD82: =E82 -> 17.89 | AE82: =EXP(-4276.1 /X82 + 141.328 - 23.093 * LN(X82) + (-13856 / X82 + 324.57 - 47.986 * LN(X82)) * AA82^ 0.5 + (35474 / X82 - 771.54 + 114.723 * LN(X82)) * AA82- 2698 / X82 * AA82 ^ 1.5 + 1776 / X82*AA82 ^ 2 + LN(1 - 0.001005 * Z82)) -> 0.145960143 | AF82: =-18.03 + 0.0466 * W82 + 0.000316 *W82 ^ 2 -> -17.29267665 | AG82: =EXP((-AF82) * (AD82 / 10) / (8.31451 * 10 * X82))*AE82 -> 0.1461491236 | AH82: =(0.00000343*W82^2 + 0.00067524*W82 + 0.49172143) -> 0.5021666582 | AI82: =2*(-AH82*SQRT(AA82)/(1+1.394*SQRT(AA82))+(0.08885-0.000111*W82)*AA82) -> -0.2661101393 | AJ82: =17.85 + 0.1044 * W82 - 0.001316 * W82 ^ 2 -> 19.08137839 | AK82: =-AJ82 * 0.0242 / (23061 * 1.01) *AD82 / 10 -> -3.546793801e-05 | AL82: =AF$18*AD82+AF$19*AD82^2+AF$20*AD82^3+AF$21*AD82^4+AF$22*AD82^5+AF$23*AD82^6 -> 9.868349462e-05 | AM82: =$AF$16+$AF$17*(W82)+AL82 -> -1.439814917 | AN82: =AO82-LOG(1+AB82/AG82) -> 7.889376572 | AO82: =-LOG10((10^(-((Q82-AM82-AK82)/Y82+(LOG(AC82)+AI82))))/(1+0.0016*Z82)) -> 7.963177095 | AP82: =((AN82 + 0.000035833 * AD82 - 0.01703 * (25 - W82) + 0.00004453 * (25 - W82) ^ 2) ) -> 7.714721793 | AQ82: =((AN82 + 0.000035833 * AD82 - 0.01703 * (20 - W82) + 0.00004453 * (20 - W82) ^ 2) ) -> 7.796270919 | AR82: =B82 -> pH
A83: 0x15C9 | B83: pH | C83: 2020-05-01T01:19:56 | D83: 1588295990 | E83: 15.24 | F83: 14.4308 | G83: 33.5366 | H83: 963 | I83: 43 | J83: 0 | K83: 13.19 | L83: 1.71 | M83: 14.236 | N83: 0.0432 | O83: 7.1234 | P83: 3.454 | Q83: -0.95636 | R83: 2.8e-05 | S83: -0.977089 | T83: 1.4e-05 | U83: 9.049e-09 | V83: 1.024e-09 | W83: 14.4308 | X83: 287.5808 | Y83: 0.05706153269 | Z83: 33.5366 | AA83: 0.6914893719 | AB83: 0.0270548703 | AC83: 0.5416319661 | AD83: 15.24 | AE83: 0.145802611 | AF83: -17.29171836 | AG83: 0.1459633907 | AH83: 0.502179974 | AI83: -0.2661414766 | AJ83: 19.08252117 | AK83: -3.021597247e-05 | AL83: 8.425984365e-05 | AM83: -1.43984654 | AN83: 7.890017388 | AO83: 7.963865387 | AP83: 7.715544363 | AQ83: 7.797101149 | AR83: pH
A84: 0x16AD | B84: pH | C84: 2020-05-01T01:21:01 | D84: 1588296055 | E84: 12.11 | F84: 14.4415 | G84: 33.5368 | H84: 964 | I84: 43 | J84: 0 | K84: 13.35 | L84: 1.72 | M84: 14.24 | N84: 0.0432 | O84: 7.1234 | P84: 3.454 | Q84: -0.956094 | R84: 3.2e-05 | S84: -0.976761 | T84: 1.7e-05 | U84: 8.376e-09 | V84: 5.646e-11 | W84: 14.4415 | X84: 287.5915 | Y84: 0.05706365578 | Z84: 33.5368 | AA84: 0.6914936395 | AB84: 0.02705503164 | AC84: 0.5416353071 | AD84: 12.11 | AE84: 0.1457403549 | AF84: -17.29112211 | AG84: 0.1458680354 | AH84: 0.5021882587 | AI84: -0.2661493086 | AJ84: 19.08323169 | AK84: -2.40110926e-05 | AL84: 6.7136665e-05 | AM84: -1.439874363 | AN84: 7.894692611 | AO84: 7.968585407 | AP84: 7.720279584 | AQ84: 7.801841133 | AR84: pH
A85: 0x8385 | B85: pH | C85: 2020-05-01T01:22:06 | D85: 1588296120 | E85: 8.33 | F85: 14.4337 | G85: 33.5353 | H85: 965 | I85: 43 | J85: 0 | K85: 13.51 | L85: 1.7 | M85: 14.244 | N85: 0.043 | O85: 7.1234 | P85: 3.454 | Q85: -0.955738 | R85: 1.8e-05 | S85: -0.976411 | T85: 2.4e-05 | U85: 8.488e-09 | V85: -1.657e-10 | W85: 14.4337 | X85: 287.5837 | Y85: 0.05706210811 | Z85: 33.5353 | AA85: 0.6914616323 | AB85: 0.02705382155 | AC85: 0.5416102497 | AD85: 8.33 | AE85: 0.145781761 | AF85: -17.29155676 | AG85: 0.145869605 | AH85: 0.5021822193 | AI85: -0.2661448983 | AJ85: 19.08271377 | AK85: -1.651585244e-05 | AL85: 4.633203076e-05 | AM85: -1.439887368 | AN85: 7.901245031 | AO85: 7.975134057 | AP85: 7.726571058 | AQ85: 7.808129135 | AR85: pH
A86: 0x31BA | B86: pH | C86: 2020-05-01T01:23:11 | D86: 1588296185 | E86: 5.06 | F86: 14.4351 | G86: 33.5361 | H86: 966 | I86: 43 | J86: 0 | K86: 13.65 | L86: 1.72 | M86: 14.244 | N86: 0.043 | O86: 7.1234 | P86: 3.455 | Q86: -0.955352 | R86: 1.5e-05 | S86: -0.975989 | T86: 2.7e-05 | U86: 6.576e-09 | V86: -3.63e-09 | W86: 14.4351 | X86: 287.5851 | Y86: 0.0570623859 | Z86: 33.5361 | AA86: 0.6914787028 | AB86: 0.02705446693 | AC86: 0.5416236136 | AD86: 5.06 | AE86: 0.1457758852 | AF86: -17.29147875 | AG86: 0.1458292365 | AH86: 0.5021833033 | AI86: -0.2661451807 | AJ86: 19.08280674 | AK86: -1.003248745e-05 | AL86: 2.822358278e-05 | AM86: -1.439906876 | AN86: 7.908187044 | AO86: 7.982096499 | AP86: 7.733418421 | AQ86: 7.814977122 | AR86: pH
A87: 0x91B2 | B87: pH | C87: 2020-05-01T01:25:28 | D87: 0 | E87: -1 | F87: -1 | G87: -1 | H87: 967 | I87: 43 | J87: 0 | K87: 13.86 | L87: 1.78 | M87: 14.352 | N87: 0.043 | O87: 7.1234 | P87: 3.455 | Q87: -0.956148 | R87: 4.6e-05 | S87: -0.976883 | T87: 2.1e-05 | U87: 8.059e-09 | V87: -2.989e-09 | W87: -1 | X87: 272.15 | Y87: 0.05399976675 | Z87: -1 | AA87: -0.01990399648 | AB87: -0.0008067266895 | AC87: -0.01557952069 | AD87: -1 | AF87: -18.076284 | AH87: 0.49104962 | AJ87: 17.744284 | AK87: 1.843632419e-06 | AL87: -5.6069057e-06 | AM87: -1.424505607 | AR87: pH
A88: <EOP> : 18340.022 Fri May 1 01:36:09 2020
A89: H | B89: Datalogger Serial Num | C89: SN:0850
A90: H | B90: Application Name | C90: APF_MAIN.C
A91: H | B91: App Build Date | C91: Apr 30 2019 | D91: 10:48:38
A92: H | B92: Power Up Time (GMT) | C92: 05/01/2020 01:35:59
A93: H | B93: Current Time (GMT) | C93: 05/01/2020 01:36:13
A94: H | B94: Alarm Time (GMT) | C94: 05/01/2020 11:36:04
A95: H | B95: Power Active Timeout | C95: 10
A96: H | B96: Persistor CF2-1M Info | C96: S/N:15002 - BIOS:4.03 - PicoDOS:4.03
A97: H | B97: Compact FLASH Size | C97: 256614400
A98: H | B98: Compact FLASH Left | C98: 0.9755
A99: H | B99: Power Cycle Counter | C99: 1900-02-13
A100: H | B100: System Reset Counter | C100: 1900-02-13
A101: H | B101: System Error Counter | C101: 00:00:00
A102: H | B102: Last System Error | C102: 0
A103: H | B103: Last System ErrorTime | C103: 01/01/1970 00:00:00
A104: H | B104: DURA Error Counter | C104: 0
A105: H | B105: Last DURA Error | C105: 0
A106: H | B106: Last DURA Error Time | C106: 01/01/1970 00:00:00
A107: H | B107: DURA Sample Counter | C107: 968
A108: H | B108: Last Sample Rec. Time | C108: 05/01/2020 01:25:28
A109: H | B109: AtoD Reads per Sample | C109: 10
A110: H | B110: AtoD Reading Delay | C110: 100
A111: H | B111: Samps per AtoD Recal | C111: 250
A112: # No error records to log.
A114: <EOT>

Sheet pHcyc21
AE4: 2.53325E-12x3 - 5.63616E-09x2 - 2.95642E-06x + 3.46442E-05
A5: Profile: 18340.021 Sat Apr 25 16:36:12 2020
A6: H | B6: Datalogger Serial Num | C6: SN:0850
A7: H | B7: Application Name | C7: APF_MAIN.C
A8: Profile: 18340.021 Sat Apr 25 16:36:12 2020
A9: H | B9: Datalogger Serial Num | C9: SN:0850
A10: H | B10: Application Name | C10: APF_MAIN.C
A11: H | B11: App Build Date | C11: Apr 30 2019 | D11: 10:48:38
A12: H | B12: Power Up Time (GMT) | C12: 04/25/2020 16:35:43 | W12: <----- | AE12: -1.57252E-18x5 + 7.57486E-15x4 - 9.81276E-12x3 + 1.81040E-09x2 - 1.66482E-06x + 1.11359E-04
A13: H | B13: Current Time (GMT) | C13: 04/25/2020 16:36:17 | W13: <-----
A14: H | B14: Alarm Time (GMT) | C14: 04/26/2020 02:36:16 | W14: <----- | X14: DuraFET | AE14: Cal values here
A15: H | B15: Power Active Timeout | C15: 10 | W15: <----- | X15: Data | AJ15: Josh
A16: H | B16: Persistor CF2-1M Info | C16: S/N:15002 - BIOS:4.03 - PicoDOS:4.03 | W16: <----- | X16: to the | AA16: Control + Shift + T - import CTD data from .log file | AE16: k0 | AF16: -1.4255 | AH16: -1.427 | AJ16: -1.4255 | AK16: =k0
A17: H | B17: Compact FLASH Size | C17: 256614400 | W17: <----- | X17: Left | AA17: Control + Shift + F to import DuraFET data from .csv file | AE17: k2 | AF17: -0.001 | AH17: -0.0009 | AJ17: -0.001 | AK17: =k2*T
A18: H | B18: Compact FLASH Left | C18: 0.9765 | W18: <----- | AE18: P | AF18: 5.6021e-06 | AH18: -1.66482e-06 | AJ18: 5.6021e-06 | AK18: =k3*P^1
A19: H | B19: Power Cycle Counter | C19: 41 | W19: <----- | AA19: Temperature/Salinity Selection | AE19: P^2 | AF19: -4.8057e-09 | AH19: 1.8104e-09 | AJ19: -4.8057e-09 | AK19: =k4*P^2
A20: H | B20: System Reset Counter | C20: 41 | W20: <----- | AA20: 1: T =DFET (Column C), Salinity input manual | AE20: P^3 | AH20: -9.81276e-12
A21: H | B21: System Error Counter | C21: 0 | W21: <----- | AA21: 2: CTD (load CTD data with Control Shift T) | AE21: P^4 | AH21: 7.57486e-15
A22: H | B22: Last System Error | C22: 0 | W22: <----- | AA22: 2 | AE22: P^5 | AH22: -1.57252e-18
A23: H | B23: Last System ErrorTime | C23: 01/01/1970 00:00:00 | W23: <----- | AE23: P^6
A24: H | B24: DURA Error Counter | C24: 0 | W24: <-----
A25: H | B25: Last DURA Error | C25: 0 | W25: <-----
A26: H | B26: Last DURA Error Time | C26: 01/01/1970 00:00:00 | W26: <-----
A27: H | B27: DURA Sample Counter | C27: 864 | W27: <----- | AA27: Calibration data
A28: H | B28: Last Sample Rec. Time | C28: 04/20/2020 19:25:55 | W28: <-----
A29: H | B29: AtoD Reads per Sample | C29: 10 | W29: <-----
A30: H | B30: AtoD Reading Delay | C30: 1900-04-09
A31: H | B31: Samps per AtoD Recal | C31: 1900-09-06 | Z31: Don't erase this first row of formulas!!!! Subsequent rows can be erased or copied down as needed from colum W on.
A32: # No error records to log. | W32: T/C | X32: K | Y32: S(T) | Z32: Salinity | AA32: IonicStrength | AB32: SO4(tot) | AC32: mCl | AD32: Press(dbar) | AE32: KHSO4 | AF32: deltaV HSO4 | AG32: KHSO4 TPS | AH32: DebyeHuckelConst | AI32: log(γHγCl) | AJ32: deltaV HCl | AK32: ThermPress | AL32: f(P) | AM32: k0+k2T+f(P) | AN32: pHtot in situ | AO32: pHfree in situ | AP32: pH25Total | AQ32: pH20Total | AR32: Date + Time
A33: 0x9E78 | B33: pH | C33: 2020-04-25T16:43:47 | D33: 1587833021 | E33: 1599.11 | F33: 2.5783 | G33: 34.5566 | H33: 864 | I33: 41 | J33: 0 | K33: 2.64 | L33: 0.8 | M33: 14.288 | N33: 0.0448 | O33: 7.1234 | P33: 3.428 | Q33: -0.98918 | R33: 2e-05 | S33: -0.982841 | T33: 1.1e-05 | U33: 7.738e-09 | V33: 1.852e-09 | W33: =F33 -> 2.5783 | X33: =W33+273.15 -> 275.7283 | Y33: =8.31451*X33/96487*LN(10) -> 0.05470976993 | Z33: =G33 -> 34.5566 | AA33: =19.924 * Z33/ (1000 - 1.005 * Z33) -> 0.7132773818 | AB33: =(0.14 / 96.062) * (Z33 / 1.80655) -> 0.02787773152 | AC33: =0.99889/35.453*Z33/1.80655*(1 + 0.00106 * Z33) -> 0.558688158 | AD33: =E33 -> 1599.11 | AE33: =EXP(-4276.1 /X33 + 141.328 - 23.093 * LN(X33) + (-13856 / X33 + 324.57 - 47.986 * LN(X33)) * AA33^ 0.5 + (35474 / X33 - 771.54 + 114.723 * LN(X33)) * AA33- 2698 / X33 * AA33 ^ 1.5 + 1776 / X33*AA33 ^ 2 + LN(1 - 0.001005 * Z33)) -> 0.2503274401 | AF33: =-18.03 + 0.0466 * W33 + 0.000316 *W33 ^ 2 -> -17.90775057 | AG33: =EXP((-AF33) * (AD33 / 10) / (8.31451 * 10 * X33))*AE33 -> 0.2836329632 | AH33: =(0.00000343*W33^2 + 0.00067524*W33 + 0.49172143) -> 0.4934852027 | AI33: =2*(-AH33*SQRT(AA33)/(1+1.394*SQRT(AA33))+(0.08885-0.000111*W33)*AA33) -> -0.2564946022 | AJ33: =17.85 + 0.1044 * W33 - 0.001316 * W33 ^ 2 -> 18.11042624 | AK33: =-AJ33 * 0.0242 / (23061 * 1.01) *AD33 / 10 -> -0.003009004708 | AL33: =AF$18*AD33+AF$19*AD33^2+AF$20*AD33^3+AF$21*AD33^4+AF$22*AD33^5+AF$23*AD33^6 -> -0.003330535042 | AM33: =$AF$16+$AF$17*(W33)+AL33 -> -1.431408835 | AN33: =AO33-LOG(1+AB33/AG33) -> 7.611508543 | AO33: =-LOG10((10^(-((Q33-AM33-AK33)/Y33+(LOG(AC33)+AI33))))/(1+0.0016*Z33)) -> 7.652224802 | AP33: =((AN33 + 0.000035833 * AD33 - 0.01703 * (25 - W33) + 0.00004453 * (25 - W33) ^ 2) ) -> 7.309354585 | AQ33: =((AN33 + 0.000035833 * AD33 - 0.01703 * (20 - W33) + 0.00004453 * (20 - W33) ^ 2) ) -> 7.385633452 | AR33: =B33 -> pH
A34: 0x6AEC | B34: pH | C34: 2020-04-25T17:00:53 | D34: 1587834047 | E34: 1500.19 | F34: 2.7628 | G34: 34.5384 | H34: 865 | I34: 41 | J34: 0 | K34: 2.77 | L34: 0.8 | M34: 14.492 | N34: 0.0442 | O34: 7.1234 | P34: 3.428 | Q34: -0.9881 | R34: 3.1e-05 | S34: -0.981748 | T34: 2.8e-05 | U34: 7.872e-09 | V34: 1.259e-09 | W34: =F34 -> 2.7628 | X34: =W34+273.15 -> 275.9128 | Y34: =8.31451*X34/96487*LN(10) -> 0.05474637826 | Z34: =G34 -> 34.5384 | AA34: 0.7128882098 | AB34: 0.02786304909 | AC34: =0.99889/35.453*Z34/1.80655*(1 + 0.00106 * Z34) -> 0.5583835206 | AD34: =E34 -> 1500.19 | AE34: 0.2480387017 | AF34: =-18.03 + 0.0466 * W34 + 0.000316 *W34 ^ 2 -> -17.89884147 | AG34: =EXP((-AF34) * (AD34 / 10) / (8.31451 * 10 * X34))*AE34 -> 0.2788384088 | AH34: 0.4936131645 | AI34: -0.2566440113 | AJ34: =17.85 + 0.1044 * W34 - 0.001316 * W34 ^ 2 -> 18.12839121 | AK34: =-AJ34 * 0.0242 / (23061 * 1.01) *AD34 / 10 -> -0.002825669652 | AL34: -0.002411350023 | AM34: -1.43067415 | AN34: =AO34-LOG(1+AB34/AG34) -> 7.607980109 | AO34: =-LOG10((10^(-((Q34-AM34-AK34)/Y34+(LOG(AC34)+AI34))))/(1+0.0016*Z34)) -> 7.649343354 | AP34: =((AN34 + 0.000035833 * AD34 - 0.01703 * (25 - W34) + 0.00004453 * (25 - W34) ^ 2) ) -> 7.305056678 | AQ34: =((AN34 + 0.000035833 * AD34 - 0.01703 * (20 - W34) + 0.00004453 * (20 - W34) ^ 2) ) -> 7.381417703 | AR34: =B34 -> pH
A35: 0xD083 | B35: pH | C35: 2020-04-25T17:19:52 | D35: 1587835186 | E35: 1400.06 | F35: 2.9598 | G35: 34.5219 | H35: 866 | I35: 41 | J35: 0 | K35: 2.89 | L35: 0.8 | M35: 14.456 | N35: 0.0442 | O35: 7.1234 | P35: 3.429 | Q35: -0.987989 | R35: 3.6e-05 | S35: -0.981593 | T35: 3.5e-05 | U35: 7.72e-09 | V35: 3.717e-10 | W35: 2.9598 | X35: 276.1098 | Y35: 0.05478546683 | Z35: 34.5219 | AA35: 0.7125354019 | AB35: 0.0278497381 | AC35: 0.5581073478 | AD35: 1400.06 | AE35: 0.2456445137 | AF35: -17.88930503 | AG35: 0.2739606936 | AH35: 0.4937500536 | AI35: -0.2568002889 | AJ35: 18.14747441 | AK35: -0.002639846637 | AL35: -0.001576703249 | AM35: -1.430036503 | AN35: 7.588105957 | AO35: 7.630151946 | AP35: 7.284561058 | AQ35: 7.361009806 | AR35: pH
A36: 0x1F30 | B36: pH | C36: 2020-04-25T17:40:14 | D36: 1587836408 | E36: 1299.58 | F36: 3.152 | G36: 34.5073 | H36: 867 | I36: 41 | J36: 0 | K36: 3.06 | L36: 0.81 | M36: 14.284 | N36: 0.0448 | O36: 7.1234 | P36: 3.429 | Q36: -0.987975 | R36: 2.8e-05 | S36: -0.981607 | T36: 2.5e-05 | U36: 8.648e-09 | V36: 1.705e-09 | W36: 3.152 | X36: 276.302 | Y36: 0.05482360299 | Z36: 34.5073 | AA36: 0.7122232304 | AB36: 0.02783795989 | AC36: 0.5578629842 | AD36: 1299.58 | AE36: 0.2433472938 | AF36: -17.87997731 | AG36: 0.2692487708 | AH36: 0.4938838639 | AI36: -0.2569511704 | AJ36: 18.1659942 | AK36: -0.002452889854 | AL36: -0.0008360089053 | AM36: -1.429488009 | AN36: 7.568266 | AO36: 7.610995525 | AP36: 7.264018142 | AQ36: 7.340552478 | AR36: pH
A37: 0xF0D3 | B37: pH | C37: 2020-04-25T17:59:36 | D37: 1587837569 | E37: 1199.62 | F37: 3.4152 | G37: 34.4815 | H37: 868 | I37: 41 | J37: 0 | K37: 3.24 | L37: 0.85 | M37: 14.248 | N37: 0.0448 | O37: 7.1234 | P37: 3.429 | Q37: -0.987816 | R37: 2.8e-05 | S37: -0.981372 | T37: 2.1e-05 | U37: 8.612e-09 | V37: 1.687e-09 | W37: 3.4152 | X37: 276.5652 | Y37: 0.0548758269 | Z37: 34.4815 | AA37: 0.7116716081 | AB37: 0.02781714634 | AC37: 0.5574311809 | AD37: 1199.62 | AE37: 0.2402084549 | AF37: -17.86716599 | AG37: 0.2636751047 | AH37: 0.4940675158 | AI37: -0.2571646134 | AJ37: 18.19119759 | AK37: -0.002267361904 | AL37: -0.0001954346935 | AM37: -1.429110635 | AN37: 7.55180389 | AO37: 7.595361777 | AP37: 7.247947416 | AQ37: 7.324598955 | AR37: pH
A38: 0xB096 | B38: pH | C38: 2020-04-25T18:16:16 | D38: 1587838569 | E38: 1099.7 | F38: 3.6784 | G38: 34.4716 | H38: 869 | I38: 41 | J38: 0 | K38: 3.46 | L38: 0.84 | M38: 14.504 | N38: 0.044 | O38: 7.1234 | P38: 3.43 | Q38: -0.987585 | R38: 2.3e-05 | S38: -0.981324 | T38: 2.2e-05 | U38: 9.178e-09 | V38: 8.945e-10 | W38: 3.6784 | X38: 276.8284 | Y38: 0.05492805082 | Z38: 34.4716 | AA38: 0.7114599469 | AB38: 0.02780915975 | AC38: 0.5572654948 | AD38: 1099.7 | AE38: 0.2372232261 | AF38: -17.85431088 | AG38: 0.258347532 | AH38: 0.4942516429 | AI38: -0.25736021 | AJ38: 18.21621866 | AK38: -0.002081365311 | AL38: 0.0003489036995 | AM38: -1.428829496 | AN38: 7.538646897 | AO38: 7.583046487 | AP38: 7.235189411 | AQ38: 7.311958152 | AR38: pH
A39: 0xB529 | B39: pH | C39: 2020-04-25T18:36:03 | D39: 1587839756 | E39: 999.61 | F39: 3.9754 | G39: 34.4442 | H39: 870 | I39: 41 | J39: 0 | K39: 3.71 | L39: 0.88 | M39: 14.336 | N39: 0.0444 | O39: 7.1234 | P39: 3.43 | Q39: -0.987218 | R39: 1.7e-05 | S39: -0.981071 | T39: 2.8e-05 | U39: 7.014e-09 | V39: 3.778e-10 | W39: 3.9754 | X39: 277.1254 | Y39: 0.0549869813 | Z39: 34.4442 | AA39: 0.71087416 | AB39: 0.02778705544 | AC39: 0.556806946 | AD39: 999.61 | AE39: 0.2338102132 | AF39: -17.83975236 | AG39: 0.2526243432 | AH39: 0.4944599861 | AI39: -0.2575996636 | AJ39: 18.24423395 | AK39: -0.001894837981 | AL39: 0.0007979628961 | AM39: -1.428677437 | AN39: 7.528977886 | AO39: 7.574298353 | AP39: 7.226431739 | AQ39: 7.303332734 | AR39: pH
A40: 0x4A09 | B40: pH | C40: 2020-04-25T18:45:08 | D40: 1587840302 | E40: 949.97 | F40: 4.0806 | G40: 34.4341 | H40: 871 | I40: 41 | J40: 0 | K40: 3.89 | L40: 0.9 | M40: 14.36 | N40: 0.0442 | O40: 7.1234 | P40: 3.431 | Q40: -0.986172 | R40: 2.3e-05 | S40: -0.97989 | T40: 2.2e-05 | U40: 9.257e-09 | V40: 6.051e-10 | W40: 4.0806 | X40: 277.2306 | Y40: 0.05500785499 | Z40: 34.4341 | AA40: 0.7106582397 | AB40: 0.0277789075 | AC40: 0.5566379252 | AD40: 949.97 | AE40: 0.232614138 | AF40: -17.83458223 | AG40: 0.2503556028 | AH40: 0.4945339283 | AI40: -0.2576849896 | AJ40: 18.25410153 | AK40: -0.001801715475 | AL40: 0.0009849566076 | AM40: -1.428595643 | AN40: 7.541152978 | AO40: 7.586850542 | AP40: 7.238423148 | AQ40: 7.315370989 | AR40: pH
A41: 0x59FD | B41: pH | C41: 2020-04-25T18:56:12 | D41: 1587840965 | E41: 893.99 | F41: 4.2519 | G41: 34.418 | H41: 872 | I41: 41 | J41: 0 | K41: 4.09 | L41: 0.92 | M41: 14.368 | N41: 0.0442 | O41: 7.1234 | P41: 3.431 | Q41: -0.985737 | R41: 1.8e-05 | S41: -0.979403 | T41: 2.7e-05 | U41: 8.446e-09 | V41: 5.557e-10 | W41: 4.2519 | X41: 277.4019 | Y41: 0.05504184419 | Z41: 34.418 | AA41: 0.7103140592 | AB41: 0.0277659192 | AC41: 0.5563685029 | AD41: 893.99 | AE41: 0.23068559 | AF41: -17.82614861 | AG41: 0.2471882764 | AH41: 0.4946544927 | AI41: -0.2578236072 | AJ41: 18.27010685 | AK41: -0.001697030331 | AL41: 0.001167418859 | AM41: -1.428584481 | AN41: 7.541070092 | AO41: 7.587302574 | AP41: 7.23893373 | AQ41: 7.315957851 | AR41: pH
A42: 0x0F0E | B42: pH | C42: 2020-04-25T19:08:14 | D42: 1587841687 | E42: 835.68 | F42: 4.4591 | G42: 34.3954 | H42: 873 | I42: 41 | J42: 0 | K42: 4.27 | L42: 0.93 | M42: 14.296 | N42: 0.0446 | O42: 7.1234 | P42: 3.432 | Q42: -0.985472 | R42: 2.1e-05 | S42: -0.979144 | T42: 1.8e-05 | U42: 8.639e-09 | V42: 1.373e-09 | W42: 4.4591 | X42: 277.6091 | Y42: 0.05508295664 | Z42: 34.3954 | AA42: 0.7098309434 | AB42: 0.02774768718 | AC42: 0.5559903221 | AD42: 835.68 | AE42: 0.228361768 | AF42: -17.81592273 | AG42: 0.2435771633 | AH42: 0.4948005933 | AI42: -0.2579949 | AJ42: 18.28936326 | AK42: -0.001588014453 | AL42: 0.00132544917 | AM42: -1.428633651 | AN42: 7.53766447 | AO42: 7.584517474 | AP42: 7.236586344 | AQ42: 7.313702731 | AR42: pH
A43: 0xDA4A | B43: pH | C43: 2020-04-25T19:19:15 | D43: 1587842348 | E43: 782.63 | F43: 4.665 | G43: 34.3681 | H43: 874 | I43: 41 | J43: 0 | K43: 4.46 | L43: 0.96 | M43: 14.368 | N43: 0.0442 | O43: 7.1234 | P43: 3.432 | Q43: -0.985305 | R43: 2.8e-05 | S43: -0.979 | T43: 4.3e-05 | U43: 8.509e-09 | V43: -9.791e-11 | W43: 4.665 | X43: 277.815 | Y43: 0.05512381113 | Z43: 34.3681 | AA43: 0.7092473869 | AB43: 0.02772566354 | AC43: 0.5555335156 | AD43: 782.63 | AE43: 0.2260541059 | AF43: -17.80573414 | AG43: 0.2401114248 | AH43: 0.494946069 | AI43: -0.258170637 | AJ43: 18.30838691 | AK43: -0.001488752246 | AL43: 0.001440833576 | AM43: -1.428724166 | AN43: 7.533395668 | AO43: 7.580853558 | AP43: 7.233548298 | AQ43: 7.310756373 | AR43: pH
A44: 0x82B5 | B44: pH | C44: 2020-04-25T19:26:15 | D44: 1587842768 | E44: 743.11 | F44: 4.8029 | G44: 34.3537 | H44: 875 | I44: 41 | J44: 0 | K44: 4.66 | L44: 0.98 | M44: 14.288 | N44: 0.0446 | O44: 7.1234 | P44: 3.433 | Q44: -0.985051 | R44: 2.3e-05 | S44: -0.978882 | T44: 1.3e-05 | U44: 7.419e-09 | V44: 1.127e-09 | W44: 4.8029 | X44: 277.9529 | Y44: 0.05515117313 | Z44: 34.3537 | AA44: 0.7089395903 | AB44: 0.02771404667 | AC44: 0.5552925727 | AD44: 743.11 | AE44: 0.2245482994 | AF44: -17.79889542 | AG44: 0.2377744992 | AH44: 0.4950436629 | AI44: -0.2582840391 | AJ44: 18.32106547 | AK44: -0.001414554513 | AL44: 0.001509209054 | AM44: -1.428793691 | AN44: 7.533178271 | AO44: 7.581058784 | AP44: 7.234014323 | AQ44: 7.311283804 | AR44: pH
A45: 0xC8E4 | B45: pH | C45: 2020-04-25T19:37:16 | D45: 1587843429 | E45: 681.63 | F45: 5.1718 | G45: 34.3393 | H45: 876 | I45: 41 | J45: 0 | K45: 4.82 | L45: 1.01 | M45: 14.372 | N45: 0.0442 | O45: 7.1234 | P45: 3.433 | Q45: -0.984743 | R45: 1.6e-05 | S45: -0.978909 | T45: 2.7e-05 | U45: 8.124e-09 | V45: 5.696e-10 | W45: 5.1718 | X45: 278.3218 | Y45: 0.05522436995 | Z45: 34.3393 | AA45: 0.7086318029 | AB45: 0.02770242981 | AC45: 0.5550516366 | AD45: 681.63 | AE45: 0.2207206335 | AF45: -17.78054191 | AG45: 0.2325885665 | AH45: 0.4953053802 | AI45: -0.258560862 | AJ45: 18.35473619 | AK45: -0.001299908249 | AL45: 0.001585737699 | AM45: -1.429086062 | AN45: 7.529810268 | AO45: 7.578681052 | AP45: 7.234068174 | AQ45: 7.311501926 | AR45: pH
A46: 0xCB3A | B46: pH | C46: 2020-04-25T19:43:15 | D46: 1587843788 | E46: 650.4 | F46: 5.2796 | G46: 34.3212 | H46: 877 | I46: 41 | J46: 0 | K46: 5.01 | L46: 1.02 | M46: 14.348 | N46: 0.0442 | O46: 7.1234 | P46: 3.434 | Q46: -0.984538 | R46: 3.1e-05 | S46: -0.978779 | T46: 2.7e-05 | U46: 6.79e-09 | V46: 1.265e-09 | W46: 5.2796 | X46: 278.4296 | Y46: 0.05524575953 | Z46: 34.3212 | AA46: 0.7082449443 | AB46: 0.02768782806 | AC46: 0.5547488031 | AD46: 650.4 | AE46: 0.2195397122 | AF46: -17.7751624 | AG46: 0.2307817344 | AH46: 0.4953820355 | AI46: -0.2586572848 | AJ46: 18.36450782 | AK46: -0.001241011147 | AL46: 0.001610697857 | AM46: -1.429168902 | AN46: 7.530147446 | AO46: 7.579355421 | AP46: 7.234932275 | AQ46: 7.312414031 | AR46: pH
A47: 0x90F2 | B47: pH | C47: 2020-04-25T19:54:14 | D47: 1587844447 | E47: 599.15 | F47: 5.3321 | G47: 34.2643 | H47: 878 | I47: 41 | J47: 0 | K47: 5.19 | L47: 1.07 | M47: 14.392 | N47: 0.0442 | O47: 7.1234 | P47: 3.434 | Q47: -0.984486 | R47: 1.4e-05 | S47: -0.97866 | T47: 3.3e-05 | U47: 7.746e-09 | V47: 2.165e-09 | W47: 5.3321 | X47: 278.4821 | Y47: 0.05525617654 | Z47: 34.2643 | AA47: 0.7070288925 | AB47: 0.02764192531 | AC47: 0.553796872 | AD47: 599.15 | AE47: 0.2186986119 | AF47: -17.77253985 | AG47: 0.2289911322 | AH47: 0.4954193965 | AI47: -0.2587574098 | AJ47: 18.36925566 | AK47: -0.00114351793 | AL47: 0.001631344557 | AM47: -1.429200755 | AN47: 7.527209652 | AO47: 7.576703586 | AP47: 7.230960032 | AQ47: 7.308465166 | AR47: pH
A48: 0xA44F | B48: pH | C48: 2020-04-25T20:06:15 | D48: 1587845168 | E48: 542.62 | F48: 5.5923 | G48: 34.2331 | H48: 879 | I48: 41 | J48: 0 | K48: 5.37 | L48: 1.06 | M48: 14.376 | N48: 0.0442 | O48: 7.1234 | P48: 3.435 | Q48: -0.984287 | R48: 2.4e-05 | S48: -0.978864 | T48: 2.2e-05 | U48: 7.554e-09 | V48: 1.72e-09 | W48: 5.5923 | X48: 278.7423 | Y48: 0.0553078052 | Z48: 34.2331 | AA48: 0.7063621555 | AB48: 0.02761675543 | AC48: 0.5532749447 | AD48: 542.62 | AE48: 0.2159661279 | AF48: -17.75951629 | AG48: 0.2251353684 | AH48: 0.4956048439 | AI48: -0.2589761468 | AJ48: 18.39267977 | AK48: -0.001036947247 | AL48: 0.001624838185 | AM48: -1.429467462 | AN48: 7.524764939 | AO48: 7.575016025 | AP48: 7.230468127 | AQ48: 7.308089129 | AR48: pH
A49: 0xB248 | B49: pH | C49: 2020-04-25T20:18:16 | D49: 1587845889 | E49: 476.28 | F49: 6.3679 | G49: 34.2329 | H49: 880 | I49: 41 | J49: 0 | K49: 5.66 | L49: 1.1 | M49: 14.38 | N49: 0.0442 | O49: 7.1234 | P49: 3.436 | Q49: -0.982948 | R49: 1.4e-05 | S49: -0.978663 | T49: 2.6e-05 | U49: 7.613e-09 | V49: 1.128e-09 | W49: 6.3679 | X49: 279.5179 | Y49: 0.05546169907 | Z49: 34.2329 | AA49: 0.7063578817 | AB49: 0.02761659409 | AC49: 0.5532715992 | AD49: 476.28 | AE49: 0.2085614549 | AF49: -17.72044201 | AG49: 0.2162746498 | AH49: 0.4961603778 | AI49: -0.2595279964 | AJ49: 18.46144476 | AK49: -0.0009135743268 | AL49: 0.001578030521 | AM49: -1.430289869 | AN49: 7.536630926 | AO49: 7.588821517 | AP49: 7.251851623 | AQ49: 7.329817999 | AR49: pH
A50: 0xDA72 | B50: pH | C50: 2020-04-25T20:24:14 | D50: 1587846248 | E50: 435.26 | F50: 6.6358 | G50: 34.2248 | H50: 881 | I50: 41 | J50: 0 | K50: 5.91 | L50: 1.1 | M50: 14.364 | N50: 0.044 | O50: 7.1234 | P50: 3.436 | Q50: -0.982502 | R50: 2.6e-05 | S50: -0.978653 | T50: 2.2e-05 | U50: 8.389e-09 | V50: -8.994e-10 | W50: 6.6358 | X50: 279.7858 | Y50: 0.05551485556 | Z50: 34.2248 | AA50: 0.7061847937 | AB50: 0.0276100596 | AC50: 0.5531361041 | AD50: 435.26 | AE50: 0.2060381539 | AF50: -17.70685703 | AG50: 0.2129786356 | AH50: 0.4963532237 | AI50: -0.2597281005 | AJ50: 18.48482898 | AK50: -0.0008359495169 | AL50: 0.001527924089 | AM50: -1.430607876 | AN50: 7.540195553 | AO50: 7.593134729 | AP50: 7.258067367 | AQ50: 7.336153038 | AR50: pH
A51: 0x2DBC | B51: pH | C51: 2020-04-25T20:30:13 | D51: 1587846607 | E51: 397.09 | F51: 6.8539 | G51: 34.2101 | H51: 882 | I51: 41 | J51: 0 | K51: 6.17 | L51: 1.1 | M51: 14.364 | N51: 0.0442 | O51: 7.1234 | P51: 3.437 | Q51: -0.982054 | R51: 2.1e-05 | S51: -0.978703 | T51: 3.1e-05 | U51: 8.697e-09 | V51: -6.027e-11 | W51: 6.8539 | X51: 280.0039 | Y51: 0.05555813077 | Z51: 34.2101 | AA51: 0.7058706784 | AB51: 0.02759820072 | AC51: 0.5528902113 | AD51: 397.09 | AE51: 0.203972182 | AF51: -17.69576386 | AG51: 0.2102224556 | AH51: 0.4965105849 | AI51: -0.2599000609 | AJ51: 18.50372682 | AK51: -0.0007634208461 | AL51: 0.001466772863 | AM51: -1.430887127 | AN51: 7.544674958 | AO51: 7.598245427 | AP51: 7.264538681 | AQ51: 7.342721473 | AR51: pH
A52: 0x2966 | B52: pH | C52: 2020-04-25T20:36:13 | D52: 1587846966 | E52: 367.35 | F52: 7.0571 | G52: 34.1902 | H52: 883 | I52: 41 | J52: 0 | K52: 6.41 | L52: 1.12 | M52: 14.372 | N52: 0.044 | O52: 7.1234 | P52: 3.437 | Q52: -0.981657 | R52: 2.4e-05 | S52: -0.978726 | T52: 2.3e-05 | U52: 7.251e-09 | V52: -4.798e-10 | W52: 7.0571 | X52: 280.2071 | Y52: 0.05559844954 | Z52: 34.1902 | AA52: 0.7054454629 | AB52: 0.02758214686 | AC52: 0.5525573473 | AD52: 367.35 | AE52: 0.202040842 | AF52: -17.6854015 | AG52: 0.2077541506 | AH52: 0.4966574893 | AI52: -0.2600671507 | AJ52: 18.52122094 | AK52: -0.0007069122589 | AL52: 0.001409421335 | AM52: -1.431147679 | AN52: 7.5486065 | AO52: 7.602745707 | AP52: 7.270538494 | AQ52: 7.348811771 | AR52: pH
A53: 0xC41A | B53: pH | C53: 2020-04-25T20:42:12 | D53: 1587847325 | E53: 342.17 | F53: 7.1922 | G53: 34.1804 | H53: 884 | I53: 41 | J53: 0 | K53: 6.64 | L53: 1.14 | M53: 14.376 | N53: 0.044 | O53: 7.1234 | P53: 3.438 | Q53: -0.98128 | R53: 2e-05 | S53: -0.978704 | T53: 2.3e-05 | U53: 7.57e-09 | V53: 2.372e-09 | W53: 7.1922 | X53: 280.3422 | Y53: 0.05562525596 | Z53: 34.1804 | AA53: 0.7052360667 | AB53: 0.02757424094 | AC53: 0.5523934291 | AD53: 342.17 | AE53: 0.2007866974 | AF53: -17.67849751 | AG53: 0.2060656111 | AH53: 0.4967553173 | AI53: -0.2601746002 | AJ53: 18.53279197 | AK53: -0.0006588683367 | AL53: 0.001354217717 | AM53: -1.431337982 | AN53: 7.553394328 | AO53: 7.607935729 | AP53: 7.276509724 | AQ53: 7.354843161 | AR53: pH
A54: 0x792B | B54: pH | C54: 2020-04-25T20:43:47 | D54: 1587847420 | E54: 335.72 | F54: 7.2495 | G54: 34.173 | H54: 885 | I54: 41 | J54: 0 | K54: 6.78 | L54: 1.15 | M54: 14.212 | N54: 0.0444 | O54: 7.1234 | P54: 3.438 | Q54: -0.981112 | R54: 2e-05 | S54: -0.97879 | T54: 1.2e-05 | U54: 8.671e-09 | V54: -3.583e-10 | W54: 7.2495 | X54: 280.3995 | Y54: 0.05563662538 | Z54: 34.173 | AA54: 0.7050779541 | AB54: 0.02756827116 | AC54: 0.5522696563 | AD54: 335.72 | AE54: 0.2002420668 | AF54: -17.67556584 | AG54: 0.2054042178 | AH54: 0.4967968469 | AI54: -0.2602236934 | AJ54: 18.53768509 | AK54: -0.0006466191631 | AL54: 0.001339096569 | AM54: -1.431410403 | AN54: 7.555534462 | AO54: 7.610229745 | AP54: 7.279303826 | AQ54: 7.357662778 | AR54: pH
A55: 0xEAD4 | B55: pH | C55: 2020-04-25T20:50:07 | D55: 1587847800 | E55: 303.6 | F55: 7.3953 | G55: 34.1288 | H55: 886 | I55: 41 | J55: 0 | K55: 7 | L55: 1.17 | M55: 14.34 | N55: 0.0442 | O55: 7.1234 | P55: 3.439 | Q55: -0.98038 | R55: 2e-05 | S55: -0.978826 | T55: 1.5e-05 | U55: 8.041e-09 | V55: 1.644e-09 | W55: 7.3953 | X55: 280.5453 | Y55: 0.05566555489 | Z55: 34.1288 | AA55: 0.7041336023 | AB55: 0.02753261384 | AC55: 0.5515304022 | AD55: 303.6 | AE55: 0.1987432062 | AF55: -17.66809683 | AG55: 0.2033664549 | AH55: 0.4969026207 | AI55: -0.260375913 | AJ55: 18.55009667 | AK55: -0.0005851454076 | AL55: 0.001257841966 | AM55: -1.431637458 | AN55: 7.566236063 | AO55: 7.621378926 | AP55: 7.291107901 | AQ55: 7.369531778 | AR55: pH
A56: 0xB0E9 | B56: pH | C56: 2020-04-25T20:56:06 | D56: 1587848159 | E56: 276.3 | F56: 7.6237 | G56: 34.1133 | H56: 887 | I56: 41 | J56: 0 | K56: 7.17 | L56: 1.2 | M56: 14.376 | N56: 0.044 | O56: 7.1234 | P56: 3.439 | Q56: -0.979548 | R56: 3.5e-05 | S56: -0.978795 | T56: 1.1e-05 | U56: 7.39e-09 | V56: 1.796e-09 | W56: 7.6237 | X56: 280.7737 | Y56: 0.05571087382 | Z56: 34.1133 | AA56: 0.7038024587 | AB56: 0.02752010958 | AC56: 0.5512711768 | AD56: 276.3 | AE56: 0.1966790151 | AF56: -17.65636941 | AG56: 0.2008323114 | AH56: 0.4970686115 | AI56: -0.2605566136 | AJ56: 18.5694273 | AK56: -0.0005330835133 | AL56: 0.00118098497 | AM56: -1.431942715 | AN56: 7.578087876 | AO56: 7.63385991 | AP56: 7.305515346 | AQ56: 7.38404093 | AR56: pH
A57: 0x40E8 | B57: pH | C57: 2020-04-25T20:57:41 | D57: 1587848254 | E57: 269.2 | F57: 7.729 | G57: 34.1092 | H57: 888 | I57: 41 | J57: 0 | K57: 7.3 | L57: 1.2 | M57: 14.22 | N57: 0.0442 | O57: 7.1234 | P57: 3.44 | Q57: -0.979275 | R57: 2e-05 | S57: -0.978694 | T57: 1.3e-05 | U57: 6.987e-09 | V57: 2.319e-10 | W57: 7.729 | X57: 280.879 | Y57: 0.05573176735 | Z57: 34.1092 | AA57: 0.7037148677 | AB57: 0.027516802 | AC57: 0.5512026088 | AD57: 269.2 | AE57: 0.1957509736 | AF57: -17.65095157 | AG57: 0.1997745924 | AH57: 0.4971452594 | AI57: -0.2606367308 | AJ57: 18.57829313 | AK57: -0.0005196329989 | AL57: 0.001159822777 | AM57: -1.432069177 | AN57: 7.58155869 | AO57: 7.637601429 | AP57: 7.310362543 | AQ57: 7.388935017 | AR57: pH
A58: 0xAF96 | B58: pH | C58: 2020-04-25T21:04:00 | D58: 1587848633 | E58: 233.2 | F58: 8.044 | G58: 34.0879 | H58: 889 | I58: 41 | J58: 0 | K58: 7.5 | L58: 1.25 | M58: 14.352 | N58: 0.0438 | O58: 7.1234 | P58: 3.44 | Q58: -0.978222 | R58: 2.2e-05 | S58: -0.978682 | T58: 2.6e-05 | U58: 7.63e-09 | V58: 7.973e-10 | W58: 8.044 | X58: 281.194 | Y58: 0.05579426938 | Z58: 34.0879 | AA58: 0.7032598337 | AB58: 0.02749961872 | AC58: 0.5508463988 | AD58: 233.2 | AE58: 0.1929668793 | AF58: -17.63470252 | AG58: 0.1963911009 | AH58: 0.4973750019 | AI58: -0.2608863202 | AJ58: 18.60464059 | AK58: -0.0004507810876 | AL58: 0.001045064989 | AM58: -1.432498935 | AN58: 7.596372459 | AO58: 7.653286747 | AP58: 7.328770674 | AQ58: 7.407483417 | AR58: pH
A59: 0xE707 | B59: pH | C59: 2020-04-25T21:09:59 | D59: 1587848992 | E59: 197.77 | F59: 8.3589 | G59: 34.0497 | H59: 890 | I59: 41 | J59: 0 | K59: 7.7 | L59: 1.27 | M59: 14.388 | N59: 0.0438 | O59: 7.1234 | P59: 3.441 | Q59: -0.977003 | R59: 2e-05 | S59: -0.97893 | T59: 3e-05 | U59: 7.284e-09 | V59: 1.414e-09 | W59: 8.3589 | X59: 281.5089 | Y59: 0.05585675157 | Z59: 34.0497 | AA59: 0.7024438139 | AB59: 0.02746880176 | AC59: 0.5502075997 | AD59: 197.77 | AE59: 0.1901591954 | AF59: -17.61839596 | AG59: 0.1930112112 | AH59: 0.4976053519 | AI59: -0.2611541136 | AJ59: 18.63071865 | AK59: -0.0003828299242 | AL59: 0.0009199621031 | AM59: -1.432938938 | AN59: 7.614070865 | AO59: 7.671857555 | AP59: 7.350091148 | AQ59: 7.428944117 | AR59: pH
A60: 0x9542 | B60: pH | C60: 2020-04-25T21:15:58 | D60: 1587849351 | E60: 165.35 | F60: 8.6813 | G60: 34.0195 | H60: 891 | I60: 41 | J60: 0 | K60: 7.94 | L60: 1.29 | M60: 14.404 | N60: 0.0438 | O60: 7.1234 | P60: 3.442 | Q60: -0.974615 | R60: 2.1e-05 | S60: -0.978388 | T60: 1.5e-05 | U60: 8.033e-09 | V60: -1.462e-09 | W60: 8.6813 | X60: 281.8313 | Y60: 0.05592072189 | Z60: 34.0195 | AA60: 0.7017987343 | AB60: 0.02744443861 | AC60: 0.5497026146 | AD60: 165.35 | AE60: 0.1873788795 | AF60: -17.60163609 | AG60: 0.1897206903 | AH60: 0.4978418929 | AI60: -0.2614190988 | AJ60: 18.65714742 | AK60: -0.0003205275019 | AL60: 0.0007949164055 | AM60: -1.433386384 | AN60: 7.6527437 | AO60: 7.711419094 | AP60: 7.392619563 | AQ60: 7.471616096 | AR60: pH
A61: 0x43CD | B61: pH | C61: 2020-04-25T21:21:57 | D61: 1587849710 | E61: 140.91 | F61: 9.1484 | G61: 33.9362 | H61: 892 | I61: 41 | J61: 0 | K61: 8.19 | L61: 1.28 | M61: 14.416 | N61: 0.0438 | O61: 7.1234 | P61: 3.443 | Q61: -0.972777 | R61: 1.6e-05 | S61: -0.977722 | T61: 2.1e-05 | U61: 7.4e-09 | V61: 1.318e-09 | W61: 9.1484 | X61: 282.2984 | Y61: 0.05601340347 | Z61: 33.9362 | AA61: 0.7000196352 | AB61: 0.02737723828 | AC61: 0.5483098816 | AD61: 140.91 | AE61: 0.1832775417 | AF61: -17.5772375 | AG61: 0.1852217824 | AH61: 0.4981858634 | AI61: -0.2618448226 | AJ61: 18.69495268 | AK61: -0.0002737045654 | AL61: 0.000693971719 | AM61: -1.433954428 | AN61: 7.6785024 | AO61: 7.7383716 | AP61: 7.424788076 | AQ61: 7.503992609 | AR61: pH
A62: 0xA708 | B62: pH | C62: 2020-04-25T21:27:56 | D62: 1587850069 | E62: 116.47 | F62: 9.4007 | G62: 33.8637 | H62: 893 | I62: 41 | J62: 0 | K62: 8.46 | L62: 1.31 | M62: 14.416 | N62: 0.0436 | O62: 7.1234 | P62: 3.444 | Q62: -0.971588 | R62: 2.3e-05 | S62: -0.977218 | T62: 2.3e-05 | U62: 7.909e-09 | V62: 4.854e-10 | W62: 9.4007 | X62: 282.5507 | Y62: 0.05606346462 | Z62: 33.8637 | AA62: 0.6984714506 | AB62: 0.0273187506 | AC62: 0.5470979058 | AD62: 116.47 | AE62: 0.180998536 | AF62: -17.56400146 | AG62: 0.1825815027 | AH62: 0.4983722786 | AI62: -0.2621031743 | AJ62: 18.715134 | AK62: -0.0002264763582 | AL62: 0.0005872860127 | AM62: -1.434313414 | AN62: 7.695960942 | AO62: 7.756517127 | AP62: 7.445314181 | AQ62: 7.524631062 | AR62: pH
A63: 0x27E9 | B63: pH | C63: 2020-04-25T21:33:56 | D63: 1587850429 | E63: 98.38 | F63: 9.7455 | G63: 33.7919 | H63: 894 | I63: 41 | J63: 0 | K63: 8.75 | L63: 1.34 | M63: 14.424 | N63: 0.0436 | O63: 7.1234 | P63: 3.444 | Q63: -0.970584 | R63: 2.6e-05 | S63: -0.977086 | T63: 1.6e-05 | U63: 7.441e-09 | V63: 8.961e-10 | W63: 9.7455 | X63: 282.8955 | Y63: 0.05613187953 | Z63: 33.7919 | AA63: 0.6969384442 | AB63: 0.02726082762 | AC63: 0.5458978031 | AD63: 98.38 | AE63: 0.1780554179 | AF63: -17.54584767 | AG63: 0.1793669177 | AH63: 0.4986277449 | AI63: -0.2624276182 | AJ63: 18.7424434 | AK63: -0.0001915794326 | AL63: 0.0005046220327 | AM63: -1.434740878 | AN63: 7.708560846 | AO63: 7.770007138 | AP63: 7.462664083 | AQ63: 7.542134504 | AR63: pH
A64: 0xD6B1 | B64: pH | C64: 2020-04-25T21:39:56 | D64: 1587850789 | E64: 92.81 | F64: 9.9334 | G64: 33.7298 | H64: 895 | I64: 41 | J64: 0 | K64: 9.03 | L64: 1.34 | M64: 14.428 | N64: 0.0436 | O64: 7.1234 | P64: 3.445 | Q64: -0.969482 | R64: 1.9e-05 | S64: -0.976597 | T64: 2.3e-05 | U64: 7.698e-09 | V64: 1.072e-09 | W64: 9.9334 | X64: 283.0834 | Y64: 0.05616916249 | Z64: 33.7298 | AA64: 0.6956127278 | AB64: 0.02721072989 | AC64: 0.5448599687 | AD64: 92.81 | AE64: 0.1763879275 | AF64: -17.53592307 | AG64: 0.1776118208 | AH64: 0.4987673055 | AI64: -0.2626276958 | AJ64: 18.75719403 | AK64: -0.0001808749817 | AL64: 0.0004785360617 | AM64: -1.434954864 | AN64: 7.724781231 | AO64: 7.786687135 | AP64: 7.481631112 | AQ64: 7.561185205 | AR64: pH
A65: 0xA6AC | B65: pH | C65: 2020-04-25T21:46:22 | D65: 1587851175 | E65: 78.93 | F65: 10.3533 | G65: 33.6216 | H65: 896 | I65: 41 | J65: 0 | K65: 9.31 | L65: 1.35 | M65: 14.424 | N65: 0.0436 | O65: 7.1234 | P65: 3.446 | Q65: -0.967718 | R65: 1.7e-05 | S65: -0.976503 | T65: 1.8e-05 | U65: 8.217e-09 | V65: 6.128e-10 | W65: 10.3533 | X65: 283.5033 | Y65: 0.05625247868 | Z65: 33.6216 | AA65: 0.6933032736 | AB65: 0.02712344206 | AC65: 0.5430520015 | AD65: 78.93 | AE65: 0.1728550608 | AF65: -17.51366392 | AG65: 0.173871732 | AH65: 0.4990800568 | AI65: -0.2630428608 | AJ65: 18.7898214 | AK65: -0.0001540921842 | AL65: 0.0004122345068 | AM65: -1.435441065 | AN65: 7.749047485 | AO65: 7.812004134 | AP65: 7.511995317 | AQ65: 7.591736392 | AR65: pH
A66: 0x1C12 | B66: pH | C66: 2020-04-25T21:52:22 | D66: 1587851535 | E66: 75.34 | F66: 10.5783 | G66: 33.5953 | H66: 897 | I66: 41 | J66: 0 | K66: 9.59 | L66: 1.35 | M66: 14.44 | N66: 0.0434 | O66: 7.1234 | P66: 3.447 | Q66: -0.966555 | R66: 2e-05 | S66: -0.975749 | T66: 1.7e-05 | U66: 8.67e-09 | V66: 1.176e-09 | W66: 10.5783 | X66: 283.7283 | Y66: 0.05629712299 | Z66: 33.5953 | AA66: 0.6927419968 | AB66: 0.02710222515 | AC66: 0.5426126003 | AD66: 75.34 | AE66: 0.1711200474 | AF66: -17.50169068 | AG66: 0.1720791863 | AH66: 0.4992481398 | AI66: -0.2632333422 | AJ66: 18.80711355 | AK66: -0.0001472189172 | AL66: 0.0003947845053 | AM66: -1.435683515 | AN66: 7.76617124 | AO66: 7.829691702 | AP66: 7.532530939 | AQ66: 7.612372206 | AR66: pH
A67: 0x7BF4 | B67: pH | C67: 2020-04-25T21:58:47 | D67: 1587851920 | E67: 63.21 | F67: 10.9916 | G67: 33.51 | H67: 898 | I67: 41 | J67: 0 | K67: 9.91 | L67: 1.37 | M67: 14.44 | N67: 0.0434 | O67: 7.1234 | P67: 3.448 | Q67: -0.965409 | R67: 2.9e-05 | S67: -0.976527 | T67: 2.3e-05 | U67: 7.081e-09 | V67: 8.424e-10 | W67: 10.9916 | X67: 284.1416 | Y67: 0.05637912961 | Z67: 33.51 | AA67: 0.6909217932 | AB67: 0.02703341137 | AC67: 0.5411876276 | AD67: 63.21 | AE67: 0.1678578173 | AF67: -17.47961381 | AG67: 0.1686446885 | AH67: 0.4995577944 | AI67: -0.2636200961 | AJ67: 18.83853014 | AK67: -0.0001237224926 | AL67: 0.0003349075469 | AM67: -1.436156692 | AN67: 7.779715065 | AO67: 7.84428462 | AP67: 7.552155374 | AQ67: 7.632180683 | AR67: pH
A68: 0xB424 | B68: pH | C68: 2020-04-25T22:05:12 | D68: 1587852305 | E68: 50.77 | F68: 12.2516 | G68: 33.4798 | H68: 899 | I68: 41 | J68: 0 | K68: 10.23 | L68: 1.41 | M68: 14.444 | N68: 0.0434 | O68: 7.1234 | P68: 3.449 | Q68: -0.962176 | R68: 2.1e-05 | S68: -0.978139 | T68: 1.7e-05 | U68: 7.394e-09 | V68: 8.891e-10 | W68: 12.2516 | X68: 285.4016 | Y68: 0.05662913772 | Z68: 33.4798 | AA68: 0.6902774375 | AB68: 0.02700904822 | AC68: 0.5406831814 | AD68: 50.77 | AE68: 0.1591758322 | AF68: -17.4116433 | AG68: 0.1597699057 | AH68: 0.5005090492 | AI68: -0.264575375 | AJ68: 18.9315332 | AK68: -9.986396544e-05 | AL68: 0.0002720314788 | AM68: -1.437479569 | AN68: 7.818229127 | AO68: 7.886062087 | AP68: 7.610180208 | AQ68: 7.690766596 | AR68: pH
A69: 0x89D8 | B69: pH | C69: 2020-04-25T22:11:36 | D69: 1587852689 | E69: 40.2 | F69: 13.9096 | G69: 33.4884 | H69: 900 | I69: 41 | J69: 0 | K69: 10.73 | L69: 1.5 | M69: 14.456 | N69: 0.0432 | O69: 7.1234 | P69: 3.451 | Q69: -0.956073 | R69: 2.6e-05 | S69: -0.976116 | T69: 4.2e-05 | U69: 6.774e-09 | V69: 4.979e-10 | W69: 13.9096 | X69: 287.0596 | Y69: 0.05695811664 | Z69: 33.4884 | AA69: 0.6904609254 | AB69: 0.02701598607 | AC69: 0.5408268286 | AD69: 40.2 | AE69: 0.1487608561 | AF69: -17.32067392 | AG69: 0.1491954708 | AH69: 0.5017773743 | AI69: -0.265797729 | AJ69: 19.04754654 | AK69: -7.955746803e-05 | AL69: 0.0002174382166 | AM69: -1.439192162 | AN69: 7.90105419 | AO69: 7.973332692 | AP69: 7.71910222 | AQ69: 7.800426914 | AR69: pH
A70: 0x22C0 | B70: pH | C70: 2020-04-25T22:13:06 | D70: 1587852779 | E70: 38.9 | F70: 13.954 | G70: 33.4958 | H70: 901 | I70: 41 | J70: 0 | K70: 10.95 | L70: 1.53 | M70: 14.328 | N70: 0.0434 | O70: 7.1234 | P70: 3.451 | Q70: -0.95668 | R70: 2.5e-05 | S70: -0.976864 | T70: 2.4e-05 | U70: 6.074e-09 | V70: 4.894e-10 | W70: 13.954 | X70: 287.104 | Y70: 0.05696692645 | Z70: 33.4958 | AA70: 0.690618813 | AB70: 0.02702195585 | AC70: 0.5409504339 | AD70: 38.9 | AE70: 0.1485158027 | AF70: -17.31821394 | AG70: 0.1489355254 | AH70: 0.5018115984 | AI70: -0.2658237852 | AJ70: 19.05055382 | AK70: -7.699686865e-05 | AL70: 0.0002106496567 | AM70: -1.43924335 | AN70: 7.8898877 | AO70: 7.962297135 | AP70: 7.708601513 | AQ70: 7.789945979 | AR70: pH
A71: 0x1D06 | B71: pH | C71: 2020-04-25T22:14:10 | D71: 1587852843 | E71: 35.95 | F71: 14.0276 | G71: 33.4909 | H71: 902 | I71: 41 | J71: 0 | K71: 11.18 | L71: 1.54 | M71: 14.284 | N71: 0.0436 | O71: 7.1234 | P71: 3.452 | Q71: -0.956877 | R71: 2e-05 | S71: -0.977104 | T71: 1.6e-05 | U71: 7.539e-09 | V71: 4.293e-10 | W71: 14.0276 | X71: 287.1776 | Y71: 0.0569815301 | Z71: 33.4909 | AA71: 0.6905142655 | AB71: 0.02701800289 | AC71: 0.5408685869 | AD71: 35.95 | AE71: 0.1480592157 | AF71: -17.31413339 | AG71: 0.1484456842 | AH71: 0.5018683599 | AI71: -0.2658834768 | AJ71: 19.05552743 | AK71: -7.117635196e-05 | AL71: 0.0001951845963 | AM71: -1.439332415 | AN71: 7.885381124 | AO71: 7.958000799 | AP71: 7.705170473 | AQ71: 7.786547714 | AR71: pH
A72: 0x8C20 | B72: pH | C72: 2020-04-25T22:15:15 | D72: 1587852908 | E72: 32.43 | F72: 14.033 | G72: 33.4794 | H72: 903 | I72: 41 | J72: 0 | K72: 11.39 | L72: 1.54 | M72: 14.264 | N72: 0.0436 | O72: 7.1234 | P72: 3.452 | Q72: -0.956901 | R72: 2.5e-05 | S72: -0.977108 | T72: 2e-05 | U72: 8.608e-09 | V72: 1.141e-09 | W72: 14.033 | X72: 287.183 | Y72: 0.05698260156 | Z72: 33.4794 | AA72: 0.6902689033 | AB72: 0.02700872553 | AC72: 0.5406765002 | AD72: 32.43 | AE72: 0.1479924102 | AF72: -17.31383387 | AG72: 0.1483408236 | AH72: 0.501872526 | AI72: -0.2658985333 | AJ72: 19.05589178 | AK72: -6.420843474e-05 | AL72: 0.0001766219248 | AM72: -1.439356378 | AN72: 7.88489776 | AO72: 7.957541728 | AP72: 7.704647664 | AQ72: 7.786027309 | AR72: pH
A73: 0x03BB | B73: pH | C73: 2020-04-25T22:16:20 | D73: 1587852973 | E73: 29.02 | F73: 14.0338 | G73: 33.4543 | H73: 904 | I73: 41 | J73: 0 | K73: 11.62 | L73: 1.56 | M73: 14.252 | N73: 0.0434 | O73: 7.1234 | P73: 3.452 | Q73: -0.956944 | R73: 1.7e-05 | S73: -0.977146 | T73: 2.3e-05 | U73: 7.359e-09 | V73: 4.508e-10 | W73: 14.0338 | X73: 287.1838 | Y73: 0.0569827603 | Z73: 33.4543 | AA73: 0.6897333938 | AB73: 0.02698847669 | AC73: 0.5402572653 | AD73: 29.02 | AE73: 0.1479125076 | AF73: -17.3137895 | AG73: 0.148224077 | AH73: 0.5018731432 | AI73: -0.2659231434 | AJ73: 19.05594575 | AK73: -5.745710927e-05 | AL73: 0.0001585257718 | AM73: -1.439375274 | AN73: 7.883952149 | AO73: 7.956598613 | AP73: 7.703592705 | AQ73: 7.784972706 | AR73: pH
A74: 0x2478 | B74: pH | C74: 2020-04-25T22:17:25 | D74: 1587853038 | E74: 26.01 | F74: 14.0405 | G74: 33.441 | H74: 905 | I74: 41 | J74: 0 | K74: 11.85 | L74: 1.53 | M74: 14.244 | N74: 0.0436 | O74: 7.1234 | P74: 3.453 | Q74: -0.956947 | R74: 2.2e-05 | S74: -0.977102 | T74: 2.1e-05 | U74: 8.369e-09 | V74: -3.225e-10 | W74: 14.0405 | X74: 287.1905 | Y74: 0.05698408971 | Z74: 33.441 | AA74: 0.6894496491 | AB74: 0.02697774722 | AC74: 0.5400351293 | AD74: 26.01 | AE74: 0.1478326927 | AF74: -17.31341784 | AG74: 0.148111752 | AH74: 0.5018783125 | AI74: -0.2659408483 | AJ74: 19.0563977 | AK74: -5.149878896e-05 | AL74: 0.0001424594684 | AM74: -1.439398041 | AN74: 7.883767727 | AO74: 7.956438308 | AP74: 7.703407985 | AQ74: 7.784790969 | AR74: pH
A75: 0x2A96 | B75: pH | C75: 2020-04-25T22:18:32 | D75: 1587853105 | E75: 23.47 | F75: 14.0598 | G75: 33.4303 | H75: 906 | I75: 41 | J75: 0 | K75: 12.06 | L75: 1.53 | M75: 14.244 | N75: 0.0436 | O75: 7.1234 | P75: 3.453 | Q75: -0.956837 | R75: 2.5e-05 | S75: -0.977011 | T75: 3.8e-05 | U75: 7.021e-09 | V75: 7.248e-11 | W75: 14.0598 | X75: 287.2098 | Y75: 0.05698791919 | Z75: 33.4303 | AA75: 0.6892213791 | AB75: 0.02696911525 | AC75: 0.5398564226 | AD75: 23.47 | AE75: 0.14768546 | AF75: -17.31234708 | AG75: 0.1479369614 | AH75: 0.5018932048 | AI75: -0.2659654688 | AJ75: 19.0576989 | AK75: -4.647286073e-05 | AL75: 0.0001288341109 | AM75: -1.439430966 | AN75: 7.885385499 | AO75: 7.958113703 | AP75: 7.705244599 | AQ75: 7.786636178 | AR75: pH
A76: 0xC7C7 | B76: pH | C76: 2020-04-25T22:19:38 | D76: 1587853171 | E76: 21.07 | F76: 14.0789 | G76: 33.4265 | H76: 907 | I76: 41 | J76: 0 | K76: 12.26 | L76: 1.54 | M76: 14.244 | N76: 0.0434 | O76: 7.1234 | P76: 3.453 | Q76: -0.956783 | R76: 2.1e-05 | S76: -0.976947 | T76: 2.5e-05 | U76: 6.961e-09 | V76: 4.548e-10 | W76: 14.0789 | X76: 287.2289 | Y76: 0.056991709 | Z76: 33.4265 | AA76: 0.6891403124 | AB76: 0.02696604969 | AC76: 0.5397929576 | AD76: 21.07 | AE76: 0.1475601671 | AF76: -17.31128719 | AG76: 0.1477857104 | AH76: 0.5019079453 | AI76: -0.265983357 | AJ76: 19.05898566 | AK76: -4.172344649e-05 | AL76: 0.000115902781 | AM76: -1.439462997 | AN76: 7.886116162 | AO76: 7.958905277 | AP76: 7.706195942 | AQ76: 7.787596027 | AR76: pH
A77: 0x5A57 | B77: pH | C77: 2020-04-25T22:20:44 | D77: 1587853237 | E77: 18.66 | F77: 14.1012 | G77: 33.4207 | H77: 908 | I77: 41 | J77: 0 | K77: 12.49 | L77: 1.53 | M77: 14.244 | N77: 0.0434 | O77: 7.1234 | P77: 3.454 | Q77: -0.956739 | R77: 2.5e-05 | S77: -0.976893 | T77: 1.4e-05 | U77: 8.33e-09 | V77: 2.53e-10 | W77: 14.1012 | X77: 287.2512 | Y77: 0.05699613375 | Z77: 33.4207 | AA77: 0.6890165803 | AB77: 0.02696137067 | AC77: 0.5396960909 | AD77: 18.66 | AE77: 0.1474100115 | AF77: -17.31004943 | AG77: 0.1476095065 | AH77: 0.5019251587 | AI77: -0.2660055391 | AJ77: 19.06048678 | AK77: -3.695400249e-05 | AL77: 0.0001028618624 | AM77: -1.439498338 | AN77: 7.886594673 | AO77: 7.959452139 | AP77: 7.706946197 | AQ77: 7.788356211 | AR77: pH
A78: 0x54B8 | B78: pH | C78: 2020-04-25T22:21:50 | D78: 1587853303 | E78: 16.35 | F78: 14.1251 | G78: 33.4206 | H78: 909 | I78: 41 | J78: 0 | K78: 12.67 | L78: 1.56 | M78: 14.244 | N78: 0.0434 | O78: 7.1234 | P78: 3.454 | Q78: -0.95694 | R78: 2.2e-05 | S78: -0.977107 | T78: 3.9e-05 | U78: 7.28e-09 | V78: -6.336e-10 | W78: 14.1251 | X78: 287.2751 | Y78: 0.05700087596 | Z78: 33.4206 | AA78: 0.689014447 | AB78: 0.02696129 | AC78: 0.5396944208 | AD78: 16.35 | AE78: 0.1472674577 | AF78: -17.30872251 | AG78: 0.1474420448 | AH78: 0.5019436108 | AI78: -0.266023491 | AJ78: 19.06209416 | AK78: -3.238204141e-05 | AL78: 9.030966326e-05 | AM78: -1.43953479 | AN78: 7.882827646 | AO78: 7.955761086 | AP78: 7.70348024 | AQ78: 7.784900897 | AR78: pH
A79: 0xC391 | B79: pH | C79: 2020-04-25T22:22:56 | D79: 1587853369 | E79: 14.38 | F79: 14.1294 | G79: 33.4192 | H79: 910 | I79: 41 | J79: 0 | K79: 12.85 | L79: 1.58 | M79: 14.244 | N79: 0.0434 | O79: 7.1234 | P79: 3.454 | Q79: -0.9574 | R79: 3.1e-05 | S79: -0.977556 | T79: 3.8e-05 | U79: 9.257e-09 | V79: 8.509e-10 | W79: =F79 -> 14.1294 | X79: =W79+273.15 -> 287.2794 | Y79: =8.31451*X79/96487*LN(10) -> 0.05700172917 | Z79: =G79 -> 33.4192 | AA79: =19.924 * Z79/ (1000 - 1.005 * Z79) -> 0.6889845809 | AB79: =(0.14 / 96.062) * (Z79 / 1.80655) -> 0.02696016058 | AC79: =0.99889/35.453*Z79/1.80655*(1 + 0.00106 * Z79) -> 0.5396710393 | AD79: =E79 -> 14.38 | AE79: =EXP(-4276.1 /X79 + 141.328 - 23.093 * LN(X79) + (-13856 / X79 + 324.57 - 47.986 * LN(X79)) * AA79^ 0.5 + (35474 / X79 - 771.54 + 114.723 * LN(X79)) * AA79- 2698 / X79 * AA79 ^ 1.5 + 1776 / X79*AA79 ^ 2 + LN(1 - 0.001005 * Z79)) -> 0.1472377292 | AF79: =-18.03 + 0.0466 * W79 + 0.000316 *W79 ^ 2 -> -17.30848374 | AG79: =EXP((-AF79) * (AD79 / 10) / (8.31451 * 10 * X79))*AE79 -> 0.1473912341 | AH79: =(0.00000343*W79^2 + 0.00067524*W79 + 0.49172143) -> 0.5019469311 | AI79: =2*(-AH79*SQRT(AA79)/(1+1.394*SQRT(AA79))+(0.08885-0.000111*W79)*AA79) -> -0.2660280362 | AJ79: =17.85 + 0.1044 * W79 - 0.001316 * W79 ^ 2 -> 19.06238319 | AK79: =-AJ79 * 0.0242 / (23061 * 1.01) *AD79 / 10 -> -2.848078386e-05 | AL79: =AF$18*AD79+AF$19*AD79^2+AF$20*AD79^3+AF$21*AD79^4+AF$22*AD79^5+AF$23*AD79^6 -> 7.956445421e-05 | AM79: =$AF$16+$AF$17*(W79)+AL79 -> -1.439549836 | AN79: =AO79-LOG(1+AB79/AG79) -> 7.874781868 | AO79: =-LOG10((10^(-((Q79-AM79-AK79)/Y79+(LOG(AC79)+AI79))))/(1+0.0016*Z79)) -> 7.947735639 | AP79: =((AN79 + 0.000035833 * AD79 - 0.01703 * (25 - W79) + 0.00004453 * (25 - W79) ^ 2) ) -> 7.695432937 | AQ79: =((AN79 + 0.000035833 * AD79 - 0.01703 * (20 - W79) + 0.00004453 * (20 - W79) ^ 2) ) -> 7.776855508 | AR79: =B79 -> pH
A80: 0x9E1E | B80: pH | C80: 2020-04-25T22:24:18 | D80: 1587853451 | E80: 11.52 | F80: 14.1758 | G80: 33.4133 | H80: 911 | I80: 41 | J80: 0 | K80: 13.06 | L80: 1.58 | M80: 14.244 | N80: 0.0432 | O80: 7.1234 | P80: 3.454 | Q80: -0.957862 | R80: 2.8e-05 | S80: -0.978004 | T80: 2.8e-05 | U80: 9.403e-09 | V80: -5.189e-10 | W80: 14.1758 | X80: 287.3258 | Y80: 0.05701093581 | Z80: 33.4133 | AA80: 0.6888587174 | AB80: 0.02695540089 | AC80: 0.5395725039 | AD80: 11.52 | AE80: 0.1469446796 | AF80: -17.30590648 | AG80: 0.1470673588 | AH80: 0.501982767 | AI80: -0.2660683224 | AJ80: 19.06549897 | AK80: -2.282004578e-05 | AL80: 6.389842563e-05 | AM80: -1.439611902 | AN80: 7.866042029 | AO80: 7.939131788 | AP80: 7.687335982 | AQ80: 7.768779215 | AR80: pH
A81: 0xED04 | B81: pH | C81: 2020-04-25T22:25:33 | D81: 1587853526 | E81: 7.16 | F81: 14.1803 | G81: 33.4149 | H81: 912 | I81: 41 | J81: 0 | K81: 13.21 | L81: 1.62 | M81: 14.248 | N81: 0.0432 | O81: 7.1234 | P81: 3.454 | Q81: -0.958136 | R81: 2e-05 | S81: -0.978285 | T81: 1.3e-05 | U81: 7.525e-09 | V81: -3.742e-09 | W81: 14.1803 | X81: 287.3303 | Y81: 0.0570118287 | Z81: 33.4149 | AA81: 0.6888928497 | AB81: 0.02695669166 | AC81: 0.5395992253 | AD81: 7.16 | AE81: 0.1469227213 | AF81: -17.30565645 | AG81: 0.1469989441 | AH81: 0.5019862433 | AI81: -0.2660701649 | AJ81: 19.06580084 | AK81: -1.418351691e-05 | AL81: 3.986466891e-05 | AM81: -1.439640435 | AN81: 7.861438854 | AO81: 7.934563142 | AP81: 7.682648872 | AQ81: 7.76409411 | AR81: pH
A82: <EOP> : 18340.021 Sat Apr 25 22:31:12 2020
A83: H | B83: Datalogger Serial Num | C83: SN:0850
A84: H | B84: Application Name | C84: APF_MAIN.C
A85: H | B85: App Build Date | C85: Apr 30 2019 | D85: 10:48:38
A86: H | B86: Power Up Time (GMT) | C86: 04/25/2020 22:31:02
A87: H | B87: Current Time (GMT) | C87: 04/25/2020 22:31:16
A88: H | B88: Alarm Time (GMT) | C88: 04/26/2020 08:31:07
A89: H | B89: Power Active Timeout | C89: 10
A90: H | B90: Persistor CF2-1M Info | C90: S/N:15002 - BIOS:4.03 - PicoDOS:4.03
A91: H | B91: Compact FLASH Size | C91: 256614400
A92: H | B92: Compact FLASH Left | C92: 0.976
A93: H | B93: Power Cycle Counter | C93: 42
A94: H | B94: System Reset Counter | C94: 42
A95: H | B95: System Error Counter | C95: 0
A96: H | B96: Last System Error | C96: 00:00:00
A97: H | B97: Last System ErrorTime | C97: 01/01/1970 00:00:00
A98: H | B98: DURA Error Counter | C98: 00:00:00
A99: H | B99: Last DURA Error | C99: 00:00:00
A100: H | B100: Last DURA Error Time | C100: 01/01/1970 00:00:00
A101: H | B101: DURA Sample Counter | C101: 1902-07-01
A102: H | B102: Last Sample Rec. Time | C102: 04/25/2020 22:25:33
A103: H | B103: AtoD Reads per Sample | C103: 10
A104: H | B104: AtoD Reading Delay | C104: 100
A105: H | B105: Samps per AtoD Recal | C105: 250
A106: # No error records to log.
A108: <EOT>

Sheet pHcyc20
AE4: 2.53325E-12x3 - 5.63616E-09x2 - 2.95642E-06x + 3.46442E-05
A8: Profile: 18340.020 Mon Apr 20 13:44:25 2020
A9: H | B9: Datalogger Serial Num | C9: SN:0850
A10: H | B10: Application Name | C10: APF_MAIN.C
A11: H | B11: App Build Date | C11: Apr 30 2019 | D11: 10:48:38
A12: H | B12: Power Up Time (GMT) | C12: 04/20/2020 13:43:57 | W12: <----- | AE12: -1.57252E-18x5 + 7.57486E-15x4 - 9.81276E-12x3 + 1.81040E-09x2 - 1.66482E-06x + 1.11359E-04
A13: H | B13: Current Time (GMT) | C13: 04/20/2020 13:44:30 | W13: <-----
A14: H | B14: Alarm Time (GMT) | C14: 04/20/2020 23:44:29 | W14: <----- | X14: DuraFET | AE14: Cal values here
A15: H | B15: Power Active Timeout | C15: 10 | W15: <----- | X15: Data | AJ15: Josh
A16: H | B16: Persistor CF2-1M Info | C16: S/N:15002 - BIOS:4.03 - PicoDOS:4.03 | W16: <----- | X16: to the | AA16: Control + Shift + T - import CTD data from .log file | AE16: k0 | AF16: -1.4255 | AH16: -1.427 | AJ16: -1.4255 | AK16: =k0
A17: H | B17: Compact FLASH Size | C17: 256614400 | W17: <----- | X17: Left | AA17: Control + Shift + F to import DuraFET data from .csv file | AE17: k2 | AF17: -0.001 | AH17: -0.0009 | AJ17: -0.001 | AK17: =k2*T
A18: H | B18: Compact FLASH Left | C18: 0.977 | W18: <----- | AE18: P | AF18: 5.6021e-06 | AH18: -1.66482e-06 | AJ18: 5.6021e-06 | AK18: =k3*P^1
A19: H | B19: Power Cycle Counter | C19: 39 | W19: <----- | AA19: Temperature/Salinity Selection | AE19: P^2 | AF19: -4.8057e-09 | AH19: 1.8104e-09 | AJ19: -4.8057e-09 | AK19: =k4*P^2
A20: H | B20: System Reset Counter | C20: 39 | W20: <----- | AA20: 1: T =DFET (Column C), Salinity input manual | AE20: P^3 | AH20: -9.81276e-12
A21: H | B21: System Error Counter | C21: 0 | W21: <----- | AA21: 2: CTD (load CTD data with Control Shift T) | AE21: P^4 | AH21: 7.57486e-15
A22: H | B22: Last System Error | C22: 0 | W22: <----- | AA22: 2 | AE22: P^5 | AH22: -1.57252e-18
A23: H | B23: Last System ErrorTime | C23: 01/01/1970 00:00:00 | W23: <----- | AE23: P^6
A24: H | B24: DURA Error Counter | C24: 0 | W24: <-----
A25: H | B25: Last DURA Error | C25: 0 | W25: <-----
A26: H | B26: Last DURA Error Time | C26: 01/01/1970 00:00:00 | W26: <-----
A27: H | B27: DURA Sample Counter | C27: 813 | W27: <----- | AA27: Calibration data
A28: H | B28: Last Sample Rec. Time | C28: 04/15/2020 16:26:20 | W28: <-----
A29: H | B29: AtoD Reads per Sample | C29: 10 | W29: <-----
A30: H | B30: AtoD Reading Delay | C30: 100
A31: H | B31: Samps per AtoD Recal | C31: 250 | Z31: Don't erase this first row of formulas!!!! Subsequent rows can be erased or copied down as needed from colum W on.
A32: # No error records to log. | W32: T/C | X32: K | Y32: S(T) | Z32: Salinity | AA32: IonicStrength | AB32: SO4(tot) | AC32: mCl | AD32: Press(dbar) | AE32: KHSO4 | AF32: deltaV HSO4 | AG32: KHSO4 TPS | AH32: DebyeHuckelConst | AI32: log(γHγCl) | AJ32: deltaV HCl | AK32: ThermPress | AL32: f(P) | AM32: k0+k2T+f(P) | AN32: pHtot in situ | AO32: pHfree in situ | AP32: pH25Total | AQ32: pH20Total | AR32: Date + Time
A33: 0xFC82 | B33: pH | C33: 2020-04-20T13:48:49 | D33: 1587390523 | E33: 1598.99 | F33: 2.5718 | G33: 34.5537 | H33: 813 | I33: 39 | J33: 0 | K33: 2.72 | L33: 0.79 | M33: 14.128 | N33: 0.0452 | O33: 7.1234 | P33: 3.429 | Q33: -0.988754 | R33: 3.5e-05 | S33: -0.982387 | T33: 4.6e-05 | U33: 9.323e-09 | V33: 4.825e-10 | W33: =F33 -> 2.5718 | X33: =W33+273.15 -> 275.7218 | Y33: =8.31451*X33/96487*LN(10) -> 0.05470848021 | Z33: =G33 -> 34.5537 | AA33: =19.924 * Z33/ (1000 - 1.005 * Z33) -> 0.7132153699 | AB33: =(0.14 / 96.062) * (Z33 / 1.80655) -> 0.02787539201 | AC33: =0.99889/35.453*Z33/1.80655*(1 + 0.00106 * Z33) -> 0.5586396161 | AD33: =E33 -> 1598.99 | AE33: =EXP(-4276.1 /X33 + 141.328 - 23.093 * LN(X33) + (-13856 / X33 + 324.57 - 47.986 * LN(X33)) * AA33^ 0.5 + (35474 / X33 - 771.54 + 114.723 * LN(X33)) * AA33- 2698 / X33 * AA33 ^ 1.5 + 1776 / X33*AA33 ^ 2 + LN(1 - 0.001005 * Z33)) -> 0.2503839715 | AF33: =-18.03 + 0.0466 * W33 + 0.000316 *W33 ^ 2 -> -17.90806405 | AG33: =EXP((-AF33) * (AD33 / 10) / (8.31451 * 10 * X33))*AE33 -> 0.2836958123 | AH33: =(0.00000343*W33^2 + 0.00067524*W33 + 0.49172143) -> 0.4934806988 | AI33: =2*(-AH33*SQRT(AA33)/(1+1.394*SQRT(AA33))+(0.08885-0.000111*W33)*AA33) -> -0.2564934195 | AJ33: =17.85 + 0.1044 * W33 - 0.001316 * W33 ^ 2 -> 18.10979169 | AK33: =-AJ33 * 0.0242 / (23061 * 1.01) *AD33 / 10 -> -0.003008673487 | AL33: =AF$18*AD33+AF$19*AD33^2+AF$20*AD33^3+AF$21*AD33^4+AF$22*AD33^5+AF$23*AD33^6 -> -0.003329363001 | AM33: =$AF$16+$AF$17*(W33)+AL33 -> -1.431401163 | AN33: =AO33-LOG(1+AB33/AG33) -> 7.619314243 | AO33: =-LOG10((10^(-((Q33-AM33-AK33)/Y33+(LOG(AC33)+AI33))))/(1+0.0016*Z33)) -> 7.660018631 | AP33: =((AN33 + 0.000035833 * AD33 - 0.01703 * (25 - W33) + 0.00004453 * (25 - W33) ^ 2) ) -> 7.317058271 | AQ33: =((AN33 + 0.000035833 * AD33 - 0.01703 * (20 - W33) + 0.00004453 * (20 - W33) ^ 2) ) -> 7.393334244 | AR33: =B33 -> pH
A34: 0x1CE2 | B34: pH | C34: 2020-04-20T14:05:49 | D34: 1587391543 | E34: 1500.08 | F34: 2.7296 | G34: 34.5386 | H34: 814 | I34: 39 | J34: 0 | K34: 2.78 | L34: 0.78 | M34: 14.48 | N34: 0.0442 | O34: 7.1234 | P34: 3.429 | Q34: -0.987951 | R34: 2e-05 | S34: -0.981614 | T34: 3.4e-05 | U34: 8.658e-09 | V34: 1.785e-09 | W34: =F34 -> 2.7296 | X34: =W34+273.15 -> 275.8796 | Y34: =8.31451*X34/96487*LN(10) -> 0.05473979075 | Z34: =G34 -> 34.5386 | AA34: 0.7128924864 | AB34: 0.02786321044 | AC34: =0.99889/35.453*Z34/1.80655*(1 + 0.00106 * Z34) -> 0.5583868682 | AD34: =E34 -> 1500.08 | AE34: 0.2484274492 | AF34: =-18.03 + 0.0466 * W34 + 0.000316 *W34 ^ 2 -> -17.90044621 | AG34: =EXP((-AF34) * (AD34 / 10) / (8.31451 * 10 * X34))*AE34 -> 0.2792798957 | AH34: 0.4935901211 | AI34: -0.2566206529 | AJ34: =17.85 + 0.1044 * W34 - 0.001316 * W34 ^ 2 -> 18.1251651 | AK34: =-AJ34 * 0.0242 / (23061 * 1.01) *AD34 / 10 -> -0.002824959646 | AL34: -0.002410380231 | AM34: -1.43063998 | AN34: =AO34-LOG(1+AB34/AG34) -> 7.611132194 | AO34: =-LOG10((10^(-((Q34-AM34-AK34)/Y34+(LOG(AC34)+AI34))))/(1+0.0016*Z34)) -> 7.652433293 | AP34: =((AN34 + 0.000035833 * AD34 - 0.01703 * (25 - W34) + 0.00004453 * (25 - W34) ^ 2) ) -> 7.307705225 | AQ34: =((AN34 + 0.000035833 * AD34 - 0.01703 * (20 - W34) + 0.00004453 * (20 - W34) ^ 2) ) -> 7.384051466 | AR34: =B34 -> pH
A35: 0xD386 | B35: pH | C35: 2020-04-20T14:26:27 | D35: 1587392781 | E35: 1398.63 | F35: 2.9479 | G35: 34.5227 | H35: 815 | I35: 39 | J35: 0 | K35: 2.89 | L35: 0.78 | M35: 14.164 | N35: 0.0452 | O35: 7.1234 | P35: 3.429 | Q35: -0.987923 | R35: 2.6e-05 | S35: -0.981601 | T35: 2e-05 | U35: 8.951e-09 | V35: 9.597e-10 | W35: 2.9479 | X35: 276.0979 | Y35: 0.05478310564 | Z35: 34.5227 | AA35: 0.7125525074 | AB35: 0.02785038348 | AC35: 0.5581207378 | AD35: 1398.63 | AE35: 0.2457869616 | AF35: -17.88988178 | AG35: 0.2740912685 | AH35: 0.4937417771 | AI35: -0.2567910706 | AJ35: 18.14632457 | AK35: -0.002636983245 | AL35: -0.001565481232 | AM35: -1.430013381 | AN35: 7.589224546 | AO35: 7.631252372 | AP35: 7.285449114 | AQ35: 7.361892563 | AR35: pH
A36: 0x8392 | B36: pH | C36: 2020-04-20T14:42:25 | D36: 1587393739 | E36: 1299.53 | F36: 3.1757 | G36: 34.5053 | H36: 816 | I36: 39 | J36: 0 | K36: 3.07 | L36: 0.8 | M36: 14.484 | N36: 0.044 | O36: 7.1234 | P36: 3.429 | Q36: -0.987823 | R36: 2.1e-05 | S36: -0.981511 | T36: 3.2e-05 | U36: 9.04e-09 | V36: 1.518e-09 | W36: 3.1757 | X36: 276.3257 | Y36: 0.05482830552 | Z36: 34.5053 | AA36: 0.7121804679 | AB36: 0.02783634644 | AC36: 0.5578295103 | AD36: 1299.53 | AE36: 0.2430646243 | AF36: -17.8788255 | AG36: 0.2689308829 | AH36: 0.4939003815 | AI36: -0.2569700127 | AJ36: 18.16827113 | AK36: -0.002453102915 | AL36: -0.0008356644832 | AM36: -1.429511364 | AN36: 7.570681635 | AO36: 7.6134569 | AP36: 7.266789507 | AQ36: 7.343334396 | AR36: pH
A37: 0x3485 | B37: pH | C37: 2020-04-20T14:59:55 | D37: 1587394788 | E37: 1200.08 | F37: 3.4119 | G37: 34.4864 | H37: 817 | I37: 39 | J37: 0 | K37: 3.25 | L37: 0.82 | M37: 14.544 | N37: 0.044 | O37: 7.1234 | P37: 3.429 | Q37: -0.987768 | R37: 5.5e-05 | S37: -0.981451 | T37: 4.1e-05 | U37: 8.181e-09 | V37: -2.085e-11 | W37: 3.4119 | X37: 276.5619 | Y37: 0.05487517212 | Z37: 34.4864 | AA37: 0.7117763713 | AB37: 0.02782109931 | AC37: 0.5575131884 | AD37: 1200.08 | AE37: 0.2402772431 | AF37: -17.86732688 | AG37: 0.2637605552 | AH37: 0.4940652102 | AI37: -0.2571567244 | AJ37: 18.19088272 | AK37: -0.002268192074 | AL37: -0.0001981625572 | AM37: -1.429110063 | AN37: 7.552862296 | AO37: 7.596412643 | AP37: 7.24897245 | AQ37: 7.325622519 | AR37: pH
A38: 0x0784 | B38: pH | C38: 2020-04-20T15:20:10 | D38: 1587396004 | E38: 1099.72 | F38: 3.7256 | G38: 34.459 | H38: 818 | I38: 39 | J38: 0 | K38: 3.49 | L38: 0.85 | M38: 14.488 | N38: 0.044 | O38: 7.1234 | P38: 3.43 | Q38: -0.98762 | R38: 2.2e-05 | S38: -0.981316 | T38: 2.9e-05 | U38: 8.516e-09 | V38: 9.882e-10 | W38: 3.7256 | X38: 276.8756 | Y38: 0.0549374162 | Z38: 34.459 | AA38: 0.7111905663 | AB38: 0.02779899499 | AC38: 0.5570546262 | AD38: 1099.72 | AE38: 0.2366241836 | AF38: -17.85200093 | AG38: 0.2576889546 | AH38: 0.4942847129 | AI38: -0.2574075999 | AJ38: 18.22068643 | AK38: -0.002081913657 | AL38: 0.0003488043464 | AM38: -1.428876796 | AN38: 7.537192416 | AO38: 7.581684394 | AP38: 7.234449933 | AQ38: 7.311239693 | AR38: pH
A39: 0x761B | B39: pH | C39: 2020-04-20T15:39:44 | D39: 1587397177 | E39: 999.74 | F39: 4.0212 | G39: 34.4396 | H39: 819 | I39: 39 | J39: 0 | K39: 3.76 | L39: 0.87 | M39: 14.332 | N39: 0.0444 | O39: 7.1234 | P39: 3.43 | Q39: -0.987314 | R39: 4.2e-05 | S39: -0.981221 | T39: 3.6e-05 | U39: 8.193e-09 | V39: 7.015e-10 | W39: 4.0212 | X39: 277.1712 | Y39: 0.0549960689 | Z39: 34.4396 | AA39: 0.7107758195 | AB39: 0.0277833445 | AC39: 0.5567299658 | AD39: 999.74 | AE39: 0.2332872509 | AF39: -17.83750234 | AG39: 0.2520561523 | AH39: 0.4944921684 | AI39: -0.2576370364 | AJ39: 18.24853349 | AK39: -0.001895531012 | AL39: 0.0007974420931 | AM39: -1.428723758 | AN39: 7.526563154 | AO39: 7.571974863 | AP39: 7.224715974 | AQ39: 7.301637364 | AR39: pH
A40: 0xF8F2 | B40: pH | C40: 2020-04-20T15:48:28 | D40: 1587397701 | E40: 944.06 | F40: 4.1156 | G40: 34.4302 | H40: 820 | I40: 39 | J40: 0 | K40: 3.94 | L40: 0.88 | M40: 14.356 | N40: 0.0444 | O40: 7.1234 | P40: 3.431 | Q40: -0.986355 | R40: 3.4e-05 | S40: -0.98011 | T40: 1.9e-05 | U40: 9.101e-09 | V40: 1.1e-09 | W40: 4.1156 | X40: 277.2656 | Y40: 0.05501479966 | Z40: 34.4302 | AA40: 0.7105748657 | AB40: 0.02777576127 | AC40: 0.5565726606 | AD40: 944.06 | AE40: 0.2322146418 | AF40: -17.83286058 | AG40: 0.2498073151 | AH40: 0.4945585456 | AI40: -0.2577139936 | AJ40: 18.25737802 | AK40: -0.001790827938 | AL40: 0.001005641844 | AM40: -1.428609958 | AN40: 7.536696718 | AO40: 7.582484551 | AP40: 7.234286011 | AQ40: 7.311249438 | AR40: pH
A41: 0x102C | B41: pH | C41: 2020-04-20T15:59:30 | D41: 1587398363 | E41: 884.42 | F41: 4.3278 | G41: 34.4096 | H41: 821 | I41: 39 | J41: 0 | K41: 4.13 | L41: 0.89 | M41: 14.372 | N41: 0.0442 | O41: 7.1234 | P41: 3.431 | Q41: -0.985922 | R41: 2.3e-05 | S41: -0.979618 | T41: 2e-05 | U41: 6.835e-09 | V41: 1.219e-09 | W41: 4.3278 | X41: 277.4778 | Y41: 0.0550569042 | Z41: 34.4096 | AA41: 0.7101344914 | AB41: 0.0277591427 | AC41: 0.5562279382 | AD41: 884.42 | AE41: 0.2298300482 | AF41: -17.82240589 | AG41: 0.2460813131 | AH41: 0.4947079771 | AI41: -0.2578864782 | AJ41: 18.27717383 | AK41: -0.001679513325 | AL41: 0.001195596814 | AM41: -1.428632203 | AN41: 7.535684711 | AO41: 7.582103685 | AP41: 7.234358011 | AQ41: 7.31141593 | AR41: pH
A42: 0x1BB6 | B42: pH | C42: 2020-04-20T16:11:34 | D42: 1587399087 | E42: 824.82 | F42: 4.5886 | G42: 34.3836 | H42: 822 | I42: 39 | J42: 0 | K42: 4.32 | L42: 0.93 | M42: 14.292 | N42: 0.0444 | O42: 7.1234 | P42: 3.432 | Q42: -0.985718 | R42: 2.8e-05 | S42: -0.979435 | T42: 1e-05 | U42: 8.862e-09 | V42: 8.307e-10 | W42: 4.5886 | X42: 277.7386 | Y42: 0.05510865191 | Z42: 34.3836 | AA42: 0.7095787062 | AB42: 0.0277381678 | AC42: 0.5557928716 | AD42: 824.82 | AE42: 0.2269386549 | AF42: -17.80951778 | AG42: 0.2418436998 | AH42: 0.4948920558 | AI42: -0.258099407 | AJ42: 18.30134113 | AK42: -0.001568404052 | AL42: 0.001351271697 | AM42: -1.428737328 | AN42: 7.530391893 | AO42: 7.577547792 | AP42: 7.230893848 | AQ42: 7.308067902 | AR42: pH
A43: 0xC98F | B43: pH | C43: 2020-04-20T16:17:34 | D43: 1587399447 | E43: 791.86 | F43: 4.6556 | G43: 34.3733 | H43: 823 | I43: 39 | J43: 0 | K43: 4.5 | L43: 0.96 | M43: 14.324 | N43: 0.0444 | O43: 7.1234 | P43: 3.432 | Q43: -0.985539 | R43: 1.9e-05 | S43: -0.979246 | T43: 1.9e-05 | U43: 8.548e-09 | V43: 8.117e-10 | W43: 4.6556 | X43: 277.8056 | Y43: 0.05512194599 | Z43: 34.3733 | AA43: 0.709358538 | AB43: 0.02772985852 | AC43: 0.5556205245 | AD43: 791.86 | AE43: 0.2261821239 | AF43: -17.80619986 | AG43: 0.2404192787 | AH43: 0.4949394213 | AI43: -0.2581581902 | AJ43: 18.30752085 | AK43: -0.001506238692 | AL43: 0.001422701919 | AM43: -1.428732898 | AN43: 7.530033933 | AO43: 7.577441048 | AP43: 7.230374248 | AQ43: 7.307578137 | AR43: pH
A44: 0x2EBC | B44: pH | C44: 2020-04-20T16:28:35 | D44: 1587400108 | E44: 731.78 | F44: 4.9321 | G44: 34.3549 | H44: 824 | I44: 39 | J44: 0 | K44: 4.67 | L44: 0.96 | M44: 14.376 | N44: 0.0442 | O44: 7.1234 | P44: 3.433 | Q44: -0.985277 | R44: 2.8e-05 | S44: -0.979249 | T44: 3.7e-05 | U44: 7.301e-09 | V44: 6.307e-10 | W44: 4.9321 | X44: 278.0821 | Y44: 0.05517680888 | Z44: 34.3549 | AA44: 0.7089652397 | AB44: 0.02771501475 | AC44: 0.555312651 | AD44: 731.78 | AE44: 0.2232342095 | AF44: -17.79247725 | AG44: 0.2361658483 | AH44: 0.495135218 | AI44: -0.2583739626 | AJ44: 18.33289874 | AK44: -0.001393886885 | AL44: 0.001526042928 | AM44: -1.428906057 | AN44: 7.526610386 | AO44: 7.574801187 | AP44: 7.229009071 | AQ44: 7.306336085 | AR44: pH
A45: 0xF5F6 | B45: pH | C45: 2020-04-20T16:34:34 | D45: 1587400467 | E45: 701.45 | F45: 5.1089 | G45: 34.342 | H45: 825 | I45: 39 | J45: 0 | K45: 4.85 | L45: 0.98 | M45: 14.352 | N45: 0.0442 | O45: 7.1234 | P45: 3.433 | Q45: -0.985037 | R45: 2.3e-05 | S45: -0.97915 | T45: 3.2e-05 | U45: 7.833e-09 | V45: 1.01e-09 | W45: 5.1089 | X45: 278.2589 | Y45: 0.05521188939 | Z45: 34.342 | AA45: 0.7086895123 | AB45: 0.02770460797 | AC45: 0.5550968116 | AD45: 701.45 | AE45: 0.2213687268 | AF45: -17.78367739 | AG45: 0.2336320889 | AH45: 0.4952606896 | AI45: -0.2585133462 | AJ45: 18.34902043 | AK45: -0.001337289579 | AL45: 0.00156503437 | AM45: -1.429043866 | AN45: 7.526509769 | AO45: 7.575177674 | AP45: 7.230517949 | AQ45: 7.307923692 | AR45: pH
A46: 0x057F | B46: pH | C46: 2020-04-20T16:46:37 | D46: 1587401190 | E46: 641.87 | F46: 5.3198 | G46: 34.3211 | H46: 826 | I46: 39 | J46: 0 | K46: 5.05 | L46: 0.99 | M46: 14.316 | N46: 0.0444 | O46: 7.1234 | P46: 3.434 | Q46: -0.984619 | R46: 2.4e-05 | S46: -0.978938 | T46: 2.1e-05 | U46: 8.58e-09 | V46: -3.338e-11 | W46: 5.3198 | X46: 278.4698 | Y46: 0.05525373598 | Z46: 34.3211 | AA46: 0.708242807 | AB46: 0.02768774738 | AC46: 0.55474713 | AD46: 641.87 | AE46: 0.2191387798 | AF46: -17.77315443 | AG46: 0.2302065261 | AH46: 0.4954106417 | AI46: -0.2586858724 | AJ46: 18.36814396 | AK46: -0.001224977774 | AL46: 0.001615885478 | AM46: -1.429203915 | AN46: 7.527713825 | AO46: 7.577037893 | AP46: 7.232807073 | AQ46: 7.31030673 | AR46: pH
A47: 0x2F4B | B47: pH | C47: 2020-04-20T16:57:38 | D47: 1587401851 | E47: 585.41 | F47: 5.5985 | G47: 34.3096 | H47: 827 | I47: 39 | J47: 0 | K47: 5.27 | L47: 1.03 | M47: 14.388 | N47: 0.044 | O47: 7.1234 | P47: 3.434 | Q47: -0.984337 | R47: 1.8e-05 | S47: -0.978994 | T47: 1.7e-05 | U47: 8.102e-09 | V47: 5.929e-10 | W47: 5.5985 | X47: 278.7485 | Y47: 0.05530903539 | Z47: 34.3096 | AA47: 0.7079970204 | AB47: 0.02767847003 | AC47: 0.5545547276 | AD47: 585.41 | AE47: 0.2163251709 | AF47: -17.75920545 | AG47: 0.2262498987 | AH47: 0.4956092683 | AI47: -0.2588962476 | AJ47: 18.39323575 | AK47: -0.001118752788 | AL47: 0.001632588576 | AM47: -1.429465911 | AN47: 7.52639447 | AO47: 7.576517299 | AP47: 7.233725824 | AQ47: 7.311349586 | AR47: pH
A48: 0x1B85 | B48: pH | C48: 2020-04-20T17:09:38 | D48: 1587402571 | E48: 524.96 | F48: 5.9198 | G48: 34.2844 | H48: 828 | I48: 39 | J48: 0 | K48: 5.52 | L48: 1.03 | M48: 14.332 | N48: 0.0442 | O48: 7.1234 | P48: 3.435 | Q48: -0.984024 | R48: 1.9e-05 | S48: -0.979068 | T48: 4.2e-05 | U48: 7.837e-09 | V48: 2.661e-10 | W48: 5.9198 | X48: 279.0698 | Y48: 0.05537278746 | Z48: 34.2844 | AA48: 0.707458448 | AB48: 0.02765814051 | AC48: 0.5541331307 | AD48: 524.96 | AE48: 0.2130746581 | AF48: -17.74306341 | AG48: 0.2218020229 | AH48: 0.4958389168 | AI48: -0.2591523549 | AJ48: 18.42190917 | AK48: -0.001004793244 | AL48: 0.001616509185 | AM48: -1.429803291 | AN48: 7.525276836 | AO48: 7.576312536 | AP48: 7.235363247 | AQ48: 7.313130084 | AR48: pH
A49: 0x26B9 | B49: pH | C49: 2020-04-20T17:15:37 | D49: 1587402930 | E49: 492.63 | F49: 6.1638 | G49: 34.27 | H49: 829 | I49: 39 | J49: 0 | K49: 5.73 | L49: 1.06 | M49: 14.352 | N49: 0.044 | O49: 7.1234 | P49: 3.435 | Q49: -0.983929 | R49: 2.5e-05 | S49: -0.979301 | T49: 1.9e-05 | U49: 7.903e-09 | V49: 9.667e-10 | W49: 6.1638 | X49: 279.3138 | Y49: 0.05542120173 | Z49: 34.27 | AA49: 0.7071507049 | AB49: 0.02764652365 | AC49: 0.5538922276 | AD49: 492.63 | AE49: 0.210673327 | AF49: -17.73076131 | AG49: 0.2187479368 | AH49: 0.4960137883 | AI49: -0.2593418878 | AJ49: 18.44350268 | AK49: -0.0009440176526 | AL49: 0.001593494501 | AM49: -1.430070305 | AN49: 7.522624612 | AO49: 7.574311587 | AP49: 7.235295889 | AQ49: 7.31317138 | AR49: pH
A50: 0x5633 | B50: pH | C50: 2020-04-20T17:26:40 | D50: 1587403593 | E50: 441.15 | F50: 6.5428 | G50: 34.2572 | H50: 830 | I50: 39 | J50: 0 | K50: 5.98 | L50: 1.09 | M50: 14.404 | N50: 0.044 | O50: 7.1234 | P50: 3.436 | Q50: -0.983612 | R50: 2.3e-05 | S50: -0.979558 | T50: 3e-05 | U50: 9.04e-09 | V50: 2.191e-09 | W50: 6.5428 | X50: 279.6928 | Y50: 0.05549640258 | Z50: 34.2572 | AA50: 0.7068771633 | AB50: 0.02763619755 | AC50: 0.5536780973 | AD50: 441.15 | AE50: 0.2070612646 | AF50: -17.71157812 | AG50: 0.2141364985 | AH50: 0.4962862225 | AI50: -0.2596263081 | AJ50: 18.47673269 | AK50: -0.0008468906062 | AL50: 0.001536113171 | AM50: -1.430506687 | AN50: 7.522028104 | AO50: 7.57474466 | AP50: 7.238679672 | AQ50: 7.316723931 | AR50: pH
A51: 0xE9BD | B51: pH | C51: 2020-04-20T17:38:42 | D51: 1587404315 | E51: 379.61 | F51: 6.9994 | G51: 34.2396 | H51: 831 | I51: 39 | J51: 0 | K51: 6.32 | L51: 1.1 | M51: 14.4 | N51: 0.044 | O51: 7.1234 | P51: 3.437 | Q51: -0.982145 | R51: 3.7e-05 | S51: -0.978967 | T51: 2.3e-05 | U51: 8.296e-09 | V51: 8.623e-10 | W51: 6.9994 | X51: 280.1494 | Y51: 0.05558700076 | Z51: 34.2396 | AA51: 0.7065010555 | AB51: 0.02762199916 | AC51: 0.5533836769 | AD51: 379.61 | AE51: 0.2028036938 | AF51: -17.68834661 | AG51: 0.2087349832 | AH51: 0.496615746 | AI51: -0.2599722156 | AJ51: 18.51626441 | AK51: -0.0007303093734 | AL51: 0.00143409378 | AM51: -1.431065306 | AN51: 7.541376725 | AO51: 7.595349921 | AP51: 7.262857754 | AQ51: 7.341105337 | AR51: pH
A52: 0x1655 | B52: pH | C52: 2020-04-20T17:44:43 | D52: 1587404676 | E52: 354.75 | F52: 7.2164 | G52: 34.2336 | H52: 832 | I52: 39 | J52: 0 | K52: 6.58 | L52: 1.09 | M52: 14.384 | N52: 0.044 | O52: 7.1234 | P52: 3.438 | Q52: -0.981765 | R52: 2.9e-05 | S52: -0.979029 | T52: 4.1e-05 | U52: 8.456e-09 | V52: 6.917e-10 | W52: 7.2164 | X52: 280.3664 | Y52: 0.05563005771 | Z52: 34.2336 | AA52: 0.7063728401 | AB52: 0.0276171588 | AC52: 0.5532833087 | AD52: 354.75 | AE52: 0.2008312951 | AF52: -17.67725961 | AG52: 0.2063072614 | AH52: 0.4967728541 | AI52: -0.2601343743 | AJ52: 18.53485958 | AK52: -0.000683168071 | AL52: 0.001382559344 | AM52: -1.431333841 | AN52: 7.54509368 | AO52: 7.599654727 | AP52: 7.269033627 | AQ52: 7.34737784 | AR52: pH
A53: 0x1F82 | B53: pH | C53: 2020-04-20T17:46:19 | D53: 1587404773 | E53: 348.39 | F53: 7.3056 | G53: 34.2284 | H53: 833 | I53: 39 | J53: 0 | K53: 6.73 | L53: 1.11 | M53: 14.216 | N53: 0.0444 | O53: 7.1234 | P53: 3.438 | Q53: -0.981673 | R53: 1.7e-05 | S53: -0.979114 | T53: 1.9e-05 | U53: 8.06e-09 | V53: 8.521e-10 | W53: 7.3056 | X53: 280.4556 | Y53: 0.05564775669 | Z53: 34.2284 | AA53: 0.7062617213 | AB53: 0.02761296382 | AC53: 0.5531963239 | AD53: 348.39 | AE53: 0.2000143837 | AF53: -17.67269355 | AG53: 0.2053658775 | AH53: 0.4968375286 | AI53: -0.2602040586 | AJ53: 18.54246736 | AK53: -0.0006711955376 | AL53: 0.001368420936 | AM53: -1.431437179 | AN53: 7.545446028 | AO53: 7.600234224 | AP53: 7.270536232 | AQ53: 7.348920166 | AR53: pH
A54: 0x94B5 | B54: pH | C54: 2020-04-20T17:52:42 | D54: 1587405155 | E54: 312.19 | F54: 7.6788 | G54: 34.2093 | H54: 834 | I54: 39 | J54: 0 | K54: 7 | L54: 1.11 | M54: 14.336 | N54: 0.044 | O54: 7.1234 | P54: 3.439 | Q54: -0.98108 | R54: 1.8e-05 | S54: -0.979367 | T54: 2e-05 | U54: 7.664e-09 | V54: -7.008e-10 | W54: 7.6788 | X54: 280.8288 | Y54: 0.05572180671 | Z54: 34.2093 | AA54: 0.705853584 | AB54: 0.02759755534 | AC54: 0.5528768295 | AD54: 312.19 | AE54: 0.19665534 | AF54: -17.65353531 | AG54: 0.2013522646 | AH54: 0.4971087093 | AI54: -0.2604930885 | AJ54: 18.57407014 | AK54: -0.000602479016 | AL54: 0.001280543601 | AM54: -1.431898256 | AN54: 7.55082466 | AO54: 7.606608448 | AP54: 7.280391396 | AQ54: 7.358941516 | AR54: pH
A55: 0x5D34 | B55: pH | C55: 2020-04-20T17:58:43 | D55: 1587405516 | E55: 272.86 | F55: 7.9291 | G55: 34.1847 | H55: 835 | I55: 39 | J55: 0 | K55: 7.23 | L55: 1.14 | M55: 14.372 | N55: 0.0438 | O55: 7.1234 | P55: 3.439 | Q55: -0.980483 | R55: 3.1e-05 | S55: -0.979475 | T55: 1.1e-05 | U55: 8.23e-09 | V55: 2.062e-09 | W55: 7.9291 | X55: 281.0791 | Y55: 0.05577147102 | Z55: 34.1847 | AA55: 0.7053279441 | AB55: 0.02757770986 | AC55: 0.552465352 | AD55: 272.86 | AE55: 0.1943884775 | AF55: -17.64063682 | AG55: 0.1984336733 | AH55: 0.4972911217 | AI55: -0.260699936 | AJ55: 18.5950603 | AK55: -0.0005271731979 | AL55: 0.001170792244 | AM55: -1.432258308 | AN55: 7.558142877 | AO55: 7.614657818 | AP55: 7.29017958 | AQ55: 7.368841158 | AR55: pH
A56: 0x4712 | B56: pH | C56: 2020-04-20T18:04:42 | D56: 1587405875 | E56: 241.12 | F56: 8.1727 | G56: 34.1436 | H56: 836 | I56: 39 | J56: 0 | K56: 7.46 | L56: 1.16 | M56: 14.392 | N56: 0.0438 | O56: 7.1234 | P56: 3.44 | Q56: -0.979603 | R56: 2.6e-05 | S56: -0.9797 | T56: 3.2e-05 | U56: 8.219e-09 | V56: 2.486e-09 | W56: 8.1727 | X56: 281.3227 | Y56: 0.05581980592 | Z56: 34.1436 | AA56: 0.7044498009 | AB56: 0.0275445534 | AC56: 0.551777928 | AD56: 241.12 | AE56: 0.1921368001 | AF56: -17.62804558 | AG56: 0.1956601715 | AH56: 0.497469064 | AI56: -0.2609197613 | AJ56: 18.61533026 | AK56: -0.0004663584357 | AL56: 0.001071380459 | AM56: -1.43260132 | AN56: 7.570467289 | AO56: 7.627668243 | AP56: 7.30514745 | AQ56: 7.383917503 | AR56: pH
A57: 0x4AC3 | B57: pH | C57: 2020-04-20T18:10:42 | D57: 1587406235 | E57: 220.3 | F57: 8.5468 | G57: 34.1214 | H57: 837 | I57: 39 | J57: 0 | K57: 7.71 | L57: 1.2 | M57: 14.4 | N57: 0.0438 | O57: 7.1234 | P57: 3.441 | Q57: -0.978715 | R57: 3.2e-05 | S57: -0.979666 | T57: 2.1e-05 | U57: 8.155e-09 | V57: 3.969e-10 | W57: 8.5468 | X57: 281.6968 | Y57: 0.05589403452 | Z57: 34.1214 | AA57: 0.7039755066 | AB57: 0.02752664406 | AC57: 0.551406642 | AD57: 220.3 | AE57: 0.1889270634 | AF57: -17.60863602 | AG57: 0.1920821932 | AH57: 0.4977431252 | AI57: -0.2612138982 | AJ57: 18.64615503 | AK57: -0.0004267953158 | AL57: 0.001000911965 | AM57: -1.433045888 | AN57: 7.5812491 | AO57: 7.639411806 | AP57: 7.320999732 | AQ57: 7.399936372 | AR57: pH
A58: 0xA9AB | B58: pH | C58: 2020-04-20T18:12:19 | D58: 1587406332 | E58: 214.94 | F58: 8.6705 | G58: 34.1229 | H58: 838 | I58: 39 | J58: 0 | K58: 7.85 | L58: 1.21 | M58: 14.244 | N58: 0.044 | O58: 7.1234 | P58: 3.441 | Q58: -0.978467 | R58: 2.2e-05 | S58: -0.979718 | T58: 1.5e-05 | U58: 7.431e-09 | V58: 1.134e-09 | W58: 8.6705 | X58: 281.8205 | Y58: 0.05591857897 | Z58: 34.1229 | AA58: 0.7040075528 | AB58: 0.02752785415 | AC58: 0.5514317284 | AD58: 214.94 | AE58: 0.1879199002 | AF58: -17.60219859 | AG58: 0.1909787528 | AH58: 0.4978339575 | AI58: -0.2613018902 | AJ58: 18.65626652 | AK58: -0.0004166370027 | AL58: 0.0009820958613 | AM58: -1.433188404 | AN58: 7.584095854 | AO58: 7.642575374 | AP58: 7.325580453 | AQ58: 7.404572176 | AR58: pH
A59: 0x0770 | B59: pH | C59: 2020-04-20T18:18:38 | D59: 1587406711 | E59: 182.02 | F59: 8.7549 | G59: 33.9842 | H59: 839 | I59: 39 | J59: 0 | K59: 8.12 | L59: 1.21 | M59: 14.364 | N59: 0.0438 | O59: 7.1234 | P59: 3.442 | Q59: -0.976605 | R59: 3.3e-05 | S59: -0.980736 | T59: 1.4e-05 | U59: 7.831e-09 | V59: 1.354e-09 | W59: 8.7549 | X59: 281.9049 | Y59: 0.05593532554 | Z59: 33.9842 | AA59: 0.7010447687 | AB59: 0.02741596116 | AC59: 0.5491123888 | AD59: 182.02 | AE59: 0.1866284206 | AF59: -17.59780081 | AG59: 0.1891963725 | AH59: 0.4978959923 | AI59: -0.2615094842 | AJ59: 18.66314243 | AK59: -0.0003529553238 | AL59: 0.0008604752478 | AM59: -1.433394425 | AN59: 7.615071808 | AO59: 7.673842184 | AP59: 7.356691691 | AQ59: 7.435720998 | AR59: pH
